Workbook

Sheet Control Panel
A1: GO TO
A2: Utah | C2: FILING INFORMATION | J2: Model Checks
A3: 1.1 | J3: (Must Be 0)
A4: 1.2 | E4: UTAH | J4: ='Model Checks'!D7 -> 1.17696248
A5: 1.3 pg 1 | D5: Current Case No. | E5: 18-057-14 | J5: (If this is not 0, or very close, go to
A6: 1.3 pg 2 | D6: Filing Date | E6: 2018-10-01 | J6: the "Model Checks"
D7: Test Year Ending | E7: 2019-10-31 | J7: Tab and find the
A8: 1.4 pg 1 | D8: Proposed Effective Date | E8: 2018-11-01 | J8: problem.)
A9: 1.4 pg 2 | D9: Prior Case No. | E9: 18-057-04
A10: 1.4 pg 3 | J10: Go To
A11: 1.5 | C11: Total Increase (Decrease) | E11: ='Utah Summary-by class'!Q24 -> -38678901.1 | G11: =E11-F11 -> -38678901.1 | J11: Model Checks'
A12: 1.6 pg 1
A13: 1.6 pg 2
A14: 1.6 pg 3 | C14: Typical Customer's Bill | J14: Old Ut Data color
A15: 1.7 pg 1
A16: 1.7 pg 2 | D16: Previous | E16: ='Ut 1.7'!F30 -> 636.84 | J16: New Data color
A17: 1.8 | D17: Proposed | E17: ='Ut 1.7'!H30 -> 609.03
A18: 1.9 | D18: Difference | E18: ='Ut 1.7'!J30 -> -27.81 | G18: =E18-F18 -> -27.81
A19: Monthly Inputs | D19: % Difference | E19: ='Ut 1.7'!J32 -> -4.37 | G19: =E19-F19 -> -4.37
A20: Other Inputs
A21: Expenses
A22: Rate Base
C29: Exhibit Headings
C31: UTAH
E32: Dominion Energy Utah
E33: ="Docket No. "&E5 -> Docket No. 18-057-14
C36: Test Year (enter as text)
D37: from | E37: Oct-18
D38: to | E38: Nov-19

Sheet Application
A1: Application Information
B3: Utah
A4: Utah Gas Costs | B4: ='Ut 1.5'!G43 -> 492649396
A5: Increase (Decrease) to Commodity | B5: ='Utah Summary-by class'!G27 -> -37701000
A6: Increase (Decrease) to SNG | B6: ='Utah Summary-by class'!N27 -> -978000
A7: Total Increase (Decrease) | B7: ='Utah Summary-by class'!Q27 -> -38679000
A8: Typical Increase (Decrease) in $ | B8: ='Ut 1.7'!J30 -> -27.81
A9: Typical Monthly Increase (Decrease) | B9: =B8/12 -> -2.3175
A10: Typical Increase (Decrease) in % | B10: ='Ut 1.7'!J32/100 -> -0.0437
A11: Proposed Rate Effective Date | B11: ='Control Panel'!E8 -> 2018-11-01
A12: Test Year Ending | B12: ='Control Panel'!E7 -> 2019-10-31
A13: System-Wide Production Costs - Wexpro I | B13: ='Ut 1.1'!I1424 -> 217085181.4
A14: System-Wide Royalty Payments - Wexpro I | B14: ='Ut 1.1'!I1419 -> 19427106.89
A15: Wexpro Operators Service Fee - Wexpro I | B15: ='Ut 1.1'!I1421 -> 197658074.5
A16: System-Wide Production Costs - Wexpro II | B16: ='Ut 1.1'!I1666 -> 49227058.23
A17: System-Wide Royalty Payments - Wexpro II | B17: ='Ut 1.1'!I1661 -> 5062927.996
A18: Wexpro Operators Service Fee - Wexpro II | B18: ='Ut 1.1'!I1663 -> 44164130.23
A19: Purchased Gas Costs | B19: ='Ut 1.2'!G24 -> 133649314
A20: Purchased Gas Costs per Dth | B20: ='Ut 1.2'!F24 -> 2.539343766
A21: Contracted Dth | B21: ='Ut 1.2'!E17 -> 20260000 | C21: Dth
A22: Contracted Dth Costs | B22: ='Ut 1.2'!G17 -> 56502148
A23: Stabilization Costs | B23: ='Ut 1.2'!G16 -> 0
A24: Spot Market Dth | B24: ='Ut 1.2'!E19 -> 30802326.39 | C24: Dth
A25: Spot Market Costs | B25: ='Ut 1.2'!G19 -> 74195613
A26: Purchased Gas Dth | B26: ='Ut 1.2'!E24 -> 52631438 | C26: Dth
A27: Future Contract Dth | B27: ='Ut 1.2'!E21 -> 1569111.605 | C27: Dth
A28: Future Contract Costs | B28: ='Ut 1.2'!G21 -> 2951553
A29: Transportation & Gathering Costs | B29: ='Ut 1.3 p1'!M82 -> 99814327.58
A30: Transportation Costs | B30: ='Ut 1.3 p1'!M38 -> 68589707
A31: Capacity Release Credits | B31: =-'Ut 1.3 p1'!L20 -> 2218191
A32: Transportation Commodity Costs | B32: ='Ut 1.3 p1'!M59 -> 561716
A34: Other Trans. & Gathering Costs | B34: ='Ut 1.3 p1'!L69 -> 3013070
A35: CO2 Processing Costs
A36: Storage & Working Gas Costs | B36: ='Ut 1.3 p1'!L70 -> 3718588
A37: Total Other Costs | B37: ='Ut 1.3 p1'!M71 -> 9658829.22
A38: Storage Costs | B38: ='Ut 1.3 p2'!K56 -> 20603624.27
A39: Storage Demand | B39: ='Ut 1.3 p2'!J20 -> 16725058
A40: Storage Commodity | B40: ='Ut 1.3 p2'!J27 -> 135941
A41: Working Storage Gas Return | B41: ='Ut 1.3 p2'!K53 -> 3384874.268
A42: Total Other Revenues | B42: ='Ut 1.4 p3'!H28 -> 15177753.12
A46: Utah Gas Costs | B46: ='Ut 1.5'!G43 -> 492649396
A47: Utah Gas Costs | B47: =B46 -> 492649396
A48: Utah Net Gas Costs | B48: ='Ut 1.6 p1'!J25 -> 379674457.5
A49: Commodity Portion of Gas Costs | B49: ='Ut 1.6 p1'!J25 -> 379674457.5
A50: Firm Gas Cost | B50: ='Ut 1.6 p1'!F31 -> 3.41715
A51: Current Amortization | B51: ='Ut 1.6 p1'!H32 -> 0.13552
A52: Previous Case No. | B52: ='Ut 1.6 p1'!H29 -> 18-057-04
A53: Forecasted 191 Account Balance | B53: =+'Other Inputs'!E159 -> -16168321
A54: Proposed Amortization | B54: ='Ut 1.6 p1'!F32 -> -0.2883320079
A55: Total Unit Cost in Rates | B55: ='Ut 1.6 p1'!F33 -> 3.128817992
A56: Increase (Decrease) in Unit Cost In Rates | B56: ='Ut 1.6 p1'!J33 -> -0.3393220079
A57: Test Year SNG Costs | B57: ='Ut 1.6 p2'!F14 -> 112974938.5
A58: Forested 191 SNG Balance | B58: ='Ut 1.6 p2'!F15 -> 8079403
A59: Total SNG | B59: ='Ut 1.6 p2'!F16 -> 121054341.5
A60: Forecasted Current SNG Revenues | B60: ='Ut 1.6 p2'!F19 -> 122032241.2
A61: % Change in SNG Rates | B61: =ROUND('Ut 1.6 p2'!F35,2)/100 -> -0.008
A62: Average Monthly Increase (Decrease) | B62: ='Ut 1.7'!J30/12 -> -2.3175
A63: Typical Increase (Decrease) in % | B63: ='Ut 1.7'!J32/100 -> -0.0437
A64: Company Owned Gas %
A65: Utah Gas Costs | B65: ='Ut 1.5'!G43 -> 492649396

Sheet Monthly Inputs
A1: MONTHLY INPUTS
G2: TEST YEAR COLUMNS | S2: 12-Month
E3: Sep18 | F3: Oct18 | G3: Nov18 | H3: Dec18 | I3: Jan19 | J3: Feb19 | K3: Mar19 | L3: Apr19 | M3: May19 | N3: Jun19 | O3: Jul19 | P3: Aug19 | Q3: Sep19 | R3: Oct19 | S3: =R3 -> Oct19
E4: 9 | F4: 10 | G4: 11 | H4: 12 | I4: 1 | J4: 2 | K4: 3 | L4: 4 | M4: 5 | N4: 6 | O4: 7 | P4: 8 | Q4: 9 | R4: 10
A5: QGC Company Produced Gas In MDth | I5: Updated: | J5: 2018-08-15
A6: WEXPRO I
B7: Company Production In Dth | E7: 4162301.653 | F7: 4234535.633 | G7: 4416212.987 | H7: 4694187.434 | I7: 4682317.491 | J7: 4321850.379 | K7: 4917970.195 | L7: 4750496.988 | M7: 4794066.281 | N7: 4610328.008 | O7: 4611709.976 | P7: 4507108.671 | Q7: 4267514.98 | R7: 4554454.927 | S7: =SUM(G7:R7) -> 55128218.32
B8: Birch Cr Gathering | E8: 0 | F8: 0 | G8: 0 | H8: 0 | I8: 0 | J8: 0 | K8: 0 | L8: 0 | M8: 0 | N8: 0 | O8: 0 | P8: 0 | Q8: 0 | R8: =R7/$S$7*$S$8 -> 0 | S8: ='Other Inputs'!$D$196 -> 0
B9: Gathering | E9: 2910988.523 | F9: 2961506.795 | G9: =G7/$S$7*$S$9 -> 2968963.453 | H9: =H7/$S$7*$S$9 -> 3155842.115 | I9: 3147862.104 | J9: 2905524.68 | K9: 3306288.4 | L9: 3193698.307 | M9: 3222989.385 | N9: 3099464.496 | O9: 3100393.575 | P9: 3030071.457 | Q9: 2868995.686 | R9: =R7/$S$7*$S$9 -> 3061901.739 | S9: =+'Ex 1.1 Data'!E1 -> 37061995.4
A12: WEXPRO II
B13: Company Production In Dth | E13: 1858998.443 | F13: 2040057.299 | G13: 1336550.991 | H13: 1369852.796 | I13: 1313187.914 | J13: 1142965.585 | K13: 1224143.494 | L13: 1149432.003 | M13: 1155221.205 | N13: 1089497.983 | O13: 991008.9478 | P13: 1059733.902 | Q13: 1017635.99 | R13: 1162726.308 | S13: =SUM(G13:R13) -> 14011957.12
B14: Samson Gathering | E14: 1858998.443 | F14: 2040057.299 | G14: =G13/$S$13*$S$14 -> 1336550.991 | H14: =H13/$S$13*$S$14 -> 1369852.796 | I14: 1313187.914 | J14: 1142965.585 | K14: 1224143.494 | L14: 1149432.003 | M14: 1155221.205 | N14: 1089497.983 | O14: 991008.9478 | P14: 1059733.902 | Q14: 1017635.99 | R14: =R13/$S$13*$S$14 -> 1162726.308 | S14: =+'Ex 1.1 Data'!L1 -> 14011957.12
D21: 1000
B23: Injections in Dth
C24: Chalk Creek | E24: 0 | F24: 0 | G24: 102149.2767 | H24: 47283.10394 | I24: 0 | J24: 0 | K24: 0 | L24: 0 | M24: 0 | N24: 0 | O24: 0 | P24: 0 | Q24: 0 | R24: 97348.75488 | S24: =SUM(G24:R24) -> 246781.1356
C25: Clay Basin | E25: 2656265.625 | F25: 325101.7361 | G25: 0 | H25: 0 | I25: 0 | J25: 0 | K25: 0 | L25: 930838.6612 | M25: 2543589.722 | N25: 2461538.452 | O25: 2543589.722 | P25: 2543589.722 | Q25: 1816826.721 | R25: 119100.1363 | S25: =SUM(G25:R25) -> 12959073.14
C26: Coalville | E26: 31957.92961 | F26: 111245.9564 | G26: 121310.1501 | H26: 57776.96609 | I26: 0 | J26: 0 | K26: 0 | L26: 0 | M26: 0 | N26: 0 | O26: 0 | P26: 0 | Q26: 22993.12592 | R26: 128554.3823 | S26: =SUM(G26:R26) -> 330634.6245
C27: Leroy | E27: 9424.08371 | F27: 297382.2021 | G27: 19980.44968 | H27: 0 | I27: 0 | J27: 0 | K27: 0 | L27: 0 | M27: 0 | N27: 0 | O27: 0 | P27: 0 | Q27: 36504.89426 | R27: 315889.74 | S27: =SUM(G27:R27) -> 372375.0839
C28: Spire Storage West | E28: 350489.9902 | F28: 362173.0042 | G28: 0 | H28: 0 | I28: 0 | J28: 0 | K28: 0 | L28: 350489.9902 | M28: 362173.0042 | N28: 350489.9902 | O28: 362173.0042 | P28: 362173.0042 | Q28: 350489.9902 | R28: 355745.2698 | S28: 2493734.253
C29: Total Injections | E29: 3048137.629 | F29: 1095902.899 | G29: =SUM(G24:G28) -> 243439.8766 | H29: 105060.07 | I29: 0 | J29: 0 | K29: 0 | L29: 1281328.651 | M29: 2905762.726 | N29: 2812028.442 | O29: 2905762.726 | P29: 2905762.726 | Q29: 2226814.732 | R29: 1016638.283 | S29: =SUM(G29:R29) -> 16402598.23
B31: Withdrawls In Dth
C32: Chalk Creek | E32: 0 | F32: 0 | G32: 0 | H32: 0 | I32: 0 | J32: 0 | K32: 257250 | L32: 0 | M32: 0 | N32: 0 | O32: 0 | P32: 0 | Q32: 0 | R32: 0 | S32: =SUM(G32:R32) -> 257250
C33: Clay Basin | E33: 0 | F33: 0 | G33: 248800.0107 | H33: 4158000 | I33: 3458044.8 | J33: 3080044.8 | K33: 1673787.17 | L33: 16419.63768 | M33: 0 | N33: 0 | O33: 0 | P33: 0 | Q33: 0 | R33: 0 | S33: =SUM(G33:R33) -> 12635096.42
C34: Coalville | E34: 0 | F34: 0 | G34: 0 | H34: 0 | I34: 0 | J34: 0 | K34: 300106.9641 | L34: 0 | M34: 0 | N34: 0 | O34: 0 | P34: 0 | Q34: 0 | R34: 0 | S34: 300106.9641
C35: Leroy | E35: 0 | F35: 0 | G35: 0 | H35: 0 | I35: 0 | J35: 54543.02597 | K35: 310000 | L35: 0 | M35: 0 | N35: 0 | O35: 0 | P35: 0 | Q35: 0 | R35: 0 | S35: =SUM(G35:R35) -> 364543.026
C36: Spire Storage West | E36: 0 | F36: 342368.988 | G36: 498000 | H36: 514599.9756 | I36: 514599.9756 | J36: 464799.9878 | K36: 292202.4536 | L36: 0 | M36: 0 | N36: 0 | O36: 0 | P36: 0 | Q36: 0 | R36: 0 | S36: 2284202.393
C37: Total Withdrawls | E37: 0 | F37: 342368.988 | G37: =SUM(G32:G36) -> 746800.0107 | H37: 4672599.976 | I37: 3972644.775 | J37: 3599387.814 | K37: 2833346.588 | L37: 16419.63768 | M37: 0 | N37: 0 | O37: 0 | P37: 0 | Q37: 0 | R37: 0 | S37: =SUM(G37:R37) -> 15841198.8
B39: Lost & Unaccounted for on QPC
A42: Injection and Withdrawl Used, Lost and Unaccounted For
D43: Gas Use
D44: %
B45: Injections in Dth
C46: Chalk Creek | D46: ='Other Inputs'!E171 -> 0.0099 | E46: 0 | F46: 0 | G46: -896.1875473 | H46: -563.8265823 | I46: -333.1040016 | J46: 0 | K46: 0 | L46: 0 | M46: 0 | N46: 0 | O46: 0 | P46: 0 | Q46: 0 | R46: =R24*-$D46 -> -963.7526733 | S46: =SUM(G46:R46) -> -2756.870805
C47: Clay Basin | D47: ='Other Inputs'!E180 -> 0.025 | E47: 0 | F47: 0 | G47: 0 | H47: 0 | I47: 0 | J47: 0 | K47: 0 | L47: 0 | M47: -7112.36986 | N47: -76819.07329 | O47: -84236.53408 | P47: -88076.13674 | Q47: -84947.37469 | R47: =R25*-$D47 -> -2977.503408 | S47: =SUM(G47:R47) -> -344168.9921
C48: Coalville | D48: ='Other Inputs'!E183 -> 0.0108 | E48: 0 | F48: 0 | G48: -1359.223291 | H48: -549.9190857 | I48: 0 | J48: 0 | K48: 0 | L48: 0 | M48: 0 | N48: 0 | O48: 0 | P48: 0 | Q48: -357.9288116 | R48: =R26*-$D48 -> -1388.387329 | S48: =SUM(G48:R48) -> -3655.458517
C49: Leroy | D49: ='Other Inputs'!E177 -> 0.0295 | E49: 0 | F49: 0 | G49: -10719.09393 | H49: 0 | I49: 0 | J49: 0 | K49: 0 | L49: 0 | M49: 0 | N49: 0 | O49: 0 | P49: 0 | Q49: -424.0837669 | R49: =R27*-$D49 -> -9318.74733 | S49: =SUM(G49:R49) -> -20461.92503
C50: Spire | D50: ='Other Inputs'!E174 -> 0.025 | E50: 0 | F50: 0 | G50: 0 | H50: 0 | I50: 0 | J50: 0 | K50: 0 | L50: -7320.284271 | M50: -9054.325104 | N50: -8762.249756 | O50: -9054.325104 | P50: -9054.325104 | Q50: -8762.249756 | R50: -8893.631744 | S50: =SUM(G50:R50) -> -60901.39084
C51: Total Injections | E51: 0 | F51: 0 | G51: =SUM(G46:G50) -> -12974.50477 | H51: -1113.745668 | I51: -333.1040016 | J51: 0 | K51: 0 | L51: -7320.284271 | M51: -16166.69496 | N51: -85581.32304 | O51: -93290.85919 | P51: -97130.46184 | Q51: -94491.63702 | R51: -23542.02249 | S51: =SUM(S46:S50) -> -431944.6373
B53: Withdrawls In Dth
C54: Chalk Creek | D54: ='Other Inputs'!E172 -> 0.0184 | E54: 0 | F54: -7228.725 | G54: 0 | H54: 0 | I54: 0 | J54: 0 | K54: -7228.725 | L54: -1260.993074 | M54: 0 | N54: 0 | O54: 0 | P54: 0 | Q54: 0 | R54: =R32*-$D54 -> 0 | S54: =SUM(G54:R54) -> -8489.718074
C55: Clay Basin | D55: ='Other Inputs'!E181 -> 0.0155 | E55: -53478.6 | F55: -29366.988 | G55: -1037.91924 | H55: -90392.4 | I55: -72804.2 | J55: -53478.6 | K55: -29366.988 | L55: -12935.13222 | M55: 0 | N55: 0 | O55: 0 | P55: 0 | Q55: 0 | R55: =R33*-$D55 -> 0 | S55: =SUM(G55:R55) -> -260015.2395
C56: Coalville | D56: ='Other Inputs'!E184 -> 0.0239 | E56: 0 | F56: -5580 | G56: 0 | H56: 0 | I56: 0 | J56: 0 | K56: -5580 | L56: 0 | M56: 0 | N56: 0 | O56: 0 | P56: 0 | Q56: 0 | R56: =R34*-$D56 -> 0 | S56: =SUM(G56:R56) -> -5580
C57: Leroy | D57: ='Other Inputs'!E178 -> 0.0243 | E57: 0 | F57: -7595 | G57: 0 | H57: 0 | I57: 0 | J57: 0 | K57: -7595 | L57: 0 | M57: 0 | N57: 0 | O57: 0 | P57: 0 | Q57: 0 | R57: =R35*-$D57 -> 0 | S57: =SUM(G57:R57) -> -7595
C58: Spire | D58: ='Other Inputs'!E175 -> 0 | E58: 0 | F58: 0 | G58: 0 | H58: 0 | I58: 0 | J58: 0 | K58: 0 | L58: 0 | M58: 0 | N58: 0 | O58: 0 | P58: 0 | Q58: 0 | R58: 0 | S58: =SUM(G58:R58) -> 0
C59: Total Withdrawls | E59: -53478.6 | F59: -49770.713 | G59: =SUM(G54:G58) -> -1037.91924 | H59: -90392.4 | I59: -72804.2 | J59: -53478.6 | K59: -49770.713 | L59: -14196.12529 | M59: 0 | N59: 0 | O59: 0 | P59: 0 | Q59: 0 | R59: 0 | S59: =SUM(S54:S58) -> -281679.9575
B61: QPC Transportation Loss
C62: Chalk Creek | D62: ='Other Inputs'!$E$322 -> 0.0187 | E62: 0 | F62: -4013.1 | G62: 0 | H62: 0 | I62: 0 | J62: 0 | K62: -4013.1 | L62: -700.0530945 | M62: 0 | N62: 0 | O62: 0 | P62: 0 | Q62: 0 | R62: =R32*-$D62 -> 0 | S62: =SUM(G62:R62) -> -4713.153094
C63: Clay Basin | D63: ='Other Inputs'!$E$322 -> 0.0187 | E63: -35053.2 | F63: -19248.95012 | G63: -680.3168129 | H63: -59248.8 | I63: -47720.4 | J63: -35053.2 | K63: -19248.95012 | L63: -8478.490027 | M63: 0 | N63: 0 | O63: 0 | P63: 0 | Q63: 0 | R63: =R33*-$D63 -> 0 | S63: =SUM(G63:R63) -> -170430.157
C64: Coalville | D64: ='Other Inputs'!$E$322 -> 0.0187 | E64: 0 | F64: -4836 | G64: 0 | H64: 0 | I64: 0 | J64: 0 | K64: -4836 | L64: 0 | M64: 0 | N64: 0 | O64: 0 | P64: 0 | Q64: 0 | R64: =R34*-$D64 -> 0 | S64: =SUM(G64:R64) -> -4836
C65: Leroy | D65: ='Other Inputs'!$E$322 -> 0.0187 | E65: 0 | F65: -4836 | G65: 0 | H65: 0 | I65: 0 | J65: 0 | K65: -4836 | L65: 0 | M65: 0 | N65: 0 | O65: 0 | P65: 0 | Q65: 0 | R65: =R35*-$D65 -> 0 | S65: =SUM(G65:R65) -> -4836
C66: Spire | D66: ='Other Inputs'!$E$322 -> 0.0187 | E66: -7250.87981 | F66: 0 | G66: -2678.048877 | H66: -8027.759619 | I66: -8027.759619 | J66: -7250.87981 | K66: 0 | L66: -6082.867419 | M66: 0 | N66: 0 | O66: 0 | P66: 0 | Q66: 0 | R66: 0 | S66: =SUM(G66:R66) -> -32067.31534
C67: Total Withdrawls | E67: -42304.07981 | F67: -32934.05012 | G67: =SUM(G62:G66) -> -3358.36569 | H67: -67276.55962 | I67: -55748.15962 | J67: -42304.07981 | K67: -32934.05012 | L67: -15261.41054 | M67: 0 | N67: 0 | O67: 0 | P67: 0 | Q67: 0 | R67: 0 | S67: -216882.6254
B70: Total Injections & Withdrawls | E70: 0 | F70: 0 | G70: =G53+G60 -> 0 | H70: 0 | I70: 0 | J70: 0 | K70: 0 | L70: 0 | M70: 0 | N70: 0 | O70: 0 | P70: 0 | Q70: 0 | R70: 0 | S70: =S51+S59 -> -713624.5948
R72: Fuel Factor | S72: =-S70/(S37+S29) -> 0.02213215131
S74: 12-Month
E75: =E3 -> Sep18 | F75: Oct18 | G75: Nov18 | H75: Dec18 | I75: Jan19 | J75: Feb19 | K75: Mar19 | L75: Apr19 | M75: May19 | N75: Jun19 | O75: Jul19 | P75: Aug19 | Q75: Sep19 | R75: Oct19 | S75: Total
I77: Updated: | J77: 2018-09-13 | K77: EXH 1.2
A78: Natural Gas Spot Price Forecast - Average of GI, Cera & Pira | G78: (Forecast --->)
B79: Kern River Opal, Wyoming | E79: 2.13 | F79: 2.16 | G79: 2.51 | H79: 2.84 | I79: 2.91 | J79: 2.71 | K79: 2.25 | L79: 1.83 | M79: 1.75 | N79: 1.86 | O79: 1.92 | P79: 1.92 | Q79: 1.8 | R79: 1.72
B82: Spot Purchases from IRP | G82: 4581.165634 | H82: 4202.166374 | I82: 4876.563843 | J82: 4439.956009 | K82: 4010.272236 | L82: 3812.942858 | M82: 2582.189948 | N82: 493.311245 | O82: 0 | P82: 0 | Q82: 0 | R82: 1803.758249 | S82: =SUM(G82:R82) -> 30802.32639
C83: In DTH | G83: =G82*1000 -> 4581165.634 | H83: =H82*1000 -> 4202166.374 | I83: 4876563.843 | J83: 4439956.009 | K83: 4010272.236 | L83: =L82*1000 -> 3812942.858 | M83: =M82*1000 -> 2582189.948 | N83: 493311.245 | O83: =O82*1000 -> 0 | P83: 0 | Q83: 0 | R83: 1803758.249 | S83: =SUM(G83:R83) -> 30802326.39
C84: In $ | G84: =G83*G79 -> 11498725.74 | H84: 11934152.5 | I84: 14190800.78 | J84: 12032280.78 | K84: =K83*K79 -> 9023112.532 | L84: 6977685.431 | M84: 4518832.409 | N84: 917558.9156 | O84: 0 | P84: 0 | Q84: 0 | R84: 3102464.188 | S84: =SUM(G84:R84) -> 74195613.28
A87: CONTRACT PURCHASES | I87: Updated: | J87: 2018-09-18
B88: RESET FORMULAS TO Brent's WORKSHEET
B89: Peaking Purchases (DTH) | G89: 1000000 | H89: 4000000 | I89: 5000000 | J89: 3000000 | K89: 0 | L89: 0 | M89: 0 | N89: 0 | O89: 0 | P89: 0 | Q89: 0 | R89: 0 | S89: =SUM(G89:R89) -> 13000000
B90: Peaking Purchases ($) | G90: 2558032.914 | H90: 11490646.51 | I90: 14732218.89 | J90: 8253110.038 | K90: 0 | L90: 0 | M90: 0 | N90: 0 | O90: 0 | P90: 0 | Q90: 0 | R90: 0 | S90: =SUM(G90:R90) -> 37034008.35
B92: Term Purchases (DTH) | G92: 900000 | H92: 1240000 | I92: 1240000 | J92: 1120000 | K92: 930000 | L92: 900000 | M92: 0 | N92: 0 | O92: 0 | P92: 0 | Q92: 0 | R92: 930000 | S92: =SUM(G92:R92) -> 7260000
B93: Term Purchases ($) | G93: 2498716.8 | H93: 3797842.695 | I93: 3886230.122 | J93: 3282046.749 | K93: 2336532 | L93: 1877414.4 | M93: 0 | N93: 0 | O93: 0 | P93: 0 | Q93: 0 | R93: 1789357.2 | S93: =SUM(G93:R93) -> 19468139.97
B94: Stabilization Costs (Winter Months - Oct to Mar) | G94: 0 | H94: 0 | I94: 0 | J94: 0 | K94: 0 | L94: 0 | M94: 0 | N94: 0 | O94: 0 | P94: 0 | Q94: 0 | R94: 0 | S94: =SUM(G94:R94) -> 0
B97: Total Purchases (DTH) | E97: 0 | F97: 0 | G97: =G89+G92 -> 1900000 | H97: =H89+H92 -> 5240000 | I97: 6240000 | J97: 4120000 | K97: 930000 | L97: =L89+L92 -> 900000 | M97: 0 | N97: 0 | O97: 0 | P97: 0 | Q97: 0 | R97: 930000 | S97: =SUM(G97:R97) -> 20260000
B98: Total Purchases ($) | E98: 0 | F98: 0 | G98: 5056749.714 | H98: 15288489.2 | I98: 18618449.01 | J98: 11535156.79 | K98: 2336532 | L98: =L90+L93 -> 1877414.4 | M98: 0 | N98: 0 | O98: 0 | P98: 0 | Q98: 0 | R98: 1789357.2 | S98: =SUM(G98:R98) -> 56502148.32
A101: Typical Customer Monthly Usage in Dth
B102: Utah | G102: =VLOOKUP(MONTH(G3),$F$115:$G$126,2,FALSE) -> 6.3 | H102: =VLOOKUP(MONTH(H3),$F$115:$G$126,2,FALSE) -> 11.5 | I102: =VLOOKUP(MONTH(I3),$F$115:$G$126,2,FALSE) -> 14.9 | J102: 12.5 | K102: 10.1 | L102: 8.3 | M102: 4.4 | N102: 3.1 | O102: 2 | P102: =VLOOKUP(MONTH(P3),$F$115:$G$126,2,FALSE) -> 1.8 | Q102: 2 | R102: 3.1 | S102: =SUM(G102:R102) -> 80
A104: INPUTS FROM WEXPRO | G104: =G3 -> Nov18 | H104: =H3 -> Dec18 | I104: Jan19 | J104: Feb19 | K104: Mar19 | L104: Apr19 | M104: May19 | N104: Jun19 | O104: Jul19 | P104: =P3 -> Aug19 | Q104: Sep19 | R104: Oct19 | S104: 12-Month
S105: Total
A106: Wexpro I Operator Fee (Wexpro forecast) | G106: 16710861.01 | H106: 16826873.33 | I106: 16941049.22 | J106: 16950254.28 | K106: 16820534.23 | L106: 17410341.42 | M106: 16415657.88 | N106: 16270245.05 | O106: 16202238.94 | P106: 15748591.12 | Q106: 15610775.79 | R106: 15750652.22 | S106: =SUM(G106:R106) -> 197658074.5
A108: Wexpro II Operator Fee (Wexpro forecast) | G108: 3728117.412 | H108: 3847213.461 | I108: 4112865.219 | J108: 3843664.26 | K108: 3719035.959 | L108: 3580612.512 | M108: 3499232.319 | N108: 3449397.083 | O108: 3399384.038 | P108: 3556834.638 | Q108: 3592750.154 | R108: 3835023.177 | S108: =SUM(G108:R108) -> 44164130.23
F114: Typical UPC | G114: UT
F115: 1 | G115: 14.9
F116: 2 | G116: 12.5
F117: 3 | G117: 10.1
F118: 4 | G118: 8.3
F119: 5 | G119: 4.4
F120: 6 | G120: 3.1
F121: 7 | G121: 2
F122: 8 | G122: 1.8
F123: 9 | G123: 2
F124: 10 | G124: 3.1
F125: 11 | G125: 6.3
F126: 12 | G126: 11.5
F127: Total | G127: =SUM(G115:G126) -> 80

Sheet Other Inputs
H1: Used In
A2: INPUT SECTION | H2: Ut | I2: Wy | J2: Source
A3: INPUTS FROM QUESTAR PIPELINE TARIFF AND CONTRACTS
B5: Storage Commodity Rates | E5: Rate | F5: Effective
B6: Peaking Injections | E6: 0.03872 | F6: 2018-01-01 | H6: 1.3.2 | I6: 1.3p2 | J6: QPC Tariff Statement of Rates
B7: Peaking Withdrawals | E7: 0.03872 | F7: =$F$6 -> 2018-01-01 | H7: 1.3.2 | I7: 1.3p2 | J7: =J6 -> QPC Tariff Statement of Rates
B8: Spire Injections | E8: 0.015 | F8: =$F$6 -> 2018-01-01
B9: Spire Withdrawals | E9: 0.01 | F9: 2018-01-01
B10: Clay Basin Injections | E10: 0.01049 | F10: =$F$6 -> 2018-01-01 | H10: 1.3.2 | I10: 1.3p2 | J10: QPC Tariff Statement of Rates
B11: Clay Basin Withdrawals | E11: 0.01781 | F11: =$F$6 -> 2018-01-01 | H11: 1.3.2 | I11: 1.3p2 | J11: =J10 -> QPC Tariff Statement of Rates
B13: Storage Field Reservation Charges
B14: Peaking Storage Fields Demand (Leroy, Chalk Creek, Coalville) | E14: 2.87375 | F14: =$F$6 -> 2018-01-01 | H14: 1.3.2 | I14: 1.3p2 | J14: =$J$6 -> QPC Tariff Statement of Rates
B15: Spire | E15: 0.09 | F15: =$F$6 -> 2018-01-01
B16: Clay Basin Demand | E16: 2.85338 | F16: =$F$6 -> 2018-01-01 | H16: 1.3.2 | I16: 1.3p2 | J16: =$J$6 -> QPC Tariff Statement of Rates
B17: Clay Basin Capacity | E17: 0.02378 | F17: =$F$6 -> 2018-01-01 | H17: 1.3.2 | I17: 1.3p2 | J17: =$J$6 -> QPC Tariff Statement of Rates
B19: Peak Hour Service
B20: Kern River | D20: =100000/24*6 -> 25000 | E20: 3 | F20: =+F21*E21/E20 -> 11.65333333
B21: mid Nov - mid Feb | E21: 92 | F21: 0.38
B23: Dominion Energy Questar Pipeline | D23: =(250000-44000)/24*8 -> 68666.66667 | E23: 3 | F23: =(1033649+127750+326416-262000)/(D23*E23) -> 5.950558252
B24: mid Nov - mid Feb | E24: =16+31+31+14 -> 92 | F24: =+F23/E24*E23 -> 0.194039943
J26: used in Exhibit 1.3
B27: FIRM TRANSPORTATION | D27: Contract Dth | E27: Months | F27: Maximum Rate | G27: Effective
B28: T-1 Transportation - Yearly (MT241) | D28: =798902 -> 798902 | E28: 12 | F28: 5.28804 | G28: 2018-01-01 | H28: 1.3p1 | J28: =$J$6 -> QPC Tariff Statement of Rates
B29: T-1 Transportation - Yearly (Mainline 104) | D29: 30000 | E29: 12 | F29: 5.28804 | G29: =$G$28 -> 2018-01-01 | H29: Jan | J29: =$J$6 -> QPC Tariff Statement of Rates
B30: T-1 Transportation - Yearly (Tieline 112) | D30: 12000 | E30: 12 | F30: 5.28804 | G30: =$G$28 -> 2018-01-01 | H30: 1.3p1 | J30: =$J$6 -> QPC Tariff Statement of Rates
B31: T-1 Transportation - Nov-Mar | D31: 75000 | E31: 5 | F31: 6.80887 | G31: =$G$28 -> 2018-01-01
B32: T-1 Transportation - Yearly (Hyrum) | D32: 100000 | E32: 12 | F32: 5.28804 | G32: =$G$28 -> 2018-01-01
B33: Total Yearly T-1 Transportation | D33: =SUM(D28:D32) -> 1015902 | E33: 12
B35: T-1 Transportation - Seasonal(BASE TARIFF RATE LOW LOAD) Mainline 104 | D35: 0 | E35: 0 | F35: 0
B37: No-Notice Transportation (BASE TARIFF RATE) | D37: 203542 | E37: 12 | F37: 0.86753 | G37: =$G$28 -> 2018-01-01 | H37: 1.3p1 | J37: =$J$6 -> QPC Tariff Statement of Rates
B38: GRI - Yearly (SURCHARGE LOW LOAD CUSTOMERS MAXIMUM) | D38: =D33 -> 1015902 | E38: 12 | F38: 0 | G38: =$G$28 -> 2018-01-01 | H38: 1.3p1 | J38: =$J$6 -> QPC Tariff Statement of Rates
B39: GRI - Seasonal (No GRI currently) | D39: 30000 | E39: 3 | F39: =+F38 -> 0 | G39: =$G$28 -> 2018-01-01 | H39: 1.3p1 | J39: =$J$6 -> QPC Tariff Statement of Rates
B40: GRI | D40: 52000 | E40: 12 | F40: =+F38 -> 0 | G40: =$G$28 -> 2018-01-01 | H40: 1.3p1 | J40: =$J$6 -> QPC Tariff Statement of Rates
B42: TRANSPORTATION COMMODITY
B43: PIPELINE USAGE CHARGE TO VOLUMETRIC RELEASES
B44: QPC Commodity
B45: QPC Firm Transportation Usage Charge (Max & Min) (BASE TARIFF RATE) | F45: 0.00267 | G45: 2018-01-01 | H45: 1.3p1 | J45: =$J$6 -> QPC Tariff Statement of Rates
B46: QPC (ANNUAL CHARGE ADJUSTMENT) | F46: 0.0013 | G46: 2017-10-01 | H46: 1.3p1 | J46: FERC Website
B47: QPC GRI SURCHARGE (not used currently) | F47: 0 | G47: =G45 -> 2018-01-01 | H47: 1.3p1 | J47: =$J$6 -> QPC Tariff Statement of Rates
E48: Current | F48: Proposed
B49: INTER TRANS (T-2 PIPELINE BASE TARIFF) MAX | D49: Base Tariff | E49: 0.17652 | F49: 0.17652 | G49: 2018-01-01 | J49: =$J$6 -> QPC Tariff Statement of Rates
C50: (not used currently) | D50: GRI Surcharge | E50: 0 | F50: 0 | G50: =G49 -> 2018-01-01 | J50: =$J$6 -> QPC Tariff Statement of Rates
D51: Annual Charge | E51: 0.0013 | F51: 0.0013 | G51: =+G46 -> 2017-10-01 | J51: ferc.gov
D52: Total | E52: =SUM(E49:E51) -> 0.17782 | F52: =SUM(F49:F51) -> 0.17782
B55: Utah | E55: =ROUND((E52)/(1-$E319),5) -> 0.17862 | F55: =ROUND((F52)/(1-E319),5) -> 0.17862 | H55: 1.6.3 | J55: Before Adjustment for Bad Debt (Transport grossed up for QGC fuel)
B56: Wyoming | F56: =ROUND((F52)/(1-E320),5) -> 0.18053
A58: INPUTS FROM KERN RIVER PIPELINE TARIFF AND CONTRACTS
B59: Kern River 2003 Expansion | D59: Contract Dth | E59: Months | F59: Maximum Rate | G59: Effective
F60: 0.2018 | G60: 2018-04-01 | J60: KR Tariff 5-A
B61: Jan - Dec #20029 | D61: 33000 | E61: 12 | F61: =(F60*(E64-153))/E61 -> 3.565133333 | H61: 1.3.1
B62: November - March #20029 | D62: 50000 | E62: 5 | F62: =F61 -> 3.565133333 | H62: Jan
B63: Jan - Dec #1829 | D63: 1885 | E63: 12 | F63: =F64*E64/E63 -> 17.74204167
B64: Days in Tariff Rate | E64: 365 | F64: 0.5833 | G64: =G60 -> 2018-04-01
B67: Citadel Energy Marketing
B68: Dec - Feb #20017 | D68: 56925 | E68: 3 | F68: =+E69*F69/E68 -> 8.7 | H68: 1.3.1
B69: Days in Tariff Rate | E69: =31+31+28 -> 90 | F69: 0.29
B70: Nov & Mar #20017 | D70: 6000 | E70: 2 | F70: =+F71*E71/E70 -> 8.845 | H70: Jan
B71: Days in Tariff Rate | E71: =30+31 -> 61 | F71: 0.29
B72: Nov - Mar #20024 | D72: 27000 | E72: 5 | F72: =+F73*E73/E72 -> 8.758 | H72: Jan
B73: Days in Tariff Rate | E73: =30+31+31+28+31 -> 151 | F73: 0.29
B75: Kern River 2003 Expansion | E75: Days in TEST PERIOD
B76: Jan - Dec | C76: 0.4106875895 | D76: =D61+D63 -> 34885 | E76: 365 | F76: 0.0044 | G76: =G64 -> 2018-04-01 | H76: 1.3p1 | J76: KR Tariff 5-A
B77: November - March | C77: =C76 -> 0.4106875895 | D77: =D62 -> 50000 | E77: 151 | F77: 0.0044 | G77: =G64 -> 2018-04-01 | H77: 1.3p1 | J77: KR Tariff 5-A
B79: Kern River Original System Period Two Rates #20017
B80: Dec - Feb #20017 | C80: =+C76 -> 0.4106875895 | D80: 56925 | E80: 90 | F80: 0.0044 | G80: 2017-01-01 | H80: 1.3.1 | J80: KR Tariff 5.01
B81: Nov & Mar #20017 | C81: =+C76 -> 0.4106875895 | D81: 6000 | E81: 61 | F81: 0.0044 | G81: 2017-01-01 | H81: 1.3.2 | J81: KR Tariff 5.01
B82: Kern River 2002 Expansion Period Two Rates #20024
B83: Nov - Mar #20024 | C83: =+C76 -> 0.4106875895 | D83: 27000 | E83: 151 | F83: 0.0044 | G83: 2017-01-01 | H83: Jan
A85: INPUTS FROM CIG TARIFF AND CONTRACTS
B86: CIG | D86: Contract Dth | E86: Months | F86: Maximum Rate | G86: Effective
D87: 400 | E87: 12 | F87: 9.0095
E88: 365 | F88: =+F87*E87/E88 -> 0.2962027397 | G88: 2017-01-01 | J88: CIG Tariff, Part II: Stmt. Of Rates, Section 1.1 Firm Transportation Rate Schedule
B89: CIG Commodity Rate | F89: 0.0166 | G89: 2017-01-01 | J89: CIG Tariff, Part II: Stmt. Of Rates, Section 1.1 Firm Transportation Rate Schedule
A91: INPUTS FROM NWPL TARIFF AND CONTRACTS
B92: NWPL | D92: Contract Dth | E92: Months | F92: Maximum Rate | G92: Effective
D93: 2016 | E93: 12 | F93: =+E94*F94/E93 -> 11.951925
E94: 365 | F94: 0.39294 | J94: Northwest Pipeline LLC Tariff, Rate Schedule TF-1
D95: 2295 | E95: 12 | F95: =+E96*F96/E95 -> 11.951925
E96: 365 | F96: 0.39294 | J96: Northwest Pipeline LLC Tariff, Rate Schedule TF-1
D97: 2016 | E97: 12 | F97: =+E98*F98/E97 -> 11.951925
E98: 365 | F98: 0.39294 | J98: Northwest Pipeline LLC Tariff, Rate Schedule TF-1
B99: QPC Firm Transportation Usage Charge (Max & Min) (BASE TARIFF RATE) | F99: 0.00832 | J99: Northwest Pipeline LLC Tariff, Rate Schedule TF-1
A104: INPUTS FROM QUESTAR GAS TARIFF
A107: Current SNG Rates
B108: UTAH | E108: Current SNG Base | F108: Current SNG Amort. | G108: Current SNG Total | J108: Effective
B109: GS | D109: Winter | E109: 1.20913 | F109: 0.08617 | G109: =E109+F109 -> 1.2953 | J109: 2018-10-01
D110: Summer | E110: 0.5677 | F110: 0.04046 | G110: =E110+F110 -> 0.60816 | J110: =J109 -> 2018-10-01
B112: FS | D112: Winter | E112: 1.17764 | F112: 0.08393 | G112: =E112+F112 -> 1.26157 | J112: 2018-10-01
D113: Summer | E113: 0.5677 | F113: 0.04046 | G113: =E113+F113 -> 0.60816 | J113: =J112 -> 2018-10-01
B115: NGV | E115: 0.87253 | F115: 0.06218 | G115: =E115+F115 -> 0.93471 | J115: 2018-10-01
B117: (This includes bad debt adjustment) IS | E117: 0.17909 | F117: 0 | G117: =E117+F117 -> 0.17909 | J117: 2018-10-01
A120: Current Rates
B121: Utah GS | J121: Effective
B122: Block 1 | D122: Summer | G122: 6.0368 | J122: 2018-10-01
B123: Block 2 | D123: Summer | G123: 4.91875 | J123: =J122 -> 2018-10-01
B124: Block 1 | D124: Winter | G124: 7.35517 | J124: =J122 -> 2018-10-01
B125: Block 2 | D125: Winter | G125: 6.23712 | J125: =J122 -> 2018-10-01
B126: #1 BSF | G126: 6.75 | J126: =J122 -> 2018-10-01
B128: Wyoming GS
B129: Block 1 | G129: 6.78636 | J129: 2018-06-01
B130: Block 2 | G130: 6.52562 | J130: =J129 -> 2018-06-01
B131: BSF | G131: 12 | J131: =J129 -> 2018-06-01
A133: INPUTS FROM PREVIOUS PASSTHROUGH CASE
B134: PRIOR PERIOD COMPANY PRODUCTION AVERAGE GAS COST
E135: PROPOSED | F135: PRIOR CASE | G135: Most Recent
B136: VOLUMES DTH | E136: =+'Monthly Inputs'!S7+'Monthly Inputs'!S13 -> 69140175.43 | F136: 70696806 | G136: EXH 1.1
B137: AMOUNT | E137: =+D220+D241 -> 266312239.6 | F137: 271836780 | G137: EXH 1.1
B138: AVG COST | E138: =+E137/E136 -> 3.851772692 | F138: =ROUND(+F137/F136,5) -> 3.84511
B140: Utah Cost of Gas by Component
B141: Unit Cost Of Gas (Line 7) | F141: 3.33262 | J141: Exhibit 1.6 pg 1 (Prior case)
B142: 191 Account Amortization (Line 8) | F142: 0.13552 | J142: Exhibit 1.6 pg 1 (Prior case )
B143: Total Unit Cost In Rates (Line 9) | F143: =SUM(F141:F142) -> 3.46814
B145: I-2 Commodity Cost (excluding bad debt) | E145: 0
B147: Wyoming Cost of Gas by Component
B148: Unit Cost Of Gas (Line 9) | F148: 4.11826 | J148: (WY) Exhibit 1.6 pg 1
B149: 191 Account Amortization (Line 10) | F149: 0.38899 | J149: (WY) Exhibit 1.6 pg 1
B150: Total Unit Cost In Rates (Line 11) | F150: =F148+F149 -> 4.50725 | J150: (WY) Exhibit 1.6 pg 1
A155: INPUTS FROM 191 ACCOUNT MONTH END BALANCE ACTUAL OR FORECAST | E155: Utah | F155: Wyoming
E156: 2018 | F156: 2018-08-31
H157: 1.6.2
D158: current yr /mo(text)
B159: August 2018 191 account (Actual/Forecast) | D159: 2018 | E159: -16168321 | F159: -651490 | H159: 1.6.1
B160: Supplier Non-Gas Cost Under (Over) Collected through August 2018 (act/fcst) | D160: August | E160: 15867843 | H160: 1.6.2
B161: Commodity Cost Under (Over) Collected during YEAR (Act/Fcst) | E161: =E159-E160 -> -32036164
A163: INPUTS FROM IRP
B164: #1 Peak Day Demand Forecast | E164: 2018 | F164: Source
B165: Utah | E165: =E167-E166 -> 1292581 | F165: 2018 IRP
B166: Wyoming | E166: 37589
B167: System Total Peak Day Demand Forecast | E167: 1330170 | F167: 2018-2019 Heating Season | H167: 1.5 | I167: 1.5
A170: STORAGE FIELD INPUTS | E170: Storage
B171: Chalk Creek Injections Factor | E171: 0.0099
B172: Chalk Creek Withdrawls Factor | E172: 0.0184
B174: Spire Injections Factor | E174: 0.025
B175: Spire Withdrawls Factor | E175: 0
B177: Leroy Injections Factor | E177: 0.0295
B178: Leroy Withdrawls Factor | E178: 0.0243
B180: Clay Basin Injections Factor | E180: 0.025
B181: Clay Basin Withdrawls Factor | E181: 0.0155
B183: Coalville Injections Factor | E183: 0.0108
B184: Coalville Withdrawls Factor | E184: 0.0239
B186: QPC Storage Field Reservation Charges | E186: Monthly Dth
B187: Peaking Storage Fields Maximum Daily Withdrawal Qty (Leroy, Chalk Creek, Coalville) | E187: 184625
B188: Spire Maximum Storage Qty | E188: =2500000 -> 2500000
B189: Clay Basin Minimum Required Deliverability | E189: 111827
B190: Clay Basin Capacity | E190: 13419000
A192: OTHER INPUTS FROM GLEN, TOM, TINA & Al | D192: Revenue
B193: OTHER GATHERING
B198: Total Forecasted Birch Creek | D198: 266539.7166 | E198: 2018-08-31
B200: Other gathering | D200: 2746530.02 | E200: 2018-08-31 | H200: JanB
B201: Total Gathering | D201: =SUM(D198:D200) -> 3013069.737 | H201: 1.3.1 | I201: 1.3P1
B203: Other Transportation | D203: 3718588.419 | E203: 2018-08-31 | H203: 1.3.1
B205: Forecast Future Contracts Premium over spot price | E205: 0.02
D207: Commodity | E207: Demand
D208: Charge | E208: Charge | F208: Effective
B209: Gathering Rates -System wide Gathering agreement #163 (SWGA) | D209: 7391644.362 | E209: 11774616 | F209: 2018-01-01 | I209: 1.3p1
B212: Gathering Rate Wexpro II | D212: 2927171.22 | I212: 1.3p1
A215: OTHER INPUTS FROM JIM LIVSEY | D215: Volume (Dth) | E215: Revenue
A216: WEXPRO I
B217: Questar Gas Production 1/ | D217: Current
B218: Test Year Royalties | D218: ='Ut 1.1'!I1419 -> 19427106.89 | H218: 1.4.1 | I218: 1.4P1
B219: Operator Service Fee | D219: ='Monthly Inputs'!S106 -> 197658074.5 | H219: 1.4.1 | I219: 1.4P1
B220: Total Questar Gas Production Costs | D220: =SUM(D218:D219) -> 217085181.4
B222: Total Questar Gas Production Dth | D222: ='Ut 1.1'!F1424 -> 55128218.32
F223: Hot | G223: Hot
B224: Other Revenue Credits | D224: 1 | E224: 2 | F224: 2 | G224: 2 | I224: 1
D225: Historical | E225: Forecast | F225: =HLOOKUP(F$224,$D$224:$E$232,$I225) -> Forecast | G225: =HLOOKUP(G$224,$D$224:$E$232,$I225) -> Forecast | I225: 2
D226: 12 Mo Ending | E226: 12 Mo Ending | F226: Utah | G226: Wyoming | I226: 3
B227: 483 Sales for Resale | E227: 2788398 | F227: =HLOOKUP(F$224,$D$224:$E$232,$I227) -> 2788398 | G227: =HLOOKUP(G$224,$D$224:$E$232,$I227) -> 2788398 | I227: 4
B228: 490 Incidental Plant Prod Sales | E228: 3053673 | F228: =HLOOKUP(F$224,$D$224:$E$232,$I228) -> 3053673 | G228: 3053673 | I228: 5
B229: 492 Incidental Gasoline_Oil Sales | E229: 579699.5239 | F229: 579699.5239 | G229: 579699.5239 | I229: 6
B230: 4951 Overriding Royalty Revenue from Celsius | E230: 8851575.052 | F230: 8851575.052 | G230: 8851575.052 | I230: 7
B231: 4952 Oil Revenue Received from Wexpro | E231: 0 | F231: 0 | G231: 0 | I231: 8
B232: 758001 Gas Well Royalities - Other | E232: -95592.4515 | F232: -95592.4515 | G232: -95592.4515 | I232: 9
B235: Total Other Revenue Credits | D235: =SUM(D227:D232) -> 0 | E235: =SUM(E227:E232) -> 15177753.12 | F235: =SUM(F227:F232) -> 15177753.12 | G235: =SUM(G227:G232) -> 15177753.12
A237: WEXPRO II
B238: Questar Gas Production 1/ | D238: Current
B239: Test Year Royalties | D239: ='Ut 1.1'!I1661 -> 5062927.996 | H239: 1.4.1 | I239: 1.4P1
B240: Operator Service Fee | D240: ='Monthly Inputs'!S108 -> 44164130.23 | H240: 1.4.1 | I240: 1.4P1
B241: Total Questar Gas Production Costs | D241: =SUM(D239:D240) -> 49227058.23
B243: Total Questar Gas Production Dth | D243: ='Ut 1.1'!F1666 -> 14011957.12
F244: Hot | G244: Hot
B245: Other Revenue Credits | D245: 1 | E245: 2 | F245: 2 | G245: 2 | I245: 1
D246: Historical | E246: Forecast | F246: =HLOOKUP(F$224,$D$224:$E$232,$I246) -> Forecast | G246: =HLOOKUP(G$224,$D$224:$E$232,$I246) -> Forecast | I246: 2
D247: 12 Mo Ending | E247: 12 Mo Ending | F247: Utah | G247: Wyoming | I247: 3
B248: 483 Sales for Resale | E248: 0 | F248: =HLOOKUP(F$245,$D$245:$E$253,$I248) -> 0 | G248: 0 | I248: 4
B249: 490 Incidental Plant Prod Sales | E249: 480000 | F249: 480000 | G249: 480000 | I249: 5
B250: 492 Incidental Gasoline_Oil Sales | E250: 1775941.481 | F250: 1775941.481 | G250: 1775941.481 | I250: 6
B251: 4951 Overriding Royalty Revenue from Celsius | E251: 0 | F251: 0 | G251: 0 | I251: 7
B252: 4952 Oil Revenue Received from Wexpro | E252: -441468.2257 | F252: -441468.2257 | G252: -441468.2257 | I252: 8
B253: 758001 Gas Well Royalities - Other | E253: -298484.2606 | F253: -298484.2606 | G253: -298484.2606 | I253: 9
B256: Total Other Revenue Credits | D256: =SUM(D248:D253) -> 0 | E256: =SUM(E248:E254) -> 1515988.995 | F256: =SUM(F248:F253) -> 1515988.995 | G256: =SUM(G248:G253) -> 1515988.995
E258: Proceeds | F258: Dths | G258: Price
B259: Sales of Wexpro Gas | E259: 0 | F259: 0 | G259: 0
A261: SUMMARY INPUTS FROM REVRUN, RATE BASE, EXPENSES, ETC.
B263: Supplier Non-Gas Costs Recovered at Current Rates 3/ | E263: ='RevRun Fcst'!T$199 -> 122032328.4 | H263: 1.6.2
B264: MT Supplier Non-Gas | E264: ='RevRun Fcst'!T142 -> 0
B265: Net Supplier Non-Gas | E265: =E263-E264 -> 122032328.4
B266: UT Current Int Sales SNG Rate - not including Bad Debt adj. | E266: ='RevRun Fcst'!T102+'RevRun Fcst'!T93 -> 193822 | F266: 0.17864
E268: ='Rate Base'!$U$8 -> 2018-08-31 | F268: update to most current
B269: Account 164-1 - Gas Stored Underground | D269: Dth | E269: Ending Balance | F269: $ per Dth
... 47 more rows

Sheet CET & DSM WY (hidden)
A1: Rate Caclulation for the CET and DSM Amortizations WY
L3: Solver Cells
A4: CET Amortization % Calculation | L4: % Change | M4: Difference
B5: Balance | C5: Date | D5: GS Dth | F5: Amortization per Dth | L5: =J20/D20 -> 0.01140516088 | M5: =G20-B11 -> 0 | O5: -> Difference should be at 0 (Use Goal Seek to Get Difference to Equal 0.
A6: DSM Balance | B6: ='Other Inputs'!$E$303 -> 274858.68 | C6: ='Other Inputs'!$F$303 -> 2011-07-31 | D6: =B20 -> 3298812 | F6: =B6/D6 -> 0.08332050447
O8: Typical Bill Rates
A9: CET Amortization Calculation
B10: Balance | C10: Date | D10: DNG Rev | F10: New DNG | I10: % Change | O10: Current | P10: Proposed
A11: CET Balance | B11: ='Other Inputs'!$E$302 -> 57097.0875 | C11: ='Other Inputs'!$F$302 -> 2011-07-31 | D11: =D20 -> 5006250.073 | F11: =D11+B11 -> 5063347.161 | I11: =L5 -> 0.01140516088 | O11: Effective | R11: SNG & | S11: CET, DSM
O12: ='Other Inputs'!$J$129 -> 2018-06-01 | P12: CET Only | Q12: DSM Only | R12: Commodity | S12: Commodity
O13: BSF | P13: BSF | Q13: BSF | R13: BSF | S13: BSF
B14: Revenue Calculation | F14: CET Amortization | I14: Total DNG | L14: REVRUN Calculation | O14: ='Other Inputs'!$G$131 -> 12 | P14: ='Other Inputs'!$G$131 -> 12 | Q14: ='Other Inputs'!$G$131 -> 12 | R14: ='Other Inputs'!$G$131 -> 12 | S14: =#REF! -> 
A15: WY GS | B15: Dth | C15: Base DNG | D15: DNG Revenue | F15: CET Rate | G15: Revenue | I15: DNG Rate | J15: Revenue | L15: CET Rate | M15: CET Amort
A16: Block 1 | B16: ='Other Inputs'!E305 -> 2593433 | C16: ='Other Inputs'!E295 -> 1.73142 | D16: =B16*C16 -> 4490321.765 | F16: =ROUND((G16/B16),5) -> 0.01975 | G16: =D16*$L$5 -> 51212.84214 | I16: =C16+F16 -> 1.75117 | J16: =I16*B16 -> 4541542.067 | L16: =ROUND(F16,5) -> 0.01975 | M16: =B16*L16 -> 51220.30175 | O16: ='Other Inputs'!$G$122 -> 6.0368 | P16: =J24 -> 6.78793 | Q16: =J31 -> 6.82863 | R16: =J36 ->  | S16: =J41 -> 
A17: Block 2 | B17: ='Other Inputs'!E306 -> 705379 | C17: ='Other Inputs'!E296 -> 0.73142 | D17: =B17*C17 -> 515928.3082 | F17: =ROUND((G17/B17),5) -> 0.00834 | G17: =D17*$L$5 -> 5884.245359 | I17: =C17+F17 -> 0.73976 | J17: =I17*B17 -> 521811.169 | L17: =ROUND(F17,5) -> 0.00834 | M17: =B17*L17 -> 5882.86086
O18: ='Other Inputs'!$G$129 -> 6.78636 | P18: =J24 -> 6.78793 | Q18: =J31 -> 6.82863 | R18: =J36 ->  | S18: =J41 -> 
A20: GS-1 Block Rev | B20: =SUM(B16:B19) -> 3298812 | D20: =SUM(D16:D19) -> 5006250.073 | G20: =SUM(G16:G19) -> 57097.0875 | J20: =B11 -> 57097.0875 | M20: =SUM(M16:M19) -> 57103.16261
A22: Total Rate Calculation With CET Amortization Only | J22: ='Control Panel'!#REF! ->  | L22: ='Other Inputs'!$J$129 -> 2018-06-01
A23: WY GS | B23: Total DNG | C23: CET | D23: DSM | F23: Total DNG | G23: Core Commodity Cost | J23: Total Rate | L23: Total Rate
A24: Block 1 | B24: =$C$16 -> 1.73142 | C24: =$F$16 -> 0.01975 | D24: 0.06792 | F24: =SUM(B24:D24) -> 1.81909 | G24: 4.96884 | J24: =SUM(F24:G24) -> 6.78793 | L24: ='Other Inputs'!G129 -> 6.78636 | M24: =J24-L24 -> 0.00157
A25: Block 2 | B25: =$C$17 -> 0.73142 | C25: =$F$17 -> 0.00834 | D25: =$D$24 -> 0.06792 | F25: =SUM(B25:D25) -> 0.80768 | G25: =G24 -> 4.96884 | J25: =SUM(F25:G25) -> 5.77652 | L25: ='Other Inputs'!$G$130 -> 6.52562 | M25: =J25-L25 -> -0.7491
A29: Total Rate Calculation With DSM Amortization Only | J29: =J22 ->  | L29: ='Other Inputs'!$J$129 -> 2018-06-01
A30: WY GS | B30: Base DNG | C30: CET | D30: DSM | F30: Total DNG | G30: Core Commodity Cost | J30: Total Rate | L30: Total Rate
A31: Block 1 | B31: =$C$16 -> 1.73142 | C31: 0.04505 | D31: =$F$6 -> 0.08332050447 | F31: =ROUND(SUM(B31:D31),5) -> 1.85979 | G31: =G24 -> 4.96884 | J31: =SUM(F31:I31) -> 6.82863 | L31: ='Other Inputs'!$G$122 -> 6.0368 | M31: =J31-L31 -> 0.79183
A32: Block 2 | B32: =$C$17 -> 0.73142 | C32: 0.02848 | D32: =$F$6 -> 0.08332050447 | F32: =ROUND(SUM(B32:D32),5) -> 0.84322 | G32: =G25 -> 4.96884 | J32: =SUM(F32:I32) -> 5.81206 | L32: ='Other Inputs'!$G$130 -> 6.52562 | M32: =J32-L32 -> -0.71356
A34: Total Rate Calculation With Core Commodity Cost Changes Only | J34: =J22 ->  | L34: ='Other Inputs'!$J$129 -> 2018-06-01
A35: WY GS | B35: Base DNG | C35: CET | D35: DSM | F35: Total DNG | G35: Core Commodity Cost | J35: Total Rate | L35: Total Rate
A36: Block 1 | B36: =$C$16 -> 1.73142 | C36: =C31 -> 0.04505 | D36: =D24 -> 0.06792 | F36: =SUM(B36:D36) -> 1.84439 | G36: =#REF! ->  | J36: =SUM(F36:I36) ->  | L36: ='Other Inputs'!$G$122 -> 6.0368 | M36: =J36-L36 -> 
A37: Block 2 | B37: =$C$17 -> 0.73142 | C37: =C32 -> 0.02848 | D37: =D25 -> 0.06792 | F37: =SUM(B37:D37) -> 0.82782 | G37: =#REF! ->  | J37: =SUM(F37:I37) ->  | L37: ='Other Inputs'!$G$130 -> 6.52562 | M37: =J37-L37 -> 
A39: Total Rate Calculation | J39: =J29 ->  | L39: ='Other Inputs'!$J$129 -> 2018-06-01
A40: WY GS | B40: Base DNG | C40: CET | D40: DSM | F40: Total DNG | G40: Core Commodity Cost | J40: Total Rate | L40: Total Rate
A41: Block 1 | B41: =$C$16 -> 1.73142 | C41: =$F$16 -> 0.01975 | D41: =$F$6 -> 0.08332050447 | F41: =SUM(B41:D41) -> 1.834490504 | G41: =#REF! ->  | J41: =SUM(F41:I41) ->  | L41: ='Other Inputs'!$G$122 -> 6.0368 | M41: =J41-L41 -> 
A42: Block 2 | B42: =$C$17 -> 0.73142 | C42: =$F$17 -> 0.00834 | D42: =$F$6 -> 0.08332050447 | F42: =SUM(B42:D42) -> 0.8230805045 | G42: =#REF! ->  | J42: =SUM(F42:I42) ->  | L42: ='Other Inputs'!$G$130 -> 6.52562 | M42: =J42-L42 -> 
A44: Typical Customer Difference - CET Amortization Only
B45: Typical
A46: GS | B46: Dth | C46: =O12 -> 2018-06-01 | D46: =J39 ->  | F46: Change | G46: % Change
A47: January | B47: 14.7 | C47: =ROUND($O$14+(B47*$O$18),2) -> 111.76 | D47: =ROUND($P$14+(B47*$P$18),2) -> 111.78 | F47: =D47-C47 -> 0.02
A48: February | B48: 14.1 | C48: =ROUND($O$14+(B48*$O$18),2) -> 107.69 | D48: =ROUND($P$14+(B48*$P$18),2) -> 107.71 | F48: =D48-C48 -> 0.02
A49: March | B49: 11.8 | C49: =ROUND($O$14+(B49*$O$18),2) -> 92.08 | D49: =ROUND($P$14+(B49*$P$18),2) -> 92.1 | F49: 0.02
A50: April | B50: 9.4 | C50: =ROUND($O$14+(B50*$O$16),2) -> 68.75 | D50: =ROUND($P$14+(B50*$P$16),2) -> 75.81 | F50: 7.06
A51: May | B51: 5.8 | C51: 47.01 | D51: =ROUND($P$14+(B51*$P$16),2) -> 51.37 | F51: 4.36
A52: June | B52: 3.7 | C52: 34.34 | D52: 37.12 | F52: 2.78
A53: July | B53: 2.3 | C53: 25.88 | D53: 27.61 | F53: 1.73
A54: August | B54: 1.7 | C54: 22.26 | D54: 23.54 | F54: 1.28
A55: September | B55: 2.1 | C55: 24.68 | D55: 26.25 | F55: 1.57
A56: October | B56: 4.1 | C56: 36.75 | D56: 39.83 | F56: 3.08
A57: November | B57: 8 | C57: =ROUND($O$14+(B57*$O$18),2) -> 66.29 | D57: =ROUND($P$14+(B57*$P$18),2) -> 66.3 | F57: 0.01
A58: December | B58: 12.3 | C58: =ROUND($O$14+(B58*$O$18),2) -> 95.47 | D58: =ROUND($P$14+(B58*$P$18),2) -> 95.49 | F58: 0.02
B59: =SUM(B47:B58) -> 90 | C59: =SUM(C47:C58) -> 732.96 | D59: =SUM(D47:D58) -> 754.91 | F59: =SUM(F47:F58) -> 21.95 | G59: =F59/C59 -> 0.02994706396
A62: Typical Customer Difference - DSM Amortization Only
B63: Typical
A64: GS | B64: Dth | C64: =C46 -> 2018-06-01 | D64: =D46 ->  | F64: Change | G64: % Change
A65: January | B65: 14.7 | C65: =ROUND($O$14+(B65*$O$18),2) -> 111.76 | D65: =ROUND($Q$14+(B65*$Q$18),2) -> 112.38 | F65: =D65-C65 -> 0.62
A66: February | B66: 14.1 | C66: =ROUND($O$14+(B66*$O$18),2) -> 107.69 | D66: =ROUND($Q$14+(B66*$Q$18),2) -> 108.28 | F66: =D66-C66 -> 0.59
A67: March | B67: 11.8 | C67: =ROUND($O$14+(B67*$O$18),2) -> 92.08 | D67: =ROUND($Q$14+(B67*$Q$18),2) -> 92.58 | F67: 0.5
A68: April | B68: 9.4 | C68: =ROUND($O$14+(B68*$O$16),2) -> 68.75 | D68: =ROUND($Q$14+(B68*$Q$16),2) -> 76.19 | F68: 7.44
A69: May | B69: 5.8 | C69: 47.01 | D69: 51.61 | F69: 4.6
A70: June | B70: 3.7 | C70: 34.34 | D70: 37.27 | F70: 2.93
A71: July | B71: 2.3 | C71: 25.88 | D71: 27.71 | F71: 1.83
A72: August | B72: 1.7 | C72: 22.26 | D72: 23.61 | F72: 1.35
A73: September | B73: 2.1 | C73: 24.68 | D73: 26.34 | F73: 1.66
A74: October | B74: 4.1 | C74: 36.75 | D74: 40 | F74: 3.25
A75: November | B75: 8 | C75: =ROUND($O$14+(B75*$O$18),2) -> 66.29 | D75: =ROUND($Q$14+(B75*$Q$18),2) -> 66.63 | F75: 0.34
A76: December | B76: 12.3 | C76: =ROUND($O$14+(B76*$O$18),2) -> 95.47 | D76: =ROUND($Q$14+(B76*$Q$18),2) -> 95.99 | F76: 0.52
B77: =SUM(B65:B76) -> 90 | C77: =SUM(C65:C76) -> 732.96 | D77: =SUM(D65:D76) -> 758.59 | F77: =SUM(F65:F76) -> 25.63 | G77: =F77/C77 -> 0.03496780179
A80: Typical Customer Difference - SNG and Commodity Changes Only
B81: Typical
A82: GS | B82: Dth | C82: =C64 -> 2018-06-01 | D82: =D64 ->  | F82: Change | G82: % Change
A83: January | B83: 14.7 | C83: =ROUND($O$14+(B83*$O$18),2) -> 111.76 | D83: =ROUND($R$14+(B83*$R$18),2) ->  | F83: =D83-C83 -> 
A84: February | B84: 14.1 | C84: =ROUND($O$14+(B84*$O$18),2) -> 107.69 | D84: =ROUND($R$14+(B84*$R$18),2) ->  | F84: =D84-C84 -> 
A85: March | B85: 11.8 | C85: =ROUND($O$14+(B85*$O$18),2) -> 92.08 | D85: =ROUND($R$14+(B85*$R$18),2) -> 
A86: April | B86: 9.4 | C86: =ROUND($O$14+(B86*$O$16),2) -> 68.75 | D86: =ROUND($R$14+(B86*$R$16),2) -> 
A87: May | B87: 5.8 | C87: 47.01
A88: June | B88: 3.7 | C88: 34.34
A89: July | B89: 2.3 | C89: 25.88
A90: August | B90: 1.7 | C90: 22.26
A91: September | B91: 2.1 | C91: 24.68
A92: October | B92: 4.1 | C92: 36.75
A93: November | B93: 8 | C93: =ROUND($O$14+(B93*$O$18),2) -> 66.29 | D93: =ROUND($R$14+(B93*$R$18),2) -> 
A94: December | B94: 12.3 | C94: =ROUND($O$14+(B94*$O$18),2) -> 95.47 | D94: =ROUND($R$14+(B94*$R$18),2) -> 
B95: =SUM(B83:B94) -> 90 | C95: =SUM(C83:C94) -> 732.96 | D95: =SUM(D83:D94) ->  | F95: =SUM(F83:F94) ->  | G95: =F95/C95 -> 
A98: Typical Customer Difference - CET & DSM Amort, SNG and Commodity Changes
B99: Typical
A100: GS | B100: Dth | C100: =C46 -> 2018-06-01 | D100: =D46 ->  | F100: Change | G100: % Change
A101: January | B101: 14.7 | C101: =ROUND($O$14+(B101*$O$18),2) -> 111.76 | D101: =ROUND($S$14+(B101*$S$18),2) ->  | F101: =D101-C101 -> 
A102: February | B102: 14.1 | C102: =ROUND($O$14+(B102*$O$18),2) -> 107.69 | D102: =ROUND($S$14+(B102*$S$18),2) ->  | F102: =D102-C102 -> 
A103: March | B103: 11.8 | C103: =ROUND($O$14+(B103*$O$18),2) -> 92.08 | D103: =ROUND($S$14+(B103*$S$18),2) -> 
A104: April | B104: 9.4 | C104: =ROUND($O$14+(B104*$O$16),2) -> 68.75 | D104: =ROUND($S$14+(B104*$S$16),2) -> 
A105: May | B105: 5.8 | C105: 47.01
A106: June | B106: 3.7 | C106: 34.34
A107: July | B107: 2.3 | C107: 25.88
A108: August | B108: 1.7 | C108: 22.26
A109: September | B109: 2.1 | C109: 24.68
A110: October | B110: 4.1 | C110: 36.75
A111: November | B111: 8 | C111: =ROUND($O$14+(B111*$O$18),2) -> 66.29 | D111: =ROUND($S$14+(B111*$S$18),2) -> 
A112: December | B112: 12.3 | C112: =ROUND($O$14+(B112*$O$18),2) -> 95.47 | D112: =ROUND($S$14+(B112*$S$18),2) -> 
B113: =SUM(B101:B112) -> 90 | C113: =SUM(C101:C112) -> 732.96 | D113: =SUM(D101:D112) ->  | F113: =SUM(F101:F112) ->  | G113: =F113/C113 -> 

Sheet WY Tariff Sheets (hidden)
T2: Rates Per Dth Used Each Month
B3: 2.02 General Service Rate Schedule (GS) | K3: 2.02 General Service Rate Schedule (GS) | Q3: 2.03 Firm Sales Service Rate Schedule (FS) | T3: Dth = decatherm = 10 therms = 1,000,000 BTU | Z3: 4.02 INTERRUPTIBLE SALES RATE SERVICE SCHEDULE (IS) | BF3: 2.04 NATURAL GAS VEHICLE RATE (NGV)
L4: Rates Per Dth Used Each Month | R4: Summer Rates: Apr. 1 - Oct. 31
C5: Rates Per Dth Used Each Month | L5: Dth = decatherm = 10 therms = 1,000,000 BTU | R5: First | T5: Next | V5: All Over | Z5: IS VOLUMETRIC RATES | AA5: Rates Per Dth Used Each Month | BF5: NGV Volumetric Rate
C6: Dth = decatherm = 10 therms = 1,000,000 BTU | L6: First 45 Dth | M6: All Over 45 Dth | R6: 80 | T6: 730 | V6: 810 | AA6: Dth = decatherm = 10 therms = 1,000,000 BTU | BJ6: Rates Per Dth Used Each Month
C7: First 45 Dth | D7: All Over 45 Dth | K7: Non-Gas Cost | L7: ='CET & DSM WY'!B31 -> 1.73142 | M7: ='CET & DSM WY'!B32 -> 0.73142 | Q7: Non Gas Cost | R7: =#REF! ->  | T7: =#REF! ->  | V7: =#REF! ->  | AA7: First | AB7: Next | AC7: All Over | BJ7: Dth = decatherm = 10 therms = 1,000,000 BTU
B8: Non-Gas Cost | C8: ='CET & DSM WY'!B24 -> 1.73142 | D8: ='CET & DSM WY'!B25 -> 0.73142 | K8: Conservation Enabling Adjustment | L8: =ROUND('CET & DSM WY'!C31,5) -> 0.04505 | M8: ='CET & DSM WY'!C32 -> 0.02848 | Q8: Core Service Commodity Cost | R8: =#REF! ->  | T8: =#REF! ->  | V8: =#REF! ->  | AA8: 48600 | AB8: 72900 | AC8: 121500
B9: Conservation Enabling Adjustment | C9: ='CET & DSM WY'!C24 -> 0.01975 | D9: ='CET & DSM WY'!C25 -> 0.00834 | K9: Energy Efficiency Services | L9: ='CET & DSM WY'!D31 -> 0.08332050447 | M9: ='CET & DSM WY'!D32 -> 0.08332050447 | Z9: Distribution Non-Gas Rate | AA9: =#REF! ->  | AB9: =#REF! ->  | AC9: =#REF! ->  | BF9: Non-Gas Cost | BG9: =#REF! -> 
B10: Energy Efficiency Services | C10: ='CET & DSM WY'!D24 -> 0.06792 | D10: ='CET & DSM WY'!D25 -> 0.06792 | K10: Core Service Commodity Cost | L10: ='CET & DSM WY'!G31 -> 4.96884 | M10: =ROUND('CET & DSM WY'!G32,5) -> 4.96884 | Q10: Total Rate | R10: =SUM(R7:R8) ->  | T10: =SUM(T7:T8) ->  | V10: =SUM(V7:V8) ->  | Z10: Upstream Pipeline Cost | AA10: =#REF! ->  | AB10: =#REF! ->  | AC10: =#REF! ->  | BF10: Core Commodity Cost | BG10: =#REF! -> 
B11: Core Service Commodity Cost | C11: ='CET & DSM WY'!G24 -> 4.96884 | D11: ='CET & DSM WY'!G25 -> 4.96884 | Z11: Commodity Rate | BF11: Total Rate | BG11: =SUM(BG9:BJ10) -> 
K12: Total Rate | L12: =SUM(L7:L10) -> 6.828630504 | M12: =SUM(M7:M10) -> 5.812060504 | Q12: Minimum Monthly Distribution Non-Gas Charge | W12: =#REF! -> 
B13: Total Rate | C13: =SUM(C8:C11) -> 6.78793 | D13: =SUM(D8:D11) -> 5.77652
M15: BSF Category 1 | N15: =E16 -> 12
D16: BSF Category 1 | E16: ='CET & DSM WY'!O14 -> 12 | M16: BSF Category 2 | N16: =E17 -> 44 | U16: BSF Category 1 | W16: ='Other Inputs'!G131 -> 12
D17: BSF Category 2 | E17: 44 | M17: BSF Category 3 | N17: =E18 -> 86 | U17: BSF Category 2 | W17: =#REF! -> 
D18: BSF Category 3 | E18: 86 | M18: BSF Category 4 | N18: =E19 -> 555 | U18: BSF Category 3 | W18: =#REF! ->  | Z18: Total Rate | AA18: $ | AB18: $ | AC18: $
D19: BSF Category 4 | E19: 555 | U19: BSF Category 4 | W19: =#REF! -> 
Z20: Minimum Monthly Distribution Non-Gas Charge
BF23: =B38 -> Issued by R. W. Jibson, President | BI23: Advice No | BJ23: Section Revision No.
AB24: BSF Category 1 | AC24: ='Other Inputs'!G131 -> 12
AB25: BSF Category 2 | AC25: =#REF! -> 
AB26: BSF Category 3 | AC26: =#REF! -> 
AB27: BSF Category 4 | AC27: =#REF! -> 
K37: Issued by R. W. Jibson, President | M37: Section Revision No. | N37: Effective Date
B38: Issued by R. W. Jibson, President | D38: Section Revision No. | E38: Effective Date | Q38: =B38 -> Issued by R. W. Jibson, President | T38: Advice No | U38: Section Revision No. | W38: Effective Date
B42: New CET ONLY | K42: New DSM ONLY | Q42: New Pass Through Values
Z47: =B38 -> Issued by R. W. Jibson, President | AC47: Advice No
Z50: New Pass Through Values

Sheet Calculations
A1: GAS BALANCE FOR 12 MONTHS ENDING: _________________
D3: SALES VOLUMES IN dekathermS (12 Months of Forecast)
D4: Forecast | E4: Forecast | F4: Forecast | G4: Forecast | H4: Forecast | I4: Forecast | J4: Forecast | K4: Forecast | L4: Forecast | M4: Forecast | N4: Forecast | O4: Forecast | P4: 12-Month
A5: RATE CLASS | D5: ='Monthly Inputs'!G3 -> Nov18 | E5: ='Monthly Inputs'!H3 -> Dec18 | F5: ='Monthly Inputs'!I3 -> Jan19 | G5: ='Monthly Inputs'!J3 -> Feb19 | H5: ='Monthly Inputs'!K3 -> Mar19 | I5: ='Monthly Inputs'!L3 -> Apr19 | J5: ='Monthly Inputs'!M3 -> May19 | K5: ='Monthly Inputs'!N3 -> Jun19 | L5: ='Monthly Inputs'!O3 -> Jul19 | M5: ='Monthly Inputs'!P3 -> Aug19 | N5: ='Monthly Inputs'!Q3 -> Sep19 | O5: ='Monthly Inputs'!R3 -> Oct19 | P5: Total | Q5: 1
A6: UTAH | D6: =MONTH(D5) -> 11 | E6: =MONTH(E5) -> 12 | F6: 1 | G6: 2 | H6: 3 | I6: 4 | J6: 5 | K6: 6 | L6: 7 | M6: 8 | N6: 9 | O6: 10 | Q6: 2
B7: GSR | D7: ='RevRun Fcst'!H21 -> 11510933 | E7: ='RevRun Fcst'!I21 -> 18367991 | F7: ='RevRun Fcst'!J21 -> 19312728 | G7: ='RevRun Fcst'!K21 -> 16076007 | H7: ='RevRun Fcst'!L21 -> 12524979 | I7: ='RevRun Fcst'!M21 -> 8203418 | J7: ='RevRun Fcst'!N21 -> 4929566 | K7: ='RevRun Fcst'!O21 -> 2912924 | L7: ='RevRun Fcst'!P21 -> 2417248 | M7: ='RevRun Fcst'!Q21 -> 2257582 | N7: ='RevRun Fcst'!R21 -> 2601728 | O7: ='RevRun Fcst'!S21 -> 6558898 | P7: =SUM(D7:O7) -> 107674002 | Q7: 3
B8: GSC | D8: ='RevRun Fcst'!H30 -> 0 | E8: ='RevRun Fcst'!I30 -> 0 | F8: ='RevRun Fcst'!J30 -> 0 | G8: ='RevRun Fcst'!K30 -> 0 | H8: ='RevRun Fcst'!L30 -> 0 | I8: ='RevRun Fcst'!M30 -> 0 | J8: ='RevRun Fcst'!N30 -> 0 | K8: ='RevRun Fcst'!O30 -> 0 | L8: ='RevRun Fcst'!P30 -> 0 | M8: ='RevRun Fcst'!Q30 -> 0 | N8: ='RevRun Fcst'!R30 -> 0 | O8: ='RevRun Fcst'!S30 -> 0 | P8: 0 | Q8: 4
B9: GSS | D9: ='RevRun Fcst'!H39 -> 0 | E9: ='RevRun Fcst'!I39 -> 0 | F9: ='RevRun Fcst'!J39 -> 0 | G9: ='RevRun Fcst'!K39 -> 0 | H9: ='RevRun Fcst'!L39 -> 0 | I9: ='RevRun Fcst'!M39 -> 0 | J9: ='RevRun Fcst'!N39 -> 0 | K9: ='RevRun Fcst'!O39 -> 0 | L9: ='RevRun Fcst'!P39 -> 0 | M9: ='RevRun Fcst'!Q39 -> 0 | N9: ='RevRun Fcst'!R39 -> 0 | O9: ='RevRun Fcst'!S39 -> 0 | P9: 0 | Q9: 5
B10: F-1 | D10: ='RevRun Fcst'!H48 -> 263536 | E10: ='RevRun Fcst'!I48 -> 319237 | F10: ='RevRun Fcst'!J48 -> 353337 | G10: ='RevRun Fcst'!K48 -> 316357 | H10: ='RevRun Fcst'!L48 -> 313934 | I10: ='RevRun Fcst'!M48 -> 291852 | J10: ='RevRun Fcst'!N48 -> 248118 | K10: ='RevRun Fcst'!O48 -> 241391 | L10: ='RevRun Fcst'!P48 -> 179786 | M10: ='RevRun Fcst'!Q48 -> 141903 | N10: ='RevRun Fcst'!R48 -> 185547 | O10: ='RevRun Fcst'!S48 -> 184413 | P10: 3039411 | Q10: 6
B11: F-4 | D11: ='RevRun Fcst'!H75 -> 0 | E11: ='RevRun Fcst'!I75 -> 0 | F11: ='RevRun Fcst'!J75 -> 0 | G11: ='RevRun Fcst'!K75 -> 0 | H11: ='RevRun Fcst'!L75 -> 0 | I11: ='RevRun Fcst'!M75 -> 0 | J11: ='RevRun Fcst'!N75 -> 0 | K11: ='RevRun Fcst'!O75 -> 0 | L11: ='RevRun Fcst'!P75 -> 0 | M11: ='RevRun Fcst'!Q75 -> 0 | N11: ='RevRun Fcst'!R75 -> 0 | O11: ='RevRun Fcst'!S75 -> 0 | P11: 0 | Q11: 7
B12: NGV | D12: ='RevRun Fcst'!H66 -> 20702 | E12: ='RevRun Fcst'!I66 -> 17678 | F12: ='RevRun Fcst'!J66 -> 14878 | G12: ='RevRun Fcst'!K66 -> 15282 | H12: ='RevRun Fcst'!L66 -> 17071 | I12: ='RevRun Fcst'!M66 -> 15830 | J12: ='RevRun Fcst'!N66 -> 17062 | K12: ='RevRun Fcst'!O66 -> 17230 | L12: ='RevRun Fcst'!P66 -> 16111 | M12: ='RevRun Fcst'!Q66 -> 16451 | N12: ='RevRun Fcst'!R66 -> 17002 | O12: ='RevRun Fcst'!S66 -> 16062 | P12: 201359 | Q12: 8
A13: Total Firm Sales | D13: =SUM(D7:D12) -> 11795171 | E13: 18704906 | F13: =SUM(F7:F12) -> 19680943 | G13: 16407646 | H13: 12855984 | I13: 8511100 | J13: 5194746 | K13: 3171545 | L13: 2613145 | M13: 2415936 | N13: 2804277 | O13: 6759373 | P13: =SUM(P7:P12) -> 110914772 | Q13: 9
Q14: 10
B15: I-4 | D15: ='RevRun Fcst'!H102 -> 16396 | E15: ='RevRun Fcst'!I102 -> 13782 | F15: ='RevRun Fcst'!J102 -> 23339 | G15: ='RevRun Fcst'!K102 -> 19774 | H15: ='RevRun Fcst'!L102 -> 16250 | I15: ='RevRun Fcst'!M102 -> 7140 | J15: ='RevRun Fcst'!N102 -> 10043 | K15: ='RevRun Fcst'!O102 -> 20156 | L15: ='RevRun Fcst'!P102 -> 21428 | M15: ='RevRun Fcst'!Q102 -> 16497 | N15: ='RevRun Fcst'!R102 -> 11393 | O15: ='RevRun Fcst'!S102 -> 17624 | P15: =SUM(D15:O15) -> 193822 | Q15: 11
B16: IS-4 | D16: ='RevRun Fcst'!H93 -> 0 | E16: ='RevRun Fcst'!I93 -> 0 | F16: ='RevRun Fcst'!J93 -> 0 | G16: ='RevRun Fcst'!K93 -> 0 | H16: ='RevRun Fcst'!L93 -> 0 | I16: ='RevRun Fcst'!M93 -> 0 | J16: ='RevRun Fcst'!N93 -> 0 | K16: ='RevRun Fcst'!O93 -> 0 | L16: ='RevRun Fcst'!P93 -> 0 | M16: ='RevRun Fcst'!Q93 -> 0 | N16: ='RevRun Fcst'!R93 -> 0 | O16: ='RevRun Fcst'!S93 -> 0 | P16: =SUM(D16:O16) -> 0 | Q16: 12
A17: Total Interruptible Sales | D17: =SUM(D15:D16) -> 16396 | E17: 13782 | F17: 23339 | G17: 19774 | H17: 16250 | I17: 7140 | J17: 10043 | K17: 20156 | L17: 21428 | M17: 16497 | N17: 11393 | O17: 17624 | P17: 193822 | Q17: 13
Q18: 14
Q19: 15
A20: Total Utah Sales | D20: =+D13+D17 -> 11811567 | E20: =+E13+E17 -> 18718688 | F20: =+F13+F17 -> 19704282 | G20: =+G13+G17 -> 16427420 | H20: 12872234 | I20: 8518240 | J20: 5204789 | K20: 3191701 | L20: 2634573 | M20: 2432433 | N20: 2815670 | O20: 6776997 | P20: =+P13+P17 -> 111108594 | Q20: 16
Q21: 17
A22: Total Utah Transportation | D22: ='RevRun Fcst'!H204 -> 6988562 | E22: ='RevRun Fcst'!I204 -> 8597110 | F22: ='RevRun Fcst'!J204 -> 8694048 | G22: ='RevRun Fcst'!K204 -> 7239622 | H22: ='RevRun Fcst'!L204 -> 6658041 | I22: ='RevRun Fcst'!M204 -> 6831022 | J22: ='RevRun Fcst'!N204 -> 6832581 | K22: ='RevRun Fcst'!O204 -> 7126830 | L22: ='RevRun Fcst'!P204 -> 7596030 | M22: ='RevRun Fcst'!Q204 -> 7835075 | N22: ='RevRun Fcst'!R204 -> 6680281 | O22: ='RevRun Fcst'!S204 -> 6429697 | P22: =SUM(D22:O22) -> 87508899 | Q22: 18
Q23: 19
Q24: 20
A25: Total Utah Sales & Trans | D25: =+D20+D22 -> 18800129 | E25: 27315798 | F25: 28398330 | G25: 23667042 | H25: 19530275 | I25: 15349262 | J25: 12037370 | K25: 10318531 | L25: 10230603 | M25: 10267508 | N25: 9495951 | O25: 13206694 | P25: =+P20+P22 -> 198617493 | Q25: 21
Q26: 22
A27: WYOMING | Q27: 23
A28: GS-1 | D28: ='RevRun Fcst'!H244 -> 385528 | E28: ='RevRun Fcst'!I244 -> 564328 | F28: ='RevRun Fcst'!J244 -> 583315 | G28: ='RevRun Fcst'!K244 -> 528846 | H28: ='RevRun Fcst'!L244 -> 439079 | I28: ='RevRun Fcst'!M244 -> 314463 | J28: ='RevRun Fcst'!N244 -> 206236 | K28: ='RevRun Fcst'!O244 -> 107042 | L28: ='RevRun Fcst'!P244 -> 63855 | M28: ='RevRun Fcst'!Q244 -> 61377 | N28: ='RevRun Fcst'!R244 -> 87488 | O28: ='RevRun Fcst'!S244 -> 218430 | P28: =SUM(D28:O28) -> 3559987 | Q28: 24
A29: GS-W | D29: ='RevRun Fcst'!H271 -> 0 | E29: ='RevRun Fcst'!I271 -> 0 | F29: ='RevRun Fcst'!J271 -> 0 | G29: ='RevRun Fcst'!K271 -> 0 | H29: ='RevRun Fcst'!L271 -> 0 | I29: ='RevRun Fcst'!M271 -> 0 | J29: ='RevRun Fcst'!N271 -> 0 | K29: ='RevRun Fcst'!O271 -> 0 | L29: ='RevRun Fcst'!P271 -> 0 | M29: ='RevRun Fcst'!Q271 -> 0 | N29: ='RevRun Fcst'!R271 -> 0 | O29: ='RevRun Fcst'!S271 -> 0 | P29: =SUM(D29:O29) -> 0 | Q29: 25
A30: F-1 | D30: ='RevRun Fcst'!H253 -> 15318 | E30: ='RevRun Fcst'!I253 -> 18722 | F30: ='RevRun Fcst'!J253 -> 21544 | G30: ='RevRun Fcst'!K253 -> 18102 | H30: ='RevRun Fcst'!L253 -> 17087 | I30: ='RevRun Fcst'!M253 -> 15522 | J30: ='RevRun Fcst'!N253 -> 12865 | K30: ='RevRun Fcst'!O253 -> 13194 | L30: ='RevRun Fcst'!P253 -> 8780 | M30: ='RevRun Fcst'!Q253 -> 9285 | N30: ='RevRun Fcst'!R253 -> 11143 | O30: ='RevRun Fcst'!S253 -> 10777 | P30: =SUM(D30:O30) -> 172339 | Q30: 26
A31: NGV | D31: ='RevRun Fcst'!H262 -> 515 | E31: ='RevRun Fcst'!I262 -> 389 | F31: ='RevRun Fcst'!J262 -> 341 | G31: ='RevRun Fcst'!K262 -> 408 | H31: ='RevRun Fcst'!L262 -> 432 | I31: ='RevRun Fcst'!M262 -> 407 | J31: ='RevRun Fcst'!N262 -> 395 | K31: ='RevRun Fcst'!O262 -> 345 | L31: ='RevRun Fcst'!P262 -> 317 | M31: ='RevRun Fcst'!Q262 -> 358 | N31: ='RevRun Fcst'!R262 -> 350 | O31: ='RevRun Fcst'!S262 -> 260 | P31: =SUM(D31:O31) -> 4517 | Q31: 27
A32: Total Firm Sales | D32: =SUM(D28:D31) -> 401361 | E32: 583439 | F32: 605200 | G32: 547356 | H32: 456598 | I32: 330392 | J32: 219496 | K32: 120581 | L32: 72952 | M32: 71020 | N32: 98981 | O32: 229467 | P32: 3736843 | Q32: 28
Q33: 29
A34: I-2 | D34: ='RevRun Fcst'!H280 -> 15954 | E34: ='RevRun Fcst'!I280 -> 17355 | F34: ='RevRun Fcst'!J280 -> 18742 | G34: ='RevRun Fcst'!K280 -> 17901 | H34: ='RevRun Fcst'!L280 -> 15639 | I34: ='RevRun Fcst'!M280 -> 11761 | J34: ='RevRun Fcst'!N280 -> 9993 | K34: ='RevRun Fcst'!O280 -> 8981 | L34: ='RevRun Fcst'!P280 -> 10540 | M34: ='RevRun Fcst'!Q280 -> 6925 | N34: ='RevRun Fcst'!R280 -> 7020 | O34: ='RevRun Fcst'!S280 -> 8847 | P34: =SUM(D34:O34) -> 149658 | Q34: 30
A35: I-4 | D35: ='RevRun Fcst'!H289 -> 0 | E35: ='RevRun Fcst'!I289 -> 0 | F35: ='RevRun Fcst'!J289 -> 0 | G35: ='RevRun Fcst'!K289 -> 0 | H35: ='RevRun Fcst'!L289 -> 0 | I35: ='RevRun Fcst'!M289 -> 0 | J35: ='RevRun Fcst'!N289 -> 0 | K35: ='RevRun Fcst'!O289 -> 0 | L35: ='RevRun Fcst'!P289 -> 0 | M35: ='RevRun Fcst'!Q289 -> 0 | N35: ='RevRun Fcst'!R289 -> 0 | O35: ='RevRun Fcst'!S289 -> 0 | P35: =SUM(D35:O35) -> 0 | Q35: 31
A36: Total Interruptible Sales | D36: =SUM(D34:D35) -> 15954 | E36: 17355 | F36: 18742 | G36: 17901 | H36: 15639 | I36: 11761 | J36: 9993 | K36: 8981 | L36: 10540 | M36: 6925 | N36: 7020 | O36: 8847 | P36: 149658 | Q36: 32
Q37: 33
Q38: 34
A39: Total Wyoming Sales | D39: =+D32+D36 -> 417315 | E39: =+E32+E36 -> 600794 | F39: 623942 | G39: 565257 | H39: 472237 | I39: 342153 | J39: 229489 | K39: 129562 | L39: 83492 | M39: 77945 | N39: 106001 | O39: 238314 | P39: 3886501 | Q39: 35
Q40: 36
A41: Total Wyoming Transportation | D41: ='RevRun Fcst'!H328 -> 61505 | E41: ='RevRun Fcst'!I328 -> 55753 | F41: ='RevRun Fcst'!J328 -> 96610 | G41: ='RevRun Fcst'!K328 -> 65428 | H41: ='RevRun Fcst'!L328 -> 65237 | I41: ='RevRun Fcst'!M328 -> 103613 | J41: ='RevRun Fcst'!N328 -> 100952 | K41: ='RevRun Fcst'!O328 -> 22427 | L41: ='RevRun Fcst'!P328 -> 27564 | M41: ='RevRun Fcst'!Q328 -> 13920 | N41: ='RevRun Fcst'!R328 -> 49750 | O41: ='RevRun Fcst'!S328 -> 49014 | P41: =SUM(D41:O41) -> 711773 | Q41: 37
Q42: 38
Q43: 39
A44: Total Wyoming Sales & Trans | D44: =+D39+D41 -> 478820 | E44: 656547 | F44: 720552 | G44: 630685 | H44: 537474 | I44: 445766 | J44: 330441 | K44: 151989 | L44: 111056 | M44: 91865 | N44: 155751 | O44: 287328 | P44: 4598274 | Q44: 40
Q45: 41
Q46: 42
A47: Total System Sales and Trans | D47: =+D25+D44 -> 19278949 | E47: 27972345 | F47: 29118882 | G47: 24297727 | H47: 20067749 | I47: 15795028 | J47: 12367811 | K47: 10470520 | L47: 10341659 | M47: 10359373 | N47: 9651702 | O47: =+O25+O44 -> 13494022 | P47: 203215767 | Q47: 43
Q48: 44
A49: Usage by Season | Q49: 45
C50: Month | D50: =MONTH(D5) -> 11 | E50: 12 | F50: 1 | G50: 2 | H50: 3 | I50: 4 | J50: 5 | K50: 6 | L50: 7 | M50: 8 | N50: 9 | O50: 10 | Q50: 46
A51: GS | C51: Season (0=Winter, 1=Summer) | D51: =IF(D$50<4,0,IF(D$50>10,0,1)) -> 0 | E51: =IF(E$50<4,0,IF(E$50>10,0,1)) -> 0 | F51: 0 | G51: 0 | H51: 0 | I51: 1 | J51: 1 | K51: 1 | L51: 1 | M51: 1 | N51: 1 | O51: 1 | P51: Total | Q51: 47
B52: Winter | D52: =IF(D51=0,D7+D8,0) -> 11510933 | E52: =IF(E51=0,E7+E8,0) -> 18367991 | F52: 19312728 | G52: 16076007 | H52: 12524979 | I52: 0 | J52: 0 | K52: 0 | L52: 0 | M52: 0 | N52: 0 | O52: 0 | P52: =SUM(D52:O52) -> 77792638 | Q52: 48
B53: Summer | D53: =IF(D51=1,D7+D8,0) -> 0 | E53: 0 | F53: 0 | G53: 0 | H53: 0 | I53: 8203418 | J53: 4929566 | K53: 2912924 | L53: 2417248 | M53: 2257582 | N53: 2601728 | O53: 6558898 | P53: =SUM(D53:O53) -> 29881364 | Q53: 49
A54: GSS | Q54: 50
B55: Winter | D55: =IF(D51=0,D9,0) -> 0 | E55: 0 | F55: 0 | G55: 0 | H55: 0 | I55: 0 | J55: 0 | K55: 0 | L55: 0 | M55: 0 | N55: 0 | O55: 0 | P55: =SUM(D55:O55) -> 0 | Q55: 51
B56: Summer | D56: =IF(D51=1,D9,0) -> 0 | E56: 0 | F56: 0 | G56: 0 | H56: 0 | I56: 0 | J56: 0 | K56: 0 | L56: 0 | M56: 0 | N56: 0 | O56: 0 | P56: =SUM(D56:O56) -> 0 | Q56: 52
A57: F-S | Q57: 53
B58: Winter | D58: =IF(D51=0,D10,0) -> 263536 | E58: 319237 | F58: 353337 | G58: 316357 | H58: 313934 | I58: 0 | J58: 0 | K58: 0 | L58: 0 | M58: 0 | N58: 0 | O58: 0 | P58: =SUM(D58:O58) -> 1566401 | Q58: 54
B59: Summer | D59: =IF(D51=1,D10,0) -> 0 | E59: 0 | F59: 0 | G59: 0 | H59: 0 | I59: 291852 | J59: 248118 | K59: 241391 | L59: 179786 | M59: 141903 | N59: 185547 | O59: 184413 | P59: =SUM(D59:O59) -> 1473010 | Q59: 55
Q60: 56
Q61: 57
B62: Rates: R050201.R1 | C62: WYOMING NON-CORE DNG REVENUES FROM DEMAND FORECAST AND CURRENTLY EFFECTIVE I-SALES GAS COST RATES | Q62: 58
D63: Forecast | E63: Forecast | F63: Forecast | G63: Forecast | H63: Forecast | I63: Forecast | J63: Forecast | K63: Forecast | L63: Forecast | M63: Forecast | N63: Forecast | O63: Forecast | P63: 12-Month | Q63: 59
D64: =D5 -> Nov18 | E64: =E5 -> Dec18 | F64: =F5 -> Jan19 | G64: Feb19 | H64: Mar19 | I64: Apr19 | J64: May19 | K64: Jun19 | L64: Jul19 | M64: Aug19 | N64: Sep19 | O64: Oct19 | P64: Total | Q64: 60
A65: I-2 & 1-4 (Non-Gas Revenue) (Yearly) | D65: ='RevRun Fcst'!H273+'RevRun Fcst'!H282 -> 5388.49 | E65: ='RevRun Fcst'!I273+'RevRun Fcst'!I282 -> 5715.84 | F65: ='RevRun Fcst'!J273+'RevRun Fcst'!J282 -> 6039.96 | G65: ='RevRun Fcst'!K273+'RevRun Fcst'!K282 -> 5843.42 | H65: ='RevRun Fcst'!L273+'RevRun Fcst'!L282 -> 5314.87 | I65: ='RevRun Fcst'!M273+'RevRun Fcst'!M282 -> 4408.7 | J65: ='RevRun Fcst'!N273+'RevRun Fcst'!N282 -> 3995.58 | K65: ='RevRun Fcst'!O273+'RevRun Fcst'!O282 -> 3759.08 | L65: ='RevRun Fcst'!P273+'RevRun Fcst'!P282 -> 4123.38 | M65: ='RevRun Fcst'!Q273+'RevRun Fcst'!Q282 -> 3278.68 | N65: ='RevRun Fcst'!R273+'RevRun Fcst'!R282 -> 3300.87 | O65: ='RevRun Fcst'!S273+'RevRun Fcst'!S282 -> 3727.77 | P65: =SUM(D65:O65) -> 54896.64 | Q65: 61
A66: IC (Total Revenue) (Yearly) | D66: =ROUND(D41*$P66/$P41,0) -> 9887 | E66: =ROUND(E41*$P66/$P41,0) -> 8962 | F66: 15530 | G66: 10517 | H66: 10487 | I66: 16656 | J66: 16228 | K66: 3605 | L66: 4431 | M66: 2238 | N66: 7997 | O66: =P66-SUM(D66:N66) -> 7877.85 | P66: ='RevRun Fcst'!T300+'RevRun Fcst'!T314 -> 114415.85 | Q66: 62
Q67: 63
A68: I-2 Gas Cost (Rate Effective ) | D68: ='Other Inputs'!E99 -> 0 | E68: =+D68 -> 0 | F68: 0 | G68: 0 | H68: 0 | I68: 0 | J68: 0 | K68: 0 | L68: 0 | M68: 0 | N68: 0 | O68: 0 | Q68: 64
A69: I-4 Gas Cost (Rate Effective ) | D69: 0 | E69: 0 | F69: =+E69 -> 0 | G69: 0 | H69: 0 | I69: 0 | J69: 0 | K69: 0 | L69: 0 | M69: 0 | N69: 0 | O69: 0 | Q69: 65
Q70: 66
Q71: 67
D72: ALLOCATION BASES | Q72: 68
D73: DEMAND | G73: OTHER COST | Q73: 69
A74: Utah Peak Day Demand | D74: =+D76-D75 -> 1292581 | E74: =D74/D76 -> 0.971741206 | G74: Utah Sales | H74: =+P20 -> 111108594 | I74: =H74/H76 -> 0.9662028976 | Q74: 70
A75: Wyoming Peak Day Demand | D75: ='Other Inputs'!E166 -> 37589 | E75: =1-E74 -> 0.02825879399 | G75: Wyoming Sales | H75: =+P39 -> 3886501 | I75: =1-I74 -> 0.03379710239 | Q75: 71
A76: Peak Day Demand | D76: ='Other Inputs'!E167 -> 1330170 | E76: =ROUND(D76/D$76,4) -> 1 | G76: Total Sales | H76: =+H74+H75 -> 114995095 | I76: =ROUND(H76/H$76,4) -> 1 | Q76: 72
Q77: 73
Q78: 74
D79: Financial Report Information (Latest 12 Months of Actual Expenses and 13 Months of Rate Base) | Q79: 75
D80: Actual | E80: Actual | F80: Actual | G80: Actual | H80: Actual | I80: Actual | J80: Actual | K80: Actual | L80: Actual | M80: Actual | N80: Actual | O80: Actual | Q80: 76
A81: Accounts | D81: =Expenses!G9 -> 2017-09-01 | E81: =Expenses!H9 -> 2017-10-01 | F81: =Expenses!I9 -> 2017-11-01 | G81: =Expenses!J9 -> 2017-12-01 | H81: =Expenses!K9 -> 2018-01-01 | I81: =Expenses!L9 -> 2018-02-01 | J81: =Expenses!M9 -> 2018-03-01 | K81: =Expenses!N9 -> 2018-04-01 | L81: =Expenses!O9 -> 2018-05-01 | M81: =Expenses!P9 -> 2018-06-01 | N81: =Expenses!Q9 -> 2018-07-01 | O81: =Expenses!R9 -> 2018-08-01 | P81: =Expenses!S9 -> 2018-08-01 | Q81: 77
A82: EXPENSES | Q82: 78
B83: Gas Use In Dth (Acct 810 & 812) | D83: 0 | E83: 0 | F83: 0 | G83: 0 | H83: 0 | I83: 0 | J83: 0 | K83: 0 | L83: 0 | M83: 0 | N83: 0 | O83: 0 | Q83: 79
Q84: 80
B85: Other Revenue (Yearly) | Q85: 81
B86: Sales for Resale (account 483) | D86: =Expenses!G445 -> 182396.79 | E86: =Expenses!H445 -> 168250.61 | F86: =Expenses!I445 -> 166949.17 | G86: =Expenses!J445 -> 161953.51 | H86: =Expenses!K445 -> 0 | I86: =Expenses!L445 -> 0 | J86: =Expenses!M445 -> 0 | K86: =Expenses!N445 -> 0 | L86: =Expenses!O445 -> 0 | M86: =Expenses!P445 -> 0 | N86: =Expenses!Q445 -> 0 | O86: =Expenses!R445 -> 0 | P86: =Expenses!S445 -> 679550.08 | Q86: 82
B87: Incidental Plant Prod Sales (Acct 490) | D87: =Expenses!G446 -> 1160.83 | E87: =Expenses!H446 -> 556347.62 | F87: =Expenses!I446 -> 1319175.82 | G87: =Expenses!J446 -> 138.58 | H87: =Expenses!K446 -> 501141.12 | I87: =Expenses!L446 -> 638232.62 | J87: =Expenses!M446 -> 1189311.42 | K87: =Expenses!N446 -> 6.65 | L87: =Expenses!O446 -> 562218.69 | M87: =Expenses!P446 -> 1323443.71 | N87: =Expenses!Q446 -> 627304.52 | O87: =Expenses!R446 -> 806783.83 | P87: =Expenses!S446 -> 7525265.41 | Q87: 83
B88: Gas Processed by Others (account 491) | D88: =Expenses!G461 -> 0 | E88: =Expenses!H461 -> 0 | F88: =Expenses!I461 -> 0 | G88: =Expenses!J461 -> 0 | H88: =Expenses!K461 -> 0 | I88: =Expenses!L461 -> 0 | J88: =Expenses!M461 -> 0 | K88: =Expenses!N461 -> 0 | L88: =Expenses!O461 -> 0 | M88: =Expenses!P461 -> 0 | N88: =Expenses!Q461 -> 0 | O88: =Expenses!R461 -> 0 | P88: =Expenses!S461 -> 0 | Q88: 84
B89: Gasoline - Oil Sales (account 492) | D89: =Expenses!G447 -> 99774.07 | E89: =Expenses!H447 -> 141169.2 | F89: =Expenses!I447 -> 115890.11 | G89: =Expenses!J447 -> 155802.75 | H89: =Expenses!K447 -> 272165.82 | I89: =Expenses!L447 -> 285138.67 | J89: =Expenses!M447 -> 239589.57 | K89: =Expenses!N447 -> 200990.73 | L89: =Expenses!O447 -> 221759.64 | M89: =Expenses!P447 -> 261820.69 | N89: =Expenses!Q447 -> 199283.16 | O89: =Expenses!R447 -> 199984.13 | P89: =Expenses!S447 -> 2393368.54 | Q89: 85
B90: Gasoline - Oil Cost (account 758.001) | D90: =-Expenses!G450 -> -16225.85 | E90: =-Expenses!H450 -> -22368 | F90: =-Expenses!I450 -> -18400.87 | G90: =-Expenses!J450 -> -25753.29 | H90: =-Expenses!K450 -> -31057.84 | I90: =-Expenses!L450 -> 31057.84 | J90: =-Expenses!M450 -> 0 | K90: =-Expenses!N450 -> 0 | L90: =-Expenses!O450 -> 0 | M90: =-Expenses!P450 -> 0 | N90: =-Expenses!Q450 -> 0 | O90: =-Expenses!R450 -> 0 | P90: =-Expenses!S450 -> -82748.01 | Q90: 86
Q91: 87
Q92: 88
B93: Overriding Royalty (account 495-1) | D93: =Expenses!G448 -> 855912.03 | E93: =Expenses!H448 -> 749922.57 | F93: =Expenses!I448 -> 705097.4 | G93: =Expenses!J448 -> 781328.26 | H93: =Expenses!K448 -> 100336.29 | I93: =Expenses!L448 -> 762854.72 | J93: =Expenses!M448 -> 1647764.36 | K93: =Expenses!N448 -> 738747.02 | L93: =Expenses!O448 -> 234938.67 | M93: =Expenses!P448 -> 1277007.39 | N93: =Expenses!Q448 -> 671487.2 | O93: =Expenses!R448 -> 958404.91 | P93: =Expenses!S448 -> 9483800.82 | Q93: 89
B94: Wexpro Revenue Sharing (account 495-2) | D94: =Expenses!G449 -> 11788 | E94: =Expenses!H449 -> 4888 | F94: =Expenses!I449 -> 23769 | G94: =Expenses!J449 -> 31018 | H94: =Expenses!K449 -> 40242 | I94: =Expenses!L449 -> 23057 | J94: =Expenses!M449 -> 31886 | K94: =Expenses!N449 -> 29591 | L94: =Expenses!O449 -> 42086 | M94: =Expenses!P449 -> 38666 | N94: =Expenses!Q449 -> 30743 | O94: =Expenses!R449 -> 24691 | P94: =Expenses!S449 -> 332425 | Q94: 90
P95: Page 2 of 6 | Q95: 91
C96: Actual | D96: Actual | E96: Actual | F96: Actual | G96: Actual | H96: Actual | I96: Actual | J96: Actual | K96: Actual | L96: Actual | M96: Actual | N96: Actual | O96: Actual | P96: 13-Month | Q96: 92
A97: Accounts | C97: ='Rate Base'!H8 -> 2017-08-16 | D97: ='Rate Base'!I8 -> 2017-09-17 | E97: ='Rate Base'!J8 -> 2017-10-19 | F97: ='Rate Base'!K8 -> 2017-11-18 | G97: ='Rate Base'!L8 -> 2017-12-18 | H97: ='Rate Base'!M8 -> 2018-01-18 | I97: ='Rate Base'!N8 -> 2018-02-17 | J97: ='Rate Base'!O8 -> 2018-03-19 | K97: ='Rate Base'!P8 -> 2018-04-18 | L97: ='Rate Base'!Q8 -> 2018-05-18 | M97: ='Rate Base'!R8 -> 2018-06-17 | N97: ='Rate Base'!S8 -> 2018-07-17 | O97: ='Rate Base'!T8 -> 2018-08-16 | P97: Average | Q97: 93
A98: RATE BASE - PRODUCTION | Q98: 94
B99: Acct 164 (Working Gas) - Production | C99: ='Rate Base'!H206 -> 48018857.41 | D99: ='Rate Base'!I206 -> 58860691.74 | E99: ='Rate Base'!J206 -> 59031895.8 | F99: ='Rate Base'!K206 -> 59289969.15 | G99: ='Rate Base'!L206 -> 52891066.75 | H99: ='Rate Base'!M206 -> 36606333 | I99: ='Rate Base'!N206 -> 23198516 | J99: ='Rate Base'!O206 -> 9114305 | K99: ='Rate Base'!P206 -> 7483334 | L99: ='Rate Base'!Q206 -> 15704467 | M99: ='Rate Base'!R206 -> 28192823 | N99: ='Rate Base'!S206 -> 39219512 | O99: ='Rate Base'!T206 -> 43502523 | P99: =(((+C99+O99)/2)+SUM(D99:N99))/12 -> 36279466.97 | Q99: 95
B100: Acct 101 - Production | C100: ='Rate Base'!H148 -> 79968136 | D100: ='Rate Base'!I148 -> 79968136 | E100: ='Rate Base'!J148 -> 79968136 | F100: ='Rate Base'!K148 -> 79968136 | G100: ='Rate Base'!L148 -> 79968136 | H100: ='Rate Base'!M148 -> 79968136 | I100: ='Rate Base'!N148 -> 79968136 | J100: ='Rate Base'!O148 -> 79968136 | K100: ='Rate Base'!P148 -> 79968136 | L100: ='Rate Base'!Q148 -> 79963099 | M100: ='Rate Base'!R148 -> 79963099 | N100: ='Rate Base'!S148 -> 79963099 | O100: ='Rate Base'!T148 -> 79963099 | P100: =(((+C100+O100)/2)+SUM(D100:N100))/12 -> 79966666.88 | Q100: 96
B101: Acct 108 - Production | C101: ='Rate Base'!H166 -> -69367366.51 | D101: ='Rate Base'!I166 -> -69417627.43 | E101: ='Rate Base'!J166 -> -69469195 | F101: ='Rate Base'!K166 -> -69536528.44 | G101: ='Rate Base'!L166 -> -69536528 | H101: ='Rate Base'!M166 -> -69536528 | I101: ='Rate Base'!N166 -> -69665875 | J101: ='Rate Base'!O166 -> -69665875 | K101: ='Rate Base'!P166 -> -69750061 | L101: ='Rate Base'!Q166 -> -69786491 | M101: ='Rate Base'!R166 -> -69827958 | N101: ='Rate Base'!S166 -> -69869425 | O101: ='Rate Base'!T166 -> -69869425 | P101: -69640040.64 | Q101: 97
B102: Acct 111 - Production | C102: ='Rate Base'!H173 -> -6144762.02 | D102: ='Rate Base'!I173 -> -6146085.96 | E102: ='Rate Base'!J173 -> -6147444.33 | F102: ='Rate Base'!K173 -> -6149218 | G102: ='Rate Base'!L173 -> -6149218 | H102: ='Rate Base'!M173 -> -6149218 | I102: ='Rate Base'!N173 -> -6150277 | J102: ='Rate Base'!O173 -> -6150277 | K102: ='Rate Base'!P173 -> -6150277 | L102: ='Rate Base'!Q173 -> -6150277 | M102: ='Rate Base'!R173 -> -6150277 | N102: ='Rate Base'!S173 -> -6150277 | O102: ='Rate Base'!T173 -> -6150277 | P102: -6149197.15 | Q102: 98
B103: Acct 2550 - Production | C103: ='Rate Base'!H241 -> -1248.79 | D103: ='Rate Base'!I241 -> -1264.29 | E103: ='Rate Base'!J241 -> -1279.79 | F103: ='Rate Base'!K241 -> -1295.29 | G103: ='Rate Base'!L241 -> -1295 | H103: ='Rate Base'!M241 -> -1295 | I103: ='Rate Base'!N241 -> -1311 | J103: ='Rate Base'!O241 -> -1311 | K103: ='Rate Base'!P241 -> -1311 | L103: ='Rate Base'!Q241 -> -1311 | M103: ='Rate Base'!R241 -> -1311 | N103: ='Rate Base'!S241 -> -1311 | O103: ='Rate Base'!T241 -> -1311 | P103: -1297.93875 | Q103: 99
B104: Acct 2820 - Production | C104: ='Rate Base'!H248 -> 3661.83 | D104: ='Rate Base'!I248 -> 50611.28 | E104: ='Rate Base'!J248 -> 110620.48 | F104: ='Rate Base'!K248 -> 169754.68 | G104: ='Rate Base'!L248 -> 169755 | H104: ='Rate Base'!M248 -> 169755 | I104: ='Rate Base'!N248 -> 480158 | J104: ='Rate Base'!O248 -> 480158 | K104: ='Rate Base'!P248 -> 1164745 | L104: ='Rate Base'!Q248 -> 1381569 | M104: ='Rate Base'!R248 -> 1614059 | N104: ='Rate Base'!S248 -> 1861750 | O104: ='Rate Base'!T248 -> 1861750 | P104: 715470.1129 | Q104: 100
B105: Acct 2821 - Production | C105: ='Rate Base'!H255 -> -700755.31 | D105: ='Rate Base'!I255 -> -700755.31 | E105: ='Rate Base'!J255 -> -700755.31 | F105: ='Rate Base'!K255 -> -700755.31 | G105: ='Rate Base'!L255 -> -700755.31 | H105: ='Rate Base'!M255 -> -700755.31 | I105: ='Rate Base'!N255 -> -700755.31 | J105: ='Rate Base'!O255 -> -700755.31 | K105: ='Rate Base'!P255 -> -700755.31 | L105: ='Rate Base'!Q255 -> -700755.31 | M105: ='Rate Base'!R255 -> -700755.31 | N105: ='Rate Base'!S255 -> -700755.31 | O105: ='Rate Base'!T255 -> -700755.31 | P105: -700755.31 | Q105: 101
Q106: 102
D107: Production | H107: Acct 101 | I107: Acct 108 | J107: Acct 111 | K107: Acct 2550 | L107: Acct 2820 | M107: Acct 2821 | N107: Total | Q107: 103
B108: Depreciation - Acct 403 | D108: =Expenses!S385 -> 209351.5 | F108: Thirteen month average | H108: =P100 -> 79966666.88 | I108: =P101 -> -69640040.64 | J108: =P102 -> -6149197.15 | K108: =P103 -> -1297.93875 | L108: =P104 -> 715470.1129 | M108: =P105 -> -700755.31 | N108: =SUM(H108:M108) -> 4190845.954 | Q108: 104
B109: Amortization & Depletion - Acct 404 | D109: =Expenses!S392 -> 5514.65 | F109: =CONCATENATE("Wexpro Red. @ ",-'Other Inputs'!E314*100," %") -> Wexpro Red. @ 6.3 % | H109: =H108*'Other Inputs'!$E$314 -> -5037900.013 | I109: =I108*'Other Inputs'!$E$314 -> 4387322.56 | J109: =J108*'Other Inputs'!$E$314 -> 387399.4204 | N109: =SUM(H109:M109) -> -263178.0326 | Q109: 105
B110: Utah Pre-Tax Return on Production Assets | D110: =+N111 -> 366451.417 | M110: =SUM(N108:N109) -> 3927667.921 | Q110: 106
B111: Utah Production Cost | D111: =SUM(D108:D110) -> 581317.567 | M111: ="Utah Pre-Tax Rate of Return on Production Assets ("&'Other Inputs'!E317&")" -> Utah Pre-Tax Rate of Return on Production Assets (0.0933) | N111: =M110*'Other Inputs'!E317 -> 366451.417 | Q111: 107
M112: ="Wyoming Pre-Tax Rate of Return on Production Assets ("&'Other Inputs'!E316&")" -> Wyoming Pre-Tax Rate of Return on Production Assets (0.1059) | N112: =M110*'Other Inputs'!E316 -> 415940.0328 | Q112: 108
Q113: 109
A114: TACTICAL PLAN INFORMATION (IRP) | P114: 12-Month | Q114: 110
D115: =D5 -> Nov18 | E115: =E5 -> Dec18 | F115: Jan19 | G115: Feb19 | H115: Mar19 | I115: Apr19 | J115: May19 | K115: Jun19 | L115: Jul19 | M115: Aug19 | N115: Sep19 | O115: Oct19 | P115: Total | Q115: 111
A116: COMPANY PRODUCTION | Q116: 112
B117: Prior Company | Q117: 113
B118: D24 Wells | Q118: 114
B119: Brady & Powel | Q119: 115
B120: Total Company Production Wexpro I & II | D120: ='Monthly Inputs'!G7+'Monthly Inputs'!G13 -> 5752763.977 | E120: ='Monthly Inputs'!H7+'Monthly Inputs'!H13 -> 6064040.229 | F120: ='Monthly Inputs'!I7+'Monthly Inputs'!I13 -> 5995505.405 | G120: ='Monthly Inputs'!J7+'Monthly Inputs'!J13 -> 5464815.964 | H120: ='Monthly Inputs'!K7+'Monthly Inputs'!K13 -> 6142113.689 | I120: ='Monthly Inputs'!L7+'Monthly Inputs'!L13 -> 5899928.991 | J120: ='Monthly Inputs'!M7+'Monthly Inputs'!M13 -> 5949287.487 | K120: ='Monthly Inputs'!N7+'Monthly Inputs'!N13 -> 5699825.992 | L120: ='Monthly Inputs'!O7+'Monthly Inputs'!O13 -> 5602718.924 | M120: ='Monthly Inputs'!P7+'Monthly Inputs'!P13 -> 5566842.572 | N120: ='Monthly Inputs'!Q7+'Monthly Inputs'!Q13 -> 5285150.97 | O120: ='Monthly Inputs'!R7+'Monthly Inputs'!R13 -> 5717181.234 | P120: =SUM(D120:O120) -> 69140175.43 | Q120: 116
Q121: 117
A122: STORAGE INJECTIONS | Q122: 118
B123: Chalk Creek | D123: ='Monthly Inputs'!G24 -> 102149.2767 | E123: ='Monthly Inputs'!H24 -> 47283.10394 | F123: ='Monthly Inputs'!I24 -> 0 | G123: ='Monthly Inputs'!J24 -> 0 | H123: ='Monthly Inputs'!K24 -> 0 | I123: ='Monthly Inputs'!L24 -> 0 | J123: ='Monthly Inputs'!M24 -> 0 | K123: ='Monthly Inputs'!N24 -> 0 | L123: ='Monthly Inputs'!O24 -> 0 | M123: ='Monthly Inputs'!P24 -> 0 | N123: ='Monthly Inputs'!Q24 -> 0 | O123: ='Monthly Inputs'!R24 -> 97348.75488 | P123: =SUM(D123:O123) -> 246781.1356 | Q123: 119
B124: Coalville | D124: ='Monthly Inputs'!G26 -> 121310.1501 | E124: ='Monthly Inputs'!H26 -> 57776.96609 | F124: ='Monthly Inputs'!I26 -> 0 | G124: ='Monthly Inputs'!J26 -> 0 | H124: ='Monthly Inputs'!K26 -> 0 | I124: ='Monthly Inputs'!L26 -> 0 | J124: ='Monthly Inputs'!M26 -> 0 | K124: ='Monthly Inputs'!N26 -> 0 | L124: ='Monthly Inputs'!O26 -> 0 | M124: ='Monthly Inputs'!P26 -> 0 | N124: ='Monthly Inputs'!Q26 -> 22993.12592 | O124: ='Monthly Inputs'!R26 -> 128554.3823 | P124: =SUM(D124:O124) -> 330634.6245 | Q124: 120
B125: Leroy | D125: ='Monthly Inputs'!G27 -> 19980.44968 | E125: ='Monthly Inputs'!H27 -> 0 | F125: ='Monthly Inputs'!I27 -> 0 | G125: ='Monthly Inputs'!J27 -> 0 | H125: ='Monthly Inputs'!K27 -> 0 | I125: ='Monthly Inputs'!L27 -> 0 | J125: ='Monthly Inputs'!M27 -> 0 | K125: ='Monthly Inputs'!N27 -> 0 | L125: ='Monthly Inputs'!O27 -> 0 | M125: ='Monthly Inputs'!P27 -> 0 | N125: ='Monthly Inputs'!Q27 -> 36504.89426 | O125: ='Monthly Inputs'!R27 -> 315889.74 | P125: =SUM(D125:O125) -> 372375.0839 | Q125: 121
B126: Spire | D126: ='Monthly Inputs'!G28 -> 0 | E126: ='Monthly Inputs'!H28 -> 0 | F126: ='Monthly Inputs'!I28 -> 0 | G126: ='Monthly Inputs'!J28 -> 0 | H126: ='Monthly Inputs'!K28 -> 0 | I126: ='Monthly Inputs'!L28 -> 350489.9902 | J126: ='Monthly Inputs'!M28 -> 362173.0042 | K126: ='Monthly Inputs'!N28 -> 350489.9902 | L126: ='Monthly Inputs'!O28 -> 362173.0042 | M126: ='Monthly Inputs'!P28 -> 362173.0042 | N126: ='Monthly Inputs'!Q28 -> 350489.9902 | O126: ='Monthly Inputs'!R28 -> 355745.2698 | P126: =SUM(D126:O126) -> 2493734.253 | Q126: 122
B127: Total Peaking Storage | D127: =SUM(D123:D126) -> 243439.8766 | E127: =SUM(E123:E126) -> 105060.07 | F127: 0 | G127: 0 | H127: 0 | I127: 350489.9902 | J127: 362173.0042 | K127: 350489.9902 | L127: 362173.0042 | M127: 362173.0042 | N127: 409988.0104 | O127: 897538.147 | P127: 3443525.097 | Q127: 123
B128: Clay Basin | D128: ='Monthly Inputs'!G25 -> 0 | E128: ='Monthly Inputs'!H25 -> 0 | F128: ='Monthly Inputs'!I25 -> 0 | G128: ='Monthly Inputs'!J25 -> 0 | H128: ='Monthly Inputs'!K25 -> 0 | I128: ='Monthly Inputs'!L25 -> 930838.6612 | J128: ='Monthly Inputs'!M25 -> 2543589.722 | K128: ='Monthly Inputs'!N25 -> 2461538.452 | L128: ='Monthly Inputs'!O25 -> 2543589.722 | M128: ='Monthly Inputs'!P25 -> 2543589.722 | N128: ='Monthly Inputs'!Q25 -> 1816826.721 | O128: ='Monthly Inputs'!R25 -> 119100.1363 | P128: =SUM(D128:O128) -> 12959073.14 | Q128: 124
B129: Total Storage Injections | D129: =SUM(D127:D128) -> 243439.8766 | E129: =SUM(E127:E128) -> 105060.07 | F129: 0 | G129: 0 | H129: 0 | I129: 1281328.651 | J129: 2905762.726 | K129: 2812028.442 | L129: 2905762.726 | M129: 2905762.726 | N129: 2226814.732 | O129: 1016638.283 | P129: 16402598.23 | Q129: 125
A130: STORAGE WITHDRAWLS | Q130: 126
B131: Chalk Creek | D131: ='Monthly Inputs'!G32 -> 0 | E131: ='Monthly Inputs'!H32 -> 0 | F131: ='Monthly Inputs'!I32 -> 0 | G131: ='Monthly Inputs'!J32 -> 0 | H131: ='Monthly Inputs'!K32 -> 257250 | I131: ='Monthly Inputs'!L32 -> 0 | J131: ='Monthly Inputs'!M32 -> 0 | K131: ='Monthly Inputs'!N32 -> 0 | L131: ='Monthly Inputs'!O32 -> 0 | M131: ='Monthly Inputs'!P32 -> 0 | N131: ='Monthly Inputs'!Q32 -> 0 | O131: ='Monthly Inputs'!R32 -> 0 | P131: =SUM(D131:O131) -> 257250 | Q131: 127
B132: Coalville | D132: ='Monthly Inputs'!G34 -> 0 | E132: ='Monthly Inputs'!H34 -> 0 | F132: ='Monthly Inputs'!I34 -> 0 | G132: ='Monthly Inputs'!J34 -> 0 | H132: ='Monthly Inputs'!K34 -> 300106.9641 | I132: ='Monthly Inputs'!L34 -> 0 | J132: ='Monthly Inputs'!M34 -> 0 | K132: ='Monthly Inputs'!N34 -> 0 | L132: ='Monthly Inputs'!O34 -> 0 | M132: ='Monthly Inputs'!P34 -> 0 | N132: ='Monthly Inputs'!Q34 -> 0 | O132: ='Monthly Inputs'!R34 -> 0 | P132: =SUM(D132:O132) -> 300106.9641 | Q132: 128
B133: Leroy | D133: ='Monthly Inputs'!G35 -> 0 | E133: ='Monthly Inputs'!H35 -> 0 | F133: ='Monthly Inputs'!I35 -> 0 | G133: ='Monthly Inputs'!J35 -> 54543.02597 | H133: ='Monthly Inputs'!K35 -> 310000 | I133: ='Monthly Inputs'!L35 -> 0 | J133: ='Monthly Inputs'!M35 -> 0 | K133: ='Monthly Inputs'!N35 -> 0 | L133: ='Monthly Inputs'!O35 -> 0 | M133: ='Monthly Inputs'!P35 -> 0 | N133: ='Monthly Inputs'!Q35 -> 0 | O133: ='Monthly Inputs'!R35 -> 0 | P133: =SUM(D133:O133) -> 364543.026 | Q133: 129
B134: Spire | D134: ='Monthly Inputs'!G36 -> 498000 | E134: ='Monthly Inputs'!H36 -> 514599.9756 | F134: ='Monthly Inputs'!I36 -> 514599.9756 | G134: ='Monthly Inputs'!J36 -> 464799.9878 | H134: ='Monthly Inputs'!K36 -> 292202.4536 | I134: ='Monthly Inputs'!L36 -> 0 | J134: ='Monthly Inputs'!M36 -> 0 | K134: ='Monthly Inputs'!N36 -> 0 | L134: ='Monthly Inputs'!O36 -> 0 | M134: ='Monthly Inputs'!P36 -> 0 | N134: ='Monthly Inputs'!Q36 -> 0 | O134: ='Monthly Inputs'!R36 -> 0 | P134: =SUM(D134:O134) -> 2284202.393 | Q134: 130
B135: Total Peaking Storage | D135: =SUM(D131:D134) -> 498000 | E135: =SUM(E131:E134) -> 514599.9756 | F135: 514599.9756 | G135: 519343.0138 | H135: 1159559.418 | I135: 0 | J135: 0 | K135: 0 | L135: 0 | M135: 0 | N135: 0 | O135: 0 | P135: 3206102.383 | Q135: 131
B136: Clay Basin | D136: ='Monthly Inputs'!G33 -> 248800.0107 | E136: ='Monthly Inputs'!H33 -> 4158000 | F136: ='Monthly Inputs'!I33 -> 3458044.8 | G136: ='Monthly Inputs'!J33 -> 3080044.8 | H136: ='Monthly Inputs'!K33 -> 1673787.17 | I136: ='Monthly Inputs'!L33 -> 16419.63768 | J136: ='Monthly Inputs'!M33 -> 0 | K136: ='Monthly Inputs'!N33 -> 0 | L136: ='Monthly Inputs'!O33 -> 0 | M136: ='Monthly Inputs'!P33 -> 0 | N136: ='Monthly Inputs'!Q33 -> 0 | O136: ='Monthly Inputs'!R33 -> 0 | P136: =SUM(D136:O136) -> 12635096.42 | Q136: 132
B137: Total Storage Withdrawls | D137: =SUM(D135:D136) -> 746800.0107 | E137: 4672599.976 | F137: 3972644.775 | G137: 3599387.814 | H137: 2833346.588 | I137: 16419.63768 | J137: 0 | K137: 0 | L137: 0 | M137: 0 | N137: 0 | O137: 0 | P137: 15841198.8 | Q137: 133
Q138: 134
Q139: 135
A140: Gas Supply and Demand | D140: =D4 -> Forecast | E140: Forecast | F140: Forecast | G140: Forecast | H140: Forecast | I140: Forecast | J140: Forecast | K140: Forecast | L140: Forecast | M140: Forecast | N140: Forecast | O140: Forecast | P140: 12-Month | Q140: 136
A141: Demand | D141: =D5 -> Nov18 | E141: Dec18 | F141: Jan19 | G141: Feb19 | H141: Mar19 | I141: Apr19 | J141: May19 | K141: Jun19 | L141: Jul19 | M141: Aug19 | N141: Sep19 | O141: Oct19 | P141: Total | Q141: 137
Q142: 138
A143: Utah Sales | D143: =+D20 -> 11811567 | E143: =+E20 -> 18718688 | F143: 19704282 | G143: 16427420 | H143: 12872234 | I143: 8518240 | J143: 5204789 | K143: 3191701 | L143: 2634573 | M143: 2432433 | N143: 2815670 | O143: 6776997 | P143: =SUM(D143:O143) -> 111108594 | Q143: 139
A144: Wyoming Sales | D144: =+D39 -> 417315 | E144: 600794 | F144: 623942 | G144: 565257 | H144: 472237 | I144: 342153 | J144: 229489 | K144: 129562 | L144: 83492 | M144: 77945 | N144: 106001 | O144: 238314 | P144: =SUM(D144:O144) -> 3886501 | Q144: 140
A145: Total Sales | D145: =+D143+D144 -> 12228882 | E145: 19319482 | F145: 20328224 | G145: 16992677 | H145: 13344471 | I145: 8860393 | J145: 5434278 | K145: 3321263 | L145: 2718065 | M145: 2510378 | N145: 2921671 | O145: 7015311 | P145: 114995095 | Q145: 141
Q146: 142
A147: Distribution Use (Offices) | C147: Check formulas for correct month | D147: =+D83 -> 0 | E147: =+E83 -> 0 | F147: 0 | G147: 0 | H147: 0 | I147: 0 | J147: 0 | K147: 0 | L147: 0 | M147: 0 | N147: 0 | O147: 0 | P147: 0 | Q147: 143
A148: Distribution Lost and Unaccounted for | D148: =+D150-D145-D147 -> 55279 | E148: =+E150-E145-E147 -> 87331 | F148: 91891 | G148: 76813 | H148: 60322 | I148: 40052 | J148: 24565 | K148: 15013 | L148: 12287 | M148: 11348 | N148: 13207 | O148: =+O150-O145-O147 -> 31712 | P148: =SUM(D148:O148) -> 519820 | Q148: 144
Q149: 145
A150: Total City Gate | D150: =ROUND((D145+D147)/(1-'Other Inputs'!$E$319),0) -> 12284161 | E150: =ROUND((E145+E147)/(1-'Other Inputs'!$E$319),0) -> 19406813 | F150: =ROUND((F145+F147)/(1-'Other Inputs'!$E$319),0) -> 20420115 | G150: =ROUND((G145+G147)/(1-'Other Inputs'!$E$319),0) -> 17069490 | H150: =ROUND((H145+H147)/(1-'Other Inputs'!$E$319),0) -> 13404793 | I150: =ROUND((I145+I147)/(1-'Other Inputs'!$E$319),0) -> 8900445 | J150: =ROUND((J145+J147)/(1-'Other Inputs'!$E$319),0) -> 5458843 | K150: =ROUND((K145+K147)/(1-'Other Inputs'!$E$319),0) -> 3336276 | L150: =ROUND((L145+L147)/(1-'Other Inputs'!$E$319),0) -> 2730352 | M150: =ROUND((M145+M147)/(1-'Other Inputs'!$E$319),0) -> 2521726 | N150: =ROUND((N145+N147)/(1-'Other Inputs'!$E$319),0) -> 2934878 | O150: =ROUND((O145+O147)/(1-'Other Inputs'!$E$319),0) -> 7047023 | P150: =SUM(D150:O150) -> 115514915 | Q150: 146
Q151: 147
A152: Peaking Injection | D152: =+D127 -> 243439.8766 | E152: 105060.07 | F152: 0 | G152: 0 | H152: 0 | I152: 350489.9902 | J152: 362173.0042 | K152: 350489.9902 | L152: 362173.0042 | M152: 362173.0042 | N152: 409988.0104 | O152: 897538.147 | P152: =SUM(D152:O152) -> 3443525.097 | Q152: 148
A153: Clay Basin Injection | D153: =+D128 -> 0 | E153: 0 | F153: 0 | G153: 0 | H153: 0 | I153: 930838.6612 | J153: 2543589.722 | K153: 2461538.452 | L153: 2543589.722 | M153: 2543589.722 | N153: 1816826.721 | O153: 119100.1363 | P153: =SUM(D153:O153) -> 12959073.14 | Q153: 149
A154: Storage Lost & Unaccounted For | D154: =-'Monthly Inputs'!G51 -> 12974.50477 | E154: =-'Monthly Inputs'!H51 -> 1113.745668 | F154: =-'Monthly Inputs'!I51 -> 333.1040016 | G154: =-'Monthly Inputs'!J51 -> 0 | H154: =-'Monthly Inputs'!K51 -> 0 | I154: =-'Monthly Inputs'!L51 -> 7320.284271 | J154: =-'Monthly Inputs'!M51 -> 16166.69496 | K154: =-'Monthly Inputs'!N51 -> 85581.32304 | L154: =-'Monthly Inputs'!O51 -> 93290.85919 | M154: =-'Monthly Inputs'!P51 -> 97130.46184 | N154: =-'Monthly Inputs'!Q51 -> 94491.63702 | O154: =-'Monthly Inputs'!R51 -> 23542.02249 | P154: =SUM(D154:O154) -> 431944.6373 | Q154: 150
A155: Total Demand | D155: =SUM(D150:D154) -> 12540575.38 | E155: =SUM(E150:E154) -> 19512986.82 | F155: 20420448.1 | G155: 17069490 | H155: =SUM(H150:H154) -> 13404793 | I155: 10189093.94 | J155: 8380772.421 | K155: 6233885.765 | L155: 5729405.585 | M155: 5524619.188 | N155: 5256184.369 | O155: =SUM(O150:O154) -> 8087203.306 | P155: =SUM(D155:O155) -> 132349457.9 | Q155: 151
Q156: 152
D157: Forecast | E157: Forecast | F157: Forecast | G157: Forecast | H157: Forecast | I157: Forecast | J157: Forecast | K157: Forecast | L157: Forecast | M157: Forecast | N157: Forecast | O157: Forecast | P157: 12-Month | Q157: 153
A158: Supply | D158: =D5 -> Nov18 | E158: Dec18 | F158: Jan19 | G158: Feb19 | H158: Mar19 | I158: Apr19 | J158: May19 | K158: Jun19 | L158: Jul19 | M158: Aug19 | N158: Sep19 | O158: Oct19 | P158: Total | Q158: 154
A159: Company Production | D159: =+D120 -> 5752763.977 | E159: =+E120 -> 6064040.229 | F159: 5995505.405 | G159: 5464815.964 | H159: 6142113.689 | I159: 5899928.991 | J159: 5949287.487 | K159: 5699825.992 | L159: 5602718.924 | M159: 5566842.572 | N159: 5285150.97 | O159: 5717181.234 | P159: =SUM(D159:O159) -> 69140175.43 | Q159: 155
A160: Co Prod Lost & Unaccounted For | D160: =ROUND(D159*(-'Other Inputs'!$E$321-'Other Inputs'!$E$322),0) -> -314561 | E160: =ROUND(E159*(-'Other Inputs'!$E$321-'Other Inputs'!$E$322),0) -> -331582 | F160: =ROUND(F159*(-'Other Inputs'!$E$321-'Other Inputs'!$E$322),0) -> -327834 | G160: =ROUND(G159*(-'Other Inputs'!$E$321-'Other Inputs'!$E$322),0) -> -298816 | H160: =ROUND(H159*(-'Other Inputs'!$E$321-'Other Inputs'!$E$322),0) -> -335851 | I160: =ROUND(I159*(-'Other Inputs'!$E$321-'Other Inputs'!$E$322),0) -> -322608 | J160: =ROUND(J159*(-'Other Inputs'!$E$321-'Other Inputs'!$E$322),0) -> -325307 | K160: =ROUND(K159*(-'Other Inputs'!$E$321-'Other Inputs'!$E$322),0) -> -311666 | L160: =ROUND(L159*(-'Other Inputs'!$E$321-'Other Inputs'!$E$322),0) -> -306357 | M160: =ROUND(M159*(-'Other Inputs'!$E$321-'Other Inputs'!$E$322),0) -> -304395 | N160: =ROUND(N159*(-'Other Inputs'!$E$321-'Other Inputs'!$E$322),0) -> -288992 | O160: =ROUND(O159*(-'Other Inputs'!$E$321-'Other Inputs'!$E$322),0) -> -312615 | P160: =SUM(D160:O160) -> -3780584 | Q160: 156
A161: Company Production @ City Gate | D161: =SUM(D159:D160) -> 5438202.977 | E161: =SUM(E159:E160) -> 5732458.229 | F161: 5667671.405 | G161: 5165999.964 | H161: 5806262.689 | I161: 5577320.991 | J161: 5623980.487 | K161: 5388159.992 | L161: 5296361.924 | M161: 5262447.572 | N161: 4996158.97 | O161: 5404566.234 | P161: =SUM(D161:O161) -> 65359591.43 | Q161: 157
Q162: 158
A163: Peaking Withdrawal | D163: =+D135 -> 498000 | E163: 514599.9756 | F163: 514599.9756 | G163: 519343.0138 | H163: 1159559.418 | I163: 0 | J163: 0 | K163: 0 | L163: 0 | M163: 0 | N163: 0 | O163: 0 | P163: =SUM(D163:O163) -> 3206102.383 | Q163: 159
A164: Clay Basin Withdrawal | D164: =+D136 -> 248800.0107 | E164: =+E136 -> 4158000 | F164: 3458044.8 | G164: 3080044.8 | H164: 1673787.17 | I164: 16419.63768 | J164: 0 | K164: 0 | L164: 0 | M164: 0 | N164: 0 | O164: 0 | P164: =SUM(D164:O164) -> 12635096.42 | Q164: 160
A165: QPC Transportation Loss on Storage | D165: ='Monthly Inputs'!G67+'Monthly Inputs'!G59 -> -4396.28493 | E165: ='Monthly Inputs'!H67+'Monthly Inputs'!H59 -> -157668.9596 | F165: ='Monthly Inputs'!I67+'Monthly Inputs'!I59 -> -128552.3596 | G165: ='Monthly Inputs'!J67+'Monthly Inputs'!J59 -> -95782.67981 | H165: ='Monthly Inputs'!K67+'Monthly Inputs'!K59 -> -82704.76311 | I165: ='Monthly Inputs'!L67+'Monthly Inputs'!L59 -> -29457.53584 | J165: ='Monthly Inputs'!M67+'Monthly Inputs'!M59 -> 0 | K165: ='Monthly Inputs'!N67+'Monthly Inputs'!N59 -> 0 | L165: ='Monthly Inputs'!O67+'Monthly Inputs'!O59 -> 0 | M165: ='Monthly Inputs'!P67+'Monthly Inputs'!P59 -> 0 | N165: ='Monthly Inputs'!Q67+'Monthly Inputs'!Q59 -> 0 | O165: ='Monthly Inputs'!R67+'Monthly Inputs'!R59 -> 0 | P165: =SUM(D165:O165) -> -498562.5829 | Q165: 161
A166: Storage Lost & Unaccounted For | D166: ='Monthly Inputs'!G51 -> -12974.50477 | E166: ='Monthly Inputs'!H51 -> -1113.745668 | F166: ='Monthly Inputs'!I51 -> -333.1040016 | G166: ='Monthly Inputs'!J51 -> 0 | H166: ='Monthly Inputs'!K51 -> 0 | I166: ='Monthly Inputs'!L51 -> -7320.284271 | J166: ='Monthly Inputs'!M51 -> -16166.69496 | K166: ='Monthly Inputs'!N51 -> -85581.32304 | L166: ='Monthly Inputs'!O51 -> -93290.85919 | M166: ='Monthly Inputs'!P51 -> -97130.46184 | N166: ='Monthly Inputs'!Q51 -> -94491.63702 | O166: ='Monthly Inputs'!R51 -> -23542.02249 | P166: =SUM(D166:O166) -> -431944.6373 | Q166: 162
A167: Storage Supply @ City Gate | D167: =SUM(D163:D166) -> 729429.221 | E167: =SUM(E163:E166) -> 4513817.27 | F167: 3843759.312 | G167: 3503605.134 | H167: 2750641.825 | I167: -20358.18243 | J167: -16166.69496 | K167: -85581.32304 | L167: -93290.85919 | M167: -97130.46184 | N167: -94491.63702 | O167: -23542.02249 | P167: 14910691.58 | Q167: 163
Q168: 164
A169: Gas Purchased @ City Gate | D169: =D155-D161-D167-D154 -> 6359968.678 | E169: =E155-E161-E167-E154 -> 9265597.571 | F169: =F155-F161-F167-F154 -> 10908684.28 | G169: 8399884.902 | H169: 4847888.486 | I169: 4624810.843 | J169: 2756791.934 | K169: 845725.7737 | L169: 433043.6615 | M169: 262171.6153 | N169: 260025.3984 | O169: 2682637.071 | P169: =SUM(D169:O169) -> 51647230.22 | Q169: 165
A170: Gas Reimbursement | D170: =+D171-D169 -> 121197.3219 | E170: =+E171-E169 -> 176568.4295 | F170: 207879.7171 | G170: 160071.0978 | H170: 92383.51403 | I170: 88132.15711 | J170: 52534.06577 | K170: 16116.22628 | L170: 8252.338506 | M170: 4996.384674 | N170: 4955.601601 | O170: 51120.92864 | P170: =SUM(D170:O170) -> 984207.7828 | Q170: 166
A171: Gas Purchased - Dth ( /.98) | D171: =ROUND(D169/(1-'Other Inputs'!$E$322),0) -> 6481166 | E171: =ROUND(E169/(1-'Other Inputs'!$E$322),0) -> 9442166 | F171: =ROUND(F169/(1-'Other Inputs'!$E$322),0) -> 11116564 | G171: =ROUND(G169/(1-'Other Inputs'!$E$322),0) -> 8559956 | H171: =ROUND(H169/(1-'Other Inputs'!$E$322),0) -> 4940272 | I171: =ROUND(I169/(1-'Other Inputs'!$E$322),0) -> 4712943 | J171: =ROUND(J169/(1-'Other Inputs'!$E$322),0) -> 2809326 | K171: =ROUND(K169/(1-'Other Inputs'!$E$322),0) -> 861842 | L171: =ROUND(L169/(1-'Other Inputs'!$E$322),0) -> 441296 | M171: =ROUND(M169/(1-'Other Inputs'!$E$322),0) -> 267168 | N171: =ROUND(N169/(1-'Other Inputs'!$E$322),0) -> 264981 | O171: =ROUND(O169/(1-'Other Inputs'!$E$322),0) -> 2733758 | P171: =SUM(D171:O171) -> 52631438 | Q171: 167
Q172: 168
A173: Transported Volumes - total | D173: =+D161+D169+D137+D165 -> 12540575.38 | E173: =+E161+E169+E137+E165 -> 19512986.82 | F173: =+F161+F169+F137+F165 -> 20420448.1 | G173: 17069490 | H173: =+H161+H169+H137+H165 -> 13404793 | I173: 10189093.94 | J173: 8380772.421 | K173: 6233885.765 | L173: 5729405.585 | M173: 5524619.188 | N173: 5256184.369 | O173: =+O161+O169+O137+O165 -> 8087203.306 | P173: =+P161+P169+P137+P165 -> 132349457.9 | Q173: 169
A174: Kern transported volumes | D174: =HLOOKUP(MONTH(D5),kernrivertrans,6,FALSE) -> 1500831.101 | E174: =HLOOKUP(MONTH(E5),kernrivertrans,6,FALSE) -> 2079845.159 | F174: 2149173.331 | G174: 2149173.331 | H174: =HLOOKUP(MONTH(H5),kernrivertrans,6,FALSE) -> 1355589.382 | I174: 444131.9333 | J174: =HLOOKUP(MONTH(J5),kernrivertrans,6,FALSE) -> 429805.0968 | K174: 444131.9333 | L174: 429805.0968 | M174: 444131.9333 | N174: 444131.9333 | O174: 429805.0968 | Q174: 170
A175: Storage Fuel % | C175: =(P154-P166)/(P163+P164+P152+P153) -> 0.02679241758 | Q175: 171
Q176: 172
A177: Company Production as % of Total Supply / Demand | D177: =D159/(D171+D159) -> 0.4702302521 | E177: 0.391071816 | F177: =F159/(F171+F159) -> 0.3503670575 | G177: 0.3896545326 | H177: =H159/(H171+H159) -> 0.5542230582 | I177: 0.555921997 | J177: 0.6792499173 | K177: 0.868655043 | L177: 0.9269862822 | M177: 0.9542050881 | N177: 0.9522568109 | O177: =O159/(O171+O159) -> 0.6765142993 | P177: =P159/(P171+P159) -> 0.5677856562 | Q177: 173
Q178: 174
A179: Peak Hour Service | D179: =IF(OR(D6=11,D6=12,D6=1,D6=2),'Other Inputs'!D20*16*'Other Inputs'!$F$21,0)+IF(OR(D6=11,D6=12,D6=1,D6=2),'Other Inputs'!$D$23*16*'Other Inputs'!$F$24,0) -> 365185.2174 | E179: =IF(OR(E6=11,E6=12,E6=1,E6=2),'Other Inputs'!E20*31*'Other Inputs'!$F$21,0)+IF(OR(E6=11,E6=12,E6=1,E6=2),'Other Inputs'!$D$23*31*'Other Inputs'!$F$24,0) -> 413081.6987 | F179: =IF(OR(F6=11,F6=12,F6=1,F6=2),'Other Inputs'!F20*31*'Other Inputs'!$F$21,0)+IF(OR(F6=11,F6=12,F6=1,F6=2),'Other Inputs'!$D$23*31*'Other Inputs'!$F$24,0) -> 413183.635 | G179: =IF(OR(G6=11,G6=12,G6=1,G6=2),'Other Inputs'!G20*14*'Other Inputs'!$F$21,0)+IF(OR(G6=11,G6=12,G6=1,G6=2),'Other Inputs'!$D$23*14*'Other Inputs'!$F$24,0) -> 186537.0652 | H179: =IF(OR(H6=11,H6=12,H6=1,H6=2),'Other Inputs'!H20*16*'Other Inputs'!$F$21,0)+IF(OR(H6=11,H6=12,H6=1,H6=2),'Other Inputs'!$D$23*16*'Other Inputs'!$F$24,0) -> 0 | I179: =IF(OR(I6=11,I6=12,I6=1,I6=2),'Other Inputs'!I20*16*'Other Inputs'!$F$21,0)+IF(OR(I6=11,I6=12,I6=1,I6=2),'Other Inputs'!$D$23*16*'Other Inputs'!$F$24,0) -> 0 | J179: =IF(OR(J6=11,J6=12,J6=1,J6=2),'Other Inputs'!J20*16*'Other Inputs'!$F$21,0)+IF(OR(J6=11,J6=12,J6=1,J6=2),'Other Inputs'!$D$23*16*'Other Inputs'!$F$24,0) -> 0 | K179: =IF(OR(K6=11,K6=12,K6=1,K6=2),'Other Inputs'!K20*16*'Other Inputs'!$F$21,0)+IF(OR(K6=11,K6=12,K6=1,K6=2),'Other Inputs'!$D$23*16*'Other Inputs'!$F$24,0) -> 0 | L179: =IF(OR(L6=11,L6=12,L6=1,L6=2),'Other Inputs'!L20*16*'Other Inputs'!$F$21,0)+IF(OR(L6=11,L6=12,L6=1,L6=2),'Other Inputs'!$D$23*16*'Other Inputs'!$F$24,0) -> 0 | M179: =IF(OR(M6=11,M6=12,M6=1,M6=2),'Other Inputs'!M20*16*'Other Inputs'!$F$21,0)+IF(OR(M6=11,M6=12,M6=1,M6=2),'Other Inputs'!$D$23*16*'Other Inputs'!$F$24,0) -> 0 | N179: =IF(OR(N6=11,N6=12,N6=1,N6=2),'Other Inputs'!N20*16*'Other Inputs'!$F$21,0)+IF(OR(N6=11,N6=12,N6=1,N6=2),'Other Inputs'!$D$23*16*'Other Inputs'!$F$24,0) -> 0 | O179: =IF(OR(O6=11,O6=12,O6=1,O6=2),'Other Inputs'!O20*16*'Other Inputs'!$F$21,0)+IF(OR(O6=11,O6=12,O6=1,O6=2),'Other Inputs'!$D$23*16*'Other Inputs'!$F$24,0) -> 0 | P179: =SUM(D179:O179) -> 1377987.616 | Q179: 175
Q180: 176
A181: PURCHASES BREAKDOWN | Q181: 177
A182: Spot Market Purchases | D182: ='Monthly Inputs'!G83 -> 4581165.634 | E182: ='Monthly Inputs'!H83 -> 4202166.374 | F182: ='Monthly Inputs'!I83 -> 4876563.843 | G182: ='Monthly Inputs'!J83 -> 4439956.009 | H182: ='Monthly Inputs'!K83 -> 4010272.236 | I182: ='Monthly Inputs'!L83 -> 3812942.858 | J182: ='Monthly Inputs'!M83 -> 2582189.948 | K182: ='Monthly Inputs'!N83 -> 493311.245 | L182: ='Monthly Inputs'!O83 -> 0 | M182: ='Monthly Inputs'!P83 -> 0 | N182: ='Monthly Inputs'!Q83 -> 0 | O182: ='Monthly Inputs'!R83 -> 1803758.249 | P182: =SUM(D182:O182) -> 30802326.39 | Q182: 178
A183: Spot Market Purchases Cost | D183: ='Monthly Inputs'!G84 -> 11498725.74 | E183: ='Monthly Inputs'!H84 -> 11934152.5 | F183: ='Monthly Inputs'!I84 -> 14190800.78 | G183: ='Monthly Inputs'!J84 -> 12032280.78 | H183: ='Monthly Inputs'!K84 -> 9023112.532 | I183: ='Monthly Inputs'!L84 -> 6977685.431 | J183: ='Monthly Inputs'!M84 -> 4518832.409 | K183: ='Monthly Inputs'!N84 -> 917558.9156 | L183: ='Monthly Inputs'!O84 -> 0 | M183: ='Monthly Inputs'!P84 -> 0 | N183: ='Monthly Inputs'!Q84 -> 0 | O183: ='Monthly Inputs'!R84 -> 3102464.188 | P183: =SUM(D183:O183) -> 74195613.28 | Q183: 179
Q184: 180
A185: Contract Purchases (Dth) | D185: ='Monthly Inputs'!G92 -> 900000 | E185: ='Monthly Inputs'!H92 -> 1240000 | F185: ='Monthly Inputs'!I92 -> 1240000 | G185: ='Monthly Inputs'!J92 -> 1120000 | H185: ='Monthly Inputs'!K92 -> 930000 | I185: ='Monthly Inputs'!L92 -> 900000 | J185: ='Monthly Inputs'!M92 -> 0 | K185: ='Monthly Inputs'!N92 -> 0 | L185: ='Monthly Inputs'!O92 -> 0 | M185: ='Monthly Inputs'!P92 -> 0 | N185: ='Monthly Inputs'!Q92 -> 0 | O185: ='Monthly Inputs'!R92 -> 930000 | P185: =SUM(D185:O185) -> 7260000 | Q185: 181
A186: Contract Purchases Cost Including Stabalization Costs | D186: ='Monthly Inputs'!G93+'Monthly Inputs'!G94 -> 2498716.8 | E186: ='Monthly Inputs'!H93+'Monthly Inputs'!H94 -> 3797842.695 | F186: ='Monthly Inputs'!I93+'Monthly Inputs'!I94 -> 3886230.122 | G186: ='Monthly Inputs'!J93+'Monthly Inputs'!J94 -> 3282046.749 | H186: ='Monthly Inputs'!K93+'Monthly Inputs'!K94 -> 2336532 | I186: ='Monthly Inputs'!L93+'Monthly Inputs'!L94 -> 1877414.4 | J186: ='Monthly Inputs'!M93+'Monthly Inputs'!M94 -> 0 | K186: ='Monthly Inputs'!N93+'Monthly Inputs'!N94 -> 0 | L186: ='Monthly Inputs'!O93+'Monthly Inputs'!O94 -> 0 | M186: ='Monthly Inputs'!P93+'Monthly Inputs'!P94 -> 0 | N186: ='Monthly Inputs'!Q93+'Monthly Inputs'!Q94 -> 0 | O186: ='Monthly Inputs'!R93+'Monthly Inputs'!R94 -> 1789357.2 | P186: =SUM(D186:O186) -> 19468139.97 | Q186: 182
Q187: 183
A188: Peak Purchases (Dth) | D188: ='Monthly Inputs'!G89 -> 1000000 | E188: ='Monthly Inputs'!H89 -> 4000000 | F188: ='Monthly Inputs'!I89 -> 5000000 | G188: ='Monthly Inputs'!J89 -> 3000000 | H188: ='Monthly Inputs'!K89 -> 0 | I188: ='Monthly Inputs'!L89 -> 0 | J188: ='Monthly Inputs'!M89 -> 0 | K188: ='Monthly Inputs'!N89 -> 0 | L188: ='Monthly Inputs'!O89 -> 0 | M188: ='Monthly Inputs'!P89 -> 0 | N188: ='Monthly Inputs'!Q89 -> 0 | O188: ='Monthly Inputs'!R89 -> 0 | P188: =SUM(D188:O188) -> 13000000 | Q188: 184
A189: Peak Purchases Cost | D189: ='Monthly Inputs'!G90 -> 2558032.914 | E189: ='Monthly Inputs'!H90 -> 11490646.51 | F189: ='Monthly Inputs'!I90 -> 14732218.89 | G189: ='Monthly Inputs'!J90 -> 8253110.038 | H189: ='Monthly Inputs'!K90 -> 0 | I189: ='Monthly Inputs'!L90 -> 0 | J189: ='Monthly Inputs'!M90 -> 0 | K189: ='Monthly Inputs'!N90 -> 0 | L189: ='Monthly Inputs'!O90 -> 0 | M189: ='Monthly Inputs'!P90 -> 0 | N189: ='Monthly Inputs'!Q90 -> 0 | O189: ='Monthly Inputs'!R90 -> 0 | P189: =SUM(D189:O189) -> 37034008.35 | Q189: 185
Q190: 186
A191: Future Purchases | D191: =+D171-D182-D185-D188 -> 0.366317749 | E191: =+E171-E182-E185-E188 -> -0.3736877441 | F191: =+F171-F182-F185-F188 -> 0.1572875977 | G191: =+G171-G182-G185-G188 -> -0.008514404297 | H191: =+H171-H182-H185-H188 -> -0.2364807129 | I191: =+I171-I182-I185-I188 -> 0.1416778564 | J191: =+J171-J182-J185-J188 -> 227136.0519 | K191: =+K171-K182-K185-K188 -> 368530.755 | L191: 441296 | M191: =+M171-M182-M185-M188 -> 267168 | N191: 264981 | O191: -0.2485504148 | P191: =SUM(D191:O191) -> 1569111.605 | Q191: 187
A192: Future Purchases Cost | D192: =ROUND(D191*D199,0) -> 1 | E192: =ROUND(E191*E199,0) -> -1 | F192: =ROUND(F191*F199,0) -> 0 | G192: =ROUND(G191*G199,0) -> 0 | H192: =ROUND(H191*H199,0) -> -1 | I192: 0 | J192: 402031 | K192: 692838 | L192: 856114 | M192: 518306 | N192: 482265 | O192: 0 | P192: =SUM(D192:O192) -> 2951553 | Q192: 188
Q193: 189
A194: Total Purchases Cost | D194: =+D183+D186+D189+D192 -> 16555476.45 | E194: =+E183+E186+E189+E192 -> 27222640.7 | F194: =+F183+F186+F189+F192 -> 32809249.8 | G194: =+G183+G186+G189+G192 -> 23567437.57 | H194: =+H183+H186+H189+H192 -> 11359643.53 | I194: 8855099.831 | J194: =+J183+J186+J189+J192 -> 4920863.409 | K194: 1610396.916 | L194: 856114 | M194: 518306 | N194: 482265 | O194: =+O183+O186+O189+O192 -> 4891821.388 | P194: 133649314.6 | Q194: 190
Q195: 191
A196: Gas Cost | Q196: 192
A197: Gas Cost Purchases | D197: =IF(D171=0,0,ROUND(D194/D171,5)) -> 2.5544 | E197: =IF(E171=0,0,ROUND(E194/E171,5)) -> 2.88309 | F197: 2.95138 | G197: 2.75322 | H197: 2.2994 | I197: 1.87889 | J197: 1.75162 | K197: 1.86855 | L197: 1.94 | M197: 1.94 | N197: 1.82 | O197: 1.78941 | Q197: 193
A198: Gas Cost Injection Rate | D198: ='Ut Storage'!K27 -> 3.733777238 | E198: =+D198 -> 3.733777238 | F198: 3.733777238 | G198: 3.733777238 | H198: 3.733777238 | I198: 3.733777238 | J198: 3.733777238 | K198: 3.733777238 | L198: 3.733777238 | M198: 3.733777238 | N198: 3.733777238 | O198: 3.733777238 | Q198: 194
A199: =CONCATENATE("'Future Contract Price (spot + $",'Other Inputs'!E205,")") -> 'Future Contract Price (spot + $0.02) | D199: =+D231+'Other Inputs'!$E$205 -> 2.53 | E199: =+E231+'Other Inputs'!$E$205 -> 2.86 | F199: =+F231+'Other Inputs'!$E$205 -> 2.93 | G199: =+G231+'Other Inputs'!$E$205 -> 2.73 | H199: =+H231+'Other Inputs'!$E$205 -> 2.27 | I199: =+I231+'Other Inputs'!$E$205 -> 1.85 | J199: =+J231+'Other Inputs'!$E$205 -> 1.77 | K199: =+K231+'Other Inputs'!$E$205 -> 1.88 | L199: =+L231+'Other Inputs'!$E$205 -> 1.94 | M199: =+M231+'Other Inputs'!$E$205 -> 1.94 | N199: =+N231+'Other Inputs'!$E$205 -> 1.82 | O199: =+O231+'Other Inputs'!$E$205 -> 1.74 | Q199: 195
Q200: 196
A201: System Production | D201: =+D161 -> 5438202.977 | E201: 5732458.229 | F201: 5667671.405 | G201: 5165999.964 | H201: 5806262.689 | I201: 5577320.991 | J201: 5623980.487 | K201: 5388159.992 | L201: 5296361.924 | M201: 5262447.572 | N201: 4996158.97 | O201: 5404566.234 | P201: =SUM(D201:O201) -> 65359591.43 | Q201: 197
... 38 more rows

Sheet CET & DSM (hidden)
A1: Rate Caclulation for the CET and DSM Amortizations
P3: Solver Cells
A4: CET Amortization % Calculation | P4: % Change | Q4: Difference
B5: Balance | C5: Date | D5: GS Dth | H5: Amortization per Dth | P5: =J20/D20 -> -0.01009266391 | Q5: =J20-B11 -> 0 | S5: -> Difference should be at 0 (Use Goal Seek to Get Difference to Equal 0.
A6: DSM Balance | B6: ='Other Inputs'!$E$286 -> 42000000 | C6: ='Other Inputs'!$F$286 -> 2011-03-31 | D6: =B20 -> 95293167 | H6: =ROUND(B6/D6,5) -> 0.44075
S8: Typical Bill Rates
A9: CET Amortization Calculation
B10: Balance | C10: Date | D10: DNG Rev | H10: New DNG | L10: % Change | S10: Current | T10: Proposed
A11: CET Balance | B11: ='Other Inputs'!$E$285 -> -1886289.514 | C11: ='Other Inputs'!$F$285 -> 2011-07-31 | D11: =D20 -> 186897089.9 | H11: =D11+B11 -> 185010800.4 | L11: =P5 -> -0.01009266391 | S11: Effective | V11: SNG & | W11: CET, DSM
S12: ='Other Inputs'!$J$122 -> 2018-10-01 | T12: CET Only | U12: DSM Only | V12: Commodity | W12: Commodity
S13: BSF | T13: BSF | U13: BSF | V13: BSF | W13: BSF
B14: Revenue Calculation | H14: CET Amortization | L14: Total DNG | P14: REVRUN Calculation | S14: ='Other Inputs'!$G$126 -> 6.75 | T14: ='Other Inputs'!$G$126 -> 6.75 | U14: ='Other Inputs'!$G$126 -> 6.75 | V14: ='Other Inputs'!$G$126 -> 6.75 | W14: ='Ut 1.8'!$C$12 -> 6.75
A15: Utah GS | B15: Dth | C15: Base DNG | D15: DNG Revenue | H15: CET Rate | J15: Revenue | L15: DNG Rate | N15: Revenue | P15: CET Rate | Q15: CET Amort
A16: Block 1 Summer | B16: ='Other Inputs'!E290 -> 23076373 | C16: ='Other Inputs'!E275 -> 1.7267 | D16: =B16*C16 -> 39845973.26 | H16: =ROUND((J16/B16),5) -> -0.01743 | J16: =D16*$P$5 -> -402152.0163 | L16: =C16+H16 -> 1.70927 | N16: =L16*B16 -> 39443752.08 | P16: =ROUND(H16,5) -> -0.01743 | Q16: =B16*P16 -> -402221.1814 | S16: ='Other Inputs'!$G$122 -> 6.0368 | T16: =N24 -> 7.11823 | U16: =N31 -> 7.07547 | V16: =N38 -> 5.884217992 | W16: =N45 -> 6.489407992
A17: Block 2 Summer | B17: ='Other Inputs'!E291 -> 4705902 | C17: ='Other Inputs'!E276 -> 0.7267 | D17: =B17*C17 -> 3419778.983 | H17: =ROUND((J17/B17),5) -> -0.00733 | J17: =D17*$P$5 -> -34514.67993 | L17: =C17+H17 -> 0.71937 | N17: =L17*B17 -> 3385284.722 | P17: =ROUND(H17,5) -> -0.00733 | Q17: =B17*P17 -> -34494.26166
A18: Block 1 Winter | B18: ='Other Inputs'!E288 -> 52526064 | C18: ='Other Inputs'!E277 -> 2.34949 | D18: =B18*C18 -> 123409462.1 | H18: =ROUND((J18/B18),5) -> -0.02371 | J18: =D18*$P$5 -> -1245530.224 | L18: =C18+H18 -> 2.32578 | N18: =L18*B18 -> 122164069.1 | P18: =ROUND(H18,5) -> -0.02371 | Q18: =B18*P18 -> -1245392.977 | S18: ='Other Inputs'!$G$124 -> 7.35517 | T18: =N26 -> 8.38376 | U18: =N33 -> 8.33606 | V18: =N40 -> 7.182867992 | W18: =N47 -> 8.429117992
A19: Block 2 Winter | B19: ='Other Inputs'!E289 -> 14984828 | C19: ='Other Inputs'!E278 -> 1.34949 | D19: =B19*C19 -> 20221875.54 | H19: =ROUND((J19/B19),5) -> -0.01362 | J19: =D19*$P$5 -> -204092.5934 | L19: =C19+H19 -> 1.33587 | N19: =L19*B19 -> 20017782.18 | P19: =ROUND(H19,5) -> -0.01362 | Q19: =B19*P19 -> -204093.3574
A20: GS-1 Block Rev | B20: =SUM(B16:B19) -> 95293167 | D20: =SUM(D16:D19) -> 186897089.9 | J20: =B11 -> -1886289.514 | N20: =SUM(N16:N19) -> 185010888.1 | Q20: =SUM(Q16:Q19) -> -1886201.778
A22: Total Rate Calculation With CET Amortization Only | N22: ='Control Panel'!E8 -> 2018-11-01 | P22: ='Other Inputs'!$J$122 -> 2018-10-01
A23: Utah GS | B23: Base DNG | C23: CET | D23: DSM | E23: Energy Assist | F23: Infrastructure | H23: Total DNG | I23: Base SNG | J23: SNG Amort | L23: Base Gas Cost | M23: 191 Amort | N23: Total Rate | P23: Total Rate
A24: Block 1 Summer | B24: =$C$16 -> 1.7267 | C24: =$H$16 -> -0.01743 | D24: 0.44104 | E24: 0.01519 | F24: 0.02908 | H24: =SUM(B24:F24) -> 2.19458 | I24: 0.55715 | J24: 0.01244 | L24: 4.21339 | M24: 0.14067 | N24: =SUM(H24:M24) -> 7.11823 | P24: ='Other Inputs'!$G$122 -> 6.0368 | Q24: =N24-P24 -> 1.08143
A25: Block 2 Summer | B25: =$C$17 -> 0.7267 | C25: =$H$17 -> -0.00733 | D25: =$D$24 -> 0.44104 | E25: =$E$24 -> 0.01519 | F25: 0.0108 | H25: =SUM(B25:F25) -> 1.1864 | I25: =I24 -> 0.55715 | J25: =J24 -> 0.01244 | L25: =L24 -> 4.21339 | M25: =$M$24 -> 0.14067 | N25: =SUM(H25:M25) -> 6.11005 | P25: ='Other Inputs'!$G$123 -> 4.91875 | Q25: =N25-P25 -> 1.1913
A26: Block 1 Winter | B26: =$C$18 -> 2.34949 | C26: =$H$18 -> -0.02371 | D26: =$D$24 -> 0.44104 | E26: =$E$24 -> 0.01519 | F26: 0.03453 | H26: =SUM(B26:F26) -> 2.81654 | I26: 1.18665 | J26: 0.02651 | L26: =L24 -> 4.21339 | M26: =$M$24 -> 0.14067 | N26: =SUM(H26:M26) -> 8.38376 | P26: ='Other Inputs'!$G$124 -> 7.35517 | Q26: =N26-P26 -> 1.02859
A27: Block 2 Winter | B27: =$C$19 -> 1.34949 | C27: =$H$19 -> -0.01362 | D27: =$D$24 -> 0.44104 | E27: =$E$24 -> 0.01519 | F27: 0.01434 | H27: =SUM(B27:F27) -> 1.80644 | I27: =I26 -> 1.18665 | J27: =J26 -> 0.02651 | L27: =L24 -> 4.21339 | M27: =$M$24 -> 0.14067 | N27: =SUM(H27:M27) -> 7.37366 | P27: ='Other Inputs'!$G$125 -> 6.23712 | Q27: =N27-P27 -> 1.13654
A29: Total Rate Calculation With DSM Amortization Only | N29: =N22 -> 2018-11-01 | P29: ='Other Inputs'!$J$122 -> 2018-10-01
A30: Utah GS | B30: Base DNG | C30: CET | D30: DSM | E30: Energy Assist | F30: Infrastructure | H30: Total DNG | I30: Base SNG | J30: SNG Amort | L30: Commodity | M30: 191 Amort | N30: Total Rate | P30: Total Rate
A31: Block 1 Summer | B31: =$C$16 -> 1.7267 | C31: -0.0599 | D31: =$H$6 -> 0.44075 | E31: =$E$24 -> 0.01519 | F31: =F24 -> 0.02908 | H31: =SUM(B31:F31) -> 2.15182 | I31: =$I$24 -> 0.55715 | J31: =J24 -> 0.01244 | L31: =$L$24 -> 4.21339 | M31: =$M$24 -> 0.14067 | N31: =SUM(H31:M31) -> 7.07547 | P31: ='Other Inputs'!$G$122 -> 6.0368 | Q31: =N31-P31 -> 1.03867
A32: Block 2 Summer | B32: =$C$17 -> 0.7267 | C32: -0.02224 | D32: =$H$6 -> 0.44075 | E32: =$E$24 -> 0.01519 | F32: =F25 -> 0.0108 | H32: =SUM(B32:F32) -> 1.1712 | I32: =$I$24 -> 0.55715 | J32: =J25 -> 0.01244 | L32: =$L$24 -> 4.21339 | M32: =$M$24 -> 0.14067 | N32: =SUM(H32:M32) -> 6.09485 | P32: ='Other Inputs'!$G$123 -> 4.91875 | Q32: =N32-P32 -> 1.1761
A33: Block 1 Winter | B33: =$C$18 -> 2.34949 | C33: -0.07112 | D33: =$H$6 -> 0.44075 | E33: =$E$24 -> 0.01519 | F33: =F26 -> 0.03453 | H33: =SUM(B33:F33) -> 2.76884 | I33: =$I$26 -> 1.18665 | J33: =J26 -> 0.02651 | L33: =$L$24 -> 4.21339 | M33: =$M$24 -> 0.14067 | N33: =SUM(H33:M33) -> 8.33606 | P33: ='Other Inputs'!$G$124 -> 7.35517 | Q33: =N33-P33 -> 0.98089
A34: Block 2 Winter | B34: =$C$19 -> 1.34949 | C34: -0.02953 | D34: =$H$6 -> 0.44075 | E34: =$E$24 -> 0.01519 | F34: =F27 -> 0.01434 | H34: =SUM(B34:F34) -> 1.79024 | I34: =$I$26 -> 1.18665 | J34: =J27 -> 0.02651 | L34: =$L$24 -> 4.21339 | M34: =$M$24 -> 0.14067 | N34: =SUM(H34:M34) -> 7.35746 | P34: ='Other Inputs'!$G$125 -> 6.23712 | Q34: =N34-P34 -> 1.12034
A36: Total Rate Calculation With SNG and Commodity Changes Only | N36: =N22 -> 2018-11-01 | P36: ='Other Inputs'!$J$122 -> 2018-10-01
A37: Utah GS | B37: Base DNG | C37: CET | D37: DSM | E37: Energy Assist | F37: Infrastructure | H37: Total DNG | I37: Base SNG | J37: SNG | L37: Commodity | M37: 191 Amort | N37: Total Rate | P37: Total Rate
A38: Block 1 Summer | B38: =$C$16 -> 1.7267 | C38: =C31 -> -0.0599 | D38: =D24 -> 0.44104 | E38: =$E$24 -> 0.01519 | F38: =F24 -> 0.02908 | H38: =SUM(B38:F38) -> 2.15211 | I38: ='Ut 1.6 p3'!G17 -> 0.56301 | J38: ='Ut 1.6 p3'!$H$17 -> 0.04028 | L38: ='Ut 1.6 p1'!$F$31 -> 3.41715 | M38: ='Ut 1.6 p1'!$F$32 -> -0.2883320079 | N38: =SUM(H38:M38) -> 5.884217992 | P38: ='Other Inputs'!$G$122 -> 6.0368 | Q38: =N38-P38 -> -0.1525820079
A39: Block 2 Summer | B39: =$C$17 -> 0.7267 | C39: =C32 -> -0.02224 | D39: =D25 -> 0.44104 | E39: =$E$24 -> 0.01519 | F39: =F25 -> 0.0108 | H39: =SUM(B39:F39) -> 1.17149 | I39: ='Ut 1.6 p3'!G17 -> 0.56301 | J39: ='Ut 1.6 p3'!$H$17 -> 0.04028 | L39: ='Ut 1.6 p1'!$F$31 -> 3.41715 | M39: ='Ut 1.6 p1'!$F$32 -> -0.2883320079 | N39: =SUM(H39:M39) -> 4.903597992 | P39: ='Other Inputs'!$G$123 -> 4.91875 | Q39: =N39-P39 -> -0.01515200787
A40: Block 1 Winter | B40: =$C$18 -> 2.34949 | C40: =C33 -> -0.07112 | D40: =D26 -> 0.44104 | E40: =$E$24 -> 0.01519 | F40: =F26 -> 0.03453 | H40: =SUM(B40:F40) -> 2.76913 | I40: ='Ut 1.6 p3'!G16 -> 1.19913 | J40: ='Ut 1.6 p3'!$H$16 -> 0.08579 | L40: ='Ut 1.6 p1'!$F$31 -> 3.41715 | M40: ='Ut 1.6 p1'!$F$32 -> -0.2883320079 | N40: =SUM(H40:M40) -> 7.182867992 | P40: ='Other Inputs'!$G$124 -> 7.35517 | Q40: =N40-P40 -> -0.1723020079
A41: Block 2 Winter | B41: =$C$19 -> 1.34949 | C41: =C34 -> -0.02953 | D41: =D27 -> 0.44104 | E41: =$E$24 -> 0.01519 | F41: =F27 -> 0.01434 | H41: =SUM(B41:F41) -> 1.79053 | I41: ='Ut 1.6 p3'!G16 -> 1.19913 | J41: ='Ut 1.6 p3'!$H$16 -> 0.08579 | L41: ='Ut 1.6 p1'!$F$31 -> 3.41715 | M41: ='Ut 1.6 p1'!$F$32 -> -0.2883320079 | N41: =SUM(H41:M41) -> 6.204267992 | P41: ='Other Inputs'!$G$125 -> 6.23712 | Q41: =N41-P41 -> -0.03285200787
A43: Total Rate Calculation | N43: =N29 -> 2018-11-01 | P43: ='Other Inputs'!$J$122 -> 2018-10-01
A44: Utah GS | B44: Base DNG | C44: CET | D44: DSM | E44: Energy Assist | F44: Infrastructure | H44: Total DNG | I44: Base SNG | J44: SNG | L44: Commodity | N44: Total Rate | P44: Total Rate
A45: Block 1 Summer | B45: =$C$16 -> 1.7267 | C45: =$H$16 -> -0.01743 | D45: =$H$6 -> 0.44075 | E45: =$E$24 -> 0.01519 | F45: =F38 -> 0.02908 | H45: =SUM(B45:F45) -> 2.19429 | I45: =I38 -> 0.56301 | J45: ='Ut 1.6 p3'!$I$17 -> 0.60329 | L45: ='Ut 1.6 p1'!$F$33 -> 3.128817992 | N45: =SUM(H45:L45) -> 6.489407992 | P45: ='Other Inputs'!$G$122 -> 6.0368 | Q45: =N45-P45 -> 0.4526079921
A46: Block 2 Summer | B46: =$C$17 -> 0.7267 | C46: =$H$17 -> -0.00733 | D46: =$H$6 -> 0.44075 | E46: =$E$24 -> 0.01519 | F46: =F39 -> 0.0108 | H46: =SUM(B46:F46) -> 1.18611 | I46: =I39 -> 0.56301 | J46: ='Ut 1.6 p3'!$I$17 -> 0.60329 | L46: =$L$45 -> 3.128817992 | N46: =SUM(H46:L46) -> 5.481227992 | P46: ='Other Inputs'!$G$123 -> 4.91875 | Q46: =N46-P46 -> 0.5624779921
A47: Block 1 Winter | B47: =$C$18 -> 2.34949 | C47: =$H$18 -> -0.02371 | D47: =$H$6 -> 0.44075 | E47: =$E$24 -> 0.01519 | F47: =F40 -> 0.03453 | H47: =SUM(B47:F47) -> 2.81625 | I47: =I40 -> 1.19913 | J47: ='Ut 1.6 p3'!$I$16 -> 1.28492 | L47: =$L$45 -> 3.128817992 | N47: =SUM(H47:L47) -> 8.429117992 | P47: ='Other Inputs'!$G$124 -> 7.35517 | Q47: =N47-P47 -> 1.073947992
A48: Block 2 Winter | B48: =$C$19 -> 1.34949 | C48: =$H$19 -> -0.01362 | D48: =$H$6 -> 0.44075 | E48: =$E$24 -> 0.01519 | F48: =F41 -> 0.01434 | H48: =SUM(B48:F48) -> 1.80615 | I48: =I41 -> 1.19913 | J48: ='Ut 1.6 p3'!$I$16 -> 1.28492 | L48: =$L$45 -> 3.128817992 | N48: =SUM(H48:L48) -> 7.419017992 | P48: ='Other Inputs'!$G$125 -> 6.23712 | Q48: =N48-P48 -> 1.181897992
A50: Typical Customer Difference - CET Amortization Only
B51: Typical
A52: GS | B52: Dth | C52: =S12 -> 2018-10-01 | D52: =N43 -> 2018-11-01 | H52: Change | J52: % Change
A53: January | B53: 14.9 | C53: =ROUND($S$14+(B53*$S$18),2) -> 116.34 | D53: =ROUND($T$14+(B53*$T$18),2) -> 131.67 | H53: =D53-C53 -> 15.33
A54: February | B54: 12.5 | C54: =ROUND($S$14+(B54*$S$18),2) -> 98.69 | D54: =ROUND($T$14+(B54*$T$18),2) -> 111.55 | H54: 12.86
A55: March | B55: 10.1 | C55: =ROUND($S$14+(B55*$S$18),2) -> 81.04 | D55: =ROUND($T$14+(B55*$T$18),2) -> 91.43 | H55: 10.39
A56: April | B56: 8.3 | C56: =ROUND($S$14+(B56*$S$16),2) -> 56.86 | D56: =ROUND($T$14+(B56*$T$16),2) -> 65.83 | H56: 8.97
A57: May | B57: 4.4 | C57: 33.31 | D57: =ROUND($T$14+(B57*$T$16),2) -> 38.07 | H57: 4.76
A58: June | B58: 3.1 | C58: 25.46 | D58: 28.82 | H58: 3.36
A59: July | B59: 2 | C59: 18.82 | D59: 20.99 | H59: 2.17
A60: August | B60: 1.8 | C60: 17.62 | D60: 19.56 | H60: 1.94
A61: September | B61: 2 | C61: 18.82 | D61: 20.99 | H61: 2.17
A62: October | B62: 3.1 | C62: 25.46 | D62: 28.82 | H62: 3.36
A63: November | B63: 6.3 | C63: =ROUND($S$14+(B63*$S$18),2) -> 53.09 | D63: =ROUND($T$14+(B63*$T$18),2) -> 59.57 | H63: 6.48
A64: December | B64: 11.5 | C64: =ROUND($S$14+(B64*$S$18),2) -> 91.33 | D64: =ROUND($T$14+(B64*$T$18),2) -> 103.16 | H64: 11.83
B65: =SUM(B53:B64) -> 80 | C65: =SUM(C53:C64) -> 636.84 | D65: =SUM(D53:D64) -> 720.46 | H65: =SUM(H53:H64) -> 83.62 | J65: =H65/C65 -> 0.1313045663
A68: Typical Customer Difference - DSM Amortization Only
B69: Typical
A70: GS | B70: Dth | C70: =C52 -> 2018-10-01 | D70: =D52 -> 2018-11-01 | H70: Change | J70: % Change
A71: January | B71: 14.9 | C71: =ROUND($S$14+(B71*$S$18),2) -> 116.34 | D71: =ROUND($U$14+(B71*$U$18),2) -> 130.96 | H71: =D71-C71 -> 14.62
A72: February | B72: 12.5 | C72: =ROUND($S$14+(B72*$S$18),2) -> 98.69 | D72: =ROUND($U$14+(B72*$U$18),2) -> 110.95 | H72: 12.26
A73: March | B73: 10.1 | C73: =ROUND($S$14+(B73*$S$18),2) -> 81.04 | D73: =ROUND($U$14+(B73*$U$18),2) -> 90.94 | H73: 9.9
A74: April | B74: 8.3 | C74: =ROUND($S$14+(B74*$S$16),2) -> 56.86 | D74: =ROUND($U$14+(B74*$U$16),2) -> 65.48 | H74: 8.62
A75: May | B75: 4.4 | C75: 33.31 | D75: 37.88 | H75: 4.57
A76: June | B76: 3.1 | C76: 25.46 | D76: 28.68 | H76: 3.22
A77: July | B77: 2 | C77: 18.82 | D77: 20.9 | H77: 2.08
A78: August | B78: 1.8 | C78: 17.62 | D78: 19.49 | H78: 1.87
A79: September | B79: 2 | C79: 18.82 | D79: 20.9 | H79: 2.08
A80: October | B80: 3.1 | C80: 25.46 | D80: 28.68 | H80: 3.22
A81: November | B81: 6.3 | C81: =ROUND($S$14+(B81*$S$18),2) -> 53.09 | D81: =ROUND($U$14+(B81*$U$18),2) -> 59.27 | H81: 6.18
A82: December | B82: 11.5 | C82: =ROUND($S$14+(B82*$S$18),2) -> 91.33 | D82: =ROUND($U$14+(B82*$U$18),2) -> 102.61 | H82: 11.28
B83: =SUM(B71:B82) -> 80 | C83: =SUM(C71:C82) -> 636.84 | D83: =SUM(D71:D82) -> 716.74 | H83: =SUM(H71:H82) -> 79.9 | J83: =H83/C83 -> 0.1254632247
A86: Typical Customer Difference - SNG and Commodity Changes Only
B87: Typical
A88: GS-1 | B88: Dth | C88: =C70 -> 2018-10-01 | D88: =D70 -> 2018-11-01 | H88: Change | J88: % Change
A89: January | B89: 14.9 | C89: =ROUND($S$14+(B89*$S$18),2) -> 116.34 | D89: =ROUND($V$14+(B89*$V$18),2) -> 113.77 | H89: =D89-C89 -> -2.57
A90: February | B90: 12.5 | C90: =ROUND($S$14+(B90*$S$18),2) -> 98.69 | D90: =ROUND($V$14+(B90*$V$18),2) -> 96.54 | H90: -2.15
A91: March | B91: 10.1 | C91: =ROUND($S$14+(B91*$S$18),2) -> 81.04 | D91: =ROUND($V$14+(B91*$V$18),2) -> 79.3 | H91: -1.74
A92: April | B92: 8.3 | C92: =ROUND($S$14+(B92*$S$16),2) -> 56.86 | D92: =ROUND($V$14+(B92*$V$16),2) -> 55.59 | H92: -1.27
A93: May | B93: 4.4 | C93: 33.31 | D93: 32.64 | H93: -0.67
A94: June | B94: 3.1 | C94: 25.46 | D94: 24.99 | H94: -0.47
A95: July | B95: 2 | C95: 18.82 | D95: 18.52 | H95: -0.3
A96: August | B96: 1.8 | C96: 17.62 | D96: 17.34 | H96: -0.28
A97: September | B97: 2 | C97: 18.82 | D97: 18.52 | H97: -0.3
A98: October | B98: 3.1 | C98: 25.46 | D98: 24.99 | H98: -0.47
A99: November | B99: 6.3 | C99: =ROUND($S$14+(B99*$S$18),2) -> 53.09 | D99: =ROUND($V$14+(B99*$V$18),2) -> 52 | H99: -1.09
A100: December | B100: 11.5 | C100: =ROUND($S$14+(B100*$S$18),2) -> 91.33 | D100: =ROUND($V$14+(B100*$V$18),2) -> 89.35 | H100: -1.98
B101: =SUM(B89:B100) -> 80 | C101: =SUM(C89:C100) -> 636.84 | D101: =SUM(D89:D100) -> 623.55 | H101: =SUM(H89:H100) -> -13.29 | J101: =H101/C101 -> -0.02086866403
A104: Typical Customer Difference - CET & DSM Amort, SNG and Commodity Changes
B105: Typical
A106: GS-1 | B106: Dth | C106: =C52 -> 2018-10-01 | D106: =D52 -> 2018-11-01 | H106: Change | J106: % Change
A107: January | B107: 14.9 | C107: =ROUND($S$14+(B107*$S$18),2) -> 116.34 | D107: =ROUND($W$14+(B107*$W$18),2) -> 132.34 | H107: =D107-C107 -> 16
A108: February | B108: 12.5 | C108: =ROUND($S$14+(B108*$S$18),2) -> 98.69 | D108: =ROUND($W$14+(B108*$W$18),2) -> 112.11 | H108: 13.42
A109: March | B109: 10.1 | C109: =ROUND($S$14+(B109*$S$18),2) -> 81.04 | D109: =ROUND($W$14+(B109*$W$18),2) -> 91.88 | H109: 10.84
A110: April | B110: 8.3 | C110: =ROUND($S$14+(B110*$S$16),2) -> 56.86 | D110: =ROUND($W$14+(B110*$W$16),2) -> 60.61 | H110: 3.75
A111: May | B111: 4.4 | C111: 33.31 | D111: 35.3 | H111: 1.99
A112: June | B112: 3.1 | C112: 25.46 | D112: 26.87 | H112: 1.41
A113: July | B113: 2 | C113: 18.82 | D113: 19.73 | H113: 0.91
A114: August | B114: 1.8 | C114: 17.62 | D114: 18.43 | H114: 0.81
A115: September | B115: 2 | C115: 18.82 | D115: 19.73 | H115: 0.91
A116: October | B116: 3.1 | C116: 25.46 | D116: 26.87 | H116: 1.41
A117: November | B117: 6.3 | C117: =ROUND($S$14+(B117*$S$18),2) -> 53.09 | D117: =ROUND($W$14+(B117*$W$18),2) -> 59.85 | H117: 6.76
A118: December | B118: 11.5 | C118: =ROUND($S$14+(B118*$S$18),2) -> 91.33 | D118: =ROUND($W$14+(B118*$W$18),2) -> 103.68 | H118: 12.35
B119: =SUM(B107:B118) -> 80 | C119: =SUM(C107:C118) -> 636.84 | D119: =SUM(D107:D118) -> 707.4 | H119: =SUM(H107:H118) -> 70.56 | J119: =H119/C119 -> 0.1107970605

Sheet UT Tariff Sheets PT (hidden)
B2: 2.02 GS Rate Schedule | J2: 2.03 FS Rate Schedule | AB2: 4.03 ES Rate Schedule | AI2: 2.05 NGV Rate Schedule
C3: Rates Per Dth Used Each Month | M3: Rates Per Dth Used Each Month | T3: 4.02 IS Rate Schedule | AB3: ES Volumetric Rates | AI3: NGV Volumetric Rate
C4: Summer Rates: Apr. 1 - Oct. 31 | E4: Winter Rates: Nov. 1 - Mar. 31 | M4: Dth = decatherm = 10 therms = 1,000,000 BTU | T4: IS Volumetric Rates
C5: First 45 Dth | D5: All Over 45 Dth | E5: First 45 Dth | F5: All Over 45 Dth | K5: Summer Rates: Apr. 1 - Oct. 31 | N5: Winter Rates: Nov. 1 - Mar. 31 | U5: Rates Per Dth Used Each Month | AE5: Rates Per Dth Used Each Month | AM5: Rates Per Dth Used Each Month
B6: Base DNG | C6: ='CET & DSM'!B38 -> 1.7267 | D6: ='CET & DSM'!B39 -> 0.7267 | E6: ='CET & DSM'!B40 -> 2.34949 | F6: ='CET & DSM'!B41 -> 1.34949 | K6: First | L6: Next | M6: All Over | N6: First | O6: Next | P6: All Over | U6: Dth = decatherm = 10 therms = 1,000,000 BTU | AE6: Dth = decatherm = 10 therms = 1,000,000 BTU | AM6: Dth = decatherm = 10 therms = 1,000,000 BTU
B7: CET Amortization | C7: ='CET & DSM'!C38 -> -0.0599 | D7: ='CET & DSM'!C39 -> -0.02224 | E7: ='CET & DSM'!C40 -> -0.07112 | F7: ='CET & DSM'!C41 -> -0.02953 | K7: 200 | L7: 1800 | M7: 2000 | N7: 200 | O7: 1800 | P7: 2000 | U7: First | V7: Next | W7: All Over | AB7: Distribution Non-Gas Rate | AC7: ='Ut 1.8'!#REF! ->  | AI7: Base DNG | AK7: ='Ut 1.8'!C52 -> 6.1591
B8: DSM Amortization | C8: =ROUND('CET & DSM'!D38,5) -> 0.44104 | D8: =ROUND('CET & DSM'!D39,5) -> 0.44104 | E8: =ROUND('CET & DSM'!D40,5) -> 0.44104 | F8: =ROUND('CET & DSM'!D41,5) -> 0.44104 | J8: Base DNG | K8: ='Ut 1.8'!C19 -> 0.89408 | L8: ='Ut 1.8'!D19 -> 0.45777 | M8: ='Ut 1.8'!E19 -> -0.00151 | N8: ='Ut 1.8'!F19 -> 1.33978 | O8: ='Ut 1.8'!G19 -> 0.90347 | P8: ='Ut 1.8'!H19 -> 0.44419 | U8: 2000 | V8: 18000 | W8: 20000 | AI8: Energy Assistance | AK8: ='Other Inputs'!$E$283 -> 0.2679
B9: Energy Assistance | C9: ='Other Inputs'!$E$280 -> 0.01419 | D9: ='Other Inputs'!$E$280 -> 0.01419 | E9: ='Other Inputs'!$E$280 -> 0.01419 | F9: ='Other Inputs'!$E$280 -> 0.01419 | J9: Energy Assistance | K9: ='Other Inputs'!$E$281 -> 0.01174 | L9: ='Other Inputs'!$E$281 -> 0.01174 | M9: ='Other Inputs'!$E$281 -> 0.01174 | N9: ='Other Inputs'!$E$281 -> 0.01174 | O9: ='Other Inputs'!$E$281 -> 0.01174 | P9: ='Other Inputs'!$E$281 -> 0.01174 | T9: Base DNG | U9: ='Ut 1.8'!C60 -> 0.74943 | V9: ='Ut 1.8'!D60 -> 0.05728 | W9: ='Ut 1.8'!E60 -> 0.09189 | AB9: Base SNG | AC9: =ROUND('Ut 1.6 p3'!#REF!,5) ->  | AI9: Distribution Non-Gas Rate | AK9: =SUM(AK7:AM8) -> 6.427
B10: Distribution Non-Gas Rate | C10: =SUM(C6:C9) -> 2.12203 | D10: =SUM(D6:D9) -> 1.15969 | E10: =SUM(E6:E9) -> 2.7336 | F10: =SUM(F6:F9) -> 1.77519 | J10: Distribution Non-Gas Rate | K10: =SUM(K8:K9) -> 0.90582 | L10: 0.46951 | M10: 0.01023 | N10: 1.35152 | O10: 0.91521 | P10: 0.45593 | T10: Energy Assistance | U10: ='Other Inputs'!$E$282 -> 0.00657 | V10: ='Other Inputs'!$E$282 -> 0.00657 | W10: ='Other Inputs'!$E$282 -> 0.00657 | AB10: SNG Amortization | AC10: =ROUND('Ut 1.6 p3'!#REF!,5) -> 
T11: Distribution Non-Gas Rate | U11: =SUM(U9:U10) -> 0.756 | V11: =SUM(V9:V10) -> 0.06385 | W11: =SUM(W9:W10) -> 0.09846 | AB11: Supplier Non-Gas Rate | AC11: =SUM(AC9:AF10) ->  | AI11: Base SNG | AK11: =ROUND('Ut 1.6 p3'!G$22,5) -> 0.86532
B12: Base SNG | C12: ='CET & DSM'!I38 -> 0.56301 | D12: ='CET & DSM'!I39 -> 0.56301 | E12: ='CET & DSM'!I40 -> 1.19913 | F12: ='CET & DSM'!I41 -> 1.19913 | J12: Base SNG | K12: =ROUND('Ut 1.6 p3'!G$20,5) -> 0.56301 | L12: =ROUND('Ut 1.6 p3'!G$20,5) -> 0.56301 | M12: =ROUND('Ut 1.6 p3'!G$20,5) -> 0.56301 | N12: =ROUND('Ut 1.6 p3'!G$19,5) -> 1.16791 | O12: =ROUND('Ut 1.6 p3'!G$19,5) -> 1.16791 | P12: =ROUND('Ut 1.6 p3'!G$19,5) -> 1.16791 | T12: Supplier Non-Gas Rate | U12: =ROUND('Ut 1.6 p3'!$G$24/(1-'Other Inputs'!$E$330),5) -> 0.17907 | V12: =ROUND('Ut 1.6 p3'!$G$24/(1-'Other Inputs'!$E$330),5) -> 0.17907 | W12: =ROUND('Ut 1.6 p3'!$G$24/(1-'Other Inputs'!$E$330),5) -> 0.17907 | AI12: SNG Amortization | AK12: =ROUND('Ut 1.6 p3'!H$22,5) -> 0.0619
B13: SNG Amortization | C13: ='CET & DSM'!J38 -> 0.04028 | D13: ='CET & DSM'!J39 -> 0.04028 | E13: ='CET & DSM'!J40 -> 0.08579 | F13: ='CET & DSM'!J41 -> 0.08579 | J13: SNG Amortization | K13: =ROUND('Ut 1.6 p3'!H$20,5) -> 0.04028 | L13: =ROUND('Ut 1.6 p3'!H$20,5) -> 0.04028 | M13: =ROUND('Ut 1.6 p3'!H$20,5) -> 0.04028 | N13: =ROUND('Ut 1.6 p3'!H$19,5) -> 0.08355 | O13: =ROUND('Ut 1.6 p3'!H$19,5) -> 0.08355 | P13: =ROUND('Ut 1.6 p3'!H$19,5) -> 0.08355 | AB13: Commodity Rate | AC13: Highest Gas Cost | AI13: Supplier Non-Gas Rate | AK13: =SUM(AK11:AM12) -> 0.92722
B14: Supplier Non-Gas Rate | C14: =SUM(C12:C13) -> 0.60329 | D14: =SUM(D12:D13) -> 0.60329 | E14: =SUM(E12:E13) -> 1.28492 | F14: =SUM(F12:F13) -> 1.28492 | J14: Supplier Non-Gas Rate | K14: =SUM(K12:K13) -> 0.60329 | L14: 0.60329 | M14: 0.60329 | N14: 1.25146 | O14: 1.25146 | P14: 1.25146 | AB14: Total Rate | AC14: $
AI15: Base Gas Cost | AK15: =ROUND('Ut 1.6 p1'!$F$31,5) -> 3.41715
B16: Base Gas Cost | C16: ='Ut 1.6 p1'!$F$31 -> 3.41715 | D16: ='Ut 1.6 p1'!$F$31 -> 3.41715 | E16: ='Ut 1.6 p1'!$F$31 -> 3.41715 | F16: ='Ut 1.6 p1'!$F$31 -> 3.41715 | J16: Base Gas Cost | K16: =ROUND('Ut 1.6 p1'!$F$31,5) -> 3.41715 | L16: =ROUND('Ut 1.6 p1'!$F$31,5) -> 3.41715 | M16: =ROUND('Ut 1.6 p1'!$F$31,5) -> 3.41715 | N16: =ROUND('Ut 1.6 p1'!$F$31,5) -> 3.41715 | O16: =ROUND('Ut 1.6 p1'!$F$31,5) -> 3.41715 | P16: =ROUND('Ut 1.6 p1'!$F$31,5) -> 3.41715 | AB16: Penalty for failure to interrupt or limit usage when requested by the Company. See See § 3.02 | AI16: Commodity Amortization | AK16: =ROUND('Ut 1.6 p1'!$F$32,5) -> -0.28833
B17: 191 Amortization | C17: ='Ut 1.6 p1'!$F$32 -> -0.2883320079 | D17: ='Ut 1.6 p1'!$F$32 -> -0.2883320079 | E17: ='Ut 1.6 p1'!$F$32 -> -0.2883320079 | F17: ='Ut 1.6 p1'!$F$32 -> -0.2883320079 | J17: 191 Amortization | K17: =ROUND('Ut 1.6 p1'!$F$32,5) -> -0.28833 | L17: =ROUND('Ut 1.6 p1'!$F$32,5) -> -0.28833 | M17: =ROUND('Ut 1.6 p1'!$F$32,5) -> -0.28833 | N17: =ROUND('Ut 1.6 p1'!$F$32,5) -> -0.28833 | O17: =ROUND('Ut 1.6 p1'!$F$32,5) -> -0.28833 | P17: =ROUND('Ut 1.6 p1'!$F$32,5) -> -0.28833 | AI17: Commodity Rate | AK17: =SUM(AK15:AM16) -> 3.12882
B18: Commodity Rate | C18: =SUM(C16:C17) -> 3.128817992 | D18: =SUM(D16:D17) -> 3.128817992 | E18: =SUM(E16:E17) -> 3.128817992 | F18: =SUM(F16:F17) -> 3.128817992 | J18: Commodity Rate | K18: =SUM(K16:K17) -> 3.12882 | L18: 3.12882 | M18: 3.12882 | N18: 3.12882 | O18: 3.12882 | P18: 3.12882 | T18: Total Rate | U18: $ | V18: $ | W18: $
AI19: Total Rate | AK19: =SUM(AK9,AK13,AK17) -> 10.48304
B20: Total Rate | C20: =SUM(C18,C14,C10) -> 5.854137992 | D20: =SUM(D18,D14,D10) -> 4.891797992 | E20: =SUM(E18,E14,E10) -> 7.147337992 | F20: =SUM(F18,F14,F10) -> 6.188927992 | J20: Total Rate | K20: =SUM(K18,K14,K10) -> 4.63793 | L20: 4.20162 | M20: 3.74234 | N20: 5.7318 | O20: 5.29549 | P20: 4.83621 | T20: Minimum Monthly Distribution Non-Gas Charge
AI21: Penalty for failure to interrupt or limit usage when requested by the Company. See See § 3.02
E22: BSF Category 1 | F22: ='Ut 1.8'!C12 -> 6.75 | J22: Minimum Monthly Distribution Non-Gas Charge | O22: Summer | P22: =ROUND(K8*175,0) -> 156
E23: BSF Category 2 | F23: ='Ut 1.8'!C13 -> 18.25 | O23: Winter | P23: =ROUND(N8*175,0) -> 234
E24: BSF Category 3 | F24: ='Ut 1.8'!C14 -> 63.5 | V24: BSF Category 1 | W24: 5
E25: BSF Category 4 | F25: ='Ut 1.8'!C15 -> 420.25 | V25: BSF Category 2 | W25: 29
N26: BSF Category 1 | P26: 5 | V26: BSF Category 3 | W26: 67
N27: BSF Category 2 | P27: 21 | V27: BSF Category 4 | W27: 274
N28: BSF Category 3 | P28: 55
N29: BSF Category 4 | P29: 244
AI30: =B44 -> Issued by R. W. Jibson, President | AL30: Advice No | AM30: Section Revision No.
AB39: =B44 -> Issued by R. W. Jibson, President | AE39: Advice No | AF39: Section Revision No.
AB42: New Pass Through Values
B44: Issued by R. W. Jibson, President | D44: Advice No | E44: Section Revision No. | F44: Effective Date
T47: =B44 -> Issued by R. W. Jibson, President | W47: Advice No
B48: Pass Through Changes | J48: =B44 -> Issued by R. W. Jibson, President | M48: Advice No | N48: Section Revision No. | P48: Effective Date
T50: New Pass Through Values
J51: New Pass Through Values

Sheet UT Tariff Sheets (hidden)
B2: 2.02 GS Rate Schedule | I2: 2.02 GS Rate Schedule
C3: Rates Per Dth Used Each Month | J3: Rates Per Dth Used Each Month
C4: Summer Rates: Apr. 1 - Oct. 31 | E4: Winter Rates: Nov. 1 - Mar. 31 | J4: Summer Rates: Apr. 1 - Oct. 31 | L4: Winter Rates: Nov. 1 - Mar. 31
C5: First 45 Dth | D5: All Over 45 Dth | E5: First 45 Dth | F5: All Over 45 Dth | J5: First 45 Dth | K5: All Over 45 Dth | L5: First 45 Dth | M5: All Over 45 Dth
B6: Base DNG | C6: ='CET & DSM'!B24 -> 1.7267 | D6: ='CET & DSM'!B25 -> 0.7267 | E6: ='CET & DSM'!B26 -> 2.34949 | F6: ='CET & DSM'!B27 -> 1.34949 | I6: Base DNG | J6: ='CET & DSM'!B31 -> 1.7267 | K6: ='CET & DSM'!B32 -> 0.7267 | L6: ='CET & DSM'!B33 -> 2.34949 | M6: ='CET & DSM'!B34 -> 1.34949
B7: CET Amortization | C7: ='CET & DSM'!H16 -> -0.01743 | D7: ='CET & DSM'!H17 -> -0.00733 | E7: ='CET & DSM'!H18 -> -0.02371 | F7: ='CET & DSM'!H19 -> -0.01362 | I7: CET Amortization | J7: ='CET & DSM'!C31 -> -0.0599 | K7: ='CET & DSM'!C32 -> -0.02224 | L7: ='CET & DSM'!C33 -> -0.07112 | M7: ='CET & DSM'!C34 -> -0.02953
B8: DSM Amortization | C8: ='CET & DSM'!D24 -> 0.44104 | D8: ='CET & DSM'!D25 -> 0.44104 | E8: ='CET & DSM'!D26 -> 0.44104 | F8: ='CET & DSM'!D27 -> 0.44104 | I8: DSM Amortization | J8: =ROUND('CET & DSM'!D31,5) -> 0.44075 | K8: =ROUND('CET & DSM'!D32,5) -> 0.44075 | L8: =ROUND('CET & DSM'!D33,5) -> 0.44075 | M8: =ROUND('CET & DSM'!D34,5) -> 0.44075
B9: Energy Assistance | C9: ='Other Inputs'!$E$280 -> 0.01419 | D9: ='Other Inputs'!$E$280 -> 0.01419 | E9: ='Other Inputs'!$E$280 -> 0.01419 | F9: ='Other Inputs'!$E$280 -> 0.01419 | I9: Energy Assistance | J9: ='Other Inputs'!$E$280 -> 0.01419 | K9: ='Other Inputs'!$E$280 -> 0.01419 | L9: ='Other Inputs'!$E$280 -> 0.01419 | M9: ='Other Inputs'!$E$280 -> 0.01419
B10: Distribution Non-Gas Rate | C10: =SUM(C6:C9) -> 2.1645 | D10: =SUM(D6:D9) -> 1.1746 | E10: =SUM(E6:E9) -> 2.78101 | F10: =SUM(F6:F9) -> 1.7911 | I10: Distribution Non-Gas Rate | J10: =SUM(J6:J9) -> 2.12174 | K10: =SUM(K6:K9) -> 1.1594 | L10: =SUM(L6:L9) -> 2.73331 | M10: =SUM(M6:M9) -> 1.7749
B12: Base SNG | C12: ='CET & DSM'!I24 -> 0.55715 | D12: ='CET & DSM'!I25 -> 0.55715 | E12: ='CET & DSM'!I26 -> 1.18665 | F12: ='CET & DSM'!I27 -> 1.18665 | I12: Base SNG | J12: ='CET & DSM'!I31 -> 0.55715 | K12: ='CET & DSM'!I32 -> 0.55715 | L12: ='CET & DSM'!I33 -> 1.18665 | M12: ='CET & DSM'!I34 -> 1.18665
B13: SNG Amortization | C13: ='CET & DSM'!J24 -> 0.01244 | D13: ='CET & DSM'!J25 -> 0.01244 | E13: ='CET & DSM'!J26 -> 0.02651 | F13: ='CET & DSM'!J27 -> 0.02651 | I13: SNG Amortization | J13: ='CET & DSM'!J31 -> 0.01244 | K13: ='CET & DSM'!J32 -> 0.01244 | L13: ='CET & DSM'!J33 -> 0.02651 | M13: ='CET & DSM'!J34 -> 0.02651
B14: Supplier Non-Gas Rate | C14: =SUM(C12:C13) -> 0.56959 | D14: =SUM(D12:D13) -> 0.56959 | E14: =SUM(E12:E13) -> 1.21316 | F14: =SUM(F12:F13) -> 1.21316 | I14: Supplier Non-Gas Rate | J14: =SUM(J12:J13) -> 0.56959 | K14: =SUM(K12:K13) -> 0.56959 | L14: =SUM(L12:L13) -> 1.21316 | M14: =SUM(M12:M13) -> 1.21316
B16: Base Gas Cost | C16: ='CET & DSM'!L24 -> 4.21339 | D16: ='CET & DSM'!L25 -> 4.21339 | E16: ='CET & DSM'!L26 -> 4.21339 | F16: ='CET & DSM'!L27 -> 4.21339 | I16: Base Gas Cost | J16: ='CET & DSM'!L31 -> 4.21339 | K16: ='CET & DSM'!L32 -> 4.21339 | L16: ='CET & DSM'!L33 -> 4.21339 | M16: ='CET & DSM'!L34 -> 4.21339
B17: 191 Amortization | C17: ='CET & DSM'!M24 -> 0.14067 | D17: ='CET & DSM'!M25 -> 0.14067 | E17: ='CET & DSM'!M26 -> 0.14067 | F17: ='CET & DSM'!M27 -> 0.14067 | I17: 191 Amortization | J17: ='CET & DSM'!M31 -> 0.14067 | K17: ='CET & DSM'!M32 -> 0.14067 | L17: ='CET & DSM'!M33 -> 0.14067 | M17: ='CET & DSM'!M34 -> 0.14067
B18: Commodity Rate | C18: =SUM(C16:C17) -> 4.35406 | D18: =SUM(D16:D17) -> 4.35406 | E18: =SUM(E16:E17) -> 4.35406 | F18: =SUM(F16:F17) -> 4.35406 | I18: Commodity Rate | J18: =SUM(J16:J17) -> 4.35406 | K18: =SUM(K16:K17) -> 4.35406 | L18: =SUM(L16:L17) -> 4.35406 | M18: =SUM(M16:M17) -> 4.35406
B20: Total Rate | C20: =SUM(C18,C14,C10) -> 7.08815 | D20: =SUM(D18,D14,D10) -> 6.09825 | E20: =SUM(E18,E14,E10) -> 8.34823 | F20: =SUM(F18,F14,F10) -> 7.35832 | I20: Total Rate | J20: =SUM(J18,J14,J10) -> 7.04539 | K20: =SUM(K18,K14,K10) -> 6.08305 | L20: =SUM(L18,L14,L10) -> 8.30053 | M20: =SUM(M18,M14,M10) -> 7.34212
E23: BSF Category 1 | F23: ='Ut 1.8'!C12 -> 6.75 | L23: BSF Category 1 | M23: ='Ut 1.8'!C12 -> 6.75
E24: BSF Category 2 | F24: ='Ut 1.8'!C13 -> 18.25 | L24: BSF Category 2 | M24: ='Ut 1.8'!C13 -> 18.25
E25: BSF Category 3 | F25: ='Ut 1.8'!C14 -> 63.5 | L25: BSF Category 3 | M25: ='Ut 1.8'!C14 -> 63.5
E26: BSF Category 4 | F26: ='Ut 1.8'!C15 -> 420.25 | L26: BSF Category 4 | M26: ='Ut 1.8'!C15 -> 420.25
B45: Issued by R. W. Jibson, President | D45: Advice No | E45: Section Revision No. | F45: Effective Date | I45: Issued by R. W. Jibson, President | K45: Advice No | L45: Section Revision No. | M45: Effective Date
B49: New CET Only | I49: NEW DSM ONLY

Sheet Utah Summary-by class
A1: UTAH SUMMARY
B2: NOT AN EXHIBIT !!!
A3: NEEDS TO BE UPDATED FOR GSR AND GSC RATES | Q3: Sub Total
C4: COMMODITY | J4: SNG | Q4: TOTAL
C5: Current | D5: Proposed | E5: Current | F5: Proposed | G5: Revenue | H5: % | J5: Current | K5: Proposed | L5: Current | M5: Proposed | N5: Revenue | O5: % | Q5: Revenue | R5: %
A6: RATE | B6: Dth Sales | C6: Rates | D6: Rates | E6: Revenue | F6: Revenue | G6: Difference | H6: Change | J6: Rates | K6: Rates | L6: Revenue | M6: Revenue | N6: Difference | O6: Change | Q6: Difference | R6: Change
A8: GS (W) | B8: =Calculations!P52 -> 77792638 | C8: ='Ut 1.6 p1'!$H$33 -> 3.46814 | D8: =ROUND('Ut 1.6 p1'!$F$33,5) -> 3.12882 | E8: =ROUND(B8*C8,0) -> 269795760 | F8: =ROUND(B8*D8,0) -> 243399162 | G8: =(F8-E8) -> -26396598 | J8: ='Ut 1.6 p3'!E16 -> 1.2953 | K8: ='Ut 1.6 p3'!I16 -> 1.28492 | L8: =ROUND(B8*J8,0) -> 100764804 | M8: =B8*K8 -> 99957316.42 | N8: =(M8-L8) -> -807487.581 | Q8: =G8+N8 -> -27204085.58
A9: GS (S) | B9: =Calculations!P53 -> 29881364 | C9: ='Ut 1.6 p1'!$H$33 -> 3.46814 | D9: =D8 -> 3.12882 | E9: =ROUND(B9*C9,0) -> 103632754 | F9: =ROUND(B9*D9,0) -> 93493409 | G9: =(F9-E9) -> -10139345 | J9: ='Ut 1.6 p3'!E17 -> 0.60816 | K9: ='Ut 1.6 p3'!I17 -> 0.60329 | L9: =ROUND(B9*J9,0) -> 18172650 | M9: =B9*K9 -> 18027128.09 | N9: =(M9-L9) -> -145521.9124 | Q9: =G9+N9 -> -10284866.91
A10: Total | B10: =SUM(B8:B9) -> 107674002 | E10: =SUM(E8:E9) -> 373428514 | F10: =SUM(F8:F9) -> 336892571 | G10: =SUM(G8:G9) -> -36535943 | H10: =IF(G10=0,0,G10/E10) -> -0.09783918911 | L10: =SUM(L8:L9) -> 118937454 | M10: =SUM(M8:M9) -> 117984444.5 | N10: =SUM(N8:N9) -> -953009.4935 | O10: =IF(N10=0,0,N10/L10) -> -0.008012694584 | Q10: =SUM(Q8:Q9) -> -37488952.49 | R10: =IF(Q10=0,0,Q10/(E10+L10)) -> -0.07614042182
A13: FS (W) | B13: =Calculations!P58 -> 1566401 | C13: ='Ut 1.6 p1'!$H$33 -> 3.46814 | D13: =D8 -> 3.12882 | E13: =ROUND(B13*C13,0) -> 5432498 | F13: =ROUND(B13*D13,0) -> 4900987 | G13: =(F13-E13) -> -531511 | J13: ='Ut 1.6 p3'!E19 -> 1.26157 | K13: ='Ut 1.6 p3'!I19 -> 1.25146 | L13: =ROUND(B13*J13,0) -> 1976125 | M13: =B13*K13 -> 1960288.195 | N13: =(M13-L13) -> -15836.80454 | Q13: =G13+N13 -> -547347.8045
A14: FS (S) | B14: =Calculations!P59 -> 1473010 | C14: ='Ut 1.6 p1'!$H$33 -> 3.46814 | D14: =D9 -> 3.12882 | E14: =ROUND(B14*C14,0) -> 5108605 | F14: =ROUND(B14*D14,0) -> 4608783 | G14: =(F14-E14) -> -499822 | J14: ='Ut 1.6 p3'!E20 -> 0.60816 | K14: ='Ut 1.6 p3'!I20 -> 0.60329 | L14: =ROUND(B14*J14,0) -> 895826 | M14: =B14*K14 -> 888652.2029 | N14: =(M14-L14) -> -7173.7971 | Q14: =G14+N14 -> -506995.7971
A15: Total | B15: =SUM(B13:B14) -> 3039411 | E15: =SUM(E13:E14) -> 10541103 | F15: =SUM(F13:F14) -> 9509770 | G15: =SUM(G13:G14) -> -1031333 | H15: =IF(G15=0,0,G15/E15) -> -0.09783919197 | L15: =SUM(L13:L14) -> 2871951 | M15: =SUM(M13:M14) -> 2848940.398 | N15: =SUM(N13:N14) -> -23010.60164 | O15: =IF(N15=0,0,N15/L15) -> -0.008012184623 | Q15: =SUM(Q13:Q14) -> -1054343.602 | R15: =IF(Q15=0,0,Q15/(E15+L15)) -> -0.07860578222
A18: NGV | B18: =Calculations!P12 -> 201359 | C18: ='Ut 1.6 p1'!$H$33 -> 3.46814 | D18: =D8 -> 3.12882 | E18: =ROUND(B18*C18,0) -> 698341 | F18: =ROUND(B18*D18,0) -> 630016 | G18: =(F18-E18) -> -68325 | H18: =IF(G18=0,0,G18/E18) -> -0.09783902134 | J18: ='Ut 1.6 p3'!E22 -> 0.93471 | K18: ='Ut 1.6 p3'!I22 -> 0.92722 | L18: =ROUND(B18*J18,0) -> 188212 | M18: =ROUND(B18*K18,0) -> 186704 | N18: =(M18-L18) -> -1508 | O18: =IF(N18=0,0,N18/L18) -> -0.008012241515 | Q18: =G18+N18 -> -69833 | R18: =IF(Q18=0,0,Q18/(E18+L18)) -> -0.0787691204
A21: IS | B21: =Calculations!P17 -> 193822 | C21: ='Ut 1.6 p1'!$H$33 -> 3.46814 | D21: =D8 -> 3.12882 | E21: =ROUND(B21*C21,0) -> 672202 | F21: =ROUND(B21*D21,0) -> 606434 | G21: =(F21-E21) -> -65768 | H21: =IF(G21=0,0,G21/E21) -> -0.09783963749 | J21: ='Ut 1.6 p3'!E24 -> 0.17864 | K21: ='Ut 1.6 p3'!I24 -> 0.17862 | L21: =ROUND(B21*J21,0) -> 34624 | M21: =ROUND(B21*K21,0) -> 34620 | N21: =(M21-L21) -> -4 | O21: =IF(N21=0,0,N21/L21) -> -0.0001155268022 | Q21: =G21+N21 -> -65772 | R21: =IF(Q21=0,0,Q21/(E21+L21)) -> -0.09305260418
B23: - | E23: - | F23: - | G23: - | L23: ------------------- | M23: ------------------- | N23: ------------------- | Q23: -------------------
B24: =B10+B15+B18+B21 -> 111108594 | E24: =E10+E15+E18+E21 -> 385340160 | F24: =F10+F15+F18+F21 -> 347638791 | G24: =G10+G15+G18+G21 -> -37701369 | H24: =IF(G24=0,0,G24/E24) -> -0.09783918967 | L24: =L10+L15+L18+L21 -> 122032241 | M24: =M10+M15+M18+M21 -> 121054708.9 | N24: =N10+N15+N18+N21 -> -977532.0951 | O24: =IF(N24=0,0,N24/L24) -> -0.008010441233 | Q24: =Q10+Q15+Q18+Q21 -> -38678901.1 | R24: =IF(Q24=0,0,Q24/(E24+L24)) -> -0.07623375063
G25: =IF(G24>0,"Commodity Increase","Commodity Decrease") -> Commodity Decrease | N25: =IF(N24>0,"Increase to SNG","Decrease to SNG") -> Decrease to SNG
B26: NOT AN EXHIBIT !!!
G27: =ROUND(G24,-3) -> -37701000 | N27: =ROUND(N24,-3) -> -978000 | Q27: =ROUND(Q24,-3) -> -38679000
G28: Rounded | N28: Rounded | Q28: Rounded

Sheet UT Summary - by cost (hidden)

Sheet WY Summary - by cost (hidden)

Sheet Model Checks
B2: Model Checks
B3: If the total of all checks is not zero, or very close to zero, find the checks below that are out of balance and follow the calculations
B4: back through the model and correct any errors.
D6: Total of all Checks
D7: =ABS(SUM(D10:D1993)) -> 1.17696248
B9: Forecasted Demand
C10: Utah | D10: =Calculations!P25-'RevRun Fcst'!T205 -> 0
C11: Wyoming | D11: =Calculations!P44-'RevRun Fcst'!T329 -> 0
C12: Total System | D12: =Calculations!P47-'RevRun Fcst'!T370 -> 0
B13: Forecasted Utah Demand Check by Month
C14: 1 | D14: =Calculations!D25-'RevRun Fcst'!H205 -> 0
C15: 2 | D15: =Calculations!E25-'RevRun Fcst'!I205 -> 0
C16: 3 | D16: =Calculations!F25-'RevRun Fcst'!J205 -> 0
C17: 4 | D17: =Calculations!G25-'RevRun Fcst'!K205 -> 0
C18: 5 | D18: =Calculations!H25-'RevRun Fcst'!L205 -> 0
C19: 6 | D19: =Calculations!I25-'RevRun Fcst'!M205 -> 0
C20: 7 | D20: =Calculations!J25-'RevRun Fcst'!N205 -> 0
C21: 8 | D21: =Calculations!K25-'RevRun Fcst'!O205 -> 0
C22: 9 | D22: =Calculations!L25-'RevRun Fcst'!P205 -> 0
C23: 10 | D23: =Calculations!M25-'RevRun Fcst'!Q205 -> 0
C24: 11 | D24: =Calculations!N25-'RevRun Fcst'!R205 -> 0
C25: 12 | D25: =Calculations!O25-'RevRun Fcst'!S205 -> 0
C26: Wyoming I-2 and I-4 Revenues | D26: =('RevRun Fcst'!T273+'RevRun Fcst'!T282)-Calculations!P65 -> 0
C27: System Sales Volumes | D27: =Calculations!H76-'RevRun Fcst'!T368 -> 0
C28: Utah Sales Volumes | D28: =Calculations!P20-'Utah Summary-by class'!B24 -> 0
B29: Company Production | D29: =Calculations!P120-'Monthly Inputs'!S7-'Monthly Inputs'!S13 -> 0
B30: Injections | D30: ='Monthly Inputs'!S29-SUM('Monthly Inputs'!S23:S28) -> 0
B31: Withdrawls | D31: ='Monthly Inputs'!S37-SUM('Monthly Inputs'!S32:S36) -> 0
B32: Injections & Withdrawls | D32: =SUM('Ut 1.3 p2'!D23:D28)-'Monthly Inputs'!S29-'Monthly Inputs'!S37 -> 0
B33: Injections | D33: =Calculations!P129-'Monthly Inputs'!S29 -> 0
B34: Withdrawls | D34: =Calculations!P137-'Monthly Inputs'!S37 -> 0
B35: Sales for Resale | D35: =Expenses!S445-Calculations!P86 -> 0
B36: Incidental Plant Prod Sales | D36: =Expenses!S446-Calculations!P87 -> 0
B37: Incidental Gas & Oil Sales | D37: =Expenses!S447-Calculations!P89 -> 0
B38: Gasoline and Oil Costs | D38: =Expenses!S450+Calculations!P90 -> 0
B39: Wexpro Revenue Sharing | D39: =Expenses!S449-Calculations!P94 -> 0
B40: Storage Gas | D40: ='Rate Base'!U206-Calculations!P99 -> 0
B41: 101 Production | D41: ='Rate Base'!U148-Calculations!P100 -> 0
B42: 108 Production | D42: ='Rate Base'!U166-Calculations!P101 -> 0
B43: 111 Production | D43: ='Rate Base'!U173-Calculations!P102 -> 0
B44: 255 Production | D44: ='Rate Base'!U241-Calculations!P103 -> 0
B45: 282 Production | D45: ='Rate Base'!U248-Calculations!P104 -> 0
B46: 282.1 Production | D46: ='Rate Base'!U255-Calculations!P105 -> 0
B47: Production Rate Base | D47: =SUM(Calculations!P99:P105)-'Rate Base'!U275 -> 0
B48: Purchased Gas Cost | D48: ='Ut 1.2'!G24-Calculations!P194 -> -0.599629581
B49: Working Gas Rate Base | D49: =Calculations!P99-'Ut 1.3 p2'!D53 -> 0
B50: Allocations | D50: ='Ut 1.5'!E43-'Ut 1.5'!F43-'Ut 1.5'!G43+'Ut 1.5'!G41-262000 -> 0
B52: System Sales | D52: ='SDR#1'!C10-'RevRun Fcst'!T368 -> 0
B53: Lost & Unaccounted For | D53: ='SDR#1'!C15-(('SDR#1'!C10+'SDR#1'!C11)/(1-'Other Inputs'!E319)) -> 2.895529896
B54: Supply / Demand | D54: ='SDR#1'!C36-'SDR#1'!C15 -> -1.90052484
B55: System Sales | D55: ='SDR#3'!H36-'SDR#1'!C10 -> 0
B56: SNG Revenue | D56: ='SDR#4'!G23-'Utah Summary-by class'!L24 -> 0.2357800007
B57: Utah Sales | D57: ='SDR#3'!D36-'SDR#4'!E23 -> 0
B58: Utah Sales | D58: ='SDR#2'!G82+'Ut 1.6 p1'!J22 -> 0.545807004
B59: Seasonal Volumes | D59: =Calculations!P52+Calculations!P53-Calculations!P7-Calculations!P8 -> 0
B60: Seasonal Volumes | D60: =Calculations!P55+Calculations!P56-Calculations!P9 -> 0
B61: Seasonal Volumes | D61: =Calculations!P58+Calculations!P59-Calculations!P10 -> 0

Sheet SDR#1
E1: ='Control Panel'!E32 -> Dominion Energy Utah
E2: ='Control Panel'!E33 -> Docket No. 18-057-14
B4: Standard Data Request #1
B5: Summary of Sources of Supply and Demand
A8: 1 | B8: DEMAND | C8: Total | D8: Utah | E8: Wyoming
A10: =A8+1 -> 2 | B10: SALES IN DTHS | C10: =D10+E10 -> 114995095 | D10: =Calculations!P20 -> 111108594 | E10: =Calculations!P39 -> 3886501
A11: =A10+1 -> 3 | B11: DIST. CO. USE & | C11: 0
A12: =A11+1 -> 4 | B12: DIST. LOST & UNACCT. (0.49%) | C12: =Calculations!P148 -> 519820
A15: =A12+1 -> 5 | B15: TOTAL | C15: =SUM(C10:C12) -> 115514915
A19: =A15+1 -> 6 | B19: SUPPLY | C19: Total | D19: Utah | E19: Wyoming
A21: =A19+1 -> 7 | B21: COMPANY PRODUCTION | C21: ='Ut 1.1'!F1424+'Ut 1.1'!F1666 -> 69140175.43 | D21: =$D$10/$C$10*C21 -> 66803437.85 | E21: =$E$10/$C$10*C21 -> 2336737.588
A22: =A21+1 -> 8 | B22: GAS REIMBURSEMENT | C22: =C21*-'Other Inputs'!$E$323 -> -3780584.793 | D22: =D21*-'Other Inputs'!$E$323 -> -3652811.981 | E22: =E21*-'Other Inputs'!$E$323 -> -127772.8113
A25: =A22+1 -> 9 | B25: CONTRACT GAS | C25: ='Ut 1.2'!E24 -> 52631438 | D25: =$D$10/$C$10*C25 -> 50852647.9 | E25: =$E$10/$C$10*C25 -> 1778790.099
A26: =A25+1 -> 10 | B26: GAS REIMBURSEMENT | C26: =C25*-'Other Inputs'!$E$322 -> -984207.8906 | D26: =D25*-'Other Inputs'!$E$322 -> -950944.5157 | E26: =E25*-'Other Inputs'!$E$322 -> -33263.37485
A28: =A26+1 -> 11 | B28: STORAGE
A29: =A28+1 -> 12 | B29: INJECTIONS | C29: ='Ut 1.4 p2'!E22 -> -16402598.23 | D29: =$D$10/$C$10*C29 -> -15848237.94 | E29: =$E$10/$C$10*C29 -> -554360.2919
A30: =A29+1 -> 13 | B30: WITHDRAWALS | C30: ='Ut 1.4 p2'!E21 -> 15841198.8 | D30: =$D$10/$C$10*C30 -> 15305812.18 | E30: =$E$10/$C$10*C30 -> 535386.6179
A31: =A30+1 -> 14 | B31: NET (INJECTIONS) WITHDRAWALS | C31: =C29+C30 -> -561399.4318 | D31: =D29+D30 -> -542425.7577 | E31: =E29+E30 -> -18973.67408
A33: =A31+1 -> 15 | B33: Storage Fuel | C33: =Calculations!P165+Calculations!P166-1 -> -930508.2202 | D33: =D10/C10*C33 -> -899059.7386 | E33: =E10/C10*C33 -> -31448.48159
A36: =A33+1 -> 16 | B36: TOTAL SUPPLY | C36: =C21+C22+C25+C26+C29+C30+C33 -> 115514913.1 | D36: =SUM(D21:D30)+D33 -> 111610843.8 | E36: =SUM(E21:E30)+E33 -> 3904069.346
A38: =A36+1 -> 17 | B38: Company Use & Loss % | C38: =(+C36-C10)/C36 -> 0.004500008575 | D38: =(+D36-D10)/D36 -> 0.004500008575 | E38: =(+E36-E10)/E36 -> 0.004500008575
B41: Difference | C41: =C15-C36 -> 1.90052484

Sheet SDR#2
H1: ='Control Panel'!E32 -> Dominion Energy Utah
H2: ='Control Panel'!E33 -> Docket No. 18-057-14
A5: Standard Data Request #2
A6: Supplier Non-Gas Costs
J7: purchased | K7: CO PRODUC | L7: withdrawn | M7: purchased
B8: (A) | C8: (B) | D8: (C) | E8: (D) | F8: (E) | G8: (F) | J8: CITY GATE | K8: CITY GATE | M8: CITY GATE | T8: withdraw
A9: I. Transportation (QPC T-1) | C9: Volume (Dth) | G9: Utah Total | J9: Utah gas | K9: Utah Co. | L9: Utah gas | M9: Wyo gas | N9: Wyo Co. | O9: Wyo gas | Q9: @city gate | R9: @city gate | T9: loss | U9: Kern River | Y9: CIG | AA9: NWPL
B10: Month | C10: Utah | D10: Wyoming | E10: $/dth | F10: Demand | G10: b*d+e*(Ut %) | J10: purchased | K10: production | L10: withdrawn | M10: purchased | N10: production | O10: withdrawn | P10: Total | Q10: purchased | R10: co production | S10: withdrawls | T10: =-Calculations!P165/Calculations!P137 -> 0.03147252864 | U10: Transportation | Y10: Transportation | AA10: Transportation
B12: =#REF! ->  | C12: =J12+K12+L12-(T12+$B$54*U12+Y12+AA12)*$J$39 -> 10499959.54 | D12: =M12+N12+O12-(T12+$B$54*U12+Y12+AA12)*$K$39 -> 367281.2496 | E12: ='Other Inputs'!$F$45 -> 0.00267 | F12: =('Other Inputs'!$D$28)*('Other Inputs'!$F$28)-('Other Inputs'!$E$327/12)+('Other Inputs'!$D$37*'Other Inputs'!$F$37) -> 4216355.29 | G12: =(+C12)*E12+F12*$J$33/$L$33 -> 4125241.066 | J12: =Q12*$J$39 -> 6145020.166 | K12: 5254407.475 | L12: 721560.3343 | M12: =Q12-J12 -> 214948.5126 | N12: 183795.5028 | O12: 25239.67643 | P12: =SUM(J12:O12)-U12-Y12-AA12 -> 8806611.666 | Q12: =Calculations!D169 -> 6359968.678 | R12: =Calculations!D161 -> 5438202.977 | S12: =Calculations!D163+Calculations!D164 -> 746800.0107 | T12: =S12*$T$10 -> 23503.68472 | U12: =V12*W12 -> 3536550 | V12: =+Calculations!D$242 -> 117885 | W12: 30 | X12: =B12 ->  | Y12: =+W12*Z12 -> 12000 | Z12: 400 | AA12: =+W12*AB12 -> 189810 | AB12: =2016+2016+2295 -> 6327
B13: =#REF! ->  | C13: 16585729.67 | D13: 580157.2374 | E13: ='Other Inputs'!$F$45 -> 0.00267 | F13: =('Other Inputs'!$D$28)*('Other Inputs'!$F$28)-('Other Inputs'!$E$327/12)+('Other Inputs'!$D$37*'Other Inputs'!$F$37) -> 4216355.29 | G13: =(+C13)*E13+F13*$J$33/$L$33 -> 4141490.072 | J13: 8952447.221 | K13: 5538717.752 | L13: 4514679.636 | M13: 313150.3498 | N13: 193740.4777 | O13: 157920.3398 | P13: 14229008.78 | Q13: =Calculations!E169 -> 9265597.571 | R13: =Calculations!E161 -> 5732458.229 | S13: =Calculations!E163+Calculations!E164 -> 4672599.976 | T13: =S13*$T$10 -> 147058.5365 | U13: =V13*W13 -> 5233110 | V13: =+Calculations!E$242 -> 168810 | W13: 31 | X13: =B13 ->  | Y13: 12400 | Z13: 400 | AA13: 196137 | AB13: =2016+2016+2295 -> 6327
B14: =#REF! ->  | C14: 17455673.68 | D14: 610587.2713 | E14: ='Other Inputs'!$F$45 -> 0.00267 | F14: =('Other Inputs'!$D$28)*('Other Inputs'!$F$28)-('Other Inputs'!$E$327/12)+('Other Inputs'!$D$37*'Other Inputs'!$F$37) -> 4216355.29 | G14: 4143812.823 | J14: =Q14*$J$39 -> 10540002.36 | K14: =R14*$J$39 -> 5476120.535 | L14: =S14*$J$39 -> 3838380.893 | M14: =Q14-J14 -> 368681.9196 | N14: =R14-K14 -> 191550.8708 | O14: =S14-L14 -> 134263.8822 | P14: 15107353.46 | Q14: =Calculations!F169 -> 10908684.28 | R14: =Calculations!F161 -> 5667671.405 | S14: =Calculations!F163+Calculations!F164 -> 3972644.775 | T14: =S14*$T$10 -> 125029.1765 | U14: 5233110 | V14: =+Calculations!F$242 -> 168810 | W14: 31 | Y14: 12400 | Z14: 400 | AA14: 196137 | AB14: 6327
B15: =#REF! ->  | C15: 14418110.59 | D15: 504335.4363 | E15: ='Other Inputs'!$F$45 -> 0.00267 | F15: =('Other Inputs'!$D$28)*('Other Inputs'!$F$28)-('Other Inputs'!$E$327/12)+('Other Inputs'!$D$37*'Other Inputs'!$F$37) -> 4216355.29 | G15: 4135702.529 | J15: =Q15*$J$39 -> 8115993.132 | K15: 4991404.134 | L15: 3477738.935 | M15: 283891.7701 | N15: 174595.8297 | O15: 121648.8785 | P15: 12250236.68 | Q15: =Calculations!G169 -> 8399884.902 | R15: =Calculations!G161 -> 5165999.964 | S15: =Calculations!G163+Calculations!G164 -> 3599387.814 | T15: 113281.836 | U15: 4726680 | V15: =+Calculations!G$242 -> 168810 | W15: 28 | Y15: 11200 | Z15: 400 | AA15: 177156 | AB15: 6327
B16: =#REF! ->  | C16: 11293904.2 | D16: 395052.8793 | E16: ='Other Inputs'!$F$45 -> 0.00267 | F16: =('Other Inputs'!$D$28)*('Other Inputs'!$F$28)-('Other Inputs'!$E$327/12)+('Other Inputs'!$D$37*'Other Inputs'!$F$37) -> 4216355.29 | G16: 4127360.898 | J16: 4684043.902 | K16: 5610027.834 | L16: 2737587.683 | M16: 163844.5835 | N16: 196234.8546 | O16: 95758.90474 | P16: 9624525.763 | Q16: =Calculations!H169 -> 4847888.486 | R16: =Calculations!H161 -> 5806262.689 | S16: =Calculations!H163+Calculations!H164 -> 2833346.588 | T16: 89172.58164 | U16: 3654435 | V16: =+Calculations!H$242 -> 117885 | W16: 31 | Y16: 12400 | Z16: 400 | AA16: 196137 | AB16: 6327
B17: =#REF! ->  | C17: 9262426.402 | D17: 323993.205 | E17: ='Other Inputs'!$F$45 -> 0.00267 | F17: =('Other Inputs'!$D$28)*('Other Inputs'!$F$28)-('Other Inputs'!$E$327/12)+('Other Inputs'!$D$37*'Other Inputs'!$F$37) -> 4216355.29 | G17: 4121936.853 | J17: 4468505.637 | K17: 5388823.702 | L17: 15864.7015 | M17: 156305.2056 | N17: 188497.2886 | O17: 554.9361759 | P17: 8970191.472 | Q17: =Calculations!I169 -> 4624810.843 | R17: =Calculations!I161 -> 5577320.991 | S17: =Calculations!I163+Calculations!I164 -> 16419.63768 | T17: 516.7675171 | U17: 1046550 | V17: =+Calculations!I$242 -> 34885 | W17: 30 | Y17: 12000 | Z17: 400 | AA17: 189810 | AB17: 6327
B18: =#REF! ->  | C18: 7466915.983 | D18: 261187.5048 | E18: ='Other Inputs'!$F$45 -> 0.00267 | F18: =('Other Inputs'!$D$28)*('Other Inputs'!$F$28)-('Other Inputs'!$E$327/12)+('Other Inputs'!$D$37*'Other Inputs'!$F$37) -> 4216355.29 | G18: =(+C18)*E18+F18*$J$33/$L$33 -> 4117142.84 | J18: 2663620.355 | K18: 5433906.242 | L18: 0 | M18: 93171.57927 | N18: 190074.2443 | O18: 0 | P18: 7090800.421 | Q18: =Calculations!J169 -> 2756791.934 | R18: =Calculations!J161 -> 5623980.487 | S18: =Calculations!J163+Calculations!J164 -> 0 | T18: 0 | U18: 1081435 | V18: =+Calculations!J$242 -> 34885 | W18: 31 | Y18: 12400 | Z18: 400 | AA18: 196137 | AB18: 6327
B19: =#REF! ->  | C19: 5412930.153 | D19: 189340.5154 | E19: ='Other Inputs'!$F$45 -> 0.00267 | F19: =('Other Inputs'!$D$28)*('Other Inputs'!$F$28)-('Other Inputs'!$E$327/12)+('Other Inputs'!$D$37*'Other Inputs'!$F$37) -> 4216355.29 | G19: 4111658.698 | J19: 817142.6932 | K19: 5206055.797 | L19: 0 | M19: 28583.08057 | N19: 182104.1949 | O19: 0 | P19: 4985525.765 | Q19: =Calculations!K169 -> 845725.7737 | R19: =Calculations!K161 -> 5388159.992 | S19: =Calculations!K163+Calculations!K164 -> 0 | T19: 0 | U19: 1046550 | V19: =+Calculations!K$242 -> 34885 | W19: 30 | Y19: 12000 | Z19: 400 | AA19: 189810 | AB19: 6327
B20: =#REF! ->  | C20: 4905157.663 | D20: 171578.9884 | E20: ='Other Inputs'!$F$45 -> 0.00267 | F20: =('Other Inputs'!$D$28)*('Other Inputs'!$F$28)-('Other Inputs'!$E$327/12)+('Other Inputs'!$D$37*'Other Inputs'!$F$37) -> 4216355.29 | G20: =(+C20)*E20+F20*$J$33/$L$33 -> 4110302.945 | J20: 418408.0405 | K20: 5117360.237 | L20: 0 | M20: 14635.62097 | N20: 179001.6862 | O20: 0 | P20: 4439433.585 | Q20: =Calculations!L169 -> 433043.6615 | R20: =Calculations!L161 -> 5296361.924 | S20: =Calculations!L163+Calculations!L164 -> 0 | T20: 0 | U20: 1081435 | V20: =+Calculations!L$242 -> 34885 | W20: 31 | Y20: 12400 | Z20: 400 | AA20: 196137 | AB20: 6327
B21: =#REF! ->  | C21: 4707292.453 | D21: 164657.8016 | E21: ='Other Inputs'!$F$45 -> 0.00267 | F21: =('Other Inputs'!$D$28)*('Other Inputs'!$F$28)-('Other Inputs'!$E$327/12)+('Other Inputs'!$D$37*'Other Inputs'!$F$37) -> 4216355.29 | G21: =(+C21)*E21+F21*$J$33/$L$33 -> 4109774.645 | J21: 253310.9744 | K21: 5084592.093 | L21: 0 | M21: 8860.640927 | N21: 177855.4794 | O21: 0 | P21: 4234647.188 | Q21: =Calculations!M169 -> 262171.6153 | R21: =Calculations!M161 -> 5262447.572 | S21: =Calculations!M163+Calculations!M164 -> 0 | T21: 0 | U21: 1081435 | V21: =+Calculations!M$242 -> 34885 | W21: 31 | Y21: 12400 | Z21: 400 | AA21: 196137 | AB21: 6327
B22: =#REF! ->  | C22: 4468272.231 | D22: 156297.0412 | E22: ='Other Inputs'!$F$45 -> 0.00267 | F22: =('Other Inputs'!$D$28)*('Other Inputs'!$F$28)-('Other Inputs'!$E$327/12)+('Other Inputs'!$D$37*'Other Inputs'!$F$37) -> 4216355.29 | G22: =(+C22)*E22+F22*$J$33/$L$33 -> 4109136.461 | J22: 251237.2934 | K22: 4827303.274 | L22: 0 | M22: 8788.105014 | N22: 168855.6963 | O22: 0 | P22: 4007824.369 | Q22: =Calculations!N169 -> 260025.3984 | R22: =Calculations!N161 -> 4996158.97 | S22: =Calculations!N163+Calculations!N164 -> 0 | T22: 0 | U22: 1046550 | V22: =+Calculations!N$242 -> 34885 | W22: 30 | Y22: 12000 | Z22: 400 | AA22: 189810 | AB22: 6327
B23: =#REF! ->  | C23: 7183268.653 | D23: 251265.7194 | E23: ='Other Inputs'!$F$45 -> 0.00267 | F23: =('Other Inputs'!$D$28)*('Other Inputs'!$F$28)-('Other Inputs'!$E$327/12)+('Other Inputs'!$D$37*'Other Inputs'!$F$37) -> 4216355.29 | G23: =(+C23)*E23+F23*$J$33/$L$33 -> 4116385.501 | J23: 2591971.712 | K23: 5221907.556 | L23: 0 | M23: 90665.35977 | N23: 182658.6784 | O23: 0 | P23: 6797231.306 | Q23: =Calculations!O169 -> 2682637.071 | R23: =Calculations!O161 -> 5404566.234 | S23: =Calculations!O163+Calculations!O164 -> 0 | T23: 0 | U23: 1081435 | V23: =+Calculations!O$242 -> 34885 | W23: 31 | Y23: 12400 | Z23: 400 | AA23: 196137 | AB23: 6327
C26: =SUM(C12:C23) -> 113659641.2 | D26: =SUM(D12:D23) -> 3975734.85 | F26: =SUM(F12:F23) -> 50596263.48 | G26: =SUM(G12:G23) -> 49469945.33 | J26: =SUM(J12:J25) -> 49901703.49 | K26: 63150626.63 | L26: 15305812.18 | M26: 1745526.728 | N26: 2208964.804 | O26: 535386.6179 | P26: =SUM(P12:P23) -> 100543390.5 | Q26: =SUM(Q12:Q23) -> 51647230.22 | R26: 65359591.43 | S26: 15841198.8 | T26: 498562.5829 | U26: 29849275
C29: Months | F29: System | G29: Utah | J29: Allocation Factors
C30: or Days | D30: Dth | E30: Rate | F30: Total | G30: Total
J31: Peak Demand Allocation Base
A32: II. Transportation (ML 104 demand) | C32: ='Other Inputs'!E29 -> 12 | D32: ='Other Inputs'!D29 -> 30000 | E32: ='Other Inputs'!F29 -> 5.28804 | F32: =C32*D32*E32 -> 1903694.4 | G32: =F32*J34 -> 1849898.292 | J32: Utah | K32: Wyo | L32: Total
J33: ='Other Inputs'!E165 -> 1292581 | K33: ='Other Inputs'!E166 -> 37589 | L33: =J33+K33 -> 1330170
A34: III. Transportation (TL 112 demand) | C34: ='Other Inputs'!E30 -> 12 | D34: ='Other Inputs'!D30 -> 12000 | E34: ='Other Inputs'!F30 -> 5.28804 | F34: =C34*D34*E34 -> 761477.76 | G34: =F34*J34 -> 739959.3169 | J34: =J33/L33 -> 0.971741206 | K34: =K33/L33 -> 0.02825879399
C35: ='Other Inputs'!E31 -> 5 | D35: ='Other Inputs'!D31 -> 75000 | E35: ='Other Inputs'!F31 -> 6.80887 | F35: =C35*D35*E35 -> 2553326.25 | G35: =F35*J34 -> 2481172.33
J36: Dth Sales Allocation Base
A37: IV. Transportation (Hyrum) | C37: 12 | D37: =+'Other Inputs'!D32 -> 100000 | E37: =+'Other Inputs'!F32 -> 5.28804 | F37: =C37*D37*E37 -> 6345648 | G37: =+F37*J34 -> 6166327.64 | J37: Utah | K37: Wyo | L37: Total
J38: =Calculations!P20 -> 111108594 | K38: =Calculations!P39 -> 3886501 | L38: =J38+K38 -> 114995095
A39: V. Transportation (KR 2003 Expansion) | C39: ='Other Inputs'!E61 -> 12 | D39: ='Other Inputs'!D61 -> 33000 | E39: ='Other Inputs'!F61 -> 3.565133333 | F39: =C39*D39*E39 -> 1411792.8 | J39: =J38/L38 -> 0.9662028976 | K39: =K38/L38 -> 0.03379710239
C40: ='Other Inputs'!E62 -> 5 | D40: ='Other Inputs'!D62 -> 50000 | E40: ='Other Inputs'!F62 -> 3.565133333 | F40: =C40*D40*E40 -> 891283.3333 | G40: =(F39+F40+F41)*J34 -> 2627978.002
C41: ='Other Inputs'!E63 -> 12 | D41: ='Other Inputs'!D63 -> 1885 | E41: ='Other Inputs'!F63 -> 17.74204167 | F41: =C41*D41*E41 -> 401324.9825
A43: VI. Transportation (KR #20024) | C43: =+'Other Inputs'!E72 -> 5 | D43: =+'Other Inputs'!D72 -> 27000 | E43: =+'Other Inputs'!F72 -> 8.758 | F43: =C43*D43*E43 -> 1182330 | G43: =F43*J34 -> 1148918.78
A45: VII. Transportation (KR #20017) | C45: =+'Other Inputs'!E68 -> 3 | D45: =+'Other Inputs'!D68 -> 56925 | E45: =+'Other Inputs'!F68 -> 8.7 | F45: 1485742.5 | G45: =F45*J34 -> 1443757.209
C46: =+'Other Inputs'!E70 -> 2 | D46: =+'Other Inputs'!D70 -> 6000 | E46: =+'Other Inputs'!F70 -> 8.845 | F46: 106140 | G46: =F46*J34 -> 103140.6116
A48: VI. Transportation (CIG #211257) | C48: =+'Other Inputs'!E87 -> 12 | D48: =+'Other Inputs'!D87 -> 400 | E48: =+'Other Inputs'!F87 -> 9.0095 | F48: =C48*D48*E48 -> 43245.6 | G48: =F48*J34 -> 42023.5315
A50: VI. Transportation (NWPL #141804) | C50: =+'Other Inputs'!E93 -> 12 | D50: =+'Other Inputs'!D93 -> 2016 | E50: =+'Other Inputs'!F93 -> 11.951925 | F50: =C50*D50*E50 -> 289140.9696 | G50: =F50*J34 -> 280970.1945
A51: VI. Transportation (NWPL #139525) | C51: =+'Other Inputs'!E95 -> 12 | D51: =+'Other Inputs'!D95 -> 2295 | E51: =+'Other Inputs'!F95 -> 11.951925 | F51: =C51*D51*E51 -> 329156.0145 | G51: =F51*J34 -> 319854.4625
A52: VI. Transportation (NWPL #141805) | C52: =+'Other Inputs'!E97 -> 12 | D52: =+'Other Inputs'!D97 -> 2016 | E52: =+'Other Inputs'!F97 -> 11.951925 | F52: 289140.9696 | G52: =F52*J34 -> 280970.1945
A54: VIII. Comm (KR 2003 Expansion) | B54: ='Other Inputs'!C77 -> 0.4106875895 | C54: ='Other Inputs'!E76 -> 365 | D54: ='Other Inputs'!D76 -> 34885 | E54: ='Other Inputs'!F76 -> 0.0044 | F54: =B54*C54*D54*E54 -> 23008.89951
B55: ='Other Inputs'!C76 -> 0.4106875895 | C55: ='Other Inputs'!E77 -> 151 | D55: ='Other Inputs'!D77 -> 50000 | E55: ='Other Inputs'!F77 -> 0.0044 | F55: =B55*C55*D55*E55 -> 13643.04172 | G55: =(F54+F55)*J39 -> 35413.21182
A57: IX. Comm (KR #20024) | B57: =+'Other Inputs'!C83 -> 0.4106875895 | C57: =+'Other Inputs'!E83 -> 151 | D57: =+'Other Inputs'!D83 -> 27000 | E57: =+'Other Inputs'!F83 -> 0.0044 | F57: =B57*C57*D57*E57 -> 7367.24253 | G57: =+F57*J39 -> 7118.25108
A59: X. Comm (KR #20017) | B59: =+'Other Inputs'!C80 -> 0.4106875895 | C59: =+'Other Inputs'!E80 -> 90 | D59: =+'Other Inputs'!D80 -> 56925 | E59: =+'Other Inputs'!F80 -> 0.0044 | F59: =B59*C59*D59*E59 -> 9257.842848
B60: =+'Other Inputs'!C81 -> 0.4106875895 | C60: =+'Other Inputs'!E81 -> 61 | D60: =+'Other Inputs'!D81 -> 6000 | E60: =+'Other Inputs'!F81 -> 0.0044 | F60: =B60*C60*D60*E60 -> 661.3712941 | G60: =(F59+F60)*J39 -> 9583.973446
A62: X. Comm (CIG #211257) | C62: =+'Other Inputs'!E88 -> 365 | D62: =+'Other Inputs'!D87 -> 400 | E62: =+'Other Inputs'!F89 -> 0.0166 | F62: =C62*D62*E62 -> 2423.6 | G62: =+F62*J39 -> 2341.689343
A64: X. Comm (NWPL #141804,139525,141805) | C64: =+'Other Inputs'!E94 -> 365 | D64: =+'Other Inputs'!D93+'Other Inputs'!D95+'Other Inputs'!D97 -> 6327 | E64: =+'Other Inputs'!F99 -> 0.00832 | F64: =C64*D64*E64 -> 19213.8336 | G64: =+F64*J39 -> 18564.4617
A66: XII. Other Trans, Gathering & Processing | F66: ='Other Inputs'!$D$201+'Other Inputs'!$D$203 -> 6731658.156 | G66: =F66*$J$39 -> 6504147.616
A68: XIII. Gathering Wexpro I | B68: Demand | F68: =+'Other Inputs'!E209 -> 11774616
A69: Wexpro I | B69: Commodity | F69: =+'Other Inputs'!D209 -> 7391644.362 | G69: =(F68)*'Ut 1.5'!G53+(F69)*'Ut 1.5'!G56 -> 18583707.75
A70: Wexpro II | B70: Commodity | F70: =+'Other Inputs'!D212 -> 2927171.22 | G70: =(F70)*'Ut 1.5'!G56 -> 2828241.315
A72: XIV. Storage Demand | C72: 12 | D72: ='Other Inputs'!E187 -> 184625 | E72: ='Other Inputs'!E14 -> 2.87375 | F72: =C72*D72*E72 -> 6366793.125
C73: 12 | D73: =+'Other Inputs'!E188 -> 2500000 | E73: =+'Other Inputs'!E15 -> 0.09 | F73: =C73*D73*E73 -> 2700000
C74: 12 | D74: ='Other Inputs'!E189 -> 111827 | E74: ='Other Inputs'!E16 -> 2.85338 | F74: =C74*D74*E74 -> 3829019.103
C75: 12 | D75: ='Other Inputs'!E190 -> 13419000 | E75: ='Other Inputs'!E17 -> 0.02378 | F75: =C75*D75*E75 -> 3829245.84 | G75: =SUM(F72:F75)*J34 -> 16252428.1
A77: XV. Peak Hour Service | C77: =+'Other Inputs'!E20 -> 3 | D77: =+'Other Inputs'!D20 -> 25000 | E77: =+'Other Inputs'!F20 -> 11.65333333 | F77: =C77*D77*E77 -> 874000 | G77: =F77*J34 -> 849301.8141
C78: =+'Other Inputs'!E23 -> 3 | D78: =+'Other Inputs'!D23 -> 68666.66667 | E78: =+'Other Inputs'!F23 -> 5.950558252 | F78: 1225815 | G78: =F78*J34 -> 1191174.946
E79: Disallowance from Docket 17-057-20 Report and Order | F79: -262000 | G79: =+F79 -> -262000
A82: Total Supplier Non-Gas Costs | G82: =G26+G32+G34+G35+G40+G55+G66+G70+G75+G69+G43+G45+G46+G57+G60+G77+G37+G62+G64+G48+G50+G51+G52+G78+G79 -> 112974939

Sheet SDR#3
I1: ='Control Panel'!E32 -> Dominion Energy Utah
I2: ='Control Panel'!E33 -> Docket No. 18-057-14
C5: Standard Data Request #3
C6: Monthly Forecasted Sales
D8: Utah Sales | F8: Wyoming Sales | H8: System Total
C9: Month | D9: Dth | F9: Dth | H9: Dth
B11: 1 | C11: =Calculations!D141 -> Nov18 | D11: =Calculations!D20 -> 11811567 | F11: =Calculations!D39 -> 417315 | H11: =SUM(D11:F11) -> 12228882
B13: =B11+1 -> 2 | C13: =Calculations!E141 -> Dec18 | D13: =Calculations!E20 -> 18718688 | F13: =Calculations!E39 -> 600794 | H13: =SUM(D13:F13) -> 19319482
B15: =B13+1 -> 3 | C15: =Calculations!F141 -> Jan19 | D15: =Calculations!F20 -> 19704282 | F15: =Calculations!F39 -> 623942 | H15: 20328224
B17: =B15+1 -> 4 | C17: =Calculations!G141 -> Feb19 | D17: =Calculations!G20 -> 16427420 | F17: =Calculations!G39 -> 565257 | H17: 16992677
B19: =B17+1 -> 5 | C19: =Calculations!H141 -> Mar19 | D19: =Calculations!H20 -> 12872234 | F19: =Calculations!H39 -> 472237 | H19: 13344471
B21: =B19+1 -> 6 | C21: =Calculations!I141 -> Apr19 | D21: =Calculations!I20 -> 8518240 | F21: =Calculations!I39 -> 342153 | H21: 8860393
B23: =B21+1 -> 7 | C23: =Calculations!J141 -> May19 | D23: =Calculations!J20 -> 5204789 | F23: =Calculations!J39 -> 229489 | H23: 5434278
B25: =B23+1 -> 8 | C25: =Calculations!K141 -> Jun19 | D25: =Calculations!K20 -> 3191701 | F25: =Calculations!K39 -> 129562 | H25: 3321263
B27: =B25+1 -> 9 | C27: =Calculations!L141 -> Jul19 | D27: =Calculations!L20 -> 2634573 | F27: =Calculations!L39 -> 83492 | H27: 2718065
B29: =B27+1 -> 10 | C29: =Calculations!M141 -> Aug19 | D29: =Calculations!M20 -> 2432433 | F29: =Calculations!M39 -> 77945 | H29: 2510378
B31: =B29+1 -> 11 | C31: =Calculations!N141 -> Sep19 | D31: =Calculations!N20 -> 2815670 | F31: =Calculations!N39 -> 106001 | H31: 2921671
B33: =B31+1 -> 12 | C33: =Calculations!O141 -> Oct19 | D33: =Calculations!O20 -> 6776997 | F33: =Calculations!O39 -> 238314 | H33: 7015311
B36: =B33+1 -> 13 | C36: Total Sales (Dth) | D36: =SUM(D11:D33) -> 111108594 | F36: =SUM(F11:F33) -> 3886501 | H36: =SUM(H11:H33) -> 114995095

Sheet SDR#4
H1: ='Control Panel'!E32 -> Dominion Energy Utah
H2: ='Control Panel'!E33 -> Docket No. 18-057-14
C5: Standard Data Request #4
C6: Supplier Non-Gas Costs Recovered at Current Rates
C9: (A) | D9: (B) | E9: (C) | F9: (D) | G9: (E)
B10: 1 | C10: Rate Schedule | D10: Season | E10: Sales Dth | F10: SNG Rate | G10: SNG Revenue
B12: =B10+1 -> 2 | C12: GS | D12: winter | E12: ='Utah Summary-by class'!B8 -> 77792638 | F12: ='Utah Summary-by class'!J8 -> 1.2953 | G12: =E12*F12 -> 100764804
B13: =B12+1 -> 3 | D13: summer | E13: ='Utah Summary-by class'!B9 -> 29881364 | F13: ='Utah Summary-by class'!J9 -> 0.60816 | G13: =E13*F13 -> 18172650.33
B15: =B13+1 -> 4 | C15: FS | D15: winter | E15: ='Utah Summary-by class'!B13 -> 1566401 | F15: ='Utah Summary-by class'!J13 -> 1.26157 | G15: =E15*F15 -> 1976124.51
B16: =B15+1 -> 5 | D16: summer | E16: ='Utah Summary-by class'!B14 -> 1473010 | F16: ='Utah Summary-by class'!J14 -> 0.60816 | G16: =E16*F16 -> 895825.7616
B18: =B16+1 -> 6 | C18: NGV | D18: annual | E18: ='Utah Summary-by class'!B18 -> 201359 | F18: ='Utah Summary-by class'!J18 -> 0.93471 | G18: =E18*F18 -> 188212.2709
B20: =B18+1 -> 7 | C20: IS | D20: annual | E20: ='Utah Summary-by class'!B21 -> 193822 | F20: ='Utah Summary-by class'!J21 -> 0.17864 | G20: =E20*F20 -> 34624.36208
B23: =B20+1 -> 8 | C23: Total Supplier Non-Gas Costs | E23: =SUM(E12:E20) -> 111108594 | G23: =SUM(G12:G20) -> 122032241.2

Sheet Wy SDR#1 (hidden)
A1: Wyoming Standard Data Request #1
A2: Global Insights Forecast

Sheet Ut 1.1
D4: Test Year Cost of Dominion Energy's Production
D5: November 2018 through October 2019
B7: WEXPRO I
B8: (A) | C8: (B) | D8: (C) | E8: (D) | F8: (E) | G8: (F) | H8: (G) | I8: (H)
F9: Base Year | G9: Market | H9: Royalty | I9: Test Year
B10: Field Name | C10: Well Name | D10: Formation | E10: Price $ | F10: Dth | G10: Value $ | H10: Rate % | I10: Royalty $
A12: 1 | B12: ACE UNIT (CO) | C12: ACE UNIT 10 FT UN | D12: MESAVERDE | E12: 2.067690862 | F12: 36393.043 | G12: 75249.56246 | H12: 0.1268519763 | I12: 9545.555714
A13: 2 | C13: ACE UNIT 11 FT UN | D13: FORT UNION | E13: 2.067690862 | F13: 37507.789 | G13: 77554.51257 | H13: 0.1268519763 | I13: 9837.943192
A14: 3 | C14: ACE UNIT 12 FT UN | D14: FORT UNION | E14: 2.067690862 | F14: 70785.477 | G14: 146362.484 | H14: 0.1268519763 | I14: 18566.37035
A15: 4 | C15: ACE UNIT 13 FT UN | D15: FORT UNION | E15: 2.067690862 | F15: 39914.06 | G15: 82529.93713 | H15: 0.1268519763 | I15: 10469.08563
A16: 5 | C16: ACE UNIT 2 FT UN | D16: FORT UNION | E16: 2.067690862 | F16: 50357.402 | G16: 104123.54 | H16: 0.1268519763 | I16: 13208.27682
A17: 6 | B17: BIRCH CR (WY) | C17: BIRCH CREEK UNIT 1 BR | D17: BEAR RIVER | E17: 2.067690862 | F17: 6995.67 | G17: 14464.88293 | H17: 0.1329769324 | I17: 1923.49576
A18: 7 | C18: BIRCH CREEK UNIT 1 BR - D24 | D18: BEAR RIVER | E18: 2.067690862 | F18: 2090.344 | G18: 4322.185187 | H18: 0.1329769324 | I18: 574.7509276
A19: 8 | C19: BIRCH CREEK UNIT 1 FR | D19: FRONTIER | E19: 2.067690862 | F19: 6987.993 | G19: 14449.00927 | H19: 0.1329769324 | I19: 1921.384929
A20: 9 | C20: BIRCH CREEK UNIT 1 FR - D24 | D20: FRONTIER | E20: 2.067690862 | F20: 2086.057 | G20: 4313.320997 | H20: 0.1329769324 | I20: 573.5721947
A21: 10 | C21: BIRCH CREEK UNIT 100 FR | D21: FRONTIER | E21: 2.067690862 | F21: 7232.049 | G21: 14953.64163 | H21: 0.1329769324 | I21: 1988.489393
A22: 11 | C22: BIRCH CREEK UNIT 101 BR | D22: BEAR RIVER | E22: 2.067690862 | F22: 598.963 | G22: 1238.470322 | H22: 0.1329769324 | I22: 164.6879843
A23: 12 | C23: BIRCH CREEK UNIT 101 FR | D23: FRONTIER | E23: 2.067690862 | F23: 11372.183 | G23: 23514.15887 | H23: 0.1329769324 | I23: 3126.840715
A24: 13 | C24: BIRCH CREEK UNIT 103 BR | D24: BEAR RIVER | E24: 2.067690862 | F24: 924.007 | G24: 1910.56083 | H24: 0.1329769324 | I24: 254.0605184
A25: 14 | C25: BIRCH CREEK UNIT 103 FR | D25: FRONTIER | E25: 2.067690862 | F25: 8322.797 | G25: 17208.9713 | H25: 0.1329769324 | I25: 2288.396214
A26: 15 | C26: BIRCH CREEK UNIT 104 BR | D26: BEAR RIVER | E26: 2.067690862 | F26: 2623.849 | G26: 5425.308601 | H26: 0.1329769324 | I26: 721.4408952
A27: 16 | C27: BIRCH CREEK UNIT 104 FR | D27: FRONTIER | E27: 2.067690862 | F27: 11184.189 | G27: 23125.4454 | H27: 0.1329769324 | I27: 3075.150789
A28: 17 | C28: BIRCH CREEK UNIT 105 BR | D28: BEAR RIVER | E28: 2.067690862 | F28: 7818.616 | G28: 16166.48086 | H28: 0.1329769324 | I28: 2149.769032
A29: 18 | C29: BIRCH CREEK UNIT 105 FR | D29: FRONTIER | E29: 2.067690862 | F29: 8817.808 | G29: 18232.50103 | H29: 0.1329769324 | I29: 2424.502057
A30: 19 | C30: BIRCH CREEK UNIT 106 BR | D30: BEAR RIVER | E30: 2.067690862 | F30: 5469.503 | G30: 11309.24137 | H30: 0.1329769324 | I30: 1503.868226
A31: 20 | C31: BIRCH CREEK UNIT 106 FR | D31: FRONTIER | E31: 2.067690862 | F31: 19410.466 | G31: 40134.84318 | H31: 0.1329769324 | I31: 5337.008329
A32: 21 | C32: BIRCH CREEK UNIT 107 BR | D32: BEAR RIVER | E32: 2.067690862 | F32: 2756.904 | G32: 5700.425208 | H32: 0.1329769324 | I32: 758.0250577
A33: 22 | C33: BIRCH CREEK UNIT 107 FR | D33: FRONTIER | E33: 2.067690862 | F33: 2647.146 | G33: 5473.479595 | H33: 0.1329769324 | I33: 727.8465262
A34: 23 | C34: BIRCH CREEK UNIT 108 BR | D34: BEAR RIVER | E34: 2.067690862 | F34: 1789.041 | G34: 3699.183728 | H34: 0.1329769324 | I34: 491.9061045
A35: 24 | C35: BIRCH CREEK UNIT 108 FR | D35: FRONTIER | E35: 2.067690862 | F35: 8733.46 | G35: 18058.09544 | H35: 0.1329769324 | I35: 2401.310136
A36: 25 | C36: BIRCH CREEK UNIT 109 BAX | D36: BAXTER | E36: 2.067690862 | F36: 3711.387 | G36: 7674.000986 | H36: 0.13375 | I36: 1026.397632
A37: 26 | C37: BIRCH CREEK UNIT 109 BR | D37: BEAR RIVER | E37: 2.067690862 | F37: 8921.786 | G37: 18447.49539 | H37: 0.1329769324 | I37: 2453.091347
A38: 27 | C38: BIRCH CREEK UNIT 109 FR | D38: FRONTIER | E38: 2.067690862 | F38: 8111.977 | G38: 16773.06072 | H38: 0.1329769324 | I38: 2230.430161
A39: 28 | C39: BIRCH CREEK UNIT 110 BR | D39: BEAR RIVER | E39: 2.067690862 | F39: 10933.691 | G39: 22607.49297 | H39: 0.1329769324 | I39: 3006.275065
A40: 29 | C40: BIRCH CREEK UNIT 110 FR | D40: FRONTIER | E40: 2.067690862 | F40: 10091.621 | G40: 20866.35253 | H40: 0.1329769324 | I40: 2774.74355
A41: 30 | C41: BIRCH CREEK UNIT 111 BR | D41: BEAR RIVER | E41: 2.067690862 | F41: 10763.132 | G41: 22254.82968 | H41: 0.1329769324 | I41: 2959.378983
A42: 31 | C42: BIRCH CREEK UNIT 111 FR | D42: FRONTIER | E42: 2.067690862 | F42: 3977.416 | G42: 8224.066718 | H42: 0.1329769324 | I42: 1093.611164
A43: 32 | C43: BIRCH CREEK UNIT 112 BR | D43: BEAR RIVER | E43: 2.067690862 | F43: 4725.269 | G43: 9770.395532 | H43: 0.1329769324 | I43: 1299.237226
A44: 33 | C44: BIRCH CREEK UNIT 112 FR | D44: FRONTIER | E44: 2.067690862 | F44: 12774.084 | G44: 26412.85676 | H44: 0.1329769324 | I44: 3512.300668
A45: 34 | C45: BIRCH CREEK UNIT 113 BR | D45: BEAR RIVER | E45: 2.067690862 | F45: 11775.292 | G45: 24347.66367 | H45: 0.1329769324 | I45: 3237.677626
A46: 35 | C46: BIRCH CREEK UNIT 113 FR | D46: FRONTIER | E46: 2.067690862 | F46: 3518.101 | G46: 7274.34529 | H46: 0.1329769324 | I46: 967.320122
A47: 36 | C47: BIRCH CREEK UNIT 114 BR | D47: BEAR RIVER | E47: 2.067690862 | F47: 16413.507 | G47: 33938.05844 | H47: 0.1329769324 | I47: 4512.978903
A48: 37 | C48: BIRCH CREEK UNIT 114 FR | D48: FRONTIER | E48: 2.067690862 | F48: 3842.298 | G48: 7944.684464 | H48: 0.1329769324 | I48: 1056.459769
A49: 38 | C49: BIRCH CREEK UNIT 115 BR | D49: BEAR RIVER | E49: 2.067690862 | F49: 3404.118 | G49: 7038.663682 | H49: 0.1329769324 | I49: 935.9799048
A50: 39 | C50: BIRCH CREEK UNIT 115 FR | D50: FRONTIER | E50: 2.067690862 | F50: 11397.74 | G50: 23567.00285 | H50: 0.1329769324 | I50: 3133.867745
A51: 40 | C51: BIRCH CREEK UNIT 116 BR | D51: BEAR RIVER | E51: 2.067690862 | F51: 8213.272 | G51: 16982.50746 | H51: 0.1329769324 | I51: 2258.281747
A52: 41 | C52: BIRCH CREEK UNIT 116 FR | D52: FRONTIER | E52: 2.067690862 | F52: 2886.235 | G52: 5967.841735 | H52: 0.1329769324 | I52: 793.5852871
A53: 42 | C53: BIRCH CREEK UNIT 117 BAX | D53: BAXTER | E53: 2.067690862 | F53: 938.064 | G53: 1939.626361 | H53: 0.13375 | I53: 259.4250258
A54: 43 | C54: BIRCH CREEK UNIT 117 BR | D54: BEAR RIVER | E54: 2.067690862 | F54: 624.952 | G54: 1292.20754 | H54: 0.1329769324 | I54: 171.8337947
A55: 44 | C55: BIRCH CREEK UNIT 117 FR | D55: FRONTIER | E55: 2.067690862 | F55: 6268.709 | G55: 12961.75232 | H55: 0.1329769324 | I55: 1723.614062
A56: 45 | C56: BIRCH CREEK UNIT 118 BR | D56: BEAR RIVER | E56: 2.067690862 | F56: 812.993 | G56: 1681.018197 | H56: 0.1329769324 | I56: 223.5366432
A57: 46 | C57: BIRCH CREEK UNIT 118 FR | D57: FRONTIER | E57: 2.067690862 | F57: 7324.105 | G57: 15143.98498 | H57: 0.1329769324 | I57: 2013.800667
A58: 47 | C58: BIRCH CREEK UNIT 119 BR | D58: BEAR RIVER | E58: 2.067690862 | F58: 4007.727 | G58: 8286.740496 | H58: 0.1329769324 | I58: 1101.945331
A59: 48 | C59: BIRCH CREEK UNIT 119 FR | D59: FRONTIER | E59: 2.067690862 | F59: 16031.143 | G59: 33147.44789 | H59: 0.1329769324 | I59: 4407.845938
A60: 49 | C60: BIRCH CREEK UNIT 121 BR | D60: BEAR RIVER | E60: 2.067690862 | F60: 17105.011 | G60: 35367.87494 | H60: 0.1329769324 | I60: 4703.111516
A61: 50 | C61: BIRCH CREEK UNIT 121 FR | D61: FRONTIER | E61: 2.067690862 | F61: 3504.076 | G61: 7245.345925 | H61: 0.1329769324 | I61: 963.4638754
A62: 51 | C62: BIRCH CREEK UNIT 122 BR | D62: BEAR RIVER | E62: 2.067690862 | F62: 2313.361 | G62: 4783.3154 | H62: 0.1329769324 | I62: 636.0706087
A63: 52 | C63: BIRCH CREEK UNIT 122 FR | D63: FRONTIER | E63: 2.067690862 | F63: 7967.269 | G63: 16473.84931 | H63: 0.1329769324 | I63: 2190.641946
A64: 53 | C64: BIRCH CREEK UNIT 123 BR | D64: BEAR RIVER | E64: 2.067690862 | F64: 4367.342 | G64: 9030.313145 | H64: 0.1329769324 | I64: 1200.823341
A65: 54 | C65: BIRCH CREEK UNIT 123 FR | D65: FRONTIER | E65: 2.067690862 | F65: 13105.424 | G65: 27097.96545 | H65: 0.1329769324 | I65: 3603.40432
A66: 55 | C66: BIRCH CREEK UNIT 124 BR | D66: BEAR RIVER | E66: 2.067690862 | F66: 3810.586 | G66: 7879.113851 | H66: 0.1329769324 | I66: 1047.74039
A67: 56 | C67: BIRCH CREEK UNIT 124 FR | D67: FRONTIER | E67: 2.067690862 | F67: 15231.642 | G67: 31494.32698 | H67: 0.1329769324 | I67: 4188.01899
A68: 57 | C68: BIRCH CREEK UNIT 126 BR | D68: BEAR RIVER | E68: 2.067690862 | F68: 7911.942 | G68: 16359.45017 | H68: 0.1329769324 | I68: 2175.4295
A69: 58 | C69: BIRCH CREEK UNIT 126 FR | D69: FRONTIER | E69: 2.067690862 | F69: 11874.292 | G69: 24552.36506 | H69: 0.1329769324 | I69: 3264.89819
A70: 59 | C70: BIRCH CREEK UNIT 127 BR | D70: DAKOTA | E70: 2.067690862 | F70: 6522.12 | G70: 13485.72793 | H70: 0.1329769324 | I70: 1793.290731
A71: 60 | C71: BIRCH CREEK UNIT 127 FR | D71: FRONTIER | E71: 2.067690862 | F71: 1631.208 | G71: 3372.833876 | H71: 0.1329769324 | I71: 448.5091024
A72: 61 | C72: BIRCH CREEK UNIT 128 FR | D72: FRONTIER | E72: 2.067690862 | F72: 24668.5 | G72: 51006.83203 | H72: 0.1329769324 | I72: 6782.732056
A73: 62 | C73: BIRCH CREEK UNIT 129 BR | D73: BEAR RIVER | E73: 2.067690862 | F73: 563.949 | G73: 1166.072194 | H73: 0.1329769324 | I73: 155.0607033
A74: 63 | C74: BIRCH CREEK UNIT 129 FR | D74: FRONTIER | E74: 2.067690862 | F74: 10746.337 | G74: 22220.10282 | H74: 0.1329769324 | I74: 2954.76111
A75: 64 | C75: BIRCH CREEK UNIT 130 BR | D75: BEAR RIVER | E75: 2.067690862 | F75: 9501.939 | G75: 19647.07244 | H75: 0.1329769324 | I75: 2612.607424
A76: 65 | C76: BIRCH CREEK UNIT 130 FR | D76: FRONTIER | E76: 2.067690862 | F76: 11617.045 | G76: 24020.45779 | H76: 0.1329769324 | I76: 3194.166792
A77: 66 | C77: BIRCH CREEK UNIT 131 FR | D77: FRONTIER | E77: 2.067690862 | F77: 16966.171 | G77: 35080.79674 | H77: 0.1329769324 | I77: 4664.936737
A78: 67 | C78: BIRCH CREEK UNIT 132 BR | D78: BEAR RIVER | E78: 2.067690862 | F78: 2598.784 | G78: 5373.481929 | H78: 0.1329769324 | I78: 714.5491434
A79: 68 | C79: BIRCH CREEK UNIT 132 FR | D79: FRONTIER | E79: 2.067690862 | F79: 14715.745 | G79: 30427.61147 | H79: 0.1329769324 | I79: 4046.170433
A80: 69 | C80: BIRCH CREEK UNIT 133 BR | D80: BEAR RIVER | E80: 2.067690862 | F80: 5600.988 | G80: 11581.11171 | H80: 0.1329769324 | I80: 1540.020709
A81: 70 | C81: BIRCH CREEK UNIT 133 FR | D81: FRONTIER | E81: 2.067690862 | F81: 22396.51 | G81: 46309.05907 | H81: 0.1329769324 | I81: 6158.036618
A82: 71 | C82: BIRCH CREEK UNIT 134 BR | D82: BEAR RIVER | E82: 2.067690862 | F82: 13687.55 | G82: 28301.62206 | H82: 0.1329769324 | I82: 3763.462884
A83: 72 | C83: BIRCH CREEK UNIT 134 FR | D83: FRONTIER | E83: 2.067690862 | F83: 18901.268 | G83: 39081.97913 | H83: 0.1329769324 | I83: 5197.001697
A84: 73 | C84: BIRCH CREEK UNIT 135 BR | D84: BEAR RIVER | E84: 2.067690862 | F84: 2473.25 | G84: 5113.916425 | H84: 0.1329769324 | I84: 680.0329188
A85: 74 | C85: BIRCH CREEK UNIT 135 FR | D85: FRONTIER | E85: 2.067690862 | F85: 3704.623 | G85: 7660.015125 | H85: 0.1329769324 | I85: 1018.605314
A86: 75 | C86: BIRCH CREEK UNIT 137 BR | D86: BEAR RIVER | E86: 2.067690862 | F86: 5087.105 | G86: 10518.56052 | H86: 0.1329769324 | I86: 1398.725912
A87: 76 | C87: BIRCH CREEK UNIT 137 FR | D87: FRONTIER | E87: 2.067690862 | F87: 8298.117 | G87: 17157.94069 | H87: 0.1329769324 | I87: 2281.61032
A88: 77 | C88: BIRCH CREEK UNIT 138 BR | D88: BEAR RIVER | E88: 2.067690862 | F88: 768.965 | G88: 1589.981904 | H88: 0.1329769324 | I88: 211.4309162
A89: 78 | C89: BIRCH CREEK UNIT 138 FR | D89: FRONTIER | E89: 2.067690862 | F89: 18467.149 | G89: 38184.35524 | H89: 0.1329769324 | I89: 5077.638426
A90: 79 | C90: BIRCH CREEK UNIT 139 BR | D90: BEAR RIVER | E90: 2.067690862 | F90: 6923.992 | G90: 14316.67499 | H90: 0.1329769324 | I90: 1903.787522
A91: 80 | C91: BIRCH CREEK UNIT 139 FR | D91: FRONTIER | E91: 2.067690862 | F91: 4967.411 | G91: 10271.07033 | H91: 0.1331519628 | I91: 1367.613175
A92: 81 | C92: BIRCH CREEK UNIT 13A BR | D92: BEAR RIVER | E92: 2.067690862 | F92: 8579.377 | G92: 17739.49943 | H92: 0.1329769324 | I92: 2358.944216
A93: 82 | C93: BIRCH CREEK UNIT 13A FR | D93: FRONTIER | E93: 2.067690862 | F93: 8574.833 | G93: 17730.10384 | H93: 0.1329769324 | I93: 2357.69482
A94: 83 | C94: BIRCH CREEK UNIT 140 BR | D94: BEAR RIVER | E94: 2.067690862 | F94: 3280.714 | G94: 6783.502359 | H94: 0.1329769324 | I94: 902.0493347
A95: 84 | C95: BIRCH CREEK UNIT 140 FR | D95: FRONTIER | E95: 2.067690862 | F95: 18562.826 | G95: 38382.1857 | H95: 0.1329769324 | I95: 5103.945313
A96: 85 | C96: BIRCH CREEK UNIT 141 BR | D96: BEAR RIVER | E96: 2.067690862 | F96: 13639.338 | G96: 28201.93455 | H96: 0.1329769324 | I96: 3750.206744
A97: 86 | C97: BIRCH CREEK UNIT 141 FR | D97: FRONTIER | E97: 2.067690862 | F97: 4545.51 | G97: 9398.709491 | H97: 0.1329769324 | I97: 1249.811557
A98: 87 | C98: BIRCH CREEK UNIT 142 BR | D98: BEAR RIVER | E98: 2.067690862 | F98: 2858.395 | G98: 5910.277222 | H98: 0.1329769324 | I98: 785.9305347
A99: 88 | C99: BIRCH CREEK UNIT 142 FR | D99: FRONTIER | E99: 2.067690862 | F99: 6676.592 | G99: 13805.12827 | H99: 0.1329769324 | I99: 1835.763609
A100: 89 | C100: BIRCH CREEK UNIT 144 BR | D100: BEAR RIVER | E100: 2.067690862 | F100: 663.028 | G100: 1370.936937 | H100: 0.1329769324 | I100: 182.3029884
A101: 90 | C101: BIRCH CREEK UNIT 144 FR | D101: FRONTIER | E101: 2.067690862 | F101: 10280.669 | G101: 21257.24535 | H101: 0.1329769324 | I101: 2826.723278
A102: 91 | C102: BIRCH CREEK UNIT 145 BR | D102: BEAR RIVER | E102: 2.067690862 | F102: 1146.044 | G102: 2369.664706 | H102: 0.1329769324 | I102: 315.1107435
A103: 92 | C103: BIRCH CREEK UNIT 145 FR | D103: FRONTIER | E103: 2.067690862 | F103: 8385.877 | G103: 17339.40124 | H103: 0.1329769324 | I103: 2305.740387
A104: 93 | C104: BIRCH CREEK UNIT 146 BR | D104: BEAR RIVER | E104: 2.067690862 | F104: 13092.158 | G104: 27070.53546 | H104: 0.1329769324 | I104: 3599.756765
A105: 94 | C105: BIRCH CREEK UNIT 146 FR | D105: FRONTIER | E105: 2.067690862 | F105: 4364.45 | G105: 9024.333383 | H105: 0.1329769324 | I105: 1200.02817
A106: 95 | C106: BIRCH CREEK UNIT 148 BR | D106: BEAR RIVER | E106: 2.067690862 | F106: 248.988 | G106: 514.8302124 | H106: 0.1329769324 | I106: 68.46054236
A107: 96 | C107: BIRCH CREEK UNIT 148 FR | D107: FRONTIER | E107: 2.067690862 | F107: 24082.155 | G107: 49794.45183 | H107: 0.1329769324 | I107: 6621.513456
A108: 97 | C108: BIRCH CREEK UNIT 149 BR | D108: BEAR RIVER | E108: 2.067690862 | F108: 4541.809 | G108: 9391.056967 | H108: 0.1329769324 | I108: 1248.793948
A109: 98 | C109: BIRCH CREEK UNIT 149 FR | D109: FRONTIER | E109: 2.067690862 | F109: 16107.966 | G109: 33306.29411 | H109: 0.1329769324 | I109: 4428.96882
A110: 99 | C110: BIRCH CREEK UNIT 151 BR | D110: BEAR RIVER | E110: 2.067690862 | F110: 4798.617 | G110: 9922.056522 | H110: 0.1329769324 | I110: 1319.40464
A111: 100 | C111: BIRCH CREEK UNIT 151 FR | D111: FRONTIER | E111: 2.067690862 | F111: 6620.984 | G111: 13690.14811 | H111: 0.1329769324 | I111: 1820.473901
A112: 101 | C112: BIRCH CREEK UNIT 153 ALMY | D112: ALMY | E112: 2.067690862 | F112: 1681.001 | G112: 3475.790407 | H112: 0.13375 | I112: 464.8869669
A113: 102 | C113: BIRCH CREEK UNIT 157 MESA | D113: MESAVERDE | E113: 2.067690862 | F113: 3830.51 | G113: 7920.310524 | H113: 0.13375 | I113: 1059.341533
A114: 103 | C114: BIRCH CREEK UNIT 159 MESA | D114: MESAVERDE | E114: 2.067690862 | F114: 8048.863 | G114: 16642.56048 | H114: 0.13375 | I114: 2225.942464
A115: 104 | C115: BIRCH CREEK UNIT 164 FR | D115: FRONTIER | E115: 2.067690862 | F115: 19896.577 | G115: 41139.97045 | H115: 0.1329769324 | I115: 5470.66707
A116: 105 | C116: BIRCH CREEK UNIT 166 BR | D116: BEAR RIVER | E116: 2.067690862 | F116: 5130.092 | G116: 10607.44435 | H116: 0.1329769324 | I116: 1410.54541
A117: 106 | C117: BIRCH CREEK UNIT 166 FR | D117: FRONTIER | E117: 2.067690862 | F117: 1284.088 | G117: 2655.097024 | H117: 0.1329769324 | I117: 353.0666575
A118: 107 | C118: BIRCH CREEK UNIT 167 BR | D118: BEAR RIVER | E118: 2.067690862 | F118: 1977.927 | G118: 4089.741584 | H118: 0.1329769324 | I118: 543.8412902
A119: 108 | C119: BIRCH CREEK UNIT 167 FR | D119: FRONTIER | E119: 2.067690862 | F119: 7910.3 | G119: 16356.05503 | H119: 0.1329769324 | I119: 2174.978024
A120: 109 | C120: BIRCH CREEK UNIT 168 BR | D120: BEAR RIVER | E120: 2.067690862 | F120: 1266.119 | G120: 2617.942687 | H120: 0.1329769324 | I120: 348.1259877
A121: 110 | C121: BIRCH CREEK UNIT 168 RECOM BAX | D121: BAXTER | E121: 2.067690862 | F121: 2544.966 | G121: 5262.202943 | H121: 0.13375 | I121: 703.8196436
A122: 111 | C122: BIRCH CREEK UNIT 168 RECOM FR | D122: FRONTIER | E122: 2.067690862 | F122: 5159.018 | G122: 10667.25438 | H122: 0.1329769324 | I122: 1418.498764
A123: 112 | C123: BIRCH CREEK UNIT 169 BR | D123: BEAR RIVER | E123: 2.067690862 | F123: 3394.191 | G123: 7018.137715 | H123: 0.1329769324 | I123: 933.2504246
A124: 113 | C124: BIRCH CREEK UNIT 169 FR | D124: FRONTIER | E124: 2.067690862 | F124: 13567.83 | G124: 28054.07811 | H124: 0.1329769324 | I124: 3730.545249
A125: 114 | C125: BIRCH CREEK UNIT 173 BR | D125: BEAR RIVER | E125: 2.067690862 | F125: 7042.345 | G125: 14561.3924 | H125: 0.1329769324 | I125: 1936.329294
A126: 115 | C126: BIRCH CREEK UNIT 173 FR | D126: FRONTIER | E126: 2.067690862 | F126: 20035.248 | G126: 41426.69921 | H126: 0.1329769324 | I126: 5508.795381
A127: 116 | C127: BIRCH CREEK UNIT 174 BR | D127: BEAR RIVER | E127: 2.067690862 | F127: 10485.968 | G127: 21681.74021 | H127: 0.1329769324 | I127: 2883.171303
A128: 117 | C128: BIRCH CREEK UNIT 174 FR | D128: FRONTIER | E128: 2.067690862 | F128: 10373.66 | G128: 21449.52199 | H128: 0.1329769324 | I128: 2852.291636
A129: 118 | C129: BIRCH CREEK UNIT 177 BR | D129: BEAR RIVER | E129: 2.067690862 | F129: 3503.198 | G129: 7243.530493 | H129: 0.1329769324 | I129: 963.2224648
A130: 119 | C130: BIRCH CREEK UNIT 177 FR | D130: FRONTIER | E130: 2.067690862 | F130: 14016.639 | G130: 28982.07638 | H130: 0.1329769324 | I130: 3853.947612
A131: 120 | C131: BIRCH CREEK UNIT 178 BR | D131: BEAR RIVER | E131: 2.067690862 | F131: 4944.354 | G131: 10223.39558 | H131: 0.1329769324 | I131: 1359.475784
A132: 121 | C132: BIRCH CREEK UNIT 178 FR | D132: FRONTIER | E132: 2.067690862 | F132: 19767.064 | G132: 40872.1776 | H132: 0.1329769324 | I132: 5435.056799
A133: 122 | C133: BIRCH CREEK UNIT 179 BR | D133: BEAR RIVER | E133: 2.067690862 | F133: 4306.108 | G133: 8903.700163 | H133: 0.1329769324 | I133: 1183.986735
A134: 123 | C134: BIRCH CREEK UNIT 179 FR | D134: FRONTIER | E134: 2.067690862 | F134: 2866.336 | G134: 5926.696755 | H134: 0.1329769324 | I134: 788.1139538
A135: 124 | C135: BIRCH CREEK UNIT 180 FR | D135: FRONTIER | E135: 2.067690862 | F135: 14095.493 | G135: 29145.12207 | H135: 0.1329769324 | I135: 3875.628928
A136: 125 | C136: BIRCH CREEK UNIT 181 BR | D136: BEAR RIVER | E136: 2.067690862 | F136: 3146.159 | G136: 6505.284215 | H136: 0.1329769324 | I136: 865.0527394
A137: 126 | C137: BIRCH CREEK UNIT 181 FR | D137: FRONTIER | E137: 2.067690862 | F137: 12565.105 | G137: 25980.75279 | H137: 0.1329769324 | I137: 3454.840808
A138: 127 | C138: BIRCH CREEK UNIT 182 BR | D138: BEAR RIVER | E138: 2.067690862 | F138: 3322.858 | G138: 6870.643123 | H138: 0.1329769324 | I138: 913.6370462
A139: 128 | C139: BIRCH CREEK UNIT 182 FR | D139: FRONTIER | E139: 2.067690862 | F139: 4985.14 | G139: 10307.72842 | H139: 0.1329769324 | I139: 1370.690106
A140: 129 | C140: BIRCH CREEK UNIT 183 BR | D140: BEAR RIVER | E140: 2.067690862 | F140: 7368.361 | G140: 15235.49271 | H140: 0.1329769324 | I140: 2025.969084
A141: 130 | C141: BIRCH CREEK UNIT 183 FR | D141: FRONTIER | E141: 2.067690862 | F141: 11050.99 | G141: 22850.03104 | H141: 0.1329769324 | I141: 3038.527033
A142: 131 | C142: BIRCH CREEK UNIT 184 BR | D142: BEAR RIVER | E142: 2.067690862 | F142: 1897.862 | G142: 3924.191915 | H142: 0.1329769324 | I142: 521.8270031
A143: 132 | C143: BIRCH CREEK UNIT 184 FR | D143: FRONTIER | E143: 2.067690862 | F143: 17119.602 | G143: 35398.04462 | H143: 0.1329769324 | I143: 4707.123387
A144: 133 | C144: BIRCH CREEK UNIT 185 BR | D144: BEAR RIVER | E144: 2.067690862 | F144: 5546.562 | G144: 11468.57556 | H144: 0.1329769324 | I144: 1525.055998
A145: 134 | C145: BIRCH CREEK UNIT 185 FR | D145: FRONTIER | E145: 2.067690862 | F145: 12931.308 | G145: 26737.94739 | H145: 0.1329769324 | I145: 3555.530223
A146: 135 | C146: BIRCH CREEK UNIT 187 BR | D146: BEAR RIVER | E146: 2.067690862 | F146: 7335.826 | G146: 15168.22039 | H146: 0.1329769324 | I146: 2017.023417
A147: 136 | C147: BIRCH CREEK UNIT 187 FR | D147: FRONTIER | E147: 2.067690862 | F147: 13039.238 | G147: 26961.11326 | H147: 0.1329769324 | I147: 3585.206136
A148: 137 | C148: BIRCH CREEK UNIT 188 FR | D148: FRONTIER | E148: 2.067690862 | F148: 20560.966 | G148: 42513.72151 | H148: 0.1329769324 | I148: 5653.344273
A149: 138 | C149: BIRCH CREEK UNIT 189 BR | D149: BEAR RIVER | E149: 2.067690862 | F149: 6968.534 | G149: 14408.77407 | H149: 0.1329769324 | I149: 1916.034576
A150: 139 | C150: BIRCH CREEK UNIT 189 FR | D150: FRONTIER | E150: 2.067690862 | F150: 10033.818 | G150: 20746.83379 | H150: 0.1329769324 | I150: 2758.850315
A151: 140 | C151: BIRCH CREEK UNIT 190 BR | D151: BEAR RIVER | E151: 2.067690862 | F151: 2384.762 | G151: 4930.950596 | H151: 0.1329769324 | I151: 655.7026841
A152: 141 | C152: BIRCH CREEK UNIT 190 FR | D152: FRONTIER | E152: 2.067690862 | F152: 21459.09 | G152: 44370.7643 | H152: 0.1329769324 | I152: 5900.288126
A153: 142 | C153: BIRCH CREEK UNIT 191 BR | D153: BEAR RIVER | E153: 2.067690862 | F153: 3374.204 | G153: 6976.810778 | H153: 0.1329769324 | I153: 927.7548953
A154: 143 | C154: BIRCH CREEK UNIT 191 FR | D154: FRONTIER | E154: 2.067690862 | F154: 14388.26 | G154: 29750.47372 | H154: 0.1329769324 | I154: 3956.126734
A155: 144 | C155: BIRCH CREEK UNIT 192 BR | D155: BEAR RIVER | E155: 2.067690862 | F155: 1546.876 | G155: 3198.46137 | H155: 0.1329769324 | I155: 425.3215814
A156: 145 | C156: BIRCH CREEK UNIT 192 FR | D156: FRONTIER | E156: 2.067690862 | F156: 24258.06 | G156: 50158.16899 | H156: 0.1329769324 | I156: 6669.879448
A157: 146 | C157: BIRCH CREEK UNIT 193 BR | D157: BEAR RIVER | E157: 2.067690862 | F157: 917.002 | G157: 1896.076656 | H157: 0.1329769324 | I157: 252.1344573
A158: 147 | C158: BIRCH CREEK UNIT 193 FR | D158: FRONTIER | E158: 2.067690862 | F158: 17432.676 | G158: 36045.38487 | H158: 0.1329769324 | I158: 4793.204707
A159: 148 | C159: BIRCH CREEK UNIT 194 BR | D159: BEAR RIVER | E159: 2.067690862 | F159: 1604.936 | G159: 3318.511501 | H159: 0.1329769324 | I159: 441.2854797
A160: 149 | C160: BIRCH CREEK UNIT 194 FR | D160: FRONTIER | E160: 2.067690862 | F160: 25185.944 | G160: 52076.74626 | H160: 0.1329769324 | I160: 6925.005968
A161: 150 | C161: BIRCH CREEK UNIT 195 BR | D161: BEAR RIVER | E161: 2.067690862 | F161: 3640.253 | G161: 7526.917864 | H161: 0.1329769324 | I161: 1000.906448
A162: 151 | C162: BIRCH CREEK UNIT 195 FR | D162: FRONTIER | E162: 2.067690862 | F162: 26701.98 | G162: 55211.44005 | H162: 0.1329769324 | I162: 7341.847932
A163: 152 | C163: BIRCH CREEK UNIT 196 BR | D163: BEAR RIVER | E163: 2.067690862 | F163: 418.958 | G163: 866.2756282 | H163: 0.1329769324 | I163: 115.1946757
A164: 153 | C164: BIRCH CREEK UNIT 196 FR | D164: FRONTIER | E164: 2.067690862 | F164: 20432.159 | G164: 42247.38846 | H164: 0.1329769324 | I164: 5617.92812
A165: 154 | C165: BIRCH CREEK UNIT 198 BR | D165: BEAR RIVER | E165: 2.067690862 | F165: 3527.437 | G165: 7293.649252 | H165: 0.1329769324 | I165: 969.8871036
A166: 155 | C166: BIRCH CREEK UNIT 198 FR | D166: FRONTIER | E166: 2.067690862 | F166: 2074.104 | G166: 4288.605888 | H166: 0.1329769324 | I166: 570.2856553
A167: 156 | C167: BIRCH CREEK UNIT 199 BR | D167: BEAR RIVER | E167: 2.067690862 | F167: 1157.939 | G167: 2394.259889 | H167: 0.1329769324 | I167: 318.3813355
A168: 157 | C168: BIRCH CREEK UNIT 199 FR | D168: FRONTIER | E168: 2.067690862 | F168: 11725.835 | G168: 24245.40188 | H168: 0.1329769324 | I168: 3224.079167
A169: 158 | C169: BIRCH CREEK UNIT 2 BR | D169: BEAR RIVER | E169: 2.067690862 | F169: 4321.204 | G169: 8934.914024 | H169: 0.1329769324 | I169: 1188.137458
A170: 159 | C170: BIRCH CREEK UNIT 2 FR | D170: FRONTIER | E170: 2.067690862 | F170: 7058.234 | G170: 14594.24594 | H170: 0.1329769324 | I170: 1940.698057
A171: 160 | C171: BIRCH CREEK UNIT 200 BR | D171: BEAR RIVER | E171: 2.067690862 | F171: 2627.184 | G171: 5432.20435 | H171: 0.1329769324 | I171: 722.3578707
A172: 161 | C172: BIRCH CREEK UNIT 200 FR | D172: FRONTIER | E172: 2.067690862 | F172: 7879.886 | G172: 16293.16828 | H172: 0.1329769324 | I172: 2166.615537
A173: 162 | C173: BIRCH CREEK UNIT 201-25 BR | D173: BEAR RIVER | E173: 2.067690862 | F173: 3025.228 | G173: 6255.236291 | H173: 0.1329769324 | I173: 831.8021336
A174: 163 | C174: BIRCH CREEK UNIT 201-25 FR | D174: FRONTIER | E174: 2.067690862 | F174: 7062.184 | G174: 14602.41332 | H174: 0.1329769324 | I174: 1941.78413
A175: 164 | C175: BIRCH CREEK UNIT 202-25 BR | D175: BEAR RIVER | E175: 2.067690862 | F175: 4904.139 | G175: 10140.2434 | H175: 0.1329769324 | I175: 1348.418461
A176: 165 | C176: BIRCH CREEK UNIT 202-25 FR | D176: FRONTIER | E176: 2.067690862 | F176: 11445.168 | G176: 23665.06929 | H176: 0.1329769324 | I176: 3146.908319
A177: 166 | C177: BIRCH CREEK UNIT 203-25 BR | D177: BEAR RIVER | E177: 2.067690862 | F177: 6791.46 | G177: 14042.63978 | H177: 0.1329769324 | I177: 1867.347161
A178: 167 | C178: BIRCH CREEK UNIT 203-25 FR | D178: FRONTIER | E178: 2.067690862 | F178: 15838.559 | G178: 32749.24371 | H178: 0.1329769324 | I178: 4354.893968
A179: 168 | C179: BIRCH CREEK UNIT 26 FR | D179: FRONTIER | E179: 2.067690862 | F179: 10965.673 | G179: 22673.62186 | H179: 0.1329769324 | I179: 3015.068682
A180: 169 | C180: BIRCH CREEK UNIT 28 ALMY | D180: ALMY | E180: 2.067690862 | F180: 6969.31 | G180: 14410.3786 | H180: 0.13375 | I180: 1927.388138
A181: 170 | C181: BIRCH CREEK UNIT 3 FFR | D181: 1ST FRONTIER | E181: 2.067690862 | F181: 16799.516 | G181: 34736.20572 | H181: 0.1329769324 | I181: 4619.114081
A182: 171 | C182: BIRCH CREEK UNIT 33 ALMY | D182: ALMY | E182: 2.067690862 | F182: 9012.619 | G182: 18635.30995 | H182: 0.13375 | I182: 2492.472706
A183: 172 | C183: BIRCH CREEK UNIT 34 ALMY | D183: ALMY | E183: 2.067690862 | F183: 166.002 | G183: 343.2408185 | H183: 0.13375 | I183: 45.90845947
A184: 173 | C184: BIRCH CREEK UNIT 36 ALMY | D184: ALMY | E184: 2.067690862 | F184: 1559.907 | G184: 3225.40545 | H184: 0.13375 | I184: 431.3979789
A185: 174 | C185: BIRCH CREEK UNIT 38 ALMY | D185: ALMY | E185: 2.067690862 | F185: 9625.703 | G185: 19902.97813 | H185: 0.13375 | I185: 2662.023325
A186: 175 | C186: BIRCH CREEK UNIT 40 ALMY | D186: ALMY | E186: 2.067690862 | F186: 4602.153 | G186: 9515.829704 | H186: 0.13375 | I186: 1272.742223
A187: 176 | C187: BIRCH CREEK UNIT 43A BR | D187: BEAR RIVER | E187: 2.067690862 | F187: 1138.953 | G187: 2355.00271 | H187: 0.1329769324 | I187: 313.1610363
A188: 177 | C188: BIRCH CREEK UNIT 43A FR | D188: FRONTIER | E188: 2.067690862 | F188: 10256.105 | G188: 21206.45459 | H188: 0.1329769324 | I188: 2819.969279
A189: 178 | C189: BIRCH CREEK UNIT 48 ALMY | D189: ALMY | E189: 2.067690862 | F189: 147.006 | G189: 303.9629629 | H189: 0.13375 | I189: 40.65504628
A190: 179 | C190: BIRCH CREEK UNIT 5 2ND FR | D190: FRONTIER | E190: 2.067690862 | F190: 2304.977 | G190: 4765.97988 | H190: 0.1329769324 | I190: 633.7653844
A191: 180 | C191: BIRCH CREEK UNIT 5 FR | D191: FORT UNION | E191: 2.067690862 | F191: 2496.134 | G191: 5161.233462 | H191: 0.1329769324 | I191: 686.3249933
A192: 181 | C192: BIRCH CREEK UNIT 52 ALMY | D192: ALMY | E192: 2.067690862 | F192: 565.925 | G192: 1170.157951 | H192: 0.13375 | I192: 156.508626
A193: 182 | C193: BIRCH CREEK UNIT 56 2ND FR | D193: FRONTIER | E193: 2.067690862 | F193: 4868.363 | G193: 10066.26969 | H193: 0.1329769324 | I193: 1338.581664
A194: 183 | C194: BIRCH CREEK UNIT 58 MESA | D194: MESAVERDE | E194: 2.067690862 | F194: 718.037 | G194: 1484.678544 | H194: 0.1337500665 | I194: 198.5758539
A195: 184 | C195: BIRCH CREEK UNIT 6 FR | D195: FRONTIER | E195: 2.067690862 | F195: 11344.795 | G195: 23457.52895 | H195: 0.1329769324 | I195: 3119.310242
A196: 185 | C196: BIRCH CREEK UNIT 61 BR | D196: BEAR RIVER | E196: 2.067690862 | F196: 2476.971 | G196: 5121.610302 | H196: 0.1329769324 | I196: 681.056027
A197: 186 | C197: BIRCH CREEK UNIT 61 FR | D197: FRONTIER | E197: 2.067690862 | F197: 9874.86 | G197: 20418.15779 | H197: 0.1329769324 | I197: 2715.143988
A198: 187 | C198: BIRCH CREEK UNIT 62 MESA | D198: MESAVERDE | E198: 2.067690862 | F198: 688.006 | G198: 1422.583719 | H198: 0.1337500665 | I198: 190.2706671
A199: 188 | C199: BIRCH CREEK UNIT 66 MESA | D199: ALMY | E199: 2.067690862 | F199: 2434.219 | G199: 5033.212383 | H199: 0.13375 | I199: 673.1921562
A200: 189 | C200: BIRCH CREEK UNIT 67 MESA | D200: MESAVERDE | E200: 2.067690862 | F200: 1058.067 | G200: 2187.755467 | H200: 0.13375 | I200: 292.6122938
A201: 190 | C201: BIRCH CREEK UNIT 69 MESA | D201: MESAVERDE | E201: 2.067690862 | F201: 1184.092 | G201: 2448.336208 | H201: 0.1337500665 | I201: 327.4651307
A202: 191 | C202: BIRCH CREEK UNIT 7 FR | D202: FRONTIER | E202: 2.067690862 | F202: 5643.458 | G202: 11668.92654 | H202: 0.1329769324 | I202: 1551.698056
A203: 192 | C203: BIRCH CREEK UNIT 74 ALMY (NP) | D203: ALMY | E203: 2.067690862 | F203: 1815.928 | G203: 3754.777732 | H203: 0.1337500665 | I203: 502.2017713
A204: 193 | C204: BIRCH CREEK UNIT 8 FR | D204: FRONTIER | E204: 2.067690862 | F204: 17042.244 | G204: 35238.09219 | H204: 0.1329769324 | I204: 4685.853403
A205: 194 | C205: BIRCH CREEK UNIT 87 2ND FR | D205: FRONTIER | E205: 2.067690862 | F205: 6954.416 | G205: 14379.58241 | H205: 0.1329769324 | I205: 1912.152759
... 1448 more rows

Sheet Ut 1.2
H1: ='Control Panel'!$E$32 -> Dominion Energy Utah
H2: ='Control Panel'!$E$33 -> Docket No. 18-057-14
H3: DEU Exhibit 1.2
B8: TEST YEAR PURCHASED GAS COSTS
D11: (A) | E11: (B) | F11: (C) | G11: (D)
F12: Cost
C13: Component | E13: Dth | F13: per Dth | G13: Total Cost
B15: 1 | C15: Current Contracts | G15: =ROUND(Calculations!$P$186+Calculations!$P$189-G16,0) -> 56502148
B16: =B15+1 -> 2 | C16: Stabilization Costs | G16: ='Monthly Inputs'!S94 -> 0
B17: =B16+1 -> 3 | D17: Total Current Contracts | E17: =Calculations!$P$185+Calculations!$P$188 -> 20260000 | F17: =G17/E17 -> 2.78885232 | G17: =G15+G16 -> 56502148
B19: =B17+1 -> 4 | C19: Forecast Spot | E19: =Calculations!$P$182 -> 30802326.39 | F19: =G19/E19 -> 2.408766534 | G19: =ROUND(Calculations!P183,0) -> 74195613
B21: =B19+1 -> 5 | C21: Future Contracts | E21: =Calculations!P191 -> 1569111.605 | F21: =G21/E21 -> 1.88103446 | G21: =ROUND(Calculations!P192,0) -> 2951553
B24: =B21+1 -> 6 | C24: Total Gas Purchased | E24: =E17+E19+E21 -> 52631438 | F24: =G24/E24 -> 2.539343766 | G24: =G17+G19+G21 -> 133649314

Sheet Ut 1.3 p1
N1: ='Control Panel'!$E$32 -> Dominion Energy Utah
N2: ='Control Panel'!$E$33 -> Docket No. 18-057-14
N3: DEU Exhibit 1.3
N4: Page 1 of 2
B8: TEST YEAR TRANSPORTATION, GATHERING & PROCESSING CHARGES
B11: (A) | D11: (B) | F11: (C) | H11: (D) | J11: (E) | L11: (F) | M11: (G)
D12: Fctr | F12: Dth | H12: Months/Days | J12: Rate | M12: Total Costs
B14: TRANSPORTATION DEMAND
B16: QPC Demand
A17: 1 | B17: T-1 Transportation - Yearly | F17: ='Other Inputs'!D28+'Other Inputs'!D29+'Other Inputs'!D30+'Other Inputs'!D32 -> 940902 | G17: x | H17: ='Other Inputs'!E28 -> 12 | I17: x | J17: ='Other Inputs'!F28 -> 5.28804 | K17: = | L17: =ROUND(F17*H17*J17,0) -> 59706329
A18: =A17+1 -> 2 | B18: T-1 Transportation Nov-Mar | F18: ='Other Inputs'!D31 -> 75000 | G18: x | H18: ='Other Inputs'!E31 -> 5 | I18: x | J18: ='Other Inputs'!F31 -> 6.80887 | K18: = | L18: =ROUND(F18*H18*J18,0) -> 2553326
A19: =A18+1 -> 3 | B19: No-Notice Transportation | F19: ='Other Inputs'!D37 -> 203542 | G19: x | H19: ='Other Inputs'!E37 -> 12 | I19: x | J19: ='Other Inputs'!F37 -> 0.86753 | K19: = | L19: =ROUND(F19*H19*J19,0) -> 2118945
A20: =A19+1 -> 4 | B20: Capacity Release Credits | L20: =-ROUND('Other Inputs'!E327,0) -> -2218191
A21: =A20+1 -> 5 | C21: Total | L21: =SUM(L17:L20) -> 62160409
B23: Kern River Demand
A24: =A21+1 -> 6 | B24: January - December | F24: ='Other Inputs'!D63 -> 1885 | G24: x | H24: ='Other Inputs'!E63 -> 12 | I24: x | J24: ='Other Inputs'!F63 -> 17.74204167 | K24: = | L24: =ROUND(F24*H24*J24,0) -> 401325
A25: =A24+1 -> 7 | B25: January - December | F25: ='Other Inputs'!D61 -> 33000 | G25: x | H25: ='Other Inputs'!E61 -> 12 | I25: x | J25: ='Other Inputs'!F61 -> 3.565133333 | K25: = | L25: =ROUND(F25*H25*J25,0) -> 1411793
A26: =A25+1 -> 8 | B26: November - March | F26: ='Other Inputs'!D62 -> 50000 | G26: x | H26: ='Other Inputs'!E62 -> 5 | I26: x | J26: =J25 -> 3.565133333 | K26: = | L26: =ROUND(F26*H26*J26,0) -> 891283
A27: =A26+1 -> 9 | B27: December - February | F27: ='Other Inputs'!D68 -> 56925 | G27: x | H27: ='Other Inputs'!E68 -> 3 | I27: x | J27: ='Other Inputs'!F68 -> 8.7 | K27: = | L27: =ROUND(F27*H27*J27,0) -> 1485743
A28: 10 | B28: November & March | F28: ='Other Inputs'!D70 -> 6000 | G28: x | H28: ='Other Inputs'!E70 -> 2 | I28: x | J28: ='Other Inputs'!F70 -> 8.845 | K28: = | L28: 106140
A29: 11 | B29: November - March | F29: ='Other Inputs'!D72 -> 27000 | G29: x | H29: ='Other Inputs'!E72 -> 5 | I29: x | J29: ='Other Inputs'!F72 -> 8.758 | K29: = | L29: 1182330
A30: 12 | C30: Total | L30: =SUM(L24:L29) -> 5478614
B32: Colorado Interstate Gas Company (CIG)
A33: =A30+1 -> 13 | B33: January - December | F33: ='Other Inputs'!D87 -> 400 | G33: x | H33: ='Other Inputs'!E87 -> 12 | I33: x | J33: ='Other Inputs'!F87 -> 9.0095 | K33: = | L33: =ROUND(F33*H33*J33,0) -> 43246
B35: Northwest Pipeline (NWPL)
A36: =A33+1 -> 14 | B36: January - December | F36: ='Other Inputs'!D93+'Other Inputs'!D95+'Other Inputs'!D97 -> 6327 | G36: x | H36: ='Other Inputs'!E93 -> 12 | I36: x | J36: ='Other Inputs'!F93 -> 11.951925 | K36: = | L36: =ROUND(F36*H36*J36,0) -> 907438
A38: =A36+1 -> 15 | B38: Total Transportation Demand (SNG) | M38: =L21+L30+L33+L36 -> 68589707
B41: TRANSPORTATION COMMODITY
A43: =A38+1 -> 16 | B43: QPC Commodity (SNG) | F43: =F49-(D52*F52*H52)-(D53*F53*H53)-(D54*F54*H54)-(D55*F55*H55)-(D56*F56*H56)-F45-F47 -> 117635376.1 | I43: x | J43: ='Other Inputs'!F45 -> 0.00267 | K43: = | L43: =ROUND(F43*J43,0) -> 314086
A45: =A43+1 -> 17 | B45: CIG Commodity (SNG) | F45: ='Other Inputs'!D87*'Other Inputs'!E88 -> 146000 | I45: x | J45: ='Other Inputs'!F89 -> 0.0166 | K45: = | L45: =ROUND(F45*J45,0) -> 2424
A47: =A45+1 -> 18 | B47: NWPL Commodity (SNG) | F47: ='Other Inputs'!D93*'Other Inputs'!E94+'Other Inputs'!D95*'Other Inputs'!E96+'Other Inputs'!D97*'Other Inputs'!E98 -> 2309355 | I47: x | J47: ='Other Inputs'!F99 -> 0.00832 | K47: = | L47: =ROUND(F47*J47,0) -> 19214
A49: =A47+1 -> 19 | B49: Total ACA | F49: =Calculations!$P$173 -> 132349457.9 | I49: x | J49: ='Other Inputs'!F46 -> 0.0013 | K49: = | L49: =ROUND(F49*J49,0) -> 172054
B51: Kern River Commodity
A52: =A49+1 -> 20 | B52: January - December | D52: ='Other Inputs'!C76 -> 0.4106875895 | E52: x | F52: ='Other Inputs'!D76 -> 34885 | G52: x | H52: ='Other Inputs'!E76 -> 365 | I52: x | J52: ='Other Inputs'!F76 -> 0.0044 | K52: = | L52: =ROUND(D52*F52*H52*J52,0) -> 23009
A53: =A52+1 -> 21 | B53: November - March | D53: ='Other Inputs'!C77 -> 0.4106875895 | E53: x | F53: ='Other Inputs'!D77 -> 50000 | G53: x | H53: ='Other Inputs'!E77 -> 151 | I53: x | J53: ='Other Inputs'!F77 -> 0.0044 | K53: = | L53: =ROUND(D53*F53*H53*J53,0) -> 13643
A54: =A53+1 -> 22 | B54: November & March | D54: ='Other Inputs'!C81 -> 0.4106875895 | E54: x | F54: ='Other Inputs'!D81 -> 6000 | G54: x | H54: ='Other Inputs'!E81 -> 61 | I54: x | J54: ='Other Inputs'!F81 -> 0.0044 | K54: = | L54: =ROUND(D54*F54*H54*J54,0) -> 661
A55: =A54+1 -> 23 | B55: December - February | D55: ='Other Inputs'!C80 -> 0.4106875895 | E55: x | F55: ='Other Inputs'!D80 -> 56925 | G55: x | H55: ='Other Inputs'!E80 -> 90 | I55: x | J55: ='Other Inputs'!F80 -> 0.0044 | K55: = | L55: 9258
A56: 24 | B56: November - March | D56: ='Other Inputs'!C81 -> 0.4106875895 | E56: x | F56: ='Other Inputs'!D83 -> 27000 | G56: x | H56: ='Other Inputs'!E83 -> 151 | I56: x | J56: ='Other Inputs'!F83 -> 0.0044 | K56: = | L56: 7367
A57: 25 | C57: Total (SNG) | L57: =SUM(L52:L56) -> 53938
A59: =A57+1 -> 26 | B59: Total Transportation Commodity | M59: =L49+L57+L43+L45+L47 -> 561716
B62: OTHER CHARGES
A64: =A59+1 -> 27 | B64: Wexpro I Gathering Demand | L64: ='Other Inputs'!E209 -> 11774616
A65: =A64+1 -> 28 | B65: Wexpro I Gathering Commodity | L65: ='Other Inputs'!D209 -> 7391644.362
A66: =A65+1 -> 29 | C66: Total Wexpro I Gathering (SNG) | M66: =L64+L65 -> 19166260.36 | N66: 1/
A68: =A66+1 -> 30 | B68: Wexpro II Gathering | J68: ='Other Inputs'!D212 -> 2927171.22 | L68: ='Other Inputs'!D212 -> 2927171.22
A69: =A68+1 -> 31 | B69: Other Wexpro I Gathering Charges | L69: =ROUND('Other Inputs'!D201,0) -> 3013070
A70: =A69+1 -> 32 | B70: Other Transportation Charges | L70: =ROUND('Other Inputs'!$D$203,0) -> 3718588
A71: =A70+1 -> 33 | C71: Total Wexpro II Gathering, Other Gathering & Transportation | M71: =SUM(L68:L70) -> 9658829.22
B75: PEAK HOUR SERVICE
A76: =A71+1 -> 34 | B76: Mid November - Mid February | F76: ='Other Inputs'!D20 -> 25000 | G76: x | H76: ='Other Inputs'!E20 -> 3 | I76: x | J76: ='Other Inputs'!F20 -> 11.65333333 | K76: = | L76: =ROUND(F76*H76*J76,0) -> 874000
A77: =A76+1 -> 35 | B77: Mid November - Mid February | F77: ='Other Inputs'!D23 -> 68666.66667 | G77: x | H77: ='Other Inputs'!E23 -> 3 | I77: x | J77: ='Other Inputs'!F23 -> 5.950558252 | K77: = | L77: =ROUND(F77*H77*J77,0) -> 1225815
A78: =A77+1 -> 36 | B78: Disallowance of Docket No. 17-057-20 Report and Order | L78: -262000
A79: =A78+1 -> 37 | C79: Total Peak Hour Service | M79: =SUM(L76:L78) -> 1837815
A82: =A79+1 -> 38 | B82: TOTAL TRANSPORTATION, OTHER CHARGES AND PEAK HOUR | M82: =SUM(M13:M80) -> 99814327.58
A85: 1/ | B85: See paragraph 7c in application.

Sheet Ut 1.3 p2
L1: ='Control Panel'!$E$32 -> Dominion Energy Utah
L2: ='Control Panel'!$E$33 -> Docket No. 18-057-14
L3: DEU Exhibit 1.3
L4: Page 2 of 2
B7: TEST YEAR STORAGE AND WORKING GAS CHARGES
B10: (A) | D10: (B) | F10: (C) | H10: (D) | J10: (E) | K10: (F)
B12: STORAGE CHARGES 1/
B14: Component | D14: Dth | F14: Months | H14: Rate | K14: Total Costs
B15: Storage Demand
A16: 1 | B16: Aquifer Peaking Demand | D16: ='Other Inputs'!E187 -> 184625 | E16: x | F16: 12 | G16: x | H16: ='Other Inputs'!E14 -> 2.87375 | I16: = | J16: =ROUND(D16*F16*H16,0) -> 6366793
A17: =A16+1 -> 2 | B17: Spire Demand | D17: ='Other Inputs'!E188 -> 2500000 | E17: x | F17: 12 | G17: x | H17: ='Other Inputs'!E15 -> 0.09 | I17: = | J17: =ROUND(D17*F17*H17,0) -> 2700000
A18: =A17+1 -> 3 | B18: Clay Basin Demand | D18: ='Other Inputs'!E189 -> 111827 | E18: x | F18: 12 | G18: x | H18: ='Other Inputs'!E16 -> 2.85338 | I18: = | J18: =ROUND(D18*F18*H18,0) -> 3829019
A19: 4 | B19: Clay Basin Capacity | D19: ='Other Inputs'!E190 -> 13419000 | E19: x | F19: 12 | G19: x | H19: ='Other Inputs'!E17 -> 0.02378 | I19: = | J19: =ROUND(D19*F19*H19,0) -> 3829246
A20: 5 | C20: Total Demand Charges (SNG) | J20: =SUM(J16:J19) -> 16725058
B22: Storage Commodity 2/
A23: =A20+1 -> 6 | B23: Aquifer Peaking Injections | D23: =(+'Monthly Inputs'!S24+'Monthly Inputs'!S26+'Monthly Inputs'!S27) -> 949790.844 | F23: x | H23: ='Other Inputs'!E6 -> 0.03872 | I23: = | J23: =ROUND(D23*H23,0) -> 36776
A24: =A23+1 -> 7 | B24: Aquifer Peaking Withdrawals | D24: =(+'Monthly Inputs'!S32+'Monthly Inputs'!S34+'Monthly Inputs'!S35) -> 921899.9901 | F24: x | H24: ='Other Inputs'!E7 -> 0.03872 | I24: = | J24: =ROUND(D24*H24,0) -> 35696
A25: =A24+1 -> 8 | B25: Spire Injections | D25: ='Monthly Inputs'!S28 -> 2493734.253 | F25: x | H25: ='Other Inputs'!E8 -> 0.015 | I25: = | J25: =ROUND(D25*H25,0) -> 37406
A26: =A25+1 -> 9 | B26: Spire Withdrawals | D26: ='Monthly Inputs'!S36 -> 2284202.393 | F26: x | H26: ='Other Inputs'!E9 -> 0.01 | I26: = | J26: 22842
A27: 10 | B27: Clay Basin Injections | D27: ='Monthly Inputs'!S25 -> 12959073.14 | F27: x | H27: ='Other Inputs'!E10 -> 0.01049 | I27: = | J27: =ROUND(D27*H27,0) -> 135941
A28: =A27+1 -> 11 | B28: Clay Basin Withdrawals | D28: ='Monthly Inputs'!S33 -> 12635096.42 | F28: x | H28: ='Other Inputs'!E11 -> 0.01781 | I28: = | J28: =ROUND(D28*H28,0) -> 225031
A29: =A28+1 -> 12 | C29: Total Commodity Charges | J29: =SUM(J23:J28) -> 493692
A31: =A29+1 -> 13 | B31: Total Storage Charges | K31: =J20+J29 -> 17218750
B34: WORKING GAS CHARGES - QGC Account 164
C36: Month | D36: Amount | H36: Pre-Tax Return %
A38: =A31+1 -> 14 | C38: =+'Rate Base'!H8 -> 2017-08-16 | D38: =+'Rate Base'!H206 -> 48018857.41
A39: =A38+1 -> 15 | C39: =+'Rate Base'!I8 -> 2017-09-17 | D39: =+'Rate Base'!I206 -> 58860691.74
A40: 16 | C40: =+'Rate Base'!J8 -> 2017-10-19 | D40: =+'Rate Base'!J206 -> 59031895.8
A41: 17 | C41: =+'Rate Base'!K8 -> 2017-11-18 | D41: =+'Rate Base'!K206 -> 59289969.15
A42: 18 | C42: =+'Rate Base'!L8 -> 2017-12-18 | D42: =+'Rate Base'!L206 -> 52891066.75
A43: 19 | C43: =+'Rate Base'!M8 -> 2018-01-18 | D43: =+'Rate Base'!M206 -> 36606333
A44: 20 | C44: =+'Rate Base'!N8 -> 2018-02-17 | D44: =+'Rate Base'!N206 -> 23198516
A45: 21 | C45: =+'Rate Base'!O8 -> 2018-03-19 | D45: =+'Rate Base'!O206 -> 9114305
A46: 22 | C46: =+'Rate Base'!P8 -> 2018-04-18 | D46: =+'Rate Base'!P206 -> 7483334
A47: 23 | C47: =+'Rate Base'!Q8 -> 2018-05-18 | D47: =+'Rate Base'!Q206 -> 15704467
A48: 24 | C48: =+'Rate Base'!R8 -> 2018-06-17 | D48: =+'Rate Base'!R206 -> 28192823
A49: 25 | C49: =+'Rate Base'!S8 -> 2018-07-17 | D49: =+'Rate Base'!S206 -> 39219512
A50: 26 | C50: =+'Rate Base'!T8 -> 2018-08-16 | D50: =+'Rate Base'!T206 -> 43502523
A53: =A50+1 -> 27 | B53: 12-Month Average 3/ | D53: =(SUM(D39:D49)+D38/2+D50/2)/12 -> 36279466.97 | F53: x | H53: ='Other Inputs'!E317 -> 0.0933 | J53: = | K53: =D53*H53 -> 3384874.268
A56: =A53+1 -> 28 | B56: TOTAL FIRM STORAGE AND WORKING GAS CHARGES | K56: =K53+K31 -> 20603624.27
A60: 1/ | B60: Dominion Energy Questar Pipeline, LLC Tariff included in DEU Exhibit 1.9.
A61: 2/ | B61: Dominion Energy planned volumes.
A62: 3/ | B62: (½ of Line 14 + sum of Lines 15 through 25 + ½ of Line 26) / 12

Sheet Ut 1.4 p1
G1: ='Control Panel'!$E$32 -> Dominion Energy Utah
G2: ='Control Panel'!$E$33 -> Docket No. 18-057-14
G3: DEU Exhibit 1.4
G4: Page 1 of 3
B8: SUMMARY OF TEST-YEAR GAS RELATED COSTS AND REVENUES CREDITS
B11: (A) | E11: (B) | F11: (C) | G11: (D)
B12: Component | E12: Costs | F12: Dth 1/ | G12: $ per Dth
B14: WEXPRO I
A15: 1 | C15: Dominion Energy Production 2/ | E15: ='Other Inputs'!D220 -> 217085181.4
A16: =A15+1 -> 2 | C16: Wexpro I Revenue Sharing Credits 3/ | E16: =-'Ut 1.4 p3'!H28 -> -15177753.12
A17: =A16+1 -> 3 | D17: Net Dominion Energy Production Costs | E17: =E15+E16 -> 201907428.3 | F17: =F22 -> 53144705.02 | G17: =E17/F22 -> 3.799201222
A19: =A17+1 -> 4 | D19: Gathering 4/ | E19: ='Ut 1.3 p1'!L69+'Ut 1.3 p1'!M66 -> 22179330.36
A22: =A19+1 -> 5 | B22: Total Wexpro I Cost of Production | E22: =SUM(E17:E19) -> 224086758.6 | F22: ='Monthly Inputs'!S7*(1-'Other Inputs'!E321) -> 53144705.02 | G22: =E22/F22 -> 4.216539701
B24: WEXPRO II
A25: =A22+1 -> 6 | C25: Wexpro II Production 5/ | E25: ='Other Inputs'!D241 -> 49227058.23
A26: =A25+1 -> 7 | C26: Wexpro II Revenue Sharing Credits 6/ | E26: =-'Ut 1.4 p3'!H44 -> -1515988.995
A27: =A26+1 -> 8 | D27: Net Cost of Wexpro II Production | E27: =E25+E26 -> 47711069.23 | F27: =F32 -> 13507806.9 | G27: =E27/F32 -> 3.532110696
A29: =A27+1 -> 9 | D29: Gathering 7/ | E29: ='Ut 1.3 p1'!L68 -> 2927171.22
A32: =A29+1 -> 10 | B32: Total Wexpro II Cost of Production | E32: =SUM(E27:E29) -> 50638240.45 | F32: ='Monthly Inputs'!S13*(1-'Other Inputs'!E321) -> 13507806.9 | G32: =E32/F32 -> 3.748812877
A34: =A32+1 -> 11 | B34: Sales of Cost-of-Service Gas 8/ | E34: =-'Other Inputs'!E259 -> 0 | F34: ='Other Inputs'!F259 -> 0 | G34: ='Other Inputs'!G259 -> 0
A37: =A34+1 -> 12 | B37: Total Cost-of-Service Production | E37: =E22+E32+E34 -> 274724999.1 | F37: =F22+F32 -> 66652511.92 | G37: =E37/F37 -> 4.121750121
A39: =A37+1 -> 13 | B39: Dominion Energy Contract Gas 9/ | E39: ='Ut 1.2'!G24 -> 133649314 | F39: ='Ut 1.2'!E24 -> 52631438 | G39: =E39/F39 -> 2.539343766
A41: =A39+1 -> 14 | B41: Injection / Withdrawal Adjustment 10/ | E41: ='Ut 1.4 p2'!H23 -> 5636773.019
A43: =A41+1 -> 15 | B43: Transportation, Other Costs & Peak Hour Service 11/ | E43: ='Ut 1.3 p1'!M38+'Ut 1.3 p1'!M59+'Ut 1.3 p1'!L70+'Ut 1.3 p1'!M79 -> 74707826 | F43: ='Ut 1.3 p1'!F49 -> 132349457.9 | G43: =E43/F43 -> 0.5644739858
A45: =A43+1 -> 16 | B45: Storage and Working Gas 12/ | E45: ='Ut 1.3 p2'!K56 -> 20603624.27
B47: Gas Management Costs | E47: ='Ut 1.3 p1'!M73 -> 0
A50: =A45+1 -> 17 | B50: Dominion Energy - Related Gas Costs for Rate Purposes 13/ | E50: =E37+E39+E41+E43+E45+E47 -> 509322536.4 | F50: ='Ut 1.6 p1'!H20 -> 114995095 | G50: =E50/F50 -> 4.429080531
A53: 1/ | B53: Estimated into-pipe volumes used for Wexpro dths.
A54: 2/ | B54: DEU Exhibit 1.1, Page 18, Line 1406, Column H.
A55: 3/ | B55: DEU Exhibit 1.4, Page 3, Line 8.
A56: 4/ | B56: DEU Exhibit 1.3, Page 1, Lines 29 + 31.
A57: 5/ | B57: DEU Exhibit 1.1, Page 21, Line 1634, Column H.
A58: 6/ | B58: DEU Exhibit 1.4, Page 3, Line 16.
A59: 7/ | B59: DEU Exhibit 1.3, Page 1, Line 30.
A60: 8/ | B60: DEU Exhibit 1.4, Page 3, Line 17.
A61: 9/ | B61: DEU Exhibit 1.2, Line 6.
A62: 10/ | B62: DEU Exhibit 1.4, Page 2, Line 6.
A63: 11/ | B63: DEU Exhibit 1.3, Page 1, Lines 15 + 26 + 32 +37.
A64: 12/ | B64: DEU Exhibit 1.3, Page 2, Line 28.
A65: 13/ | B65: DEU Exhibit 1.6, Page 1, Line 4.

Sheet Ut 1.4 p2
J1: ='Control Panel'!$E$32 -> Dominion Energy Utah
J2: ='Control Panel'!$E$33 -> Docket No. 18-057-14
J3: DEU Exhibit 1.4
J4: Page 2 of 3
B8: ANNUALIZED UNIT COST OF STORAGE GAS
C11: (A) | E11: (B) | F11: (C) | H11: (D)
F12: Average
E13: Dth | F13: Rate | H13: Total Costs
B15: 1 | C15: Company Production 1/ | E15: ='Ut 1.4 p1'!F37 -> 66652511.92 | F15: =H15/E15 -> 4.121750121 | H15: ='Ut 1.4 p1'!E37 -> 274724999.1
B16: =B15+1 -> 2 | C16: Purchased Gas 2/ | E16: ='Ut 1.2'!E24 -> 52631438 | F16: =H16/E16 -> 2.539343766 | H16: ='Ut 1.2'!G24 -> 133649314
B17: =B16+1 -> 3 | C17: Average Price | E17: =SUM(E15:E16) -> 119283949.9 | F17: =(+H15+H16)/(+E15+E16) -> 3.423547873 | H17: =SUM(H15:H16) -> 408374313.1
C20: Storage 3/
B21: =B17+1 -> 4 | C21: Withdrawals | E21: ='Monthly Inputs'!S37 -> 15841198.8 | F21: ='Ut Storage'!L27 -> 4.221929274 | H21: =E21*F21 -> 66880420.95
B22: =B21+1 -> 5 | C22: Injections | E22: =-'Monthly Inputs'!S29 -> -16402598.23 | F22: ='Ut Storage'!K27 -> 3.733777238 | H22: =E22*F22 -> -61243647.93
B23: =B22+1 -> 6 | C23: Storage Adjustment | H23: =H21+H22 -> 5636773.019
B29: 1/ | C29: DEU Exhibit 1.4, Page 1, Line 12.
B30: 2/ | C30: DEU Exhibit 1.2, Line 6.
B31: 3/ | C31: Dominion Energy planned volumes.

Sheet Ut 1.4 p3
K1: ='Control Panel'!$E$32 -> Dominion Energy Utah
K2: ='Control Panel'!$E$33 -> Docket No. 18-057-14
K3: DEU Exhibit 1.4
K4: Page 3 of 3
D8: OTHER REVENUES 1/
C11: (A) | E11: (B) | F11: (C) | G11: (D)
C12: Account | G12: =Expenses!S8 -> 12 Months Ending
C13: Number | E13: Account Name | G13: ='Control Panel'!E7 -> 2019-10-31
C14: WEXPRO I
B15: 1 | D15: 483 | E15: Sales for Resale | H15: ='Other Inputs'!F227 -> 2788398
B17: =B15+1 -> 2 | D17: 490 | E17: Plant By-Product | H17: ='Other Inputs'!F228 -> 3053673
B19: =B17+1 -> 3 | D19: 492 | E19: Gasoline and Oil Sales | F19: ='Other Inputs'!F229 -> 579699.5239
B20: =B19+1 -> 4 | D20: 758-1 | E20: Gasoline and Oil Cost | F20: ='Other Inputs'!F232 -> -95592.4515
B21: =B20+1 -> 5 | E21: Net Gasoline and Oil Sales | H21: =F19+F20 -> 484107.0724
B23: =B21+1 -> 6 | D23: 495-1 | E23: Overriding Royalty Revenue | H23: ='Other Inputs'!F230 -> 8851575.052
B25: =B23+1 -> 7 | D25: 495-2 | E25: Oil Revenue Received from Wexpro | H25: ='Other Inputs'!F231 -> 0
B28: =B25+1 -> 8 | E28: Total Wexpro I | H28: =SUM(H15:H25) -> 15177753.12
C30: WEXPRO II
B31: =B28+1 -> 9 | D31: 483 | E31: Sales for Resale | H31: ='Other Inputs'!E248 -> 0
B33: =B31+1 -> 10 | D33: 490 | E33: Plant By-Product | H33: ='Other Inputs'!E249 -> 480000
B35: =B33+1 -> 11 | D35: 492 | E35: Gasoline and Oil Sales | F35: ='Other Inputs'!E250 -> 1775941.481
B36: =B35+1 -> 12 | D36: 758-1 | E36: Gasoline and Oil Cost | F36: ='Other Inputs'!E253 -> -298484.2606
B37: =B36+1 -> 13 | E37: Net Gasoline and Oil Sales | H37: =F35+F36 -> 1477457.22
B39: =B37+1 -> 14 | D39: 495-1 | E39: Overriding Royalty Revenue | H39: ='Other Inputs'!E251 -> 0
B41: =B39+1 -> 15 | D41: 495-2 | E41: Oil Revenue Received from Wexpro | H41: ='Other Inputs'!E252 -> -441468.2257
B44: =B41+1 -> 16 | E44: Total Wexpro II | H44: =SUM(H31:H41) -> 1515988.995
B46: 17 | E46: Sales of Cost-of-Service Gas | H46: ='Other Inputs'!E259 -> 0
B49: 18 | E49: Grand Total (Line 8 + Line 16 + Line 17) | H49: =H28+H44+H46 -> 16693742.12
B53: 1/ | D53: Forecasted 12-month test year.

Sheet Ut 1.5
H1: ='Control Panel'!$E$32 -> Dominion Energy Utah
H2: ='Control Panel'!$E$33 -> Docket No. 18-057-14
H3: DEU Exhibit 1.5
B8: TEST-YEAR GAS COST ALLOCATION
B11: (A) | D11: (B) | E11: (C) | F11: (D) | G11: (E)
D12: Allocation
D13: Factor 1/ | E13: System | F13: Wyoming | G13: Utah
A15: 1 | B15: Dominion Energy Production (DEU Exhibit 1.1) | D15: 2 | E15: ='Ut 1.4 p1'!E15+'Ut 1.4 p1'!E25 -> 266312239.6 | F15: =CHOOSE($D15,F$53,F$56)*$E15 -> 9000582.03 | G15: 257311657.6
A16: =A15+1 -> 2 | B16: Other Revenue's Credit (DEU Exhibit 1.4, p 3) | D16: 2 | E16: ='Ut 1.4 p1'!E16+'Ut 1.4 p1'!E26+'Ut 1.4 p1'!E34 -> -16693742.12 | F16: -564200.1117 | G16: -16129542.01
A17: =A16+1 -> 3 | B17: Gathering (DEU Exhibit 1.3, p 1) | C17: - Demand | D17: 1 | E17: ='Ut 1.3 p1'!L64 -> 11774616 | F17: 332736.4478 | G17: 11441879.55
A18: =A17+1 -> 4 | B18: Gathering | C18: - Commodity | D18: 2 | E18: ='Ut 1.3 p1'!L69+'Ut 1.3 p1'!L65+'Ut 1.3 p1'!L68 -> 13331885.58 | F18: 450579.1021 | G18: 12881306.48
A19: =A18+1 -> 5 | B19: Net Cost of Dominion Energy Production | E19: =SUM(E15:E18) -> 274724999.1 | F19: =SUM(F15:F18) -> 9219697.469 | G19: =SUM(G15:G18) -> 265505301.6
A21: =A19+1 -> 6 | B21: Dominion Energy Contract Gas (DEU Exhibit 1.2) | D21: 2 | E21: ='Ut 1.4 p1'!E39 -> 133649314 | F21: =CHOOSE($D21,F$53,F$56)*$E21 -> 4516959.55 | G21: =CHOOSE($D21,G$53,G$56)*$E21 -> 129132354.5
A24: =A21+1 -> 7 | B24: Injection / Withdrawal Adjustment (DEU Exhibit 1.4, p 1) | D24: 2 | E24: ='Ut 1.4 p1'!E41 -> 5636773.019 | F24: =CHOOSE($D24,F$53,F$56)*$E24 -> 190506.5949 | G24: =CHOOSE($D24,G$53,G$56)*$E24 -> 5446266.424
A27: =A24+1 -> 8 | B27: Transportation (DEU Exhibit 1.3, p 1) | C27: - Demand | D27: 1 | E27: ='Ut 1.3 p1'!M38 -> 68589707 | F27: =CHOOSE($D27,F$53,F$56)*$E27 -> 1938262.4 | G27: =CHOOSE($D27,G$53,G$56)*$E27 -> 66651444.6
A28: =A27+1 -> 9 | B28: Transportation | C28: - Commodity | D28: 2 | E28: ='Ut 1.3 p1'!M59 -> 561716 | F28: =CHOOSE($D28,F$53,F$56)*$E28 -> 18984.37317 | G28: =CHOOSE($D28,G$53,G$56)*$E28 -> 542731.6268
A31: =A28+1 -> 10 | B31: Storage (DEU Exhibit 1.3, p 2) | C31: - Demand | D31: 1 | E31: ='Ut 1.3 p2'!J20 -> 16725058 | F31: =CHOOSE($D31,F$53,F$56)*$E31 -> 472629.9685 | G31: =CHOOSE($D31,G$53,G$56)*$E31 -> 16252428.03
A32: =A31+1 -> 11 | B32: Storage | C32: - Commodity | D32: 2 | E32: ='Ut 1.3 p2'!J29 -> 493692 | F32: =CHOOSE($D32,F$53,F$56)*$E32 -> 16685.35907 | G32: =CHOOSE($D32,G$53,G$56)*$E32 -> 477006.6409
A35: =A32+1 -> 12 | B35: Other Transportation - Commodity (DEU Exhibit 1.3, p 1) | D35: 2 | E35: ='Ut 1.3 p1'!L70 -> 3718588 | F35: =CHOOSE($D35,F$53,F$56)*$E35 -> 125677.4994 | G35: =CHOOSE($D35,G$53,G$56)*$E35 -> 3592910.501
A38: =A35+1 -> 13 | B38: Working Gas Costs (DEU Exhibit 1.3, p 2) | D38: 2 | E38: ='Ut 1.3 p2'!K53 -> 3384874.268 | F38: =CHOOSE($D38,F$53,F$56)*$E38 -> 114398.9422 | G38: =CHOOSE($D38,G$53,G$56)*$E38 -> 3270475.326
A40: =A38+1 -> 14 | B40: Peak Hour Service (DEU Exhibit 1.3, p 1) | D40: 1 | E40: ='Ut 1.3 p1'!L76+'Ut 1.3 p1'!L77 -> 2099815 | F40: =CHOOSE($D40,F$53,F$56)*$E40 -> 59338.2395 | G40: =CHOOSE($D40,G$53,G$56)*$E40+'Ut 1.3 p1'!L78 -> 1778476.761
A43: =A40+1 -> 15 | B43: Totals | E43: =SUM(E19:E40) -> 509584536.4 | F43: =SUM(F19:F40) -> 16673140.39 | G43: 492649396
A50: 1/ | B50: Allocation Factors | E50: Total | F50: Wyoming | G50: Utah
B52: #1 Peak Day Demand | D52: Dth- | E52: =SUM(F52:G52) -> 1330170 | F52: ='Other Inputs'!$E$166 -> 37589 | G52: ='Other Inputs'!$E$165 -> 1292581
D53: Percent- | E53: =F53+G53 -> 1 | F53: =F52/E52 -> 0.02825879399 | G53: =G52/E52 -> 0.971741206
B55: #2 Commodity Sales - All | D55: Dth- | E55: =F55+G55 -> 114995095 | F55: ='Ut 1.6 p1'!H19 -> 3886501 | G55: ='Ut 1.6 p1'!H18 -> 111108594
D56: Percent- | E56: =F56+G56 -> 1 | F56: =F55/E55 -> 0.03379710239 | G56: =G55/E55 -> 0.9662028976

Sheet Ut 1.6 p1
J1: ='Control Panel'!$E$32 -> Dominion Energy Utah
J2: ='Control Panel'!$E$33 -> Docket No. 18-057-14
J3: DEU Exhibit 1.6
J4: Page 1 of 3
B8: TEST-YEAR GAS COST CHANGE
B11: (A) | C11: (B) | D11: (C) | F11: (D) | H11: (E) | J11: (F)
F12: Average Rate | H12: x Dth | I12: = | J12: Total
A13: 1 | B13: Utah Allocation of Dominion Energy - Related Gas Costs (DEU Exhibit 1.5) 1/ | J13: ='Ut 1.5'!G43 -> 492649396
H15: Total
B16: Test-Year Sales: | D16: Firm | F16: + Interruptible | H16: = Sales Dth
A18: =A13+1 -> 2 | B18: Utah | D18: =Calculations!P13 -> 110914772 | F18: =Calculations!P17 -> 193822 | H18: =D18+F18 -> 111108594
A19: =A18+1 -> 3 | B19: Wyoming | D19: =Calculations!P32 -> 3736843 | F19: =Calculations!P36 -> 149658 | H19: =D19+F19 -> 3886501
A20: =A19+1 -> 4 | B20: Total Dth | H20: =SUM(H18:H19) -> 114995095
A22: =A20+1 -> 5 | B22: Supplier Non-Gas Costs 2/ | J22: =(-'Ut 1.6 p2'!F14) -> -112974938.5
A25: =A22+1 -> 6 | B25: Commodity Portion of Test-Year Gas Cost (Lines 1 + 5) | J25: =J13+J22 -> 379674457.5
F28: Current Case | H28: Prior Case
B29: FIRM CUSTOMER RATES | F29: ='Control Panel'!E5 -> 18-057-14 | H29: ='Control Panel'!E9 -> 18-057-04 | J29: Difference
A31: =A25+1 -> 7 | B31: Gas Cost (line 6/Total Sales Dth, line 4) | F31: =ROUND((J25)/H18,5) -> 3.41715 | H31: ='Other Inputs'!F141 -> 3.33262 | J31: =F31-H31 -> 0.08453
A32: =A31+1 -> 8 | B32: 191 Account Amortization (Commodity Portion) 3/ | F32: =D49/H18 -> -0.2883320079 | H32: ='Other Inputs'!F142 -> 0.13552 | J32: =F32-H32 -> -0.4238520079
A33: =A32+1 -> 9 | B33: Total Sales Unit Commodity Cost (Lines 7 + 8) | F33: =F31+F32 -> 3.128817992 | H33: =H31+H32 -> 3.46814 | J33: =J31+J32 -> -0.3393220079
A43: 1/ | B43: DEU Exhibit 1.5, Line 15, Column E.
A45: 2/ | B45: Test Year Estimate of Transportation, Gathering, and Storage billings.
A47: 3/ | B47: 191 Account (August 2018) actual | D47: ='Other Inputs'!E159 -> -16168321
B48: Less: Supplier Non-Gas balance actual | D48: ='Other Inputs'!E160 -> 15867843
B49: 191 Account Commodity Portion | D49: =(D47-D48) -> -32036164 | F49: =H18 -> 111108594 | H49: =D49/F49 -> -0.2883320079
B50: See Application, paragraph 11.

Sheet Ut 1.6 p2
G1: ='Control Panel'!$E$32 -> Dominion Energy Utah
G2: ='Control Panel'!$E$33 -> Docket No. 18-057-14
G3: DEU Exhibit 1.6
G4: Page 2 of 3
C8: TEST-YEAR SUPPLIER NON-GAS COST CHANGE
C11: (A) | D11: (B) | E11: (C) | F11: (D)
D12: Dth | E12: Average Rate | F12: Total
B14: 1 | C14: Supplier Non-Gas (SNG) Costs 1/ | F14: ='Ut 1.5'!G27+'Ut 1.5'!G31+'Ut 1.5'!G17+'Ut 1.5'!G40+(+'Ut 1.3 p1'!L43+'Ut 1.3 p1'!L45+'Ut 1.3 p1'!L47+'Ut 1.3 p1'!L57+'Ut 1.3 p1'!L69+'Ut 1.3 p1'!L70+'Ut 1.3 p1'!L65+'Ut 1.3 p1'!L68)*'Ut 1.5'!G56 -> 112974938.5
B15: =B14+1 -> 2 | C15: 191 Account Balance for SNG Costs 2/ | F15: =E44 -> 8079403
B16: =1+B15 -> 3 | C16: Total | F16: =SUM(F14:F15) -> 121054341.5
B19: =B16+1 -> 4 | C19: SNG Costs Recovered at Current Rates 3/ | F19: ='Other Inputs'!E265-(D29*('Other Inputs'!G117-'Other Inputs'!F266)) -> 122032241.2
B22: =1+B19 -> 5 | C22: SNG Costs Adjustment to Current Rates (Line 3 - Line 4) | F22: =F16-F19 -> -977899.7312
B28: 6a | C28: Adjustment for SNG contributions from:
B29: 6b | C29: IS SNG current rate | D29: ='RevRun Fcst'!T102+'RevRun Fcst'!T93 -> 193822 | E29: ='Ut 1.6 p3'!E24 -> 0.17864 | F29: =D29*E29 -> 34624.36208
B30: 6c | C30: IS SNG new rate | D30: ='RevRun Fcst'!T102+'RevRun Fcst'!T93 -> 193822 | E30: ='Ut 1.6 p3'!I24 -> 0.17862 | F30: =D30*E30 -> 34620.48564
B35: =2+B22 -> 7 | C35: Percent Change to Current Rates | F35: =(((+F16-F30)-(F19-F29))/(F19-F29))*100 -> -0.8015696372 | G35: %
C36: ((ln 3-ln 6c)-(ln 4-ln 6b))/(ln 4-ln 6b)
B42: 1/ | C42: DEU Exhibit 1.6, Page 1, Line 5.
B44: 2/ | C44: Spring pass through SNG amortization from Docket No. 18-057-04 | E44: 8079403
C45: Amortization will be adjusted in the 2019 spring pass-through.
B47: 3/ | C47: ="Output of Revrun.Exe computer program dated "&'RevRun Fcst'!D4 -> Output of Revrun.Exe computer program dated 08/27/18

Sheet Ut 1.6 p3
I1: ='Control Panel'!$E$32 -> Dominion Energy Utah
I2: ='Control Panel'!$E$33 -> Docket No. 18-057-14
I3: DEU Exhibit 1.6
I4: Page 3 of 3
F8: TEST YEAR CHANGE IN SUPPLIER NON-GAS COSTS
F9: BY RATE CLASS
C12: (A) | D12: (B) | E12: (C) | F12: (D) | G12: (E) | H12: (F) | I12: (G)
G13: Rate per Dth
C14: Rate Class | D14: Season | E14: Current total 1/ | F14: Curr. Base 1/ | G14: Calc. Base 2/ | H14: Amortization 3/ | I14: Total 4/ | K14: CHECK !!
B16: 1 | C16: GS | D16: Winter | E16: ='Other Inputs'!G109 -> 1.2953 | F16: ='Other Inputs'!E109 -> 1.20913 | G16: =ROUND(E16*('Ut 1.6 p2'!$F$14-'Ut 1.6 p2'!$F$30)/('Ut 1.6 p2'!$F$19-'Ut 1.6 p2'!$F$29),5) -> 1.19913 | H16: =I16-G16 -> 0.08579 | I16: =ROUND(E16*ROUND(1+'Ut 1.6 p2'!$F$35/100,7),5)+M16 -> 1.28492 | K16: =ROUND(G16*('Ut 1.6 p2'!$F$15)/('Ut 1.6 p2'!$F$14-'Ut 1.6 p2'!$F$30),5)-H16 -> -1e-05
B17: =B16+1 -> 2 | D17: Summer | E17: ='Other Inputs'!G110 -> 0.60816 | F17: ='Other Inputs'!E110 -> 0.5677 | G17: =ROUND(E17*('Ut 1.6 p2'!$F$14-'Ut 1.6 p2'!$F$30)/('Ut 1.6 p2'!$F$19-'Ut 1.6 p2'!$F$29),5) -> 0.56301 | H17: =I17-G17 -> 0.04028 | I17: =ROUND(E17*ROUND(1+'Ut 1.6 p2'!$F$35/100,7),5)+M17 -> 0.60329 | K17: =ROUND(G17*('Ut 1.6 p2'!$F$15)/('Ut 1.6 p2'!$F$14-'Ut 1.6 p2'!$F$30),5)-H17 -> 0
B19: =B17+1 -> 3 | C19: FS | D19: Winter | E19: ='Other Inputs'!G112 -> 1.26157 | F19: ='Other Inputs'!E112 -> 1.17764 | G19: =ROUND(E19*('Ut 1.6 p2'!$F$14-'Ut 1.6 p2'!$F$30)/('Ut 1.6 p2'!$F$19-'Ut 1.6 p2'!$F$29),5) -> 1.16791 | H19: =I19-G19 -> 0.08355 | I19: =ROUND(E19*ROUND(1+'Ut 1.6 p2'!$F$35/100,7),5)+M19 -> 1.25146 | K19: =ROUND(G19*('Ut 1.6 p2'!$F$15)/('Ut 1.6 p2'!$F$14-'Ut 1.6 p2'!$F$30),5)-H19 -> 0
B20: =B19+1 -> 4 | D20: Summer | E20: ='Other Inputs'!G113 -> 0.60816 | F20: ='Other Inputs'!E113 -> 0.5677 | G20: =ROUND(E20*('Ut 1.6 p2'!$F$14-'Ut 1.6 p2'!$F$30)/('Ut 1.6 p2'!$F$19-'Ut 1.6 p2'!$F$29),5) -> 0.56301 | H20: =I20-G20 -> 0.04028 | I20: =ROUND(E20*ROUND(1+'Ut 1.6 p2'!$F$35/100,7),5)+M20 -> 0.60329 | K20: =ROUND(G20*('Ut 1.6 p2'!$F$15)/('Ut 1.6 p2'!$F$14-'Ut 1.6 p2'!$F$30),5)-H20 -> 0
B22: =B20+1 -> 5 | C22: NGV | E22: ='Other Inputs'!G115 -> 0.93471 | F22: ='Other Inputs'!E115 -> 0.87253 | G22: =ROUND(E22*('Ut 1.6 p2'!$F$14-'Ut 1.6 p2'!$F$30)/('Ut 1.6 p2'!$F$19-'Ut 1.6 p2'!$F$29),5) -> 0.86532 | H22: =I22-G22 -> 0.0619 | I22: =ROUND(E22*ROUND(1+'Ut 1.6 p2'!$F$35/100,7),5)+M22 -> 0.92722 | K22: =ROUND(G22*('Ut 1.6 p2'!$F$15)/('Ut 1.6 p2'!$F$14-'Ut 1.6 p2'!$F$30),5)-H22 -> -6.938893904e-17
B24: =B22+1 -> 6 | C24: IS 5/ | E24: ='Other Inputs'!F266 -> 0.17864 | F24: ='Other Inputs'!F266 -> 0.17864 | G24: ='Other Inputs'!$F$55 -> 0.17862 | H24: =I24-G24 -> 0 | I24: ='Other Inputs'!$F$55 -> 0.17862
B31: 1/ | C31: Current Dominon Energy Utah Tariff (excluding bad debt surcharge).
B33: 2/ | C33: DEU Exhibit 1.6 page 2 (line 1 - line 6c)/(line 4 - line 6b)*Exhibit 1.6 page 3 column C.
B35: 3/ | C35: Column G - Column E
B37: 4/ | C37: (Current Dominion Energy Utah rates) x (1+DEU Exhibit 1.6, Page 2, Line 7, % change).
C38: ="(except ln. 6, which is calculated by adding QPC T-2 and ACA rates, then adjusting for distr. loss of "&TEXT('Other Inputs'!E319,"0.000%") -> (except ln. 6, which is calculated by adding QPC T-2 and ACA rates, then adjusting for distr. loss of 0.450%
C39: ="= ("&TEXT('Other Inputs'!$F$49,"$0.00000")&" + "&TEXT('Other Inputs'!$F$51,"$0.00000")&") / ( 1 - "&TEXT('Other Inputs'!$E$319,"0.00000")&" ) = "&TEXT(('Other Inputs'!F49+'Other Inputs'!F51)/(1-('Other Inputs'!$E$319)),("$0.00000")) -> = ($0.17652 + $0.00130) / ( 1 - 0.00450 ) = $0.17862
B41: 5/ | C41: ="IS Tariff rate has an adjustment for bad debt of "&TEXT('Other Inputs'!$E$330,"0.00%")&" "&TEXT($I$24,"$0.00000")&" / ( 1 - "&TEXT('Other Inputs'!$E$330,"0.00000")&" ) = "&TEXT($I$24/(1-('Other Inputs'!$E$330)),("$0.00000")) -> IS Tariff rate has an adjustment for bad debt of 0.25% $0.17862 / ( 1 - 0.00250 ) = $0.17907

Sheet Ut 1.7
L1: ='Control Panel'!$E$32 -> Dominion Energy Utah
L2: ='Control Panel'!$E$33 -> Docket No. 18-057-14
L3: DEU Exhibit 1.7
C7: EFFECT ON GS TYPICAL CUSTOMER
C8: 80 DTHS - ANNUAL CONSUMPTION
C11: (A) | D11: (B) | E11: (C) | F11: (D) | H11: (E) | J11: (F)
F12: Billed at Current | H12: Billed at
C13: Rate | E13: Usage | F13: Rates Effective | H13: Proposed Rates
C14: Schedule | D14: Month | E14: In Dth | F14: ='Other Inputs'!J122 -> 2018-10-01 | H14: ='Control Panel'!E5 -> 18-057-14 | J14: Change
B16: 1 | C16: GS | D16: Jan | E16: ='Monthly Inputs'!G115 -> 14.9 | F16: =ROUND((+E16*'Other Inputs'!$G$124)+'Other Inputs'!$G$126,2) -> 116.34 | H16: =ROUND((+E16*'Ut 1.8'!$F$10)+'Ut 1.8'!$C$12,2) -> 111.13 | J16: =H16-F16 -> -5.21
B17: =B16+1 -> 2 | D17: Feb | E17: ='Monthly Inputs'!G116 -> 12.5 | F17: =ROUND((+E17*'Other Inputs'!$G$124)+'Other Inputs'!$G$126,2) -> 98.69 | H17: =ROUND((+E17*'Ut 1.8'!$F$10)+'Ut 1.8'!$C$12,2) -> 94.32 | J17: -4.37
B18: =B17+1 -> 3 | D18: Mar | E18: ='Monthly Inputs'!G117 -> 10.1 | F18: =ROUND((+E18*'Other Inputs'!$G$124)+'Other Inputs'!$G$126,2) -> 81.04 | H18: =ROUND((+E18*'Ut 1.8'!$F$10)+'Ut 1.8'!$C$12,2) -> 77.51 | J18: -3.53
B19: 4 | D19: Apr | E19: ='Monthly Inputs'!G118 -> 8.3 | F19: =ROUND((+E19*'Other Inputs'!$G$122)+'Other Inputs'!$G$126,2) -> 56.86 | H19: =ROUND((+E19*'Ut 1.8'!$C$10)+'Ut 1.8'!$C$12,2) -> 54 | J19: -2.86
B20: 5 | D20: May | E20: ='Monthly Inputs'!G119 -> 4.4 | F20: =ROUND((+E20*'Other Inputs'!$G$122)+'Other Inputs'!$G$126,2) -> 33.31 | H20: =ROUND((+E20*'Ut 1.8'!$C$10)+'Ut 1.8'!$C$12,2) -> 31.8 | J20: -1.51
B21: 6 | D21: Jun | E21: ='Monthly Inputs'!G120 -> 3.1 | F21: =ROUND((+E21*'Other Inputs'!$G$122)+'Other Inputs'!$G$126,2) -> 25.46 | H21: =ROUND((+E21*'Ut 1.8'!$C$10)+'Ut 1.8'!$C$12,2) -> 24.4 | J21: -1.06
B22: 7 | D22: Jul | E22: ='Monthly Inputs'!G121 -> 2 | F22: =ROUND((+E22*'Other Inputs'!$G$122)+'Other Inputs'!$G$126,2) -> 18.82 | H22: =ROUND((+E22*'Ut 1.8'!$C$10)+'Ut 1.8'!$C$12,2) -> 18.14 | J22: -0.68
B23: 8 | D23: Aug | E23: ='Monthly Inputs'!G122 -> 1.8 | F23: =ROUND((+E23*'Other Inputs'!$G$122)+'Other Inputs'!$G$126,2) -> 17.62 | H23: =ROUND((+E23*'Ut 1.8'!$C$10)+'Ut 1.8'!$C$12,2) -> 17 | J23: -0.62
B24: 9 | D24: Sep | E24: ='Monthly Inputs'!G123 -> 2 | F24: =ROUND((+E24*'Other Inputs'!$G$122)+'Other Inputs'!$G$126,2) -> 18.82 | H24: =ROUND((+E24*'Ut 1.8'!$C$10)+'Ut 1.8'!$C$12,2) -> 18.14 | J24: -0.68
B25: 10 | D25: Oct | E25: ='Monthly Inputs'!G124 -> 3.1 | F25: =ROUND((+E25*'Other Inputs'!$G$122)+'Other Inputs'!$G$126,2) -> 25.46 | H25: =ROUND((+E25*'Ut 1.8'!$C$10)+'Ut 1.8'!$C$12,2) -> 24.4 | J25: -1.06
B26: 11 | D26: Nov | E26: ='Monthly Inputs'!G125 -> 6.3 | F26: =ROUND((+E26*'Other Inputs'!$G$124)+'Other Inputs'!$G$126,2) -> 53.09 | H26: =ROUND((+E26*'Ut 1.8'!$F$10)+'Ut 1.8'!$C$12,2) -> 50.88 | J26: -2.21
B27: 12 | D27: Dec | E27: ='Monthly Inputs'!G126 -> 11.5 | F27: =ROUND((+E27*'Other Inputs'!$G$124)+'Other Inputs'!$G$126,2) -> 91.33 | H27: =ROUND((+E27*'Ut 1.8'!$F$10)+'Ut 1.8'!$C$12,2) -> 87.31 | J27: -4.02
B30: =B27+1 -> 13 | D30: Total | E30: =SUM(E16:E27) -> 80 | F30: =SUM(F16:F27) -> 636.84 | H30: =SUM(H16:H27) -> 609.03 | J30: =H30-F30 -> -27.81
B32: =B30+1 -> 14 | H32: Percent Change: | J32: =ROUND(J30/F30,4)*100 -> -4.37 | K32: %

Sheet Ut 1.7 Tot (hidden)
L1: ='Control Panel'!$E$32 -> Dominion Energy Utah
L2: Docket Nos. 08-057-15, 08-057-16 & 08-057-17
L3: Hearing Exhibit 2
A5: NOT USED
C7: EFFECT ON GS-1 TYPICAL CUSTOMER
B8: OF PROPOSED COMMODITY AND SNG RATES AND CET AND DSM AMORTIZATIONS
C9: 80 DTHS - ANNUAL CONSUMPTION
C12: (A) | D12: (B) | E12: (C) | F12: (D) | H12: (E) | J12: (F)
F13: Billed at Current | H13: Billed at
C14: Rate | E14: Usage | F14: Rates Effective | H14: Proposed
C15: Schedule | D15: Month | E15: In Dth | F15: ='Other Inputs'!J122 -> 2018-10-01 | H15: Rates | J15: Change
B17: 1 | C17: GS | D17: Jan | E17: ='Monthly Inputs'!G115 -> 14.9 | F17: =ROUND((+E17*'Other Inputs'!$G$124)+'Other Inputs'!$G$126,2) -> 116.34 | H17: ='CET & DSM'!D107 -> 132.34 | J17: =H17-F17 -> 16
B18: =B17+1 -> 2 | D18: Feb | E18: ='Monthly Inputs'!G116 -> 12.5 | F18: =ROUND((+E18*'Other Inputs'!$G$124)+'Other Inputs'!$G$126,2) -> 98.69 | H18: ='CET & DSM'!D108 -> 112.11 | J18: 13.42
B19: 3 | D19: Mar | E19: ='Monthly Inputs'!G117 -> 10.1 | F19: =ROUND((+E19*'Other Inputs'!$G$124)+'Other Inputs'!$G$126,2) -> 81.04 | H19: ='CET & DSM'!D109 -> 91.88 | J19: 10.84
B20: 4 | D20: Apr | E20: ='Monthly Inputs'!G118 -> 8.3 | F20: =ROUND((+E20*'Other Inputs'!$G$122)+'Other Inputs'!$G$126,2) -> 56.86 | H20: ='CET & DSM'!D110 -> 60.61 | J20: 3.75
B21: 5 | D21: May | E21: ='Monthly Inputs'!G119 -> 4.4 | F21: =ROUND((+E21*'Other Inputs'!$G$122)+'Other Inputs'!$G$126,2) -> 33.31 | H21: ='CET & DSM'!D111 -> 35.3 | J21: 1.99
B22: 6 | D22: Jun | E22: ='Monthly Inputs'!G120 -> 3.1 | F22: =ROUND((+E22*'Other Inputs'!$G$122)+'Other Inputs'!$G$126,2) -> 25.46 | H22: ='CET & DSM'!D112 -> 26.87 | J22: 1.41
B23: 7 | D23: Jul | E23: ='Monthly Inputs'!G121 -> 2 | F23: =ROUND((+E23*'Other Inputs'!$G$122)+'Other Inputs'!$G$126,2) -> 18.82 | H23: ='CET & DSM'!D113 -> 19.73 | J23: 0.91
B24: 8 | D24: Aug | E24: ='Monthly Inputs'!G122 -> 1.8 | F24: =ROUND((+E24*'Other Inputs'!$G$122)+'Other Inputs'!$G$126,2) -> 17.62 | H24: ='CET & DSM'!D114 -> 18.43 | J24: 0.81
B25: 9 | D25: Sep | E25: ='Monthly Inputs'!G123 -> 2 | F25: =ROUND((+E25*'Other Inputs'!$G$122)+'Other Inputs'!$G$126,2) -> 18.82 | H25: ='CET & DSM'!D115 -> 19.73 | J25: 0.91
B26: 10 | D26: Oct | E26: ='Monthly Inputs'!G124 -> 3.1 | F26: =ROUND((+E26*'Other Inputs'!$G$122)+'Other Inputs'!$G$126,2) -> 25.46 | H26: ='CET & DSM'!D116 -> 26.87 | J26: 1.41
B27: 11 | D27: Nov | E27: ='Monthly Inputs'!G125 -> 6.3 | F27: =ROUND((+E27*'Other Inputs'!$G$124)+'Other Inputs'!$G$126,2) -> 53.09 | H27: ='CET & DSM'!D117 -> 59.85 | J27: 6.76
B28: 12 | D28: Dec | E28: ='Monthly Inputs'!G126 -> 11.5 | F28: =ROUND((+E28*'Other Inputs'!$G$124)+'Other Inputs'!$G$126,2) -> 91.33 | H28: ='CET & DSM'!D118 -> 103.68 | J28: 12.35
B31: =B28+1 -> 13 | D31: Total | E31: =SUM(E17:E28) -> 80 | F31: =SUM(F17:F28) -> 636.84 | H31: =SUM(H17:H28) -> 707.4 | J31: =H31-F31 -> 70.56
H33: Percent Change: | J33: =ROUND(J31/F31,4)*100 -> 11.08 | K33: %

Sheet Ut 1.8 p1
F1: ='Control Panel'!E32 -> Dominion Energy Utah
F2: ='Control Panel'!E33 -> Docket No. 18-057-14
F3: DEU Exhibit 1.8
F4: Page 1 of 17
A15: DOMINION ENERGY UTAH
A16: 333 South State Street
A17: P.O. Box 45433
A18: Salt Lake City, Utah 84145-0433
A29: LEGISLATIVE/PROPOSED RATE SCHEDULES
A31: P.S.C. Utah No. 500
A32: Affecting All Firm Sales Rate Schedules
A33: and Classes of Service In
A34: Dominion Energy
A35: Utah Service Area
A39: Date Issued: October 1, 2018
A40: To Become Effective November 1, 2018

Sheet LEG - PR
A2: LEGISLATIVE TARIFF
A3: SHEETS
A6: PROPOSED TARIFF
A7: SHEETS

Sheet Ut 1.8
A1: SUMMARY OF PROPOSED RATES
A3: UTAH RATE CLASSES | C3: Rates per Dth Used Each Month
C4: All Season Rates or Summer Rates: Apr. 1 - Oct. 31 | F4: Winter Rates: Nov. 1 - Mar. 31
A5: UT GS | C5: First 45 Dth | D5: All Over 45 Dth | F5: First 45 Dth | G5: All Over 45 Dth
B6: Distribution Non-Gas Cost | C6: 1.9605 | D6: 0.84245 | F6: 2.59173 | G6: 1.47368
B7: Supplier Non-Gas Cost | C7: ='Ut 1.6 p3'!I17 -> 0.60329 | D7: =C7 -> 0.60329 | F7: ='Ut 1.6 p3'!I16 -> 1.28492 | G7: =F7 -> 1.28492
B8: Commodity Cost | C8: =('Ut 1.6 p1'!$F$33) -> 3.128817992 | D8: =C8 -> 3.128817992 | F8: =D8 -> 3.128817992 | G8: =F8 -> 3.128817992
B10: Total Rate | C10: =SUM(C6:C9) -> 5.692607992 | D10: =SUM(D6:D9) -> 4.574557992 | F10: =SUM(F6:F9) -> 7.005467992 | G10: =SUM(G6:G9) -> 5.887417992
B12: BSF Category 1 | C12: 6.75
B13: BSF Category 2 | C13: 18.25
B14: BSF Category 3 | C14: 63.5
B15: BSF Category 4 | C15: 420.25
A18: UT FS | C18: First 200 Dth | D18: Next 1,800 Dth | E18: All Over 2,000 Dth | F18: First 200 Dth | G18: Next 1,800 Dth | H18: All Over 2,000 Dth
B19: Distribution Non-Gas Cost | C19: 0.89408 | D19: 0.45777 | E19: -0.00151 | F19: 1.33978 | G19: 0.90347 | H19: 0.44419
B20: Supplier Non-Gas Cost | C20: ='Ut 1.6 p3'!$I$20 -> 0.60329 | D20: =C20 -> 0.60329 | E20: =D20 -> 0.60329 | F20: ='Ut 1.6 p3'!$I$19 -> 1.25146 | G20: =F20 -> 1.25146 | H20: =G20 -> 1.25146
B21: Commodity Cost | C21: =('Ut 1.6 p1'!$F$33) -> 3.128817992 | D21: =C21 -> 3.128817992 | E21: =D21 -> 3.128817992 | F21: =E21 -> 3.128817992 | G21: =F21 -> 3.128817992 | H21: =G21 -> 3.128817992
B23: Total Rate | C23: =SUM(C19:C22) -> 4.626187992 | D23: =SUM(D19:D22) -> 4.189877992 | E23: 3.730597992 | F23: 5.720057992 | G23: 5.283747992 | H23: 4.824467992
B25: Minimum Monthly DNG Charge: | C25: 143 | F25: 218
B27: BSF Category 1 | C27: =C12 -> 6.75
B28: BSF Category 2 | C28: =C13 -> 18.25
B29: BSF Category 3 | C29: =C14 -> 63.5
B30: BSF Category 4 | C30: =C15 -> 420.25
A33: UT Future Rate Class
C34: First 10,000 Dth | D34: All Over 10,000 Dth
B35: Distribution Non-Gas Cost
B36: Supplier Non-Gas Cost
B37: Commodity Cost
B39: Total Rate | C39: =SUM(C35:C38) -> 0 | D39: =SUM(D35:D38) -> 0
B41: Minimum Yearly Distribution Non-Gas Charge | D41: =ROUND(((10000*C35))*12,-2) -> 0
B44: BSF Category 1 | C44: =C12 -> 6.75
B45: BSF Category 2 | C45: =C13 -> 18.25
B46: BSF Category 3 | C46: =C14 -> 63.5
B47: BSF Category 4 | C47: =C15 -> 420.25
A51: UT NGV
B52: Distribution Non-Gas Cost | C52: 6.1591
B53: Supplier Non-Gas Cost | C53: ='Ut 1.6 p3'!I22 -> 0.92722
B54: Commodity Cost | C54: ='Ut 1.6 p1'!F33 -> 3.128817992
B56: Total Rate | C56: =SUM(C52:C55) -> 10.21513799
A59: UT IS | C59: First 2,000 Dth | D59: Next 18,000 Dth | E59: All Over 20,000
B60: Distribution Non-Gas Cost | C60: 0.74943 | D60: 0.05728 | E60: 0.09189
B61: Supplier Non-Gas Cost | C61: ='Ut 1.6 p3'!$I$24/(1-'Other Inputs'!$E$330) -> 0.1790676692 | D61: =C61 -> 0.1790676692 | E61: =D61 -> 0.1790676692
B62: Commodity Cost | C62: =('Ut 1.6 p1'!$F$33) -> 3.128817992 | D62: =('Ut 1.6 p1'!$F$33) -> 3.128817992 | E62: =('Ut 1.6 p1'!$F$33) -> 3.128817992
B64: Total Rate | C64: =SUM(C60:C62) -> 4.057315661 | D64: =SUM(D60:D62) -> 3.365165661 | E64: 3.399775661
B66: BSF Category 1 | C66: =C12 -> 6.75
B67: BSF Category 2 | C67: =C13 -> 18.25
B68: BSF Category 3 | C68: 63.5
B69: BSF Category 4 | C69: 420.25

Sheet Ut 1.9
D1: ='Control Panel'!$E$32 -> Dominion Energy Utah
D2: ='Control Panel'!$E$33 -> Docket No. 18-057-14
D3: DEU Exhibit 1.9
D4: Page 1 of 2
D51: ='Control Panel'!$E$32 -> Dominion Energy Utah
D52: ='Control Panel'!$E$33 -> Docket No. 18-057-14
D53: DEU Exhibit 1.9
D54: Page 2 of 2

Sheet Ut 1.11
F1: ='Control Panel'!E32 -> Dominion Energy Utah
F2: ='Control Panel'!E33 -> Docket No. 18-057-14
F3: Exhibit 1.11
F4: Page 1 of 29
A17: DOMINION ENERGY UTAH
A18: 333 South State Street
A19: P.O. Box 45433
A20: Salt Lake City, Utah 84145-0433
A31: COMBINED LEGISLATIVE/PROPOSED RATE SCHEDULES
A32: P.S.C. Utah Tariff No. 500
A39: Date Issued: October 1, 2018
A40: To Become Effective November 1, 2018

Sheet Ut Storage
A1: Storage Injection / Withdrawal adjustment
C3: (A) | D3: (B) | E3: (C) | F3: (D) | G3: (E) | H3: (F) | I3: (G) | K3: (H) | L3: (I) | M3: (J)
G4: Injections | I4: (J) / (C)
E5: Storage | G5: ------------------------------------------------------------- | I5: Storage | M5: Storage
C6: Injection Dth | D6: Withdrawal Dth | E6: Inventory Dth | F6: % that is | G6: Co. Prod. | H6: Purchased | I6: Inventory | M6: Inventory
A7: Line | B7: Month | C7: Per IRPs | D7: Per IRPs | E7: Balance | F7: Co. Prod. (1) | G7: $/Dth (2) | H7: $/Dth (3) | I7: Average $/Dth | K7: Injection (4) | L7: Withdrawal (5) | M7: Balance
B8: =+Expenses!S9 -> 2018-08-01 | E8: =-1*'Other Inputs'!D270 -> 9647579 | I8: =M8/E8 -> 4.509164734 | M8: ='Other Inputs'!E270 -> 43502523
B9: ='Monthly Inputs'!E3 -> Sep18 | C9: ='Monthly Inputs'!E29 -> 3048137.629 | D9: =-'Monthly Inputs'!E37 -> 0 | E9: =E8+C9+D9 -> 12695716.63 | F9: =F21 -> 0.9522568109 | G9: ='Other Inputs'!F138 -> 3.84511 | H9: ='Monthly Inputs'!E79 -> 2.13 | I9: =M9/E9 -> 4.330070754 | K9: =(+F9*C9*G9)+((1-F9)*C9*H9) -> 11470828.27 | L9: =D9*I8 -> 0 | M9: =M8+L9+K9 -> 54973351.27
B10: ='Monthly Inputs'!F3 -> Oct18 | C10: ='Monthly Inputs'!F29 -> 1095902.899 | D10: =-'Monthly Inputs'!F37 -> -342368.988 | E10: =E9+C10+D10 -> 13449250.54 | F10: =F22 -> 0.6765142993 | G10: =G9 -> 3.84511 | H10: ='Monthly Inputs'!F79 -> 2.16 | I10: =M10/E10 -> 4.246136232 | K10: =(+F10*C10*G10)+((1-F10)*C10*H10) -> 3616480.674 | L10: =D10*I9 -> -1482481.942 | M10: =M9+L10+K10 -> 57107350
A11: 1. | B11: ='Monthly Inputs'!G3 -> Nov18 | C11: ='Monthly Inputs'!G29 -> 243439.8766 | D11: =-'Monthly Inputs'!G37 -> -746800.0107 | E11: =E10+C11+D11 -> 12945890.41 | F11: =Calculations!D177 -> 0.4702302521 | G11: ='Ut 1.4 p2'!$F$15 -> 4.121750121 | H11: =Calculations!D197 -> 2.5544 | I11: =M11/E11 -> 4.228183267 | K11: 801261.769 | L11: =D11*I10 -> -3171014.583 | M11: =M10+L11+K11 -> 54737597.19
A12: 2. | B12: ='Monthly Inputs'!H3 -> Dec18 | C12: ='Monthly Inputs'!H29 -> 105060.07 | D12: =-'Monthly Inputs'!H37 -> -4672599.976 | E12: 8378350.5 | F12: =Calculations!E177 -> 0.391071816 | G12: ='Ut 1.4 p2'!$F$15 -> 4.121750121 | H12: =Calculations!E197 -> 2.88309 | I12: =M12/E12 -> 4.217390694 | K12: 353789.2672 | L12: =D12*I11 -> -19756609.03 | M12: =M11+L12+K12 -> 35334777.43
A13: 3. | B13: ='Monthly Inputs'!I3 -> Jan19 | C13: ='Monthly Inputs'!I29 -> 0 | D13: =-'Monthly Inputs'!I37 -> -3972644.775 | E13: =E12+C13+D13 -> 4405705.724 | F13: =Calculations!F177 -> 0.3503670575 | G13: ='Ut 1.4 p2'!$F$15 -> 4.121750121 | H13: =Calculations!F197 -> 2.95138 | I13: =M13/E13 -> 4.217390694 | K13: 0 | L13: =D13*I12 -> -16754195.11 | M13: 18580582.32
A14: 4. | B14: ='Monthly Inputs'!J3 -> Feb19 | C14: ='Monthly Inputs'!J29 -> 0 | D14: =-'Monthly Inputs'!J37 -> -3599387.814 | E14: 806317.9107 | F14: =Calculations!G177 -> 0.3896545326 | G14: ='Ut 1.4 p2'!$F$15 -> 4.121750121 | H14: =Calculations!G197 -> 2.75322 | I14: =M14/E14 -> 4.217390694 | K14: 0 | L14: =D14*I13 -> -15180024.67 | M14: 3400557.653
A15: 5. | B15: ='Monthly Inputs'!K3 -> Mar19 | C15: ='Monthly Inputs'!K29 -> 0 | D15: =-'Monthly Inputs'!K37 -> -2833346.588 | E15: -2027028.677 | F15: =Calculations!H177 -> 0.5542230582 | G15: ='Ut 1.4 p2'!$F$15 -> 4.121750121 | H15: =Calculations!H197 -> 2.2994 | I15: =M15/E15 -> 4.217390694 | K15: 0 | L15: -11949329.53 | M15: -8548771.88
A16: 6. | B16: ='Monthly Inputs'!L3 -> Apr19 | C16: ='Monthly Inputs'!L29 -> 1281328.651 | D16: =-'Monthly Inputs'!L37 -> -16419.63768 | E16: =E15+C16+D16 -> -762119.6637 | F16: =Calculations!I177 -> 0.555921997 | G16: ='Ut 1.4 p2'!$F$15 -> 4.121750121 | H16: =Calculations!I197 -> 1.87889 | I16: 6.052740988 | K16: 4005106.981 | L16: -69248.02715 | M16: -4612912.926
A17: 7. | B17: ='Monthly Inputs'!M3 -> May19 | C17: ='Monthly Inputs'!M29 -> 2905762.726 | D17: =-'Monthly Inputs'!M37 -> 0 | E17: 2143643.062 | F17: =Calculations!J177 -> 0.6792499173 | G17: ='Ut 1.4 p2'!$F$15 -> 4.121750121 | H17: =Calculations!J197 -> 1.75162 | I17: =M17/E17 -> 2.404736937 | K17: 9767810.577 | L17: 0 | M17: 5154897.651
A18: 8. | B18: ='Monthly Inputs'!N3 -> Jun19 | C18: ='Monthly Inputs'!N29 -> 2812028.442 | D18: =-'Monthly Inputs'!N37 -> 0 | E18: 4955671.505 | F18: =Calculations!K177 -> 0.868655043 | G18: ='Ut 1.4 p2'!$F$15 -> 4.121750121 | H18: =Calculations!K197 -> 1.86855 | I18: 3.211101928 | K18: 10758268.67 | L18: =D18*I17 -> 0 | M18: 15913166.32
A19: 9. | B19: ='Monthly Inputs'!O3 -> Jul19 | C19: ='Monthly Inputs'!O29 -> 2905762.726 | D19: =-'Monthly Inputs'!O37 -> 0 | E19: 7861434.23 | F19: =Calculations!L177 -> 0.9269862822 | G19: ='Ut 1.4 p2'!$F$15 -> 4.121750121 | H19: =Calculations!L197 -> 1.94 | I19: 3.488817957 | K19: 11513946.58 | L19: 0 | M19: =M18+L19+K19 -> 27427112.91
A20: 10. | B20: ='Monthly Inputs'!P3 -> Aug19 | C20: ='Monthly Inputs'!P29 -> 2905762.726 | D20: =-'Monthly Inputs'!P37 -> 0 | E20: 10767196.96 | F20: =Calculations!M177 -> 0.9542050881 | G20: ='Ut 1.4 p2'!$F$15 -> 4.121750121 | H20: =Calculations!M197 -> 1.94 | I20: 3.632664779 | K20: 11686504.24 | L20: 0 | M20: =M19+L20+K20 -> 39113617.15
A21: 11. | B21: ='Monthly Inputs'!Q3 -> Sep19 | C21: ='Monthly Inputs'!Q29 -> 2226814.732 | D21: =-'Monthly Inputs'!Q37 -> 0 | E21: 12994011.69 | F21: =Calculations!N177 -> 0.9522568109 | G21: ='Ut 1.4 p2'!$F$15 -> 4.121750121 | H21: =Calculations!N197 -> 1.82 | I21: 3.697647892 | K21: 8933662.781 | L21: 0 | M21: =M20+L21+K21 -> 48047279.93
A22: 12. | B22: ='Monthly Inputs'!R3 -> Oct19 | C22: ='Monthly Inputs'!R29 -> 1016638.283 | D22: =-'Monthly Inputs'!R37 -> 0 | E22: 14010649.97 | F22: =Calculations!O177 -> 0.6765142993 | G22: ='Ut 1.4 p2'!$F$15 -> 4.121750121 | H22: =Calculations!O197 -> 1.78941 | I22: 3.673675175 | K22: 3423297.059 | L22: 0 | M22: =M21+L22+K22 -> 51470576.99
M25: Inj./With. Adj.
A26: 14. | B26: Total | C26: =SUM(C11:C22) -> 16402598.23 | D26: =SUM(D11:D22) -> -15841198.8 | K26: =SUM(K11:K22) -> 61243647.93 | L26: =SUM(L11:L22) -> -66880420.95 | M26: =L26+K26 -> -5636773.019
A27: 15. | B27: Average $ /Dth | K27: =K26/C26 -> 3.733777238 | L27: =L26/D26 -> 4.221929274
A31: ___________________________________________________________________

Sheet Ex 1.1 Data
A1: QEPFS gathered | B1: 39938292.47 | C1: Adjusted test year-> | D1: -0.07201852894 | E1: 37061995.4 | H1: Samson Gathered | I1: 15158168.49 | J1: Adjusted test year-> | K1: -0.07561674591 | L1: 14011957.12
A2: Birch Creek | B2: 1323324.029 | C2: Adjusted test year-> | D2: -0.07201852894 | E2: 1228020.179
A3: Other | B3: 18144977.31
C4: WEXPRO I | J4: WEXPRO II
A5: Input Operator Service Fee > | C5: ='Monthly Inputs'!S106 -> 197658074.5 | H5: Input Operator Service Fee > | J5: ='Monthly Inputs'!S108 -> 44164130.23
A7: do not change the order of the months below!!!!! | H7: do not change the order of the months below!!!!!
A8: \/ | C8: 2018-08-31 | H8: \/ | J8: 2018-08-31
A9: \/ | B9: Company | C9: Average Index | D9: Church Buttes | H9: \/ | I9: Company | J9: Average Index | K9: Church Buttes
A10: \/ | B10: Production | C10: Spot Prices | D10: & Canyon Cr | H10: \/ | I10: Production | J10: Spot Prices | K10: & Canyon Cr
A11: January | B11: 4682317.491 | C11: 2.91 | D11: =C11+0.1 -> 3.01 | E11: =B11*D11 -> 14093775.65 | H11: January | I11: 1313187.914 | J11: 2.91 | K11: =J11+0.1 -> 3.01 | L11: =I11*K11 -> 3952695.622
A12: February | B12: 4321850.379 | C12: 2.71 | D12: =C12+0.1 -> 2.81 | E12: =B12*D12 -> 12144399.57 | H12: February | I12: 1142965.585 | J12: 2.71 | K12: =J12+0.1 -> 2.81 | L12: =I12*K12 -> 3211733.293
A13: March | B13: 4917970.195 | C13: 2.25 | D13: =C13+0.1 -> 2.35 | E13: 11557229.96 | H13: March | I13: 1224143.494 | J13: 2.25 | K13: 2.35 | L13: 2876737.211
A14: April | B14: 4750496.988 | C14: 1.83 | D14: 1.93 | E14: 9168459.187 | H14: April | I14: 1149432.003 | J14: 1.83 | K14: 1.93 | L14: 2218403.766
A15: May | B15: 4794066.281 | C15: 1.75 | D15: =C15+0.1 -> 1.85 | E15: 8869022.62 | H15: May | I15: 1155221.205 | J15: 1.75 | K15: 1.85 | L15: 2137159.23
A16: June | B16: 4610328.008 | C16: 1.86 | D16: 1.96 | E16: 9036242.896 | H16: June | I16: 1089497.983 | J16: 1.86 | K16: 1.96 | L16: 2135416.048
A17: July | B17: 4611709.976 | C17: 1.92 | D17: 2.02 | E17: 9315654.151 | H17: July | I17: 991008.9478 | J17: 1.92 | K17: 2.02 | L17: 2001838.075
A18: August | B18: 4507108.671 | C18: 1.92 | D18: 2.02 | E18: 9104359.515 | H18: August | I18: 1059733.902 | J18: 1.92 | K18: 2.02 | L18: 2140662.481
A19: September | B19: 4267514.98 | C19: 1.8 | D19: 1.9 | E19: 8108278.462 | H19: September | I19: 1017635.99 | J19: 1.8 | K19: 1.9 | L19: 1933508.381
A20: October | B20: 4554454.927 | C20: 1.72 | D20: 1.82 | E20: 8289107.966 | H20: October | I20: 1162726.308 | J20: 1.72 | K20: 1.82 | L20: 2116161.88
A21: November | B21: 4416212.987 | C21: 2.51 | D21: 2.61 | E21: 11526315.9 | H21: November | I21: 1336550.991 | J21: 2.51 | K21: 2.61 | L21: 3488398.085
A22: December | B22: 4694187.434 | C22: 2.84 | D22: 2.94 | E22: 13800911.05 | H22: December | I22: 1369852.796 | J22: 2.84 | K22: 2.94 | L22: 4027367.219
B24: =SUM(B11:B22) -> 55128218.32 | C24: CANYON CREEK | D24: =E24/B24 -> 2.267690862 | E24: =SUM(E11:E22) -> 125013756.9 | I24: =SUM(I11:I22) -> 14011957.12 | J24: CANYON CREEK | K24: =L24/I24 -> 2.300897799 | L24: =SUM(L11:L22) -> 32240081.29
C25: CHURCH BUTTES | J25: CHURCH BUTTES
C26: All Others -> | D26: =D24-0.2 -> 2.067690862 | J26: All Others -> | K26: =K24-0.2 -> 2.100897799
A29: Make sure all spot pricing is only 2 decimals | H29: Make sure all spot pricing is only 2 decimals

Sheet Expenses
A1: %,LACTUALS
S7: Historical
S8: 12 Months Ending
C9: FERC Acct | E9: Description | G9: 2017-09-01 | H9: 2017-10-01 | I9: 2017-11-01 | J9: 2017-12-01 | K9: 2018-01-01 | L9: 2018-02-01 | M9: 2018-03-01 | N9: 2018-04-01 | O9: 2018-05-01 | P9: 2018-06-01 | Q9: 2018-07-01 | R9: 2018-08-01 | S9: =+R9 -> 2018-08-01
B11: 497 | C11: UTILITY OPERATING EXPENSES
B12: 498 | C12: GAS PURCHASE EXPENSES
B13: 499
B14: 500 | D14: Utah % of Sales Dth from 191 Acct ===> | G14: 0.97015 | H14: 0.95624 | I14: 0.95879 | J14: 0.97128 | K14: 0.96627 | L14: 0.96634 | M14: 0.96287 | N14: 0.95974 | O14: 0.95657 | P14: 0.97334 | Q14: 0.97297 | R14: 0.97021
B15: 501
A16: %,FACCOUNT,TQGCACCTS,V758000 | B16: 502 | C16: 758 | D16: Gas Well Royalties
B17: 503 | E17: Utah | G17: 2156492.63 | H17: 2431437.052 | I17: 2372133.566 | J17: 2545587.007 | K17: 2310634.967 | L17: -4774974.508 | M17: 3159482.547 | N17: 1841781.082 | O17: 1970901.806 | P17: 1944763.885 | Q17: 2222731.659 | R17: 2389591.613 | S17: 20570563.31
B18: 504 | E18: Wyoming | G18: 66351.90952 | H18: 111268.8084 | I18: 101957.2839 | J18: 75271.0432 | K18: 80658.32267 | L18: -166324.1115 | M18: 121835.3329 | N18: 78040.7578 | O18: 93821.00449 | P18: 49988.49464 | Q18: 72008.96066 | R18: 68734.8067 | S18: 753612.6134
B19: 505 | E19: Total | G19: 2222844.54 | H19: 2542705.86 | I19: 2474090.85 | J19: 2620858.05 | K19: 2391293.29 | L19: -4941298.62 | M19: 3281317.88 | N19: 1919821.84 | O19: 2064722.81 | P19: 1994752.38 | Q19: 2294740.62 | R19: 2458326.42 | S19: 21324175.92
B20: 506
A21: %,FACCOUNT,TQGCACCTS,V758001,V758002,V758003,V758004 | B21: 507 | C21: 758.1 | D21: Gas Well Royalties - Other
B22: 508 | E22: Utah | G22: 16225.85 | H22: 22368 | I22: 18400.87 | J22: 25753.29 | K22: 31545.49 | L22: 31249.96 | M22: 31630.55 | N22: 20721.22 | O22: 32355.49 | P22: 26778.16 | Q22: 33343.26 | R22: 20897.51 | S22: 311269.65
B23: 509 | E23: Wyoming | G23: 0 | H23: 0 | I23: 0 | J23: 0 | K23: 0 | L23: 0 | M23: 0 | N23: 0 | O23: 0 | P23: 0 | Q23: 0 | R23: 0 | S23: 0
B24: 510 | E24: Total | G24: 16225.85 | H24: 22368 | I24: 18400.87 | J24: 25753.29 | K24: 31545.49 | L24: 31249.96 | M24: 31630.55 | N24: 20721.22 | O24: 32355.49 | P24: 26778.16 | Q24: 33343.26 | R24: 20897.51 | S24: 311269.65
B25: 511
A26: %,FACCOUNT,TQGCACCTS,V759000,V759001,V759002,V759003,V759004 | B26: 512 | C26: 759 | D26: Gathering by Others, GRI & ACA - Gas Cost
B27: 513 | E27: Utah | G27: 2247287.13 | H27: 2170310.79 | I27: 2236680.5 | J27: 2246740.93 | K27: 2056137.76 | L27: 1941090.61 | M27: 1962342.05 | N27: 2038774.28 | O27: 2087577.14 | P27: 2205794.59 | Q27: 1843923.98 | R27: 1880747.4 | S27: 24917407.16
B28: 514 | E28: Wyoming | G28: 0 | H28: 0 | I28: 0 | J28: 0 | K28: 0 | L28: 0 | M28: 0 | N28: 0 | O28: 0 | P28: 0 | Q28: 0 | R28: 0 | S28: 0
B29: 515 | E29: Total | G29: 2247287.13 | H29: 2170310.79 | I29: 2236680.5 | J29: 2246740.93 | K29: 2056137.76 | L29: 1941090.61 | M29: 1962342.05 | N29: 2038774.28 | O29: 2087577.14 | P29: 2205794.59 | Q29: 1843923.98 | R29: 1880747.4 | S29: 24917407.16
B30: 516
A31: %,FACCOUNT,TQGCACCTS,V759005 | B31: 517 | C31: 759 | D31: Gathering by Others - SNG Cost
B32: 518 | E32: Utah | G32: 0 | H32: 0 | I32: 0 | J32: 0 | K32: 0 | L32: 0 | M32: 0 | N32: 0 | O32: 0 | P32: 0 | Q32: 0 | R32: 0 | S32: 0
B33: 519 | E33: Wyoming | G33: 0 | H33: 0 | I33: 0 | J33: 0 | K33: 0 | L33: 0 | M33: 0 | N33: 0 | O33: 0 | P33: 0 | Q33: 0 | R33: 0 | S33: 0
B34: 520 | E34: Total | G34: 0 | H34: 0 | I34: 0 | J34: 0 | K34: 0 | L34: 0 | M34: 0 | N34: 0 | O34: 0 | P34: 0 | Q34: 0 | R34: 0 | S34: 0
B35: 521
A36: %,FACCOUNT,TQGCACCTS,V800000,V800005,V800002 | B36: 522 | C36: 800 | D36: Natural Gas Well Head Purchases
B37: 523 | E37: Utah | G37: 0 | H37: 0 | I37: 0 | J37: 0 | K37: 0 | L37: 0 | M37: 0 | N37: 226.483348 | O37: 0 | P37: 274.8453354 | Q37: 0 | R37: 0 | S37: 501.3286834
B38: 524 | E38: Wyoming | G38: 0 | H38: 0 | I38: 0 | J38: 0 | K38: 0 | L38: 0 | M38: 0 | N38: 9.596652 | O38: 0 | P38: 7.0646646 | Q38: 0 | R38: 0 | S38: 16.6613166
B39: 525 | E39: Total | G39: 0 | H39: 0 | I39: 0 | J39: 0 | K39: 0 | L39: 0 | M39: 0 | N39: 236.08 | O39: 0 | P39: 281.91 | Q39: 0 | R39: 0 | S39: 517.99
B40: 526
A41: %,FACCOUNT,TQGCACCTS,V801000 | B41: 527 | C41: 801 | D41: Natural Gas Field Line Purchases
B42: 528 | E42: Utah | G42: 0 | H42: 0 | I42: 0 | J42: 0 | K42: 0 | L42: 0 | M42: 0 | N42: 0 | O42: 0 | P42: 0 | Q42: 0 | R42: 0 | S42: 0
B43: 529 | E43: Wyoming | G43: 0 | H43: 0 | I43: 0 | J43: 0 | K43: 0 | L43: 0 | M43: 0 | N43: 0 | O43: 0 | P43: 0 | Q43: 0 | R43: 0 | S43: 0
B44: 530 | E44: Total | G44: 0 | H44: 0 | I44: 0 | J44: 0 | K44: 0 | L44: 0 | M44: 0 | N44: 0 | O44: 0 | P44: 0 | Q44: 0 | R44: 0 | S44: 0
B45: 531
A46: %,FACCOUNT,TQGCACCTS,V802000 | B46: 532 | C46: 802 | D46: Natural Gas Gasoline Plant Outlet Purchase
B47: 533 | E47: Utah | G47: 0 | H47: 0 | I47: 0 | J47: 0 | K47: 0 | L47: 0 | M47: 0 | N47: 0 | O47: 0 | P47: 0 | Q47: 0 | R47: 0 | S47: 0
B48: 534 | E48: Wyoming | G48: 0 | H48: 0 | I48: 0 | J48: 0 | K48: 0 | L48: 0 | M48: 0 | N48: 0 | O48: 0 | P48: 0 | Q48: 0 | R48: 0 | S48: 0
B49: 535 | E49: Total | G49: 0 | H49: 0 | I49: 0 | J49: 0 | K49: 0 | L49: 0 | M49: 0 | N49: 0 | O49: 0 | P49: 0 | Q49: 0 | R49: 0 | S49: 0
B50: 536
A51: %,FACCOUNT,TQGCACCTS,V803000,V803002 | B51: 537 | C51: 803 | D51: Natural Gas Transmission Line - Purchases
B52: 538 | E52: Utah | G52: 1544478.8 | H52: 5595493.344 | I52: 11601359 | J52: 26559334.5 | K52: 44581747.92 | L52: 17537565.28 | M52: 4813329.733 | N52: 6328601.706 | O52: 1338902.607 | P52: 0 | Q52: 0 | R52: 0 | S52: 119900812.9
B53: 539 | E53: Wyoming | G53: 47521.2 | H53: 256064.1562 | I53: 498641 | J53: 785339.0235 | K53: 1556234.135 | L53: 610876.552 | M53: 185610.6567 | N53: 268158.294 | O53: 63735.89344 | P53: 0 | Q53: 0 | R53: 0 | S53: 4272180.91
B54: 540 | E54: Total | G54: 1592000 | H54: 5851557.5 | I54: 12100000 | J54: 27344673.52 | K54: 46137982.05 | L54: 18148441.83 | M54: 4998940.39 | N54: 6596760 | O54: 1402638.5 | P54: 0 | Q54: 0 | R54: 0 | S54: 124172993.8
B55: 541
A56: %,FACCOUNT,V804000,FAFFILIATE,V09 | B56: 542 | C56: 804 | D56: Natural Gas City Gate Purchases - Resources
B57: 543 | E57: Utah | G57: 0 | H57: 0 | I57: 0 | J57: 0 | K57: 0 | L57: 0 | M57: 0 | N57: 0 | O57: 0 | P57: 0 | Q57: 0 | R57: 0 | S57: 0
B58: 544 | E58: Wyoming | G58: 0 | H58: 0 | I58: 0 | J58: 0 | K58: 0 | L58: 0 | M58: 0 | N58: 0 | O58: 0 | P58: 0 | Q58: 0 | R58: 0 | S58: 0
B59: 545 | E59: Total | G59: 0 | H59: 0 | I59: 0 | J59: 0 | K59: 0 | L59: 0 | M59: 0 | N59: 0 | O59: 0 | P59: 0 | Q59: 0 | R59: 0 | S59: 0
B60: 546
A61: %,FACCOUNT,V804000,FAFFILIATE,V | B61: 547 | C61: 804.1 | D61: Natural Gas City Gate Purchases - Other
B62: 548 | E62: Utah | G62: 0 | H62: 0 | I62: 0 | J62: 0 | K62: -373.076847 | L62: 1086312.561 | M62: 125662.238 | N62: 0 | O62: 70240.34304 | P62: 0 | Q62: 0 | R62: 0 | S62: 1281842.065
B63: 549 | E63: Wyoming | G63: 0 | H63: 0 | I63: 0 | J63: 0 | K63: -13.023153 | L63: 37838.93949 | M63: 4845.76204 | N63: 0 | O63: 3343.65696 | P63: 0 | Q63: 0 | R63: 0 | S63: 46015.33534
B64: 550 | E64: Total | G64: 0 | H64: 0 | I64: 0 | J64: 0 | K64: -386.1 | L64: 1124151.5 | M64: 130508 | N64: 0 | O64: 73584 | P64: 0 | Q64: 0 | R64: 0 | S64: 1327857.4
B65: 551
B66: 552 | C66: 805 | D66: Purchased Gas Cost Adjustments - Other
B67: 553 | E67: Utah | G67: 0 | H67: 0 | I67: 0 | J67: 0 | K67: 0 | L67: 0 | M67: 0 | N67: 0 | O67: 0 | P67: 0 | Q67: 0 | R67: 0 | S67: 0
B68: 554 | E68: Wyoming | G68: 0 | H68: 0 | I68: 0 | J68: 0 | K68: 0 | L68: 0 | M68: 0 | N68: 0 | O68: 0 | P68: 0 | Q68: 0 | R68: 0 | S68: 0
B69: 555 | E69: Total | G69: 0 | H69: 0 | I69: 0 | J69: 0 | K69: 0 | L69: 0 | M69: 0 | N69: 0 | O69: 0 | P69: 0 | Q69: 0 | R69: 0 | S69: 0
B70: 556
A71: %,FACCOUNT,TQGCACCTS,V805100 | B71: 557 | C71: 805.1 | D71: Purchased Gas Cost Adjustments - Utah
B72: 558 | E72: Utah | G72: -10664669.77 | H72: -2729298.296 | I72: 5573849.949 | J72: 26329385.39 | K72: 9219574.376 | L72: 16399305.83 | M72: -3081656.769 | N72: -6947856.375 | O72: -10552461.3 | P72: -12471449.05 | Q72: -10242545.3 | R72: -7819161.691 | S72: -6986983.008
B73: 559 | E73: Wyoming | G73: -328135.2293 | H73: -124899.7045 | I73: 239571.0806 | J73: 778539.606 | K73: 321831.6244 | L73: 571228.1744 | M73: -118834.2308 | N73: -294397.6251 | O73: -502329.703 | P73: -320567.946 | Q73: -331823.6992 | R73: -224912.309 | S73: -334729.9615
B74: 560 | E74: Total | G74: -10992805 | H74: -2854198 | I74: 5813421.03 | J74: 27107925 | K74: 9541406 | L74: 16970534 | M74: -3200491 | N74: -7242254 | O74: -11054791 | P74: -12792017 | Q74: -10574369 | R74: -8044074 | S74: -7321712.97
B75: 561
A76: %,FACCOUNT,TQGCACCTS,V806000 | B76: 562 | C76: 806 | D76: Exchange Gas
B77: 563 | E77: Utah | G77: 0 | H77: 0 | I77: 0 | J77: 0 | K77: 0 | L77: 0 | M77: 0 | N77: 0 | O77: 0 | P77: 0 | Q77: 0 | R77: 0 | S77: 0
B78: 564 | E78: Wyoming | G78: 0 | H78: 0 | I78: 0 | J78: 0 | K78: 0 | L78: 0 | M78: 0 | N78: 0 | O78: 0 | P78: 0 | Q78: 0 | R78: 0 | S78: 0
B79: 565 | E79: Total | G79: 0 | H79: 0 | I79: 0 | J79: 0 | K79: 0 | L79: 0 | M79: 0 | N79: 0 | O79: 0 | P79: 0 | Q79: 0 | R79: 0 | S79: 0
B80: 566
A81: %,FACCOUNT,TQGCACCTS,V808100 | B81: 567 | C81: 808.1 | D81: Gas Withdrawn from Underground Storage
B82: 568 | E82: Utah | G82: 4989879.726 | H82: 2003950.304 | I82: 3453887.674 | J82: 6908083.57 | K82: 16931485.3 | L82: 11889723.79 | M82: 13567388.27 | N82: 5558115.727 | O82: 912107.4045 | P82: -46897.9288 | Q82: 4754580.579 | R82: 792.8055444 | S82: 70923097.23
B83: 569 | E83: Wyoming | G83: 153530.8043 | H83: 91705.91619 | I83: 148452.4359 | J83: 204266.6998 | K83: 591034.5962 | L83: 414148.3359 | M83: 523182.9079 | N83: 235510.9233 | O83: 43419.12552 | P83: -1205.471204 | Q83: 154032.2712 | R83: 22.8044556 | S83: 2558101.35
B84: 570 | E84: Total | G84: 5143410.53 | H84: 2095656.22 | I84: 3602340.11 | J84: 7112350.27 | K84: 17522519.9 | L84: 12303872.13 | M84: 14090571.18 | N84: 5793626.65 | O84: 955526.53 | P84: -48103.4 | Q84: 4908612.85 | R84: 815.61 | S84: 73481198.58
B85: 571
A86: %,FACCOUNT,TQGCACCTS,V808200 | B86: 572 | C86: 808.2 | D86: Gas Delivered to Underground Storage
B87: 573 | E87: Utah | G87: -15508085.3 | H87: -2167662.474 | I87: -3701325.821 | J87: -692957.6472 | K87: -1224268.912 | L87: -937785.3004 | M87: -1235701.756 | N87: -2035193.324 | O87: -5331396.055 | P87: -11530120.98 | Q87: -17035026.32 | R87: -13192038.32 | S87: -74591562.21
B88: 574 | E88: Wyoming | G88: -477159.5591 | H88: -99197.80585 | I88: -159087.6387 | J88: -20490.22283 | K88: -42736.07831 | L88: -32665.36955 | M88: -47650.88352 | N88: -86236.10633 | O88: -253790.895 | P88: -296371.9118 | Q88: -551877.0271 | R88: -379459.067 | S88: -2446722.565
B89: 575 | E89: Total | G89: -15985244.86 | H89: -2266860.28 | I89: -3860413.46 | J89: -713447.87 | K89: -1267004.99 | L89: -970450.67 | M89: -1283352.64 | N89: -2121429.43 | O89: -5585186.95 | P89: -11826492.89 | Q89: -17586903.35 | R89: -13571497.39 | S89: -77038284.78
B90: 576
A91: %,FACCOUNT,TQGCACCTS,V808300 | B91: 577 | C91: 808.3 | D91: Exchange Gas
B92: 578 | E92: Utah | G92: 318513.8271 | H92: 306910.9654 | I92: 298935.3814 | J92: 299290.2192 | K92: 325163.3828 | L92: 325938.7513 | M92: 325587.7504 | N92: 325672.4632 | O92: 324216.304 | P92: 330341.845 | Q92: 325999.7158 | R92: 323828.3217 | S92: 3830398.927
B93: 579 | E93: Wyoming | G93: 9800.1729 | H93: 14045.03456 | I93: 12848.61864 | J93: 8849.7808 | K93: 11350.61722 | L93: 11353.24872 | M93: 12555.24959 | N93: 13799.5368 | O93: 15433.696 | P93: 8491.15498 | Q93: 10561.28418 | R93: 9314.67828 | S93: 138403.0727
B94: 580 | E94: Total | G94: 328314 | H94: 320956 | I94: 311784 | J94: 308140 | K94: 336514 | L94: 337292 | M94: 338143 | N94: 339472 | O94: 339650 | P94: 338833 | Q94: 336561 | R94: 333143 | S94: 3968802
B95: 581
A96: %,FACCOUNT,TQGCACCTS,V813000,V813001,V813002,V813003,V813004 | B96: 582 | C96: 813 | D96: Other Gas Supply Expenses - Gas Cost
B97: 583 | E97: Utah | G97: 25367480.46 | H97: 23778972.06 | I97: 25687947.55 | J97: 25967804.35 | K97: 25979177.11 | L97: 24561362.92 | M97: 26351986.96 | N97: 25647248.83 | O97: 25491583.51 | P97: 30062203.39 | Q97: 26611087.18 | R97: 24771566.35 | S97: 310278420.7
B98: 584 | E98: Wyoming | G98: 780517.7466 | H98: 1088186.875 | I98: 1104100.291 | J98: 767847.9335 | K98: 906866.2422 | L98: 855532.7069 | M98: 1016180.041 | N98: 1086736.504 | O98: 1213477.995 | P98: 772723.2618 | Q98: 862108.8927 | R98: 712535.4874 | S98: 11166813.98
B99: 585 | E99: Total | G99: 26147998.21 | H99: 24867158.94 | I99: 26792047.84 | J99: 26735652.28 | K99: 26886043.35 | L99: 25416895.63 | M99: 27368167 | N99: 26733985.33 | O99: 26705061.5 | P99: 30834926.65 | Q99: 27473196.07 | R99: 25484101.84 | S99: 321445234.6
B100: 586
B101: 587 | C101: 813 | D101: Other Gas Supply Expenses - SNG Cost
B102: 588 | E102: Utah | S102: 0
B103: 589 | E103: Wyoming | S103: 0
B104: 590 | E104: Total | G104: 0 | H104: 0 | I104: 0 | J104: 0 | K104: 0 | L104: 0 | M104: 0 | N104: 0 | O104: 0 | P104: 0 | Q104: 0 | R104: 0 | S104: 0
B105: 591
B106: 592 | C106: 813.5 | D106: CO2 Processing Expenses
A107: %,FACCOUNT,TQGCACCTS,V813005,V813007,V813008 | B107: 593 | E107: Utah | G107: 0 | H107: 0 | I107: 0 | J107: 0 | K107: 0 | L107: 0 | M107: 0 | N107: 0 | O107: 0 | P107: 0 | Q107: 0 | R107: 0 | S107: 0
A108: %,FACCOUNT,TQGCACCTS,V813006 | B108: 594 | E108: Wyoming | G108: 0 | H108: 0 | I108: 0 | J108: 0 | K108: 0 | L108: 0 | M108: 0 | N108: 0 | O108: 0 | P108: 0 | Q108: 0 | R108: 0 | S108: 0
B109: 595 | E109: Total | G109: 0 | H109: 0 | I109: 0 | J109: 0 | K109: 0 | L109: 0 | M109: 0 | N109: 0 | O109: 0 | P109: 0 | Q109: 0 | R109: 0 | S109: 0
B110: 596
A111: %,FACCOUNT,TQGCACCTS,V858000 | B111: 597 | C111: 858 | D111: Transportation GRI & ACA - Gas Cost
B112: 598 | E112: Utah | G112: 4643814.143 | H112: 4578153.242 | I112: 7298240.974 | J112: 7817914.929 | K112: 6581440.706 | L112: 6318445.486 | M112: 5998035.468 | N112: 4647481.021 | O112: 4612196.483 | P112: 4651881.899 | Q112: 4631232.314 | R112: 4634523.923 | S112: 66413360.59
B113: 599 | E113: Wyoming | G113: 142882.9069 | H113: 209508.0585 | I113: 313687.5755 | J113: 231169.7109 | K113: 229741.1645 | L113: 220087.0036 | M113: 231295.0418 | N113: 196925.1092 | O113: 219554.7773 | P113: 119572.651 | Q113: 150036.2062 | R113: 133308.5973 | S113: 2397768.803
B114: 600 | E114: Total | G114: 4786697.05 | H114: 4787661.3 | I114: 7611928.55 | J114: 8049084.64 | K114: 6811181.87 | L114: 6538532.49 | M114: 6229330.51 | N114: 4844406.13 | O114: 4831751.26 | P114: 4771454.55 | Q114: 4781268.52 | R114: 4767832.52 | S114: 68811129.39
B115: 601
A116: %,FACCOUNT,TQGCACCTS,V858001 | B116: 602 | C116: 858 | D116: Trans & Comp of Gas by Others - SNG Cost
B117: 603 | E117: Utah | G117: 0 | H117: 0 | I117: 0 | J117: 0 | K117: 0 | L117: 0 | M117: 0 | N117: 0 | O117: 0 | P117: 0 | Q117: 0 | R117: 0 | S117: 0
B118: 604 | E118: Wyoming | G118: 0 | H118: 0 | I118: 0 | J118: 0 | K118: 0 | L118: 0 | M118: 0 | N118: 0 | O118: 0 | P118: 0 | Q118: 0 | R118: 0 | S118: 0
B119: 605 | E119: Total | G119: 0 | H119: 0 | I119: 0 | J119: 0 | K119: 0 | L119: 0 | M119: 0 | N119: 0 | O119: 0 | P119: 0 | Q119: 0 | R119: 0 | S119: 0
B120: 606
B121: 607 | C121: System Total Gas Purchase Expenses
B122: 608 | D122: Utah Gas Purchase Expenses | G122: 15111417.5 | H122: 35990634.99 | I122: 54840109.64 | J122: 98006936.54 | K122: 106792265 | L122: 74378235.38 | M122: 52018087.04 | N122: 37425573.11 | O122: 20956223.73 | P122: 15173570.65 | Q122: 13145327.06 | R122: 13010747.91 | S122: 536849128.6
B123: 609 | D123: Wyoming Gas Purchase Expenses | G123: 395309.9519 | H123: 1546681.339 | I123: 2260170.647 | J123: 2830793.575 | K123: 3654967.6 | L123: 2522075.48 | M123: 1929019.877 | N123: 1498546.99 | O123: 896665.5502 | P123: 332637.2981 | Q123: 365046.8886 | R123: 319544.9981 | S123: 18551460.2
B124: 610
B125: 611
B126: 612 | D126: System Total Gas Purchase Expenses | G126: 15506727.45 | H126: 37537316.33 | I126: 57100280.29 | J126: 100837730.1 | K126: 110447232.6 | L126: 76900310.86 | M126: 53947106.92 | N126: 38924120.1 | O126: 21852889.28 | P126: 15506207.95 | Q126: 13510373.95 | R126: 13330292.91 | S126: 555400588.8
B127: 613
B128: 614
B129: 615 | C129: OPERATION AND MAINTENANCE EXPENSES
B130: 616
B131: 617 | C131: Production Expenses
B132: 618
A133: %,FACCOUNT,TQGCACCTS,V810000,V810001 | B133: 619 | C133: 810 | D133: Gas Used for Compressor Station Fuel | G133: -441 | H133: -708 | I133: -1073 | J133: -658 | K133: -3059 | L133: -620 | M133: -1026 | N133: -666 | O133: -2201 | P133: -517 | Q133: -2920 | R133: -344 | S133: -14233
A134: %,FACCOUNT,TQGCACCTS,V812000,V812001 | B134: 620 | C134: 812 | D134: Gas Used for Other Utility Operations | G134: -56779.49 | H134: -58980.97 | I134: -69808.03 | J134: -92311.83 | K134: -119129.07 | L134: -85342.02 | M134: -91810.39 | N134: -76634.57 | O134: -65162.96 | P134: -63495.32 | Q134: -55982.46 | R134: -57654.82 | S134: -893091.93
B135: 621
B136: 622 | D136: Total Production Expenses | G136: -57220.49 | H136: -59688.97 | I136: -70881.03 | J136: -92969.83 | K136: -122188.07 | L136: -85962.02 | M136: -92836.39 | N136: -77300.57 | O136: -67363.96 | P136: -64012.32 | Q136: -58902.46 | R136: -57998.82 | S136: -907324.93
B137: 623 | G137: -1708.031627 | H137: -2611.989327 | I137: -2921.007246 | J137: -2670.093518 | K137: -4121.403601 | L137: -2893.481593 | M137: -3447.015161 | N137: -3142.26817 | O137: -3061.018342 | P137: -1604.148739 | Q137: -1848.359195 | R137: -1621.647007 | S137: -31650.46353
B138: 624 | C138: Distribution Operations & Maintenance Expenses
B139: 625
B140: 626 | C140: 870 | D140: Operation Supervision & Engineering
B141: 627 | E141: Utah | G141: 741599.35 | H141: 594986.94 | I141: 451680.1 | J141: 1213285.99 | K141: 2750487.5 | L141: 413356.81 | M141: 961605.27 | N141: 658383.09 | O141: 633813.13 | P141: 957297.87 | Q141: 818280.21 | R141: 935578.86 | S141: 11130355.12
B142: 628 | E142: Wyoming | G142: 47202.42 | H142: 37317.14 | I142: 39439.11 | J142: 85881.05 | K142: 104798.89 | L142: 31269.78 | M142: 57621.86 | N142: 49464.83 | O142: 42184.75 | P142: 53793.18 | Q142: 40972.77 | R142: 53331.78 | S142: 643277.56
A143: %,FACCOUNT,TQGCACCTS,N870 | B143: 629 | E143: Total | G143: 788801.77 | H143: 632304.08 | I143: 491119.21 | J143: 1299167.04 | K143: 2855286.39 | L143: 444626.59 | M143: 1019227.13 | N143: 707847.92 | O143: 675997.88 | P143: 1011091.05 | Q143: 859252.98 | R143: 988910.64 | S143: 11773632.68
B144: 630
B145: 631 | C145: 871 | D145: Distribution Load Dispatching
B146: 632 | E146: Utah | G146: 163573.32 | H146: 128317.45 | I146: 147765.44 | J146: 178870.65 | K146: 177916.23 | L146: 152345.06 | M146: 174551.69 | N146: 131648.77 | O146: 156206.44 | P146: 160492.58 | Q146: 144422.67 | R146: 163885.92 | S146: 1879996.22
B147: 633 | E147: Wyoming | G147: 2632.52 | H147: 1815.93 | I147: 2797.88 | J147: 2871.62 | K147: 2086.41 | L147: 2372.39 | M147: 2724.17 | N147: 2406.37 | O147: 3003.53 | P147: 2900.08 | Q147: 2214.49 | R147: 2981.02 | S147: 30806.41
A148: %,FACCOUNT,TQGCACCTS,N871 | B148: 634 | E148: Total | G148: 166205.84 | H148: 130133.38 | I148: 150563.32 | J148: 181742.27 | K148: 180002.64 | L148: 154717.45 | M148: 177275.86 | N148: 134055.14 | O148: 159209.97 | P148: 163392.66 | Q148: 146637.16 | R148: 166866.94 | S148: 1910802.63
B149: 635
B150: 636 | C150: 872 | D150: Compressor Station Labor & Expenses
B151: 637 | E151: Utah | G151: 0 | H151: 0 | I151: 0 | J151: 0 | K151: 0 | L151: 0 | M151: 0 | N151: 0 | O151: 0 | P151: 0 | Q151: 0 | R151: 0 | S151: 0
B152: 638 | E152: Wyoming | G152: 0 | H152: 0 | I152: 0 | J152: 0 | K152: 0 | L152: 0 | M152: 0 | N152: 0 | O152: 0 | P152: 0 | Q152: 0 | R152: 0 | S152: 0
A153: %,FACCOUNT,TQGCACCTS,N872 | B153: 639 | E153: Total | G153: 0 | H153: 0 | I153: 0 | J153: 0 | K153: 0 | L153: 0 | M153: 0 | N153: 0 | O153: 0 | P153: 0 | Q153: 0 | R153: 0 | S153: 0
B154: 640
B155: 641 | C155: 873 | D155: Compressor Station Fuel & Power
B156: 642 | E156: Utah | G156: 441 | H156: 708 | I156: 1073 | J156: 658 | K156: 3059 | L156: 620 | M156: 1026 | N156: 666 | O156: 2201 | P156: 517 | Q156: 2920 | R156: 344 | S156: 14233
B157: 643 | E157: Wyoming | G157: 0 | H157: 0 | I157: 0 | J157: 0 | K157: 0 | L157: 0 | M157: 0 | N157: 0 | O157: 0 | P157: 0 | Q157: 0 | R157: 0 | S157: 0
A158: %,FACCOUNT,TQGCACCTS,N873 | B158: 644 | E158: Total | G158: 441 | H158: 708 | I158: 1073 | J158: 658 | K158: 3059 | L158: 620 | M158: 1026 | N158: 666 | O158: 2201 | P158: 517 | Q158: 2920 | R158: 344 | S158: 14233
B159: 645
B160: 646 | C160: 874 | D160: Mains & Service Expenses
B161: 647 | E161: Utah | G161: 1087200.82 | H161: 1267024.48 | I161: 1103558.92 | J161: 951386.38 | K161: 680600.99 | L161: 715701.25 | M161: 957067.53 | N161: 1090244.17 | O161: 1165098.93 | P161: 1294194.98 | Q161: 850340.36 | R161: 1115787.83 | S161: 12278206.64
B162: 648 | E162: Wyoming | G162: 43784.87 | H162: 41963.08 | I162: 42421.23 | J162: 43459.01 | K162: 29022.1 | L162: 16317.15 | M162: 24715.3 | N162: 31605.65 | O162: 45910.86 | P162: 47290.45 | Q162: 42581.41 | R162: 42671.03 | S162: 451742.14
A163: %,FACCOUNT,TQGCACCTS,N874 | B163: 649 | E163: Total | G163: 1130985.69 | H163: 1308987.56 | I163: 1145980.15 | J163: 994845.39 | K163: 709623.09 | L163: 732018.4 | M163: 981782.83 | N163: 1121849.82 | O163: 1211009.79 | P163: 1341485.43 | Q163: 892921.77 | R163: 1158458.86 | S163: 12729948.78
B164: 650
B165: 651 | C165: 875 | D165: Measuring & Regulating Station Expenses
B166: 652 | E166: Utah | G166: 237123.98 | H166: 114311.62 | I166: 265047.42 | J166: 219122.45 | K166: 175821.3 | L166: 170807.42 | M166: 170216.5 | N166: 252562.53 | O166: 154728.83 | P166: 130631.61 | Q166: 167896.18 | R166: 146718.04 | S166: 2204987.88
B167: 653 | E167: Wyoming | G167: 18488.67 | H167: 7342.33 | I167: 18719.68 | J167: 11176.45 | K167: 11604.56 | L167: 10149.23 | M167: 12453.46 | N167: 12420.64 | O167: 6840.52 | P167: 11924.86 | Q167: 9725.85 | R167: 8223.62 | S167: 139069.87
A168: %,FACCOUNT,TQGCACCTS,N875 | B168: 654 | E168: Total | G168: 255612.65 | H168: 121653.95 | I168: 283767.1 | J168: 230298.9 | K168: 187425.86 | L168: 180956.65 | M168: 182669.96 | N168: 264983.17 | O168: 161569.35 | P168: 142556.47 | Q168: 177622.03 | R168: 154941.66 | S168: 2344057.75
B169: 655
B170: 656 | C170: 878 | D170: Meter & House Regulator Expenses
B171: 657 | E171: Utah | G171: 214083.06 | H171: 259035.51 | I171: 281073.82 | J171: 290755.3 | K171: 220914.59 | L171: 206673.35 | M171: 213380.29 | N171: 193153.77 | O171: 215599.54 | P171: 209860.4 | Q171: 193053.77 | R171: 227680.95 | S171: 2725264.35
B172: 658 | E172: Wyoming | G172: 13797.97 | H172: 17778.06 | I172: 20879.56 | J172: 29154.97 | K172: 9296.21 | L172: 13372.47 | M172: 18614.54 | N172: 22679.29 | O172: 14885.46 | P172: 13067.68 | Q172: 22499.22 | R172: 18396.34 | S172: 214421.77
A173: %,FACCOUNT,TQGCACCTS,N878 | B173: 659 | E173: Total | G173: 227881.03 | H173: 276813.57 | I173: 301953.38 | J173: 319910.27 | K173: 230210.8 | L173: 220045.82 | M173: 231994.83 | N173: 215833.06 | O173: 230485 | P173: 222928.08 | Q173: 215552.99 | R173: 246077.29 | S173: 2939686.12
B174: 660
B175: 661 | C175: 879 | D175: Customer Installations Expenses
B176: 662 | E176: Utah | G176: 208957.77 | H176: 248359.85 | I176: 297208.64 | J176: 335517.2 | K176: 310376.46 | L176: 258580.47 | M176: 225455.46 | N176: 222558.62 | O176: 223818.91 | P176: 198600.32 | Q176: 222723.23 | R176: 207922.47 | S176: 2960079.4
B177: 663 | E177: Wyoming | G177: 6408.15 | H177: 12580.03 | I177: 13773.34 | J177: 14273.12 | K177: 14868.18 | L177: 11885.34 | M177: 13245.99 | N177: 8427.58 | O177: 6097.85 | P177: 5055.71 | Q177: 5574.3 | R177: 6657.49 | S177: 118847.08
A178: %,FACCOUNT,TQGCACCTS,N879 | B178: 664 | E178: Total | G178: 215365.92 | H178: 260939.88 | I178: 310981.98 | J178: 349790.32 | K178: 325244.64 | L178: 270465.81 | M178: 238701.45 | N178: 230986.2 | O178: 229916.76 | P178: 203656.03 | Q178: 228297.53 | R178: 214579.96 | S178: 3078926.48
B179: 665
B180: 666 | C180: 880 | D180: Other Expenses
B181: 667 | E181: Utah | G181: 627619.46 | H181: 795467.68 | I181: 530774.48 | J181: 658626.43 | K181: 839009.65 | L181: 617360.21 | M181: 778968.74 | N181: 667466.77 | O181: 698510.72 | P181: 556582.19 | Q181: 529540.93 | R181: 613819.55 | S181: 7913746.81
B182: 668 | E182: Wyoming | G182: 35492.98 | H182: 54126.3 | I182: 56989.19 | J182: 68820.92 | K182: 51691.14 | L182: 62229.46 | M182: 64319.66 | N182: 68472.31 | O182: 69541.65 | P182: 45667.83 | Q182: 33841.11 | R182: 41708.17 | S182: 652900.72
A183: %,FACCOUNT,TQGCACCTS,N880 | B183: 669 | E183: Total | G183: 663112.44 | H183: 849593.98 | I183: 587763.67 | J183: 727447.35 | K183: 890700.79 | L183: 679589.67 | M183: 843288.4 | N183: 735939.08 | O183: 768052.37 | P183: 602250.02 | Q183: 563382.04 | R183: 655527.72 | S183: 8566647.53
B184: 670
B185: 671 | C185: 881 | D185: Rents
B186: 672 | E186: Utah | G186: -547.81 | H186: 3012.82 | I186: 3325.41 | J186: 3070.88 | K186: 3553.83 | L186: 8868.35 | M186: 3613.41 | N186: 3507.7 | O186: 3907.53 | P186: 3733.54 | Q186: 3275.5 | R186: 3399.89 | S186: 42721.05
B187: 673 | E187: Wyoming | G187: -17.99 | H187: 98.96 | I187: 109.93 | J187: 101.19 | K187: 114.07 | L187: 286.55 | M187: 121 | N187: 117.08 | O187: 129.59 | P187: 123.82 | Q187: 108.28 | R187: 111.31 | S187: 1403.79
A188: %,FACCOUNT,TQGCACCTS,N881 | B188: 674 | E188: Total | G188: -565.8 | H188: 3111.78 | I188: 3435.34 | J188: 3172.07 | K188: 3667.9 | L188: 9154.9 | M188: 3734.41 | N188: 3624.78 | O188: 4037.12 | P188: 3857.36 | Q188: 3383.78 | R188: 3511.2 | S188: 44124.84
B189: 675
B190: 676 | C190: 885 | D190: Maintenance Supervision & Engineering
B191: 677 | E191: Utah | G191: 38173.43 | H191: 46597.7 | I191: 53213.86 | J191: 41586.46 | K191: 45283.62 | L191: 77746.06 | M191: 29485.1 | N191: 49130.71 | O191: 42078.01 | P191: 40285.67 | Q191: 37656.51 | R191: 40846.8 | S191: 542083.93
B192: 678 | E192: Wyoming | G192: 1149.15 | H192: 1384.79 | I192: 1644.94 | J192: 1244.62 | K192: 1327.91 | L192: 2355 | M192: 887.64 | N192: 1515.49 | O192: 1291.16 | P192: 1189.04 | Q192: 1131.13 | R192: 1224.61 | S192: 16345.48
A193: %,FACCOUNT,TQGCACCTS,N885 | B193: 679 | E193: Total | G193: 39322.58 | H193: 47982.49 | I193: 54858.8 | J193: 42831.08 | K193: 46611.53 | L193: 80101.06 | M193: 30372.74 | N193: 50646.2 | O193: 43369.17 | P193: 41474.71 | Q193: 38787.64 | R193: 42071.41 | S193: 558429.41
B194: 680
B195: 681 | C195: 886 | D195: Maintenance of Structures & Improvements
B196: 682 | E196: Utah | G196: 7663.42 | H196: 7172.97 | I196: 7559.01 | J196: 10880.62 | K196: 6724.75 | L196: 7103.33 | M196: 6825.66 | N196: 7075.21 | O196: 6941.82 | P196: 6732.58 | Q196: 6739.88 | R196: 6902.93 | S196: 88322.18
B197: 683 | E197: Wyoming | G197: 222.18 | H197: 283.72 | I197: 233.77 | J197: 330.14 | K197: 205.09 | L197: 211.39 | M197: 218.73 | N197: 211.37 | O197: 216.77 | P197: 216.18 | Q197: 216.36 | R197: 388.39 | S197: 2954.09
A198: %,FACCOUNT,TQGCACCTS,N886 | B198: 684 | E198: Total | G198: 7885.6 | H198: 7456.69 | I198: 7792.78 | J198: 11210.76 | K198: 6929.84 | L198: 7314.72 | M198: 7044.39 | N198: 7286.58 | O198: 7158.59 | P198: 6948.76 | Q198: 6956.24 | R198: 7291.32 | S198: 91276.27
B199: 685
B200: 686 | C200: 887 | D200: Maintenance of Mains
B201: 687 | E201: Utah | G201: 633315.16 | H201: 654158.66 | I201: 684689.4 | J201: 699562.79 | K201: 751104.42 | L201: 756653.34 | M201: 707952.4 | N201: 784718.4 | O201: 685739.81 | P201: 696087.04 | Q201: 666493.45 | R201: 681255.97 | S201: 8401730.84
B202: 688 | E202: Wyoming | G202: 8286.54 | H202: 4834.47 | I202: 1955.9 | J202: 16467.9 | K202: 17807.16 | L202: 10332.39 | M202: 9372.33 | N202: 15876.86 | O202: 12511.52 | P202: 9690.03 | Q202: 10985.28 | R202: 15552.44 | S202: 133672.82
A203: %,FACCOUNT,TQGCACCTS,N887 | B203: 689 | E203: Total | G203: 641601.7 | H203: 658993.13 | I203: 686645.3 | J203: 716030.69 | K203: 768911.58 | L203: 766985.73 | M203: 717324.73 | N203: 800595.26 | O203: 698251.33 | P203: 705777.07 | Q203: 677478.73 | R203: 696808.41 | S203: 8535403.66
B204: 690
B205: 691 | C205: 888 | D205: Maint of Compressor Station Equipment
B206: 692 | E206: Utah | G206: 78071.39 | H206: 82844.83 | I206: 119059.49 | J206: 33495.21 | K206: 68492.69 | L206: 74082.98 | M206: 80516.22 | N206: 107011.17 | O206: 73327.15 | P206: 86888.33 | Q206: 93700.1 | R206: 75567.16 | S206: 973056.72
... 843 more rows

Sheet Rate Base
A1: %,LACTUALS
C2: Company: | F2: Company:
C3: Period Ended: | F3: Period Ended:
C4: Date,Time, Stamp: | F4: Date,Time, Stamp:
U5: Historical
U6: 13-Month Avg
U7: Period Ended
G8: =+H8-30 -> 2017-07-17 | H8: 2017-08-16 | I8: 2017-09-17 | J8: 2017-10-19 | K8: 2017-11-18 | L8: 2017-12-18 | M8: 2018-01-18 | N8: 2018-02-17 | O8: 2018-03-19 | P8: 2018-04-18 | Q8: 2018-05-18 | R8: 2018-06-17 | S8: 2018-07-17 | T8: 2018-08-16 | U8: 2018-08-31
C10: UTILITY RATE BASE
D11: NET UTILITY PLANT
D13: Intangible Plant
C14: 101 | D14: Gas Plant In Service
E15: Intangible Plant
B16: 1 | D16: 302 | E16: Franchises & Consents
B17: =+B16+1 -> 2 | E17: Distribution - Wyoming | H17: 10883.08 | I17: 10883.08 | J17: 10883.08 | K17: 10883.08 | L17: 10883.08 | M17: 10883.08 | N17: 10883.08 | O17: 10883.08 | P17: 10883.08 | Q17: 10883.08 | R17: 10883.08 | S17: 10883.08 | T17: 10883.08 | U17: =((H17/2)+SUM(I17:S17)+(T17/2))/12 -> 10883.08
B18: 3 | E18: Distribution - Utah | H18: 58742.88 | I18: 58742.88 | J18: 58742.88 | K18: 58742.88 | L18: 58742.88 | M18: 58742.88 | N18: 58742.88 | O18: 58742.88 | P18: 58742.88 | Q18: 58742.88 | R18: 58742.88 | S18: 58742.88 | T18: 58742.88 | U18: =((H18/2)+SUM(I18:S18)+(T18/2))/12 -> 58742.88
B19: 4
A20: ="%,FACCOUNT,TQGCACCTS,N"&(D16) -> %,FACCOUNT,TQGCACCTS,N302 | B20: 5 | E20: Total Intangible Plant | H20: 69625.96 | I20: 69625.96 | J20: 69625.96 | K20: 69625.96 | L20: 69625.96 | M20: 69625.96 | N20: 69625.96 | O20: 69625.96 | P20: 69625.96 | Q20: 69625.96 | R20: 69625.96 | S20: 69625.96 | T20: 69625.96 | U20: =SUM(U17:U18) -> 69625.96
B21: 6
B22: 7 | E22: Production & Gathering Plant
A23: ="%,FACCOUNT,TQGCACCTS,N"&(D23) -> %,FACCOUNT,TQGCACCTS,N325 | B23: 8 | D23: 325 | E23: Land & Land Rights | H23: 6266900.69 | I23: 6266900.69 | J23: 6266900.69 | K23: 6266900.69 | L23: 6266900.69 | M23: 6266900.69 | N23: 6266900.69 | O23: 6266900.69 | P23: 6266900.69 | Q23: 6266900.69 | R23: 6266900.69 | S23: 6266900.69 | T23: 6266900.69 | U23: =((H23/2)+SUM(I23:S23)+(T23/2))/12 -> 6266900.69
A24: %,FACCOUNT,TQGCACCTS,N326,N327,N328,N329 | B24: 9 | D24: 326...9 | E24: Structures | H24: 1437567.99 | I24: 1437567.99 | J24: 1437567.99 | K24: 1437567.99 | L24: 1437567.99 | M24: 1437567.99 | N24: 1437567.99 | O24: 1437567.99 | P24: 1437567.99 | Q24: 1437567.99 | R24: 1437567.99 | S24: 1437567.99 | T24: 1437567.99 | U24: 1437567.99
A25: ="%,FACCOUNT,TQGCACCTS,N"&(D25) -> %,FACCOUNT,TQGCACCTS,N330 | B25: 10 | D25: 330 | E25: Gas Wells - Construction | H25: 52175293.81 | I25: 52175293.81 | J25: 52175293.81 | K25: 52175293.81 | L25: 52175293.81 | M25: 52175293.81 | N25: 52175293.81 | O25: 52175293.81 | P25: 52175293.81 | Q25: 52175293.81 | R25: 52175293.81 | S25: 52175293.81 | T25: 52175293.81 | U25: 52175293.81
A26: ="%,FACCOUNT,TQGCACCTS,N"&(D26) -> %,FACCOUNT,TQGCACCTS,N331 | B26: 11 | D26: 331 | E26: Gas Wells - Equipment | H26: 17216356.05 | I26: 17216356.05 | J26: 17216356.05 | K26: 17216356.05 | L26: 17216356.05 | M26: 17216356.05 | N26: 17216356.05 | O26: 17216356.05 | P26: 17216356.05 | Q26: 17216356.05 | R26: 17216356.05 | S26: 17216356.05 | T26: 17216356.05 | U26: 17216356.05
A27: %,FACCOUNT,TQGCACCTS,N332,N333,N334 | B27: 12 | D27: 332...4 | E27: Field Lines & Comp, Meas & Reg St Eqpt | H27: 2693816.12 | I27: 2693816.12 | J27: 2693816.12 | K27: 2693816.12 | L27: 2693816.12 | M27: 2693816.12 | N27: 2693816.12 | O27: 2693816.12 | P27: 2693816.12 | Q27: 2693816.12 | R27: 2693816.12 | S27: 2693816.12 | T27: 2693816.12 | U27: 2693816.12
A28: ="%,FACCOUNT,TQGCACCTS,N"&(D28) -> %,FACCOUNT,TQGCACCTS,N336 | B28: 13 | D28: 336 | E28: Purification Equipment | H28: 57014.71 | I28: 57014.71 | J28: 57014.71 | K28: 57014.71 | L28: 57014.71 | M28: 57014.71 | N28: 57014.71 | O28: 57014.71 | P28: 57014.71 | Q28: 57014.71 | R28: 57014.71 | S28: 57014.71 | T28: 57014.71 | U28: 57014.71
A29: ="%,FACCOUNT,TQGCACCTS,N"&(D29) -> %,FACCOUNT,TQGCACCTS,N337 | B29: 14 | D29: 337 | E29: Other Equipment | H29: 121186.63 | I29: 121186.63 | J29: 121186.63 | K29: 121186.63 | L29: 121186.63 | M29: 121186.63 | N29: 121186.63 | O29: 121186.63 | P29: 121186.63 | Q29: 121186.63 | R29: 121186.63 | S29: 121186.63 | T29: 121186.63 | U29: 121186.63
B30: 15
B31: 16 | E31: Total Production & Gathering Plant | H31: 79968136 | I31: 79968136 | J31: 79968136 | K31: 79968136 | L31: 79968136 | M31: 79968136 | N31: 79968136 | O31: 79968136 | P31: 79968136 | Q31: 79968136 | R31: 79968136 | S31: 79968136 | T31: 79968136 | U31: =SUM(U23:U29) -> 79968136
B32: 17
B33: 18 | E33: Distribution Plant
B34: 19 | D34: 374 | E34: Land & Land Rights
B35: 20 | F35: Wyoming | H35: 434507.8 | I35: 434507.8 | J35: 434507.8 | K35: 434507.8 | L35: 434011.18 | M35: 400188.28 | N35: 400188.28 | O35: 400188.28 | P35: 434507.8 | Q35: 434507.8 | R35: 434507.8 | S35: 434507.8 | T35: 434507.8 | U35: =((H35/2)+SUM(I35:S35)+(T35/2))/12 -> 425886.535
A36: ="%,FACCOUNT,TQGCACCTS,N"&(D34) -> %,FACCOUNT,TQGCACCTS,N374 | B36: 21 | F36: Utah | H36: 20034792.79 | I36: 20034792.79 | J36: 20034792.79 | K36: 20036829.95 | L36: 20037679.3 | M36: 18477460.7 | N36: 18477460.7 | O36: 19326879.5 | P36: 20027866.07 | Q36: 20028667.97 | R36: 20028996.87 | S36: 20028996.87 | T36: 20034792.79 | U36: =((H36/2)+SUM(I36:S36)+(T36/2))/12 -> 19714601.36
B37: 22 | F37: Total | H37: 20469300.59 | I37: 20469300.59 | J37: 20469300.59 | K37: 20471337.75 | L37: 20471690.48 | M37: 18877648.98 | N37: 18877648.98 | O37: 19727067.78 | P37: 20462373.87 | Q37: 20463175.77 | R37: 20463504.67 | S37: 20463504.67 | T37: 20469300.59 | U37: =SUM(U35:U36) -> 20140487.89
B38: 23
B39: 24 | D39: 375 | E39: Structures & Improvements
B40: 25 | F40: Wyoming | H40: 1006934.23 | I40: 1006934.23 | J40: 1006934.23 | K40: 1006934.23 | L40: 1004474.53 | M40: 982959.23 | N40: 1006934.23 | O40: 1006934.23 | P40: 1006934.23 | Q40: 1006934.23 | R40: 1006934.23 | S40: 1006934.23 | T40: 1006934.23 | U40: =((H40/2)+SUM(I40:S40)+(T40/2))/12 -> 1004731.338
A41: ="%,FACCOUNT,TQGCACCTS,N"&(D39) -> %,FACCOUNT,TQGCACCTS,N375 | B41: 26 | F41: Utah | H41: 15420355.25 | I41: 15420355.25 | J41: 15410995.89 | K41: 15512582.9 | L41: 15501057.69 | M41: 15717299.49 | N41: 15963930.39 | O41: 15376216.3 | P41: 15404847.8 | Q41: 15421744.87 | R41: 15421744.87 | S41: 15421744.87 | T41: 15420355.25 | U41: =((H41/2)+SUM(I41:S41)+(T41/2))/12 -> 15499406.3
B42: 27 | F42: Total | H42: 16427289.48 | I42: 16427289.48 | J42: 16417930.12 | K42: 16519517.13 | L42: 16505532.22 | M42: 16700258.72 | N42: 16970864.62 | O42: 16383150.53 | P42: 16411782.03 | Q42: 16428679.1 | R42: 16428679.1 | S42: 16428679.1 | T42: 16427289.48 | U42: =SUM(U40:U41) -> 16504137.64
B43: 28
B44: 29 | D44: 376 | E44: Mains
B45: 30 | F45: Dist - Wy - Mains - SD
B46: 31 | F46: Dist - Wy - Mains - LD
B47: 32 | F47: Dist - Wy - Mains - Feeders
B48: 33 | F48: Wyoming | H48: 39357142.27 | I48: 39357142.27 | J48: 40238540.55 | K48: 40419135.76 | L48: 41533025.01 | M48: 39090198.48 | N48: 39250212.11 | O48: 39192146.39 | P48: 39229270.78 | Q48: 39231919.19 | R48: 39235900.38 | S48: 39238064.98 | T48: 39357142.27 | U48: =((H48/2)+SUM(I48:S48)+(T48/2))/12 -> 39614391.51
B49: 34 | F49: Dist - Ut - Mains - SD
B50: 35 | F50: Dist - Ut - Mains - LD
B51: 36 | F51: Dist - Ut - Mains - Feeders
A52: ="%,FACCOUNT,TQGCACCTS,N"&(D44) -> %,FACCOUNT,TQGCACCTS,N376 | B52: 37 | F52: Utah | H52: 1522276861 | I52: 1523217908 | J52: 1544971824 | K52: 1549562103 | L52: 1555365511 | M52: 1449459877 | N52: 1450999383 | O52: 1461271902 | P52: 1475408775 | Q52: 1476524364 | R52: 1480318382 | S52: 1480556611 | T52: 1522276861 | U52: =((H52/2)+SUM(I52:S52)+(T52/2))/12 -> 1497494458
B53: 38 | F53: Total | H53: 1561634004 | I53: 1562575050 | J53: 1585210365 | K53: 1589981238 | L53: 1596898536 | M53: 1488550075 | N53: 1490249595 | O53: 1500464048 | P53: 1514638045 | Q53: 1515756283 | R53: 1519554282 | S53: 1519794676 | T53: 1561634004 | U53: =SUM(U48:U52) -> 1537108850
B54: 39
B55: 40 | D55: 377 | E55: Compressor Station Equipment
B56: 41 | F56: Wyoming | H56: 0 | I56: 0 | J56: 0 | K56: 0 | L56: 0 | M56: 0 | N56: 0 | O56: 0 | P56: 0 | Q56: 0 | R56: 0 | S56: 0 | T56: 0 | U56: =((H56/2)+SUM(I56:S56)+(T56/2))/12 -> 0
A57: ="%,FACCOUNT,TQGCACCTS,N"&(D55) -> %,FACCOUNT,TQGCACCTS,N377 | B57: 42 | F57: Utah | H57: 14286566.04 | I57: 14286566.04 | J57: 14286566.04 | K57: 14286566.04 | L57: 14286566.04 | M57: 18299037.55 | N57: 18299037.55 | O57: 14286566.04 | P57: 14286566.04 | Q57: 14286566.04 | R57: 14286566.04 | S57: 14286566.04 | T57: 14286566.04 | U57: =((H57/2)+SUM(I57:S57)+(T57/2))/12 -> 14955311.29
B58: 43 | F58: Total | H58: 14286566.04 | I58: 14286566.04 | J58: 14286566.04 | K58: 14286566.04 | L58: 14286566.04 | M58: 18299037.55 | N58: 18299037.55 | O58: 14286566.04 | P58: 14286566.04 | Q58: 14286566.04 | R58: 14286566.04 | S58: 14286566.04 | T58: 14286566.04 | U58: =SUM(U56:U57) -> 14955311.29
B59: 44
B60: 45 | D60: 378 | E60: Measuring & Regulation Station Equip
B61: 46 | F61: Wyoming | H61: 7657082.81 | I61: 7657082.81 | J61: 7657082.81 | K61: 7657082.81 | L61: 7646803.66 | M61: 7415821.61 | N61: 7610196.48 | O61: 7652724.22 | P61: 7657526.37 | Q61: 7657526.37 | R61: 7657526.37 | S61: 7657526.37 | T61: 7657082.81 | U61: =((H61/2)+SUM(I61:S61)+(T61/2))/12 -> 7631998.558
A62: ="%,FACCOUNT,TQGCACCTS,N"&(D60) -> %,FACCOUNT,TQGCACCTS,N378 | B62: 47 | F62: Utah | H62: 97518669.98 | I62: 97518669.98 | J62: 98129123.53 | K62: 100532052.3 | L62: 101237991.5 | M62: 94192625.21 | N62: 95777520.84 | O62: 96119085.32 | P62: 96486034.22 | Q62: 96749881.66 | R62: 96905219.44 | S62: 96905219.44 | T62: 97518669.98 | U62: =((H62/2)+SUM(I62:S62)+(T62/2))/12 -> 97339341.12
B63: 48 | F63: Total | H63: 105175752.8 | I63: 105175752.8 | J63: 105786206.3 | K63: 108189135.1 | L63: 108884795.2 | M63: 101608446.8 | N63: 103387717.3 | O63: 103771809.5 | P63: 104143560.6 | Q63: 104407408 | R63: 104562745.8 | S63: 104562745.8 | T63: 105175752.8 | U63: =SUM(U61:U62) -> 104971339.7
B64: 49
B65: 50 | D65: 380 | E65: Services
B66: 51 | F66: Wyoming | H66: 19365906.03 | I66: 19365906.03 | J66: 20048852.03 | K66: 20063771.11 | L66: 20117572.07 | M66: 18615215.96 | N66: 18615281.23 | O66: 18704577.07 | P66: 18761099.13 | Q66: 18761510.43 | R66: 18814962.66 | S66: 18975847.97 | T66: 19365906.03 | U66: =((H66/2)+SUM(I66:S66)+(T66/2))/12 -> 19184208.48
A67: ="%,FACCOUNT,TQGCACCTS,N"&(D65) -> %,FACCOUNT,TQGCACCTS,N380 | B67: 52 | F67: Utah | H67: 386742438.7 | I67: 386742438.7 | J67: 388790955.4 | K67: 390273497.4 | L67: 393312976.4 | M67: 375791949.8 | N67: 375812269.9 | O67: 381276386.1 | P67: 382741454.2 | Q67: 383336380.8 | R67: 384402788.8 | S67: 385396869.4 | T67: 386742438.7 | U67: =((H67/2)+SUM(I67:S67)+(T67/2))/12 -> 384551700.5
B68: 53 | F68: Total | H68: 406108344.7 | I68: 406108344.7 | J68: 408839807.4 | K68: 410337268.5 | L68: 413430548.4 | M68: 394407165.8 | N68: 394427551.1 | O68: 399980963.2 | P68: 401502553.4 | Q68: 402097891.3 | R68: 403217751.4 | S68: 404372717.4 | T68: 406108344.7 | U68: =SUM(U66:U67) -> 403735908.9
B69: 54
B70: 55 | D70: 381...2 | E70: Meters & Meter Installation
B71: 56 | F71: Wyoming | H71: 10744765.4 | I71: 10737602.81 | J71: 10421673.04 | K71: 10438278.6 | L71: 10480480.65 | M71: 9728463.67 | N71: 9742610.554 | O71: 9790277.074 | P71: 9815017.614 | Q71: 9826048.454 | R71: 9804010.214 | S71: 9190454.194 | T71: 10744765.4 | U71: =((H71/2)+SUM(I71:S71)+(T71/2))/12 -> 10059973.52
A72: %,FACCOUNT,TQGCACCTS,N381,N382 | B72: 57 | F72: Utah | H72: 320756390.4 | I72: 320596593.1 | J72: 323928831.5 | K72: 326833946.1 | L72: 331969358.3 | M72: 305777058.4 | N72: 307526144.4 | O72: 309189993.4 | P72: 310696462.9 | Q72: 314409978.9 | R72: 315385351.4 | S72: 319532399.6 | T72: 320756390.4 | U72: =((H72/2)+SUM(I72:S72)+(T72/2))/12 -> 317216875.7
B73: 58 | F73: Total | H73: 331501155.8 | I73: 331334196 | J73: 334350504.5 | K73: 337272224.7 | L73: 342449839 | M73: 315505522.1 | N73: 317268755 | O73: 318980270.5 | P73: 320511480.5 | Q73: 324236027.4 | R73: 325189361.6 | S73: 328722853.8 | T73: 331501155.8 | U73: =SUM(U71:U72) -> 327276849.2
B74: 59
B75: 60 | D75: 383...4 | E75: House Regulators & Reg Installations
B76: 61 | F76: Wyoming | H76: 762593.77 | I76: 761293.48 | J76: 760372.44 | K76: 759234.69 | L76: 759017.98 | M76: 776409.34 | N76: 776300.98 | O76: 772616.83 | P76: 768390.89 | Q76: 765194.35 | R76: 764869.28 | S76: 763894.06 | T76: 762593.77 | U76: =((H76/2)+SUM(I76:S76)+(T76/2))/12 -> 765849.0075
A77: %,FACCOUNT,TQGCACCTS,N383,N384 | B77: 62 | F77: Utah | H77: 13904015.25 | I77: 13896899.81 | J77: 13896899.81 | K77: 13890048.42 | L77: 13889337.84 | M77: 13937991.46 | N77: 13935872.58 | O77: 13931237.05 | P77: 13926092.82 | Q77: 13918862.92 | R77: 13913305.38 | S77: 13908129.36 | T77: 13904015.25 | U77: =((H77/2)+SUM(I77:S77)+(T77/2))/12 -> 13912391.06
B78: 63 | F78: Total | H78: 14666609.02 | I78: 14658193.29 | J78: 14657272.25 | K78: 14649283.11 | L78: 14648355.82 | M78: 14714400.8 | N78: 14712173.56 | O78: 14703853.88 | P78: 14694483.71 | Q78: 14684057.27 | R78: 14678174.66 | S78: 14672023.42 | T78: 14666609.02 | U78: =SUM(U76:U77) -> 14678240.07
B79: 64
B80: 65 | D80: 387 | E80: Other Equipment
B81: =+B80+1 -> 66 | F81: Wyoming | H81: 68977.44 | I81: 68977.44 | J81: 68977.44 | K81: 68977.44 | L81: 68977.44 | M81: 68977.44 | N81: 68977.44 | O81: 68977.44 | P81: 68977.44 | Q81: 68977.44 | R81: 68977.44 | S81: 68977.44 | T81: 68977.44 | U81: =((H81/2)+SUM(I81:S81)+(T81/2))/12 -> 68977.44
A82: ="%,FACCOUNT,TQGCACCTS,N"&(D80) -> %,FACCOUNT,TQGCACCTS,N387 | B82: 67 | F82: Utah | H82: 2237018.35 | I82: 2237018.35 | J82: 2237018.35 | K82: 2237018.35 | L82: 2237018.35 | M82: 2231447.98 | N82: 2236827.67 | O82: 2237018.35 | P82: 2237018.35 | Q82: 2237018.35 | R82: 2237018.35 | S82: 2237018.35 | T82: 2237018.35 | U82: =((H82/2)+SUM(I82:S82)+(T82/2))/12 -> 2236538.263
B83: 68 | F83: Total | H83: 2305995.79 | I83: 2305995.79 | J83: 2305995.79 | K83: 2305995.79 | L83: 2305995.79 | M83: 2300425.42 | N83: 2305805.11 | O83: 2305995.79 | P83: 2305995.79 | Q83: 2305995.79 | R83: 2305995.79 | S83: 2305995.79 | T83: 2305995.79 | U83: =SUM(U81:U82) -> 2305515.703
B84: 69
B85: 70 | E85: Total Distribution Plant | H85: 2472575018 | I85: 2473340689 | J85: 2502323948 | K85: 2514012566 | L85: 2529881859 | M85: 2370962981 | N85: 2376499148 | O85: 2390603725 | P85: 2408956841 | Q85: 2414666084 | R85: 2420687061 | S85: 2425609761 | T85: 2472575018 | U85: =U37+U42+U53+U58+U63+U68+U73+U78+U83 -> 2441676640
B86: 71
B87: 72 | C87: General Plant
B88: 73 | D88: 389 | E88: Land & Land Rights
B89: 74 | F89: Distribution - Wyoming | H89: 11584.02 | I89: 11584.02 | J89: 11584.02 | K89: 11584.02 | L89: 11584.02 | M89: 11584.02 | N89: 11584.02 | O89: 11584.02 | P89: 11584.02 | Q89: 11584.02 | R89: 11584.02 | S89: 11584.02 | T89: 11584.02 | U89: =((H89/2)+SUM(I89:S89)+(T89/2))/12 -> 11584.02
A90: ="%,FACCOUNT,TQGCACCTS,N"&(D88) -> %,FACCOUNT,TQGCACCTS,N389 | B90: 75 | F90: Distribution - Utah | H90: 3775953.85 | I90: 3775953.85 | J90: 3775953.85 | K90: 3775953.85 | L90: 3775953.85 | M90: 3775953.85 | N90: 3775953.85 | O90: 3775953.85 | P90: 3775953.85 | Q90: 3775953.85 | R90: 3775953.85 | S90: 3775953.85 | T90: 3775953.85 | U90: =((H90/2)+SUM(I90:S90)+(T90/2))/12 -> 3775953.85
B91: 76 | F91: Total | H91: 3787537.87 | I91: 3787537.87 | J91: 3787537.87 | K91: 3787537.87 | L91: 3787537.87 | M91: 3787537.87 | N91: 3787537.87 | O91: 3787537.87 | P91: 3787537.87 | Q91: 3787537.87 | R91: 3787537.87 | S91: 3787537.87 | T91: 3787537.87 | U91: =SUM(U89:U90) -> 3787537.87
B92: 77
B93: 78 | D93: 390 | E93: Structures & Improvements
B94: 79 | F94: Distribution - Wyoming | H94: 1610054.2 | I94: 1610054.2 | J94: 1610054.2 | K94: 1614630.2 | L94: 1617860.54 | M94: 1607117.2 | N94: 1607117.2 | O94: 1607117.2 | P94: 1607117.2 | Q94: 1610054.2 | R94: 1610054.2 | S94: 1610054.2 | T94: 1610054.2 | U94: =((H94/2)+SUM(I94:S94)+(T94/2))/12 -> 1610107.062
A95: ="%,FACCOUNT,TQGCACCTS,N"&(D93) -> %,FACCOUNT,TQGCACCTS,N390 | B95: 80 | F95: Distribution - Utah | H95: 43449156.89 | I95: 43449156.89 | J95: 43497520.37 | K95: 44011187.29 | L95: 44053641.37 | M95: 42582632.79 | N95: 42648696.69 | O95: 42696717.99 | P95: 43235000.58 | Q95: 43485867.86 | R95: 43277352.83 | S95: 43268310.27 | T95: 43449156.89 | U95: =((H95/2)+SUM(I95:S95)+(T95/2))/12 -> 43304603.48
B96: 81 | F96: General | H96: 51014683.17 | I96: 51014683.17 | J96: 51014683.17 | K96: 51071164.45 | L96: 51076999.94 | M96: 50944607.55 | N96: 50965884.49 | O96: 51041952.8 | P96: 51041952.8 | Q96: 51041952.8 | R96: 51079235.47 | S96: 51013931.4 | T96: 51014683.17 | U96: =((H96/2)+SUM(I96:S96)+(T96/2))/12 -> 51026810.93
B97: 82 | F97: Total | H97: 96073894.26 | I97: 96073894.26 | J97: 96122257.74 | K97: 96696981.94 | L97: 96748501.85 | M97: 95134357.54 | N97: 95221698.38 | O97: 95345787.99 | P97: 95884070.58 | Q97: 96137874.86 | R97: 95966642.5 | S97: 95892295.87 | T97: 96073894.26 | U97: =SUM(U94:U96) -> 95941521.48
B98: 83
B99: 84 | D99: 391 | E99: Office Furniture & Equipment
B100: 85 | F100: Distribution - Wyoming | H100: 168421.98 | I100: 168421.98 | J100: 168421.98 | K100: 168421.98 | L100: 147841.16 | M100: 180960.98 | N100: 180960.98 | O100: 178421.98 | P100: 178421.98 | Q100: 178421.98 | R100: 168421.98 | S100: 168421.98 | T100: 168421.98 | U100: =((H100/2)+SUM(I100:S100)+(T100/2))/12 -> 171296.745
A101: ="%,FACCOUNT,TQGCACCTS,N"&(D99) -> %,FACCOUNT,TQGCACCTS,N391 | B101: 86 | F101: Distribution - Utah | H101: 13047737.01 | I101: 13047737.01 | J101: 13423552.33 | K101: 13581840.19 | L101: 12701483.74 | M101: 14453973.2 | N101: 14601103.8 | O101: 14177800.73 | P101: 14243010.2 | Q101: 14372516.78 | R101: 12787006.36 | S101: 12948692.49 | T101: 13047737.01 | U101: =((H101/2)+SUM(I101:S101)+(T101/2))/12 -> 13615537.82
B102: 87 | F102: General | H102: 39582500.49 | I102: 39582500.49 | J102: 39582500.49 | K102: 39780195.62 | L102: 39749385.78 | M102: 44505532.54 | N102: 44635858.59 | O102: 42082261.39 | P102: 42080453.48 | Q102: 42082261.39 | R102: 39391714.5 | S102: 39391644.74 | T102: 39582500.49 | U102: =((H102/2)+SUM(I102:S102)+(T102/2))/12 -> 41037234.12
B103: 88 | F103: Total | H103: 52798659.48 | I103: 52798659.48 | J103: 53174474.8 | K103: 53530457.79 | L103: 52598710.68 | M103: 59140466.72 | N103: 59417923.37 | O103: 56438484.1 | P103: 56501885.66 | Q103: 56633200.15 | R103: 52347142.84 | S103: 52508759.21 | T103: 52798659.48 | U103: =SUM(U100:U102) -> 54824068.69
B104: 89
B105: 90 | D105: 392 | E105: Transportation Equipment
B106: 91 | F106: Distribution - Wyoming | H106: 3015429.18 | I106: 3008166.81 | J106: 2898242.9 | K106: 2956370.43 | L106: 2941469.68 | M106: 2845508.48 | N106: 2806503.92 | O106: 2806503.92 | P106: 2806503.92 | Q106: 2806503.92 | R106: 2806503.92 | S106: 2806503.92 | T106: 3015429.18 | U106: =((H106/2)+SUM(I106:S106)+(T106/2))/12 -> 2875350.917
A107: ="%,FACCOUNT,TQGCACCTS,N"&(D105) -> %,FACCOUNT,TQGCACCTS,N392 | B107: 92 | F107: Distribution - Utah | H107: 49437046.87 | I107: 49508529.1 | J107: 49744941.45 | K107: 50397564.71 | L107: 49990448.51 | M107: 50349790.3 | N107: 49393619.89 | O107: 49443229.28 | P107: 49443229.28 | Q107: 49607393.32 | R107: 49793846 | S107: 49828945.35 | T107: 49437046.87 | U107: =((H107/2)+SUM(I107:S107)+(T107/2))/12 -> 49744882
B108: 93 | F108: General | H108: 0 | I108: 0 | J108: 0 | K108: 0 | L108: 0 | M108: 0 | N108: 0 | O108: 0 | P108: 0 | Q108: 0 | R108: 0 | S108: 0 | T108: 0 | U108: =((H108/2)+SUM(I108:S108)+(T108/2))/12 -> 0
B109: 94 | F109: Total | H109: 52452476.05 | I109: 52516695.91 | J109: 52643184.35 | K109: 53353935.14 | L109: 52931918.19 | M109: 53195298.78 | N109: 52200123.81 | O109: 52249733.2 | P109: 52249733.2 | Q109: 52413897.24 | R109: 52600349.92 | S109: 52635449.27 | T109: 52452476.05 | U109: =SUM(U106:U108) -> 52620232.92
B110: 95
B111: 96 | D111: 393 | E111: Stores Equipment
B112: 97 | F112: Distribution - Wyoming | H112: 12371.89 | I112: 12371.89 | J112: 12371.89 | K112: 12371.89 | L112: 12371.89 | M112: 12371.89 | N112: 12371.89 | O112: 12371.89 | P112: 12371.89 | Q112: 12371.89 | R112: 12371.89 | S112: 12371.89 | T112: 12371.89 | U112: =((H112/2)+SUM(I112:S112)+(T112/2))/12 -> 12371.89
A113: ="%,FACCOUNT,TQGCACCTS,N"&(D111) -> %,FACCOUNT,TQGCACCTS,N393 | B113: 98 | F113: Distribution - Utah | H113: 45026.02 | I113: 45026.02 | J113: 45026.02 | K113: 45026.02 | L113: 45026.02 | M113: 45026.02 | N113: 45026.02 | O113: 45026.02 | P113: 45026.02 | Q113: 45026.02 | R113: 45026.02 | S113: 45026.02 | T113: 45026.02 | U113: =((H113/2)+SUM(I113:S113)+(T113/2))/12 -> 45026.02
B114: 99 | F114: Total | H114: 57397.91 | I114: 57397.91 | J114: 57397.91 | K114: 57397.91 | L114: 57397.91 | M114: 57397.91 | N114: 57397.91 | O114: 57397.91 | P114: 57397.91 | Q114: 57397.91 | R114: 57397.91 | S114: 57397.91 | T114: 57397.91 | U114: =SUM(U112:U113) -> 57397.91
B115: 100
B116: 101 | D116: 394 | E116: Tools, Shop & Garage Equipment
B117: 102 | F117: Distribution - Wyoming | H117: 2344115.19 | I117: 2349815.19 | J117: 2371963.23 | K117: 2391686.4 | L117: 2395252.13 | M117: 2632043.1 | N117: 2632683.18 | O117: 2622572.71 | P117: 2622572.71 | Q117: 2625915.97 | R117: 2308319.52 | S117: 2320084.88 | T117: 2344115.19 | U117: =((H117/2)+SUM(I117:S117)+(T117/2))/12 -> 2468085.351
A118: ="%,FACCOUNT,TQGCACCTS,N"&(D116) -> %,FACCOUNT,TQGCACCTS,N394 | B118: 103 | F118: Distribution - Utah | H118: 29872090.71 | I118: 29900590.71 | J118: 30145652.96 | K118: 29040069.32 | L118: 29287123.41 | M118: 29024551.94 | N118: 29043445.52 | O118: 28724943.31 | P118: 28932884.26 | Q118: 29099120.42 | R118: 29452612.12 | S118: 29635233.78 | T118: 29872090.71 | U118: =((H118/2)+SUM(I118:S118)+(T118/2))/12 -> 29346526.54
B119: 104 | F119: General | H119: 0 | I119: 0 | J119: 0 | K119: 0 | L119: 0 | M119: 0 | N119: 0 | O119: 0 | P119: 0 | Q119: 0 | R119: 0 | S119: 0 | T119: 0 | U119: =((H119/2)+SUM(I119:S119)+(T119/2))/12 -> 0
B120: 105 | F120: Total | H120: 32216205.9 | I120: 32250405.9 | J120: 32517616.19 | K120: 31431755.72 | L120: 31682375.54 | M120: 31656595.04 | N120: 31676128.7 | O120: 31347516.02 | P120: 31555456.97 | Q120: 31725036.39 | R120: 31760931.64 | S120: 31955318.66 | T120: 32216205.9 | U120: =SUM(U117:U119) -> 31814611.89
B121: 106
B122: 107 | D122: 395 | E122: Laboratory Equipment
B123: 108 | F123: Distribution - Wyoming | H123: 0 | I123: 0 | J123: 0 | K123: 0 | L123: 0 | M123: 0 | N123: 0 | O123: 0 | P123: 0 | Q123: 0 | R123: 0 | S123: 0 | T123: 0 | U123: =((H123/2)+SUM(I123:S123)+(T123/2))/12 -> 0
A124: ="%,FACCOUNT,TQGCACCTS,N"&(D122) -> %,FACCOUNT,TQGCACCTS,N395 | B124: 109 | F124: Distribution - Utah | H124: 61117.83 | I124: 61117.83 | J124: 61117.83 | K124: 61117.83 | L124: 61117.83 | M124: 61117.83 | N124: 61117.83 | O124: 61117.83 | P124: 61117.83 | Q124: 61117.83 | R124: 61117.83 | S124: 61117.83 | T124: 61117.83 | U124: =((H124/2)+SUM(I124:S124)+(T124/2))/12 -> 61117.83
B125: 110 | F125: General | H125: 0 | I125: 0 | J125: 0 | K125: 0 | L125: 0 | M125: 0 | N125: 0 | O125: 0 | P125: 0 | Q125: 0 | R125: 0 | S125: 0 | T125: 0 | U125: =((H125/2)+SUM(I125:S125)+(T125/2))/12 -> 0
B126: 111 | F126: Total | H126: 61117.83 | I126: 61117.83 | J126: 61117.83 | K126: 61117.83 | L126: 61117.83 | M126: 61117.83 | N126: 61117.83 | O126: 61117.83 | P126: 61117.83 | Q126: 61117.83 | R126: 61117.83 | S126: 61117.83 | T126: 61117.83 | U126: =SUM(U123:U125) -> 61117.83
B127: 112
B128: 113 | D128: 396 | E128: Power Operated Equipment
